{"text_format":"1","workbook":"xlsx","n_sheets":18,"sheets":["Inställningar","Förslag kriterier","Åtgärdsalternativ","Värdering","Kvantitativ","Oviktade resultat","Viktade resultat","Resultat vikter","Resultat totalt","Resultat detalj","Kriterier","Skalor o färg","Sum. dim 1","Vikt dim 1","Sum. dim 2","Vikt dim 2","Sum. dim 3","Vikt dim 3"],"not_rendered":{"charts":10,"images":1,"macros":1,"external_links":0,"defined_names":33,"comments":13,"pivot_tables":0},"unopened":[],"bounds":{"document_bytes":16777216,"sheet_cells":100000,"rows_first":2000,"rows_last":500,"rows_between":2000,"halvings":0,"cell_chars":16384,"cell_head_chars":4096},"cells_cut":0,"cells_raw":0,"read":"whole","date_system":"1900"}

{"sheet":"Inställningar","index":0,"n_rows":63,"n_cols":26,"rows_kept":63,"cut":false,"hidden":false,"merged":[[9,4,11,6]]}
["Grundinställningar i SAMLA för förorenade områden",null,null,null,null,null,"SAMLA version 2.6"]
[]
[]
[]
["Objekt:",null,"XYZ-köping"]
[]
["Namn på de två tidsperspektiven:","A.","Kort sikt"]
[null,"B.","Lång sikt"]
[]
["Referensalternativ:",null,"Nollalternativ: ingen åtgärd","Beskrivning:","Värderingen görs med nollalternativet på kort sikt som referens. Därmed får samtliga kriterier 0 poäng för \"noll-alternativet - kort sikt\"."]
[null,null,null,null,null,null,null,null,null,null,null,null,"Tot.skala"]
["Poängskala:",null,null,null,null,null,null,null,null,null,2]
[]
["Viktningsskala:",null,null,null,null,null,null,null,null,null,2]
[null,null,null,null,null,null,null,null,null,null,1]
["Fördefinierade kriterier:",null,null,null,null,null,null,null,null,1,1,1]
[null,null,null,null,null,null,null,null,null,null,1]
["Hållbarhetsdimensioner:",{"$f":"IF(C18<>\"\",\"1.\",\"\")","v":"1."},"Ekologisk"]
[null,{"$f":"IF(C19<>\"\",\"2.\",\"\")","v":"2."},"Social"]
[null,{"$f":"IF(C20<>\"\",\"3.\",\"\")","v":"3."},"Ekonomisk"]
[null,null,null,null,null,null,null,null,null,null,null,"Dölj:","Dölj:"]
[null,null,null,null,null,null,{"$f":"IF($L$22=FALSE,\"Skalans\",\"\")","v":""},null,{"$f":"IF($M$22,\"\",\"Log-skalans spann, \")","v":""},null,null,{"$f":"IF(LARGE($L$24:$L$39,1)=1,TRUE,FALSE)","v":true},{"$f":"IF(OR(NOT(OR(M24:M39)),PRODUCT(L24:L39)=1),TRUE,FALSE)","v":true}]
["Definition av kriterier:",null,"Kriterium","Hållbarhetsdimension","      Typ",{"$f":"IF($L$22=FALSE,\"Enhet\",\"\")","v":""},{"$f":"IF($L$22=FALSE,\"max-värde\",\"\")","v":""},{"$f":"IF($L$22=FALSE,\"Log-skala\",\"\")","v":""},{"$f":"IF($M$22,\"\",\"antal 10-potenser:\")","v":""},null,"Dim.","Typ.","Log."]
[null,null,"1. Utsläpp till luft",null,null,null,null,null,null,null,1,1,false,null,"Rosamarkerade celler är kopplade till kombinationsrutor/kryssrutor"]
[null,null,"2. Jord och mark",null,null,null,null,null,null,null,1,1,false]
[null,null,"3. Grundvatten",null,null,null,null,null,null,null,1,1,false]
[null,null,"4. Ytvatten och sediment",null,null,null,null,null,null,null,1,1,false]
[null,null,"5. Ekologi",null,null,null,null,null,null,null,1,1,false]
[null,null,"6. Naturresurser och avfall",null,null,null,null,null,null,null,1,1,false]
[null,null,"7. Hälsa och säkerhet",null,null,null,null,null,null,null,2,1,false]
[null,null,"8. Etik och jämlikhet",null,null,null,null,null,null,null,2,1,false]
[null,null,"9. Närmiljö",null,null,null,null,null,null,null,2,1,false]
[null,null,"10. Lokalsamhälle",null,null,null,null,null,null,null,2,1,false]
[null,null,"11. Osäkerhet och evidens",null,null,null,null,null,null,null,2,1,false]
[null,null,"12. Direkta kostnader och nyttor",null,null,null,null,null,null,null,3,1,false]
[null,null,"13. Indirekta kostnader och nyttor",null,null,null,null,null,null,null,3,1,false]
[null,null,"14. Inducerade kostnader och nyttor",null,null,null,null,null,null,null,3,1,false]
[null,null,"15. Beständighet och flexibilitet",null,null,null,null,null,null,null,3,1,false]
[]
[]
[null,null,null,null,null,null,null,null,null,"Dim:",{"$f":"TRANSPOSE(_xlfn.ANCHORARRAY(D49))","v":1},1,1,1,1,1,2,2,2,2,2,3,3,3,3]
[null,null,null,null,null,null,null,null,null,"Typ:",{"$f":"TRANSPOSE(_xlfn.ANCHORARRAY(E49))","v":1},1,1,1,1,1,1,1,1,1,1,1,1,1,1]
[null,null,null,null,null,null,null,null,null,"Max:",{"$f":"TRANSPOSE(_xlfn.ANCHORARRAY(F49))","v":0},0,0,0,0,0,0,0,0,0,0,0,0,0,0]
[null,null,null,null,null,null,null,null,null,"Log max:",{"$f":"TRANSPOSE(_xlfn.ANCHORARRAY(G49))","v":{"$error":"#NUM!"}},{"$error":"#NUM!"},{"$error":"#NUM!"},{"$error":"#NUM!"},{"$error":"#NUM!"},{"$error":"#NUM!"},{"$error":"#NUM!"},{"$error":"#NUM!"},{"$error":"#NUM!"},{"$error":"#NUM!"},{"$error":"#NUM!"},{"$error":"#NUM!"},{"$error":"#NUM!"},{"$error":"#NUM!"},{"$error":"#NUM!"}]
[null,null,null,null,null,null,null,null,null,"Log min:",{"$f":"TRANSPOSE(_xlfn.ANCHORARRAY(H49))","v":{"$error":"#NUM!"}},{"$error":"#NUM!"},{"$error":"#NUM!"},{"$error":"#NUM!"},{"$error":"#NUM!"},{"$error":"#NUM!"},{"$error":"#NUM!"},{"$error":"#NUM!"},{"$error":"#NUM!"},{"$error":"#NUM!"},{"$error":"#NUM!"},{"$error":"#NUM!"},{"$error":"#NUM!"},{"$error":"#NUM!"},{"$error":"#NUM!"}]
[null,null,null,null,null,null,null,null,null,"Log:",{"$f":"TRANSPOSE(_xlfn.ANCHORARRAY(I49))","v":false},false,false,false,false,false,false,false,false,false,false,false,false,false,false]
[null,null,null,null,null,null,null,null,null,"Namn:",{"$f":"IF(OFFSET($C$18,K41-1,0,1,1)=0,\"\",OFFSET($C$18,K41-1,0,1,1))","v":"Ekologisk"},{"$f":"IF(OFFSET($C$18,L41-1,0,1,1)=0,\"\",OFFSET($C$18,L41-1,0,1,1))","v":"Ekologisk"},"Ekologisk","Ekologisk","Ekologisk","Ekologisk","Social","Social","Social","Social","Social","Ekonomisk","Ekonomisk","Ekonomisk","Ekonomisk",""]
[null,null,"Kriterielista utan tomma rader","Hållbarhetsdimension (nr)","Typ (nr)","Max","Log max:","Log min:","Log:"]
[null,null,{"$f":"_xlfn.UNIQUE(_xlfn._xlws.FILTER(C24:C39,NOT(ISBLANK(C24:C39))))","v":"1. Utsläpp till luft"},{"$f":"_xlfn.XLOOKUP(_xlfn.ANCHORARRAY(C49),$C$24:$C$39,$K$24:$K$39)","v":1},{"$f":"_xlfn.XLOOKUP(_xlfn.ANCHORARRAY(C49),$C$24:$C$39,$L$24:$L$39)","v":1},{"$f":"_xlfn.XLOOKUP(_xlfn.ANCHORARRAY(C49),$C$24:$C$39,$G$24:$G$39)","v":0},{"$f":"LOG10(_xlfn.XLOOKUP(_xlfn.ANCHORARRAY(C49),$C$24:$C$39,$G$24:$G$39))","v":{"$error":"#NUM!"}},{"$f":"LOG10((_xlfn.XLOOKUP(_xlfn.ANCHORARRAY(C49),$C$24:$C$39,$G$24:$G$39))/10^(_xlfn.XLOOKUP(_xlfn.ANCHORARRAY(C49),$C$24:$C$39,$I$24:$I$39)))","v":{"$error":"#NUM!"}},{"$f":"_xlfn.XLOOKUP(_xlfn.ANCHORARRAY(C49),$C$24:$C$39,$M$24:$M$39)","v":false}]
[null,null,"2. Jord och mark",1,1,0,{"$error":"#NUM!"},{"$error":"#NUM!"},false]
[null,null,"3. Grundvatten",1,1,0,{"$error":"#NUM!"},{"$error":"#NUM!"},false]
[null,null,"4. Ytvatten och sediment",1,1,0,{"$error":"#NUM!"},{"$error":"#NUM!"},false]
[null,null,"5. Ekologi",1,1,0,{"$error":"#NUM!"},{"$error":"#NUM!"},false]
[null,null,"6. Naturresurser och avfall",1,1,0,{"$error":"#NUM!"},{"$error":"#NUM!"},false]
[null,null,"7. Hälsa och säkerhet",2,1,0,{"$error":"#NUM!"},{"$error":"#NUM!"},false]
[null,null,"8. Etik och jämlikhet",2,1,0,{"$error":"#NUM!"},{"$error":"#NUM!"},false]
[null,null,"9. Närmiljö",2,1,0,{"$error":"#NUM!"},{"$error":"#NUM!"},false]
[null,null,"10. Lokalsamhälle",2,1,0,{"$error":"#NUM!"},{"$error":"#NUM!"},false]
[null,null,"11. Osäkerhet och evidens",2,1,0,{"$error":"#NUM!"},{"$error":"#NUM!"},false]
[null,null,"12. Direkta kostnader och nyttor",3,1,0,{"$error":"#NUM!"},{"$error":"#NUM!"},false]
[null,null,"13. Indirekta kostnader och nyttor",3,1,0,{"$error":"#NUM!"},{"$error":"#NUM!"},false]
[null,null,"14. Inducerade kostnader och nyttor",3,1,0,{"$error":"#NUM!"},{"$error":"#NUM!"},false]
[null,null,"15. Beständighet och flexibilitet",3,1,0,{"$error":"#NUM!"},{"$error":"#NUM!"},false]

{"sheet":"Förslag kriterier","index":1,"n_rows":115,"n_cols":5,"rows_kept":115,"cut":false,"hidden":false,"merged":[[78,4,80,4],[68,4,73,4],[74,4,77,4],[6,4,7,4],[12,4,13,4],[24,4,28,4],[31,4,38,4],[61,4,62,4],[63,4,67,4],[46,4,53,4],[54,4,60,4],[97,4,101,4],[102,4,107,4],[108,4,110,4],[85,4,90,4],[91,4,96,4]]}
["Förslag på kriterier enligt SGI Vägledning nr 7, Riskvärdering vid förorenade områden (2022)",null,null,null,{"$f":"Inställningar!G1","v":"SAMLA version 2.6"}]
[]
["Se även Bilaga 1 i SGI (2022). Kriterierna baseras på SuRF-UK (2020) men har anpassats till svenska förhållanden."]
[]
["Dimension","Nr.","Kriterium","Exempel på delkriterier (indikatorer)","Kommentarer"]
[]
["Ekologisk",1,"Utsläpp till luft","• Utsläpp till luft i form av:","Kan även påverka den sociala dimensionen (kriterierna Hälsa och säkerhet samt Närmiljö)."]
[null,null,null,"- Växthusgaser."]
[null,null,null,"- Utsläpp som bidrar till försurning."]
[null,null,null,"- Utsläpp som skadar ozonskiktet."]
[null,null,null,"- Utsläpp som påverkar luftkvaliteten vid markytan."]
[]
["Ekologisk",2,"Jord och mark","• Avser positiva och negativa effekter på jorden, markens ekosystem och markens stabilitet, bland annat:","Avgränsning krävs mot kriteriet Ekologi, för att undvika dubbelräkning av effekter."]
[null,null,null,"- Markekosystemet i sig."]
[null,null,null,"- Ekosystemtjänster som marken levererar."]
[null,null,null,"- Påverkan på geotekniska förhållanden."]
[null,null,null,"- Kompaktering av marken."]
[null,null,null,"- Hårdgörning av marken."]
[null,null,null,"- Påverkan på jordegenskaper som pH, organisk halt, kornstorlek med mera."]
[null,null,null,"- Jorderosion."]
[null,null,null,"- Återfyllnadsmassornas lämplighet."]
[null,null,null,"- Sekundära effekter som förändrade markförhållanden kan ge upphov till."]
[null,null,null,"- Övergripande effekter på jord, som skyddsobjekt och som resurs."]
[]
["Ekologisk",3,"Grundvatten","• Direkta och indirekta effekter på grundvatten, bland annat:","Hälsoeffekter orsakade av grundvatten beaktas genom kriteriet Hälsa och säkerhet. Grundvatten som ekonomisk resurs hör hemma under kriteriet Indirekta kostnader och nyttor eller möjligen Direkta kostnader och nyttor, beroende på projekt."]
[null,null,null,"-  Föroreningshalter."]
[null,null,null,"- Vattenkemi."]
[null,null,null,"- Hydrogeologiska förhållanden."]
[null,null,null,"- Grundvattenberoende ekosystem."]
[null,null,null,"- Övergripande effekter på grundvattnet, som skyddsobjekt och som resurs."]
[]
["Ekologisk",4,"Ytvatten och sediment","• Direkta och indirekta effekter på ytvatten och sediment, bland annat:","Hälsoeffekter orsakade av ytvatten beaktas med kriteriet Hälsa och säkerhet. Ytvatten som ekonomisk resurs kopplar till kriteriet Indirekta kostnader och nyttor eller möjligen Direkta kostnader och nyttor, beroende på projekt. Det kan även finnas en koppling till kriteriet Lokalsamhälle (utsikt mot vatten, badmöjligheter med mera)."]
[null,null,null,"- Föroreningshalter."]
[null,null,null,"- Vattenkemi."]
[null,null,null,"- Hydrologiska förhållanden."]
[null,null,null,"- Ytvattenekosystemet."]
[null,null,null,"- Övergripande effekter på ytvattnet, som skyddsobjekt och som resurs."]
[]
[]
["Ekologisk",5,"Ekologi","• Kriteriet omfattar positiva och negativa ekologiska effekter som åtgärderna ger upphov till. Kriteriet kan vara viktigt för många förorenade områden och kan stödjas av exempelvis naturvärdesinventeringar, för att lyfta fram ekologiska mervärden i projekt. Kriteriet fångar upp effekter på flora, fauna, habitat och biodiversitet. Det bör tillämpas för ekologiska effekter som inte täcks in av kriterierna Jord och mark, Grundvatten samt Ytvatten och sediment. Kriteriet omfattar exempelvis:","Ekonomiska effekter av ekosystemtjänster kopplar till kriteriet Indirekta kostnader och nyttor. Det kan även finnas en koppling till kriteriet Lokalsamhälle (områdets attraktionskraft med mera)."]
[null,null,null,"- Effekter på skyddade eller särskilt skyddsvärda områden."]
[null,null,null,"- Effekter på den biologiska mångfalden."]
[null,null,null,"- Effekter på näringsväven, såsom sekundärförgiftning."]
[null,null,null,"- Effekter på ekosystemtjänster."]
[null,null,null,"- Effekter av främmande eller invasiva arter."]
[]
["Ekologisk",6,"Naturresurser och avfall","• Omfattar förbrukning av energi och naturresurser samt produktion av avfall. Exempel på aspekter som kan vägas in är:","Grundvatten och ytvatten som naturresurser hanteras under kriterierna ovan. Ekonomiska effekter med koppling till kriteriet kan hanteras under kriterierna Direkta kostnader och nyttor eller Indirekta kostnader och nyttor."]
[null,null,null,"- Energiförbrukning och energieffektivitet."]
[null,null,null,"- Förbrukning av ändliga resurser."]
[null,null,null,"- Generering av avfall (kontaminerade massor, behandlingsvätskor med mera)."]
[null,null,null,"- Ianspråktagande av deponiutrymme."]
[null,null,null,"- Användning eller återvinning av massor (cirkulär ekonomi)."]
[null,null,null,"- Vattenförbrukning."]
[]
["Social",7,"Hälsa och säkerhet","• Effekter på människors hälsa och säkerhet, både positiva och negativa. Den mest uppenbara positiva effekten är minskade risker genom att föroreningen åtgärdas. Negativa effekter omfattar exempelvis:","Det finns ett avgränsningsproblem gentemot kriteriet Närmiljö där störningar som inte direkt påverkar hälsa och säkerhet beaktas, till exempel begränsade bullerstörningar. Gränsdragningen mellan dessa kriterier måste bestämmas i projektet."]
[null,null,null,"- Exponering för föroreningar i samband med åtgärden (damm, ångor med mera)."]
[null,null,null,"- Olycksrisker på grund av tunga maskiner, transportfordon med mera."]
[null,null,null,"- Olycksrisker från mindre maskiner och utrustning (värme, elektricitet, vibrationer med mera)."]
[null,null,null,"- Exponering för skadliga kemikalier som används i åtgärdsmetoden."]
[null,null,null,"- Risker i samband med transport av farligt avfall."]
[]
["Social",8,"Etik och jämlikhet","• Rättvisa inom nuvarande generation, särskilt för svaga eller utsatta grupper som kan missgynnas av vissa typer av åtgärder.","Kriteriet omfattar olika etiska frågor, rättviseaspekter och jämlikhetsfrågor. Dessa aspekter är viktigast i projekt där allmänheten påverkas av åtgärderna."]
[null,null,null,"• Rättvisa gentemot kommande generationer (exempelvis planerad kvarlämning av förorening till framtida generationer)."]
[null,null,null,"• Hur potentiella störningar på lokalsamhället omhändertas av projektet.","Etik- och jämlikhetsfrågorna kan vara särskilt svåra att hantera i projekt med enbart teknisk och naturvetenskaplig kompetens, därför kan särskild kompetens behöva kopplas\nin i dessa frågor. "]
[null,null,null,"• Hur olika gruppers känslighet eller misstänksamhet gentemot vissa typer av åtgärder hanteras."]
[null,null,null,"• Förändringar på platsen som gynnar vissa medborgare men missgynnar andra, särskilt svaga eller utsatta grupper."]
[]
[]
["Social",9,"Närmiljö","• Störningar under pågående åtgärd i form av buller, vibrationer, ljus, damm och lukt.","Avser effekter i den fysiska miljön vid och i omgivningen av det förorenade området. Effekterna inkluderar fysiska störningar under pågående åtgärd, men även effekter efter åtgärdens genomförande. Effekter på Lokalsamhälle och människors nyttjande av området ingår inte."]
[null,null,null,"• Påverkan på trafiken under åtgärden."]
[null,null,null,"• Påverkan på kulturmiljön."]
[null,null,null,"• Arkeologiska effekter."]
[null,null,null,"• Påverkan på landskapsmiljön (exempelvis landskapsutformning med schaktmassor). "]
[null,null,null,"• Positiva effekter genom att invasiva växter eller skadedjur avlägsnas."]
[null,null,null,"• Upprustning och vitalisering av områden i förfall.","Om störningarna från pågående åtgärd är så stora att de påverkar människors hälsa ingår de i kriteriet Hälsa och säkerhet. "]
[]
[]
[]
["Social",10,"Lokalsamhälle","• Påverkan på lokala tjänster och samhällsfunktioner.","Kriteriet fokuserar på områdets funktionalitet och hur området används av befolkningen (jämför kriteriet Närmiljö som omfattar fysiska effekter)."]
[null,null,null,"• Funktioner som stigar, gångvägar, öppna ytor för allmänheten med mera. "]
[null,null,null,"• Stigma gällande hur området uppfattas (oro för fastighetsvärden med mera)."]
[null,null,null,"• Områdets attraktionskraft."]
[null,null,null,"• Påverkan på rekreation."]
[null,null,null,"• Hinder och avspärrningar för människor under pågående åtgärd."]
[]
["Social",11,"Osäkerhet och evidens","• Kvaliteten på evidens för att åtgärden fungerar och presterar som avsett (måste hanteras med förnuft för att inte missgynna ny teknik).","Kriteriet avser osäkerheter kopplade till åtgärdsalternativen och hur väl dessa presterar. Här ingår även osäkerheter om hur alternativen accepteras av myndigheter, hur åtgärdernas funktion kan verifieras och teknikleverantörens expertkunskap."]
[null,null,null,"• Kvaliteten på studier och undersökningar som ligger till grund för aktuell åtgärdslösning."]
[null,null,null,"• Kravnivåer på validering och verifiering av aktuell metod."]
[null,null,null,"• Eventuell bias i tidigare genomförda undersökningar, orsakad av provtagning, tolkning eller annat."]
[null,null,null,"• Kvaliteten på konceptuella modeller som ligger till grund för åtgärderna."]
[]
["Ekonomisk",12,"Direkta kostnader och nyttor","• Efterbehandlingsåtgärdens direkta ekonomiska kostnader och intäkter.","Kriteriet omfattar direkta finansiella kostnader, intäkter eller minskade utgifter. Den mest typiska kostnaden är åtgärdskostnaden. I vissa fall kan åtgärden bidra till att kostnader för pågående skyddsåtgärder upphör, till exempel pågående pumpning, vattenrening med mera."]
[null,null,null,"• Minskade kostnader för pågående skyddsåtgärder med mera som upphör."]
[]
[]
[]
[]
["Ekonomisk",13,"Indirekta kostnader och nyttor","• Fastighetsvärdesförändringar. ","Kriteriet omfattar övriga indirekta kostnader och nyttor som en åtgärd ger upphov till. Notera dock att effekter som är hänförliga till den ansvarige för föroreningen inte ska\nbeaktas enligt det svenska regelverket; se Avsnitt 4.1.5 i SGI Vägledning 7 (2022)."]
[null,null,null,"• Förbättrat (eller försämrat) företagsklimat i området."]
[null,null,null,"• Ekonomiska störningar i omgivningen på grund av saneringsåtgärderna, tillfälligt eller permanent (minskade butiksintäkter med mera)."]
[]
[]
["Ekonomisk",14,"Inducerade kostnader och nyttor","• Ytterligare saneringar i närområdet, som en följdeffekt av projektet och aktuell efterbehandlingsmetod.","Kriteriet omfattar ekonomiska effekter som uppkommer genom investeringar utanför projektet men som är ett resultat av detta. Det finns en koppling till kriteriet Lokalsamhälle genom effekter som kan uppstå i omgivningen."]
[null,null,null,"• Etablering av nya företag eller andra ekonomiska verksamheter som resultat av åtgärden. "]
[null,null,null,"• Ekonomiska nyttor av ny åtgärdsteknik."]
[null,null,null,"• Effekter på den lokala arbetsmarknaden."]
[null,null,null,"• Kunskapshöjning och ökad anställningsbarhet för individer. "]
[]
["Ekonomisk",15,"Beständighet och flexibilitet","• Hur lång tid åtgärdslösningen förmår ge en acceptabel riskreduktion. ","Kriteriet omfattar åtgärdernas funktion över tid samt hur flexibla och motståndskraftiga\nåtgärderna är vid förändringar."]
[null,null,null,"• Under hur lång tid som kontrollåtgärder behöver pågå eller övervakning ske"]
[null,null,null,"• Under hur lång tid som restriktioner av olika slag måste följas, exempelvis odlingsrekommendationer, begränsningar i grundvattenuttag eller konsumtion av dricksvatten eller fisk."]
[null,null,null,"• Behov av att upprätta en institutionell kontrollmekanism för åtgärden och möjligheten att upprätthålla en sådan över tid."]
[null,null,null,"• Åtgärdens motståndskraft mot klimatförändringar."]
[null,null,null,"• Möjligheter att justera åtgärden om kunskapen om föroreningssituationen förändras\nunder pågående projekt (ytterligare förorening upptäcks)."]
[null,null,null,"• Åtgärdens ekonomiska känslighet för förändringar i projektbudget med mera, särskilt för åtgärder som pågår under lång tid."]

{"sheet":"Åtgärdsalternativ","index":2,"n_rows":22,"n_cols":3,"rows_kept":22,"cut":false,"hidden":false,"merged":[[3,0,3,2],[2,0,2,1],[20,0,20,2],[22,0,22,2]]}
["Objekt:",{"$f":"IF(ISBLANK(Inställningar!C5), \"\",Inställningar!C5)","v":"XYZ-köping"},{"$f":"Inställningar!G1","v":"SAMLA version 2.6"}]
[]
["Övergripande åtgärdsmål:"]
[]
[]
["Åtgärdsalternativ - Identifiering av konsekvenser utan och med åtgärd",null,"Skriv ut i A3 format. Liggande."]
["Åtgärd","Beskrivning av åtgärd\nIdentifiering av risker och konsekvenser","Potentiella kostnadsposter för åtgärder och  konsekvenser"]
[{"$f":"Inställningar!C10","v":"Nollalternativ: ingen åtgärd"}]
["Åtgärdsförslag 1"]
["Åtgärdsförslag 2"]
["Åtgärdsförslag 3"]
["Åtgärdsförslag 4"]
["Åtgärdsförslag 5"]
["Vita celler fylls i av användarna."]
["Namnge de olika åtgärdsalternativen genom att byta ut texten \"Åtgärdsförslag X\" i vänstra kolumnen."]
["Beskriv risker och konsekvenser för nollalternativet och för övriga alternativ, med text. Justera radhöjden om det behövs mer utrymme."]
["Gör en uppskattning av kostnader för åtgärderna och för konsekvenser. Dela, om möjligt, upp kostnaderna per moment."]
["Information kan hämtas från t.ex. åtgärdsutredningen."]
[]
["Kommentarer:"]
[]
["Underlag: "]

{"sheet":"Värdering","index":3,"n_rows":60,"n_cols":19,"rows_kept":60,"cut":false,"hidden":false,"merged":[[5,0,5,6],[45,0,45,18],[47,0,47,18],[53,0,53,18],[49,0,49,18],[51,0,51,18],[6,0,7,2],[22,2,23,2],[24,2,25,2],[26,2,27,2],[18,1,19,1],[20,1,21,1],[18,0,21,0],[18,2,19,2],[20,2,21,2],[43,0,43,19],[30,0,33,0],[22,1,23,1],[24,1,25,1],[26,1,27,1],[28,1,29,1],[22,0,25,0],[26,0,29,0],[32,2,33,2],[28,2,29,2],[30,2,31,2],[30,1,31,1],[32,1,33,1],[41,0,41,18],[3,0,3,18],[0,3,0,15],[14,0,17,0],[10,0,13,0],[10,1,11,1],[12,1,13,1],[14,1,15,1],[16,1,17,1],[10,2,11,2],[12,2,13,2],[14,2,15,2],[16,2,17,2],[0,0,0,2],[8,0,8,2],[9,0,9,2]]}
["Objekt:",null,null,{"$f":"Åtgärdsalternativ!B1","v":"XYZ-köping"},null,null,null,null,null,null,null,null,null,null,null,null,null,null,{"$f":"Inställningar!G1","v":"SAMLA version 2.6"}]
[]
["Övergripande åtgärdsmål:"]
[{"$f":"IF(Åtgärdsalternativ!A4=\"\",\"\",Åtgärdsalternativ!A4)","v":""}]
[]
["Värdering - Kategorisering, poängsättning & viktning",null,null,null,null,null,null,{"$f":"IF(SUM(COUNTIF('Oviktade resultat'!D10:S21,\"> \"&TEXT('Skalor o färg'!B8,0)),COUNTIF('Oviktade resultat'!D10:S21,\"< \"&TEXT(0-'Skalor o färg'!B8,0)))>0,\"VARNING! Du har angett ett eller flera tal utanför vald poängskala. Talen används ändå i beräkningarna men färgmarkeringar och grafer kan bli missvisande.\",IF(SUM(COUNTIF(D9:S9,\"> \"&TEXT('Skalor o färg'!B18,0)),COUNTIF(D9:S9,\"< 0\"))>0,\"VARNING! Du har angett ett eller flera tal utanför vald viktningsskala. Vikterna används ändå i beräkningarna men färgmarkeringar och grafer kan bli missvisande.\",\"\"))","v":""},null,null,null,null,null,null,null,null,null,null,"Skriv ut i A3 format. Liggande."]
["Åtgärd",null,null,{"$f":"Inställningar!K47","v":"Ekologisk"},{"$f":"Inställningar!L47","v":"Ekologisk"},{"$f":"Inställningar!M47","v":"Ekologisk"},{"$f":"Inställningar!N47","v":"Ekologisk"},{"$f":"Inställningar!O47","v":"Ekologisk"},{"$f":"Inställningar!P47","v":"Ekologisk"},{"$f":"Inställningar!Q47","v":"Social"},{"$f":"Inställningar!R47","v":"Social"},{"$f":"Inställningar!S47","v":"Social"},{"$f":"Inställningar!T47","v":"Social"},{"$f":"Inställningar!U47","v":"Social"},{"$f":"Inställningar!V47","v":"Ekonomisk"},{"$f":"Inställningar!W47","v":"Ekonomisk"},{"$f":"Inställningar!X47","v":"Ekonomisk"},{"$f":"Inställningar!Y47","v":"Ekonomisk"},{"$f":"Inställningar!Z47","v":""}]
[null,null,null,{"$f":"IF(ISBLANK(Inställningar!C49),\"\",Inställningar!C49)","v":"1. Utsläpp till luft"},{"$f":"IF(ISBLANK(Inställningar!C50),\"\",Inställningar!C50)","v":"2. Jord och mark"},{"$f":"IF(ISBLANK(Inställningar!C51),\"\",Inställningar!C51)","v":"3. Grundvatten"},{"$f":"IF(ISBLANK(Inställningar!C52),\"\",Inställningar!C52)","v":"4. Ytvatten och sediment"},{"$f":"IF(ISBLANK(Inställningar!C53),\"\",Inställningar!C53)","v":"5. Ekologi"},{"$f":"IF(ISBLANK(Inställningar!C54),\"\",Inställningar!C54)","v":"6. Naturresurser och avfall"},{"$f":"IF(ISBLANK(Inställningar!C55),\"\",Inställningar!C55)","v":"7. Hälsa och säkerhet"},{"$f":"IF(ISBLANK(Inställningar!C56),\"\",Inställningar!C56)","v":"8. Etik och jämlikhet"},{"$f":"IF(ISBLANK(Inställningar!C57),\"\",Inställningar!C57)","v":"9. Närmiljö"},{"$f":"IF(ISBLANK(Inställningar!C58),\"\",Inställningar!C58)","v":"10. Lokalsamhälle"},{"$f":"IF(ISBLANK(Inställningar!C59),\"\",Inställningar!C59)","v":"11. Osäkerhet och evidens"},{"$f":"IF(ISBLANK(Inställningar!C60),\"\",Inställningar!C60)","v":"12. Direkta kostnader och nyttor"},{"$f":"IF(ISBLANK(Inställningar!C61),\"\",Inställningar!C61)","v":"13. Indirekta kostnader och nyttor"},{"$f":"IF(ISBLANK(Inställningar!C62),\"\",Inställningar!C62)","v":"14. Inducerade kostnader och nyttor"},{"$f":"IF(ISBLANK(Inställningar!C63),\"\",Inställningar!C63)","v":"15. Beständighet och flexibilitet"},{"$f":"IF(ISBLANK(Inställningar!C64),\"\",Inställningar!C64)","v":""}]
["Vikt",null,null,1,1,1,1,1,1,1,1,1,1,1,1,1,1,1,1]
["Påverkan",null,null,{"$f":"IF(D8=\"\",\"\",(D9/(SUM($D$60:$S$60))))","v":6.6666666666666666E-2},6.6666666666666666E-2,6.6666666666666666E-2,6.6666666666666666E-2,6.6666666666666666E-2,6.6666666666666666E-2,6.6666666666666666E-2,6.6666666666666666E-2,6.6666666666666666E-2,6.6666666666666666E-2,6.6666666666666666E-2,6.6666666666666666E-2,6.6666666666666666E-2,6.6666666666666666E-2,6.6666666666666666E-2,""]
[{"$f":"IF(Åtgärdsalternativ!A8=\"\",\"\",Åtgärdsalternativ!A8)","v":"Nollalternativ: ingen åtgärd"},{"$f":"IF(ISBLANK(Inställningar!$C$7),\"\",Inställningar!$C$7)","v":"Kort sikt"},1]
[]
[null,{"$f":"IF(ISBLANK(Inställningar!$C$8),\"\",Inställningar!$C$8)","v":"Lång sikt"},1]
[]
[{"$f":"IF(Åtgärdsalternativ!A9=\"\",\"\",Åtgärdsalternativ!A9)","v":"Åtgärdsförslag 1"},{"$f":"IF(ISBLANK(Inställningar!$C$7),\"\",Inställningar!$C$7)","v":"Kort sikt"},{"$f":"$C$11","v":1}]
[]
[null,{"$f":"IF(ISBLANK(Inställningar!$C$8),\"\",Inställningar!$C$8)","v":"Lång sikt"},{"$f":"$C$13","v":1}]
[]
[{"$f":"IF(Åtgärdsalternativ!A10=\"\",\"\",Åtgärdsalternativ!A10)","v":"Åtgärdsförslag 2"},{"$f":"IF(ISBLANK(Inställningar!$C$7),\"\",Inställningar!$C$7)","v":"Kort sikt"},{"$f":"$C$11","v":1}]
[]
[null,{"$f":"IF(ISBLANK(Inställningar!$C$8),\"\",Inställningar!$C$8)","v":"Lång sikt"},{"$f":"$C$13","v":1}]
[]
[{"$f":"IF(Åtgärdsalternativ!A11=\"\",\"\",Åtgärdsalternativ!A11)","v":"Åtgärdsförslag 3"},{"$f":"IF(ISBLANK(Inställningar!$C$7),\"\",Inställningar!$C$7)","v":"Kort sikt"},{"$f":"$C$11","v":1}]
[]
[null,{"$f":"IF(ISBLANK(Inställningar!$C$8),\"\",Inställningar!$C$8)","v":"Lång sikt"},{"$f":"$C$13","v":1}]
[]
[{"$f":"IF(Åtgärdsalternativ!A12=\"\",\"\",Åtgärdsalternativ!A12)","v":"Åtgärdsförslag 4"},{"$f":"IF(ISBLANK(Inställningar!$C$7),\"\",Inställningar!$C$7)","v":"Kort sikt"},{"$f":"$C$11","v":1}]
[]
[null,{"$f":"IF(ISBLANK(Inställningar!$C$8),\"\",Inställningar!$C$8)","v":"Lång sikt"},{"$f":"$C$13","v":1}]
[]
[{"$f":"IF(Åtgärdsalternativ!A13=\"\",\"\",Åtgärdsalternativ!A13)","v":"Åtgärdsförslag 5"},{"$f":"IF(ISBLANK(Inställningar!$C$7),\"\",Inställningar!$C$7)","v":"Kort sikt"},{"$f":"$C$11","v":1}]
[]
[null,{"$f":"IF(ISBLANK(Inställningar!$C$8),\"\",Inställningar!$C$8)","v":"Lång sikt"},{"$f":"$C$13","v":1}]
[]
["Vita celler fylls i av användarna."]
["Beskriv åtgärdernas risker och konsekvenser med text i de större cellerna. Justera radhöjden om det behövs mer utrymme."]
["I de mindre cellerna bedöms påverkan på de olika kriterierna för varje åtgärdsalternativ, enligt den skala som tidigare valts."]
["Vikter för de olika kriterierna anges i den översta vita raden. I utgångsläget är alla kriterier lika betydelsefulla, vikten är satt till 1."]
["Vikter för de två tidsperspektiven anges på raderna för referensalternativet, i de vita cellerna längst till vänster. I utgångsläget är båda tidsperspektiven lika viktiga, vikten är satt till 1."]
[]
["Kommentarer:"]
[]
["Bedömningsunderlag"]
[]
["1. Vilket underlag (undersökningar, utredningar etc.) har använts?"]
[]
["2. Om underlag saknas, ange för vilken åtgärd och konsekvens."]
[]
["3. Var underlaget lämpligt/tillräckligt för bedömningen? Om inte, vad behöver förbättras i underlaget? "]
[]
["4. Behöver en fördjupad bedömning göras? "]
[]
["5. Ytterligare kommentar:"]
[]
[]
[]
[]
[]
[]
["Hjälprad för beräkning",null,null,{"$f":"IF(D8=\"\",\"\",D9)","v":1},{"$f":"IF(E8=\"\",\"\",E9)","v":1},1,1,1,1,1,1,1,1,1,1,1,1,1,""]

{"sheet":"Kvantitativ","index":4,"n_rows":20,"n_cols":19,"rows_kept":20,"cut":false,"hidden":true,"merged":[[16,0,17,0],[18,0,19,0],[0,0,0,1],[0,3,0,17],[3,0,3,17],[5,0,5,6],[6,0,6,1],[8,0,9,0],[10,0,11,0],[12,0,13,0],[14,0,15,0]]}
["Objekt:",null,null,{"$f":"Åtgärdsalternativ!B1","v":"XYZ-köping"}]
[]
[]
[]
[]
["Hjälpmatris för kvantitativa urvalskriterier",null,null,null,null,null,null,null,null,null,null,null,null,null,{"$f":"IF(Inställningar!V46,\"ja\",\"nej\")","v":"nej"}]
["Åtgärd",null,null,{"$f":"Inställningar!K47","v":"Ekologisk"},{"$f":"Inställningar!L47","v":"Ekologisk"},{"$f":"Inställningar!M47","v":"Ekologisk"},{"$f":"Inställningar!N47","v":"Ekologisk"},{"$f":"Inställningar!O47","v":"Ekologisk"},{"$f":"Inställningar!P47","v":"Ekologisk"},{"$f":"Inställningar!Q47","v":"Social"},{"$f":"Inställningar!R47","v":"Social"},{"$f":"Inställningar!S47","v":"Social"},{"$f":"Inställningar!T47","v":"Social"},{"$f":"Inställningar!U47","v":"Social"},{"$f":"Inställningar!V47","v":"Ekonomisk"},{"$f":"Inställningar!W47","v":"Ekonomisk"},{"$f":"Inställningar!X47","v":"Ekonomisk"},{"$f":"Inställningar!Y47","v":"Ekonomisk"},{"$f":"Inställningar!Z47","v":""}]
[null,null,null,{"$f":"IF(ISBLANK(Inställningar!C49),\"\",Inställningar!C49)","v":"1. Utsläpp till luft"},{"$f":"IF(ISBLANK(Inställningar!C50),\"\",Inställningar!C50)","v":"2. Jord och mark"},{"$f":"IF(ISBLANK(Inställningar!C51),\"\",Inställningar!C51)","v":"3. Grundvatten"},{"$f":"IF(ISBLANK(Inställningar!C52),\"\",Inställningar!C52)","v":"4. Ytvatten och sediment"},{"$f":"IF(ISBLANK(Inställningar!C53),\"\",Inställningar!C53)","v":"5. Ekologi"},{"$f":"IF(ISBLANK(Inställningar!C54),\"\",Inställningar!C54)","v":"6. Naturresurser och avfall"},{"$f":"IF(ISBLANK(Inställningar!C55),\"\",Inställningar!C55)","v":"7. Hälsa och säkerhet"},{"$f":"IF(ISBLANK(Inställningar!C56),\"\",Inställningar!C56)","v":"8. Etik och jämlikhet"},{"$f":"IF(ISBLANK(Inställningar!C57),\"\",Inställningar!C57)","v":"9. Närmiljö"},{"$f":"IF(ISBLANK(Inställningar!C58),\"\",Inställningar!C58)","v":"10. Lokalsamhälle"},{"$f":"IF(ISBLANK(Inställningar!C59),\"\",Inställningar!C59)","v":"11. Osäkerhet och evidens"},{"$f":"IF(ISBLANK(Inställningar!C60),\"\",Inställningar!C60)","v":"12. Direkta kostnader och nyttor"},{"$f":"IF(ISBLANK(Inställningar!C61),\"\",Inställningar!C61)","v":"13. Indirekta kostnader och nyttor"},{"$f":"IF(ISBLANK(Inställningar!C62),\"\",Inställningar!C62)","v":"14. Inducerade kostnader och nyttor"},{"$f":"IF(ISBLANK(Inställningar!C63),\"\",Inställningar!C63)","v":"15. Beständighet och flexibilitet"},{"$f":"IF(ISBLANK(Inställningar!C64),\"\",Inställningar!C64)","v":""}]
[{"$f":"Åtgärdsalternativ!A8","v":"Nollalternativ: ingen åtgärd"},"Kort sikt",null,{"$f":"IF(Inställningar!K$46,IF(Värdering!D12<-(10^Inställningar!K$45),-(LOG10(ABS(Värdering!D12))-Inställningar!K$45)/(Inställningar!K$44-Inställningar!K$45)*'Skalor o färg'!$B$8,IF(Värdering!D12>(10^Inställningar!K$45),(LOG10(Värdering!D12)-Inställningar!K$45)/(Inställningar!K$44-Inställningar!K$45)*'Skalor o färg'!$B$8,0)),Värdering!D12/Inställningar!K$43*'Skalor o färg'!$B$8)","v":{"$error":"#DIV/0!"}},{"$f":"IF(Inställningar!L$46,IF(Värdering!E12<-(10^Inställningar!L$45),-(LOG10(ABS(Värdering!E12))-Inställningar!L$45)/(Inställningar!L$44-Inställningar!L$45)*'Skalor o färg'!$B$8,IF(Värdering!E12>(10^Inställningar!L$45),(LOG10(Värdering!E12)-Inställningar!L$45)/(Inställningar!L$44-Inställningar!L$45)*'Skalor o färg'!$B$8,0)),Värdering!E12/Inställningar!L$43*'Skalor o färg'!$B$8)","v":{"$error":"#DIV/0!"}},{"$f":"IF(Inställningar!M$46,IF(Värdering!F12<-(10^Inställningar!M$45),-(LOG10(ABS(Värdering!F12))-Inställningar!M$45)/(Inställningar!M$44-Inställningar!M$45)*'Skalor o färg'!$B$8,IF(Värdering!F12>(10^Inställningar!M$45),(LOG10(Värdering!F12)-Inställningar!M$45)/(Inställningar!M$44-Inställningar!M$45)*'Skalor o färg'!$B$8,0)),Värdering!F12/Inställningar!M$43*'Skalor o färg'!$B$8)","v":{"$error":"#DIV/0!"}},{"$f":"IF(Inställningar!N$46,IF(Värdering!G12<-(10^Inställningar!N$45),-(LOG10(ABS(Värdering!G12))-Inställningar!N$45)/(Inställningar!N$44-Inställningar!N$45)*'Skalor o färg'!$B$8,IF(Värdering!G12>(10^Inställningar!N$45),(LOG10(Värdering!G12)-Inställningar!N$45)/(Inställningar!N$44-Inställningar!N$45)*'Skalor o färg'!$B$8,0)),Värdering!G12/Inställningar!N$43*'Skalor o färg'!$B$8)","v":{"$error":"#DIV/0!"}},{"$f":"IF(Inställningar!O$46,IF(Värdering!H12<-(10^Inställningar!O$45),-(LOG10(ABS(Värdering!H12))-Inställningar!O$45)/(Inställningar!O$44-Inställningar!O$45)*'Skalor o färg'!$B$8,IF(Värdering!H12>(10^Inställningar!O$45),(LOG10(Värdering!H12)-Inställningar!O$45)/(Inställningar!O$44-Inställningar!O$45)*'Skalor o färg'!$B$8,0)),Värdering!H12/Inställningar!O$43*'Skalor o färg'!$B$8)","v":{"$error":"#DIV/0!"}},{"$f":"IF(Inställningar!P$46,IF(Värdering!I12<-(10^Inställningar!P$45),-(LOG10(ABS(Värdering!I12))-Inställningar!P$45)/(Inställningar!P$44-Inställningar!P$45)*'Skalor o färg'!$B$8,IF(Värdering!I12>(10^Inställningar!P$45),(LOG10(Värdering!I12)-Inställningar!P$45)/(Inställningar!P$44-Inställningar!P$45)*'Skalor o färg'!$B$8,0)),Värdering!I12/Inställningar!P$43*'Skalor o färg'!$B$8)","v":{"$error":"#DIV/0!"}},{"$f":"IF(Inställningar!Q$46,IF(Värdering!J12<-(10^Inställningar!Q$45),-(LOG10(ABS(Värdering!J12))-Inställningar!Q$45)/(Inställningar!Q$44-Inställningar!Q$45)*'Skalor o färg'!$B$8,IF(Värdering!J12>(10^Inställningar!Q$45),(LOG10(Värdering!J12)-Inställningar!Q$45)/(Inställningar!Q$44-Inställningar!Q$45)*'Skalor o färg'!$B$8,0)),Värdering!J12/Inställningar!Q$43*'Skalor o färg'!$B$8)","v":{"$error":"#DIV/0!"}},{"$f":"IF(Inställningar!R$46,IF(Värdering!K12<-(10^Inställningar!R$45),-(LOG10(ABS(Värdering!K12))-Inställningar!R$45)/(Inställningar!R$44-Inställningar!R$45)*'Skalor o färg'!$B$8,IF(Värdering!K12>(10^Inställningar!R$45),(LOG10(Värdering!K12)-Inställningar!R$45)/(Inställningar!R$44-Inställningar!R$45)*'Skalor o färg'!$B$8,0)),Värdering!K12/Inställningar!R$43*'Skalor o färg'!$B$8)","v":{"$error":"#DIV/0!"}},{"$f":"IF(Inställningar!S$46,IF(Värdering!L12<-(10^Inställningar!S$45),-(LOG10(ABS(Värdering!L12))-Inställningar!S$45)/(Inställningar!S$44-Inställningar!S$45)*'Skalor o färg'!$B$8,IF(Värdering!L12>(10^Inställningar!S$45),(LOG10(Värdering!L12)-Inställningar!S$45)/(Inställningar!S$44-Inställningar!S$45)*'Skalor o färg'!$B$8,0)),Värdering!L12/Inställningar!S$43*'Skalor o färg'!$B$8)","v":{"$error":"#DIV/0!"}},{"$f":"IF(Inställningar!T$46,IF(Värdering!M12<-(10^Inställningar!T$45),-(LOG10(ABS(Värdering!M12))-Inställningar!T$45)/(Inställningar!T$44-Inställningar!T$45)*'Skalor o färg'!$B$8,IF(Värdering!M12>(10^Inställningar!T$45),(LOG10(Värdering!M12)-Inställningar!T$45)/(Inställningar!T$44-Inställningar!T$45)*'Skalor o färg'!$B$8,0)),Värdering!M12/Inställningar!T$43*'Skalor o färg'!$B$8)","v":{"$error":"#DIV/0!"}},{"$f":"IF(Inställningar!U$46,IF(Värdering!N12<-(10^Inställningar!U$45),-(LOG10(ABS(Värdering!N12))-Inställningar!U$45)/(Inställningar!U$44-Inställningar!U$45)*'Skalor o färg'!$B$8,IF(Värdering!N12>(10^Inställningar!U$45),(LOG10(Värdering!N12)-Inställningar!U$45)/(Inställningar!U$44-Inställningar!U$45)*'Skalor o färg'!$B$8,0)),Värdering!N12/Inställningar!U$43*'Skalor o färg'!$B$8)","v":{"$error":"#DIV/0!"}},{"$f":"IF(Inställningar!V$46,IF(Värdering!O12<-(10^Inställningar!V$45),-(LOG10(ABS(Värdering!O12))-Inställningar!V$45)/(Inställningar!V$44-Inställningar!V$45)*'Skalor o färg'!$B$8,IF(Värdering!O12>(10^Inställningar!V$45),(LOG10(Värdering!O12)-Inställningar!V$45)/(Inställningar!V$44-Inställningar!V$45)*'Skalor o färg'!$B$8,0)),Värdering!O12/Inställningar!V$43*'Skalor o färg'!$B$8)","v":{"$error":"#DIV/0!"}},{"$f":"IF(Inställningar!W$46,IF(Värdering!P12<-(10^Inställningar!W$45),-(LOG10(ABS(Värdering!P12))-Inställningar!W$45)/(Inställningar!W$44-Inställningar!W$45)*'Skalor o färg'!$B$8,IF(Värdering!P12>(10^Inställningar!W$45),(LOG10(Värdering!P12)-Inställningar!W$45)/(Inställningar!W$44-Inställningar!W$45)*'Skalor o färg'!$B$8,0)),Värdering!P12/Inställningar!W$43*'Skalor o färg'!$B$8)","v":{"$error":"#DIV/0!"}},{"$f":"IF(Inställningar!X$46,IF(Värdering!Q12<-(10^Inställningar!X$45),-(LOG10(ABS(Värdering!Q12))-Inställningar!X$45)/(Inställningar!X$44-Inställningar!X$45)*'Skalor o färg'!$B$8,IF(Värdering!Q12>(10^Inställningar!X$45),(LOG10(Värdering!Q12)-Inställningar!X$45)/(Inställningar!X$44-Inställningar!X$45)*'Skalor o färg'!$B$8,0)),Värdering!Q12/Inställningar!X$43*'Skalor o färg'!$B$8)","v":{"$error":"#DIV/0!"}},{"$f":"IF(Inställningar!Y$46,IF(Värdering!R12<-(10^Inställningar!Y$45),-(LOG10(ABS(Värdering!R12))-Inställningar!Y$45)/(Inställningar!Y$44-Inställningar!Y$45)*'Skalor o färg'!$B$8,IF(Värdering!R12>(10^Inställningar!Y$45),(LOG10(Värdering!R12)-Inställningar!Y$45)/(Inställningar!Y$44-Inställningar!Y$45)*'Skalor o färg'!$B$8,0)),Värdering!R12/Inställningar!Y$43*'Skalor o färg'!$B$8)","v":{"$error":"#DIV/0!"}},{"$f":"IF(Inställningar!Z$46,IF(Värdering!S12<-(10^Inställningar!Z$45),-(LOG10(ABS(Värdering!S12))-Inställningar!Z$45)/(Inställningar!Z$44-Inställningar!Z$45)*'Skalor o färg'!$B$8,IF(Värdering!S12>(10^Inställningar!Z$45),(LOG10(Värdering!S12)-Inställningar!Z$45)/(Inställningar!Z$44-Inställningar!Z$45)*'Skalor o färg'!$B$8,0)),Värdering!S12/Inställningar!Z$43*'Skalor o färg'!$B$8)","v":{"$error":"#DIV/0!"}}]
[null,"Lång sikt",null,{"$f":"IF(Inställningar!K$46,IF(Värdering!D14<-(10^Inställningar!K$45),-(LOG10(ABS(Värdering!D14))-Inställningar!K$45)/(Inställningar!K$44-Inställningar!K$45)*'Skalor o färg'!$B$8,IF(Värdering!D14>(10^Inställningar!K$45),(LOG10(Värdering!D14)-Inställningar!K$45)/(Inställningar!K$44-Inställningar!K$45)*'Skalor o färg'!$B$8,0)),Värdering!D14/Inställningar!K$43*'Skalor o färg'!$B$8)","v":{"$error":"#DIV/0!"}},{"$f":"IF(Inställningar!L$46,IF(Värdering!E14<-(10^Inställningar!L$45),-(LOG10(ABS(Värdering!E14))-Inställningar!L$45)/(Inställningar!L$44-Inställningar!L$45)*'Skalor o färg'!$B$8,IF(Värdering!E14>(10^Inställningar!L$45),(LOG10(Värdering!E14)-Inställningar!L$45)/(Inställningar!L$44-Inställningar!L$45)*'Skalor o färg'!$B$8,0)),Värdering!E14/Inställningar!L$43*'Skalor o färg'!$B$8)","v":{"$error":"#DIV/0!"}},{"$f":"IF(Inställningar!M$46,IF(Värdering!F14<-(10^Inställningar!M$45),-(LOG10(ABS(Värdering!F14))-Inställningar!M$45)/(Inställningar!M$44-Inställningar!M$45)*'Skalor o färg'!$B$8,IF(Värdering!F14>(10^Inställningar!M$45),(LOG10(Värdering!F14)-Inställningar!M$45)/(Inställningar!M$44-Inställningar!M$45)*'Skalor o färg'!$B$8,0)),Värdering!F14/Inställningar!M$43*'Skalor o färg'!$B$8)","v":{"$error":"#DIV/0!"}},{"$f":"IF(Inställningar!N$46,IF(Värdering!G14<-(10^Inställningar!N$45),-(LOG10(ABS(Värdering!G14))-Inställningar!N$45)/(Inställningar!N$44-Inställningar!N$45)*'Skalor o färg'!$B$8,IF(Värdering!G14>(10^Inställningar!N$45),(LOG10(Värdering!G14)-Inställningar!N$45)/(Inställningar!N$44-Inställningar!N$45)*'Skalor o färg'!$B$8,0)),Värdering!G14/Inställningar!N$43*'Skalor o färg'!$B$8)","v":{"$error":"#DIV/0!"}},{"$f":"IF(Inställningar!O$46,IF(Värdering!H14<-(10^Inställningar!O$45),-(LOG10(ABS(Värdering!H14))-Inställningar!O$45)/(Inställningar!O$44-Inställningar!O$45)*'Skalor o färg'!$B$8,IF(Värdering!H14>(10^Inställningar!O$45),(LOG10(Värdering!H14)-Inställningar!O$45)/(Inställningar!O$44-Inställningar!O$45)*'Skalor o färg'!$B$8,0)),Värdering!H14/Inställningar!O$43*'Skalor o färg'!$B$8)","v":{"$error":"#DIV/0!"}},{"$f":"IF(Inställningar!P$46,IF(Värdering!I14<-(10^Inställningar!P$45),-(LOG10(ABS(Värdering!I14))-Inställningar!P$45)/(Inställningar!P$44-Inställningar!P$45)*'Skalor o färg'!$B$8,IF(Värdering!I14>(10^Inställningar!P$45),(LOG10(Värdering!I14)-Inställningar!P$45)/(Inställningar!P$44-Inställningar!P$45)*'Skalor o färg'!$B$8,0)),Värdering!I14/Inställningar!P$43*'Skalor o färg'!$B$8)","v":{"$error":"#DIV/0!"}},{"$f":"IF(Inställningar!Q$46,IF(Värdering!J14<-(10^Inställningar!Q$45),-(LOG10(ABS(Värdering!J14))-Inställningar!Q$45)/(Inställningar!Q$44-Inställningar!Q$45)*'Skalor o färg'!$B$8,IF(Värdering!J14>(10^Inställningar!Q$45),(LOG10(Värdering!J14)-Inställningar!Q$45)/(Inställningar!Q$44-Inställningar!Q$45)*'Skalor o färg'!$B$8,0)),Värdering!J14/Inställningar!Q$43*'Skalor o färg'!$B$8)","v":{"$error":"#DIV/0!"}},{"$f":"IF(Inställningar!R$46,IF(Värdering!K14<-(10^Inställningar!R$45),-(LOG10(ABS(Värdering!K14))-Inställningar!R$45)/(Inställningar!R$44-Inställningar!R$45)*'Skalor o färg'!$B$8,IF(Värdering!K14>(10^Inställningar!R$45),(LOG10(Värdering!K14)-Inställningar!R$45)/(Inställningar!R$44-Inställningar!R$45)*'Skalor o färg'!$B$8,0)),Värdering!K14/Inställningar!R$43*'Skalor o färg'!$B$8)","v":{"$error":"#DIV/0!"}},{"$f":"IF(Inställningar!S$46,IF(Värdering!L14<-(10^Inställningar!S$45),-(LOG10(ABS(Värdering!L14))-Inställningar!S$45)/(Inställningar!S$44-Inställningar!S$45)*'Skalor o färg'!$B$8,IF(Värdering!L14>(10^Inställningar!S$45),(LOG10(Värdering!L14)-Inställningar!S$45)/(Inställningar!S$44-Inställningar!S$45)*'Skalor o färg'!$B$8,0)),Värdering!L14/Inställningar!S$43*'Skalor o färg'!$B$8)","v":{"$error":"#DIV/0!"}},{"$f":"IF(Inställningar!T$46,IF(Värdering!M14<-(10^Inställningar!T$45),-(LOG10(ABS(Värdering!M14))-Inställningar!T$45)/(Inställningar!T$44-Inställningar!T$45)*'Skalor o färg'!$B$8,IF(Värdering!M14>(10^Inställningar!T$45),(LOG10(Värdering!M14)-Inställningar!T$45)/(Inställningar!T$44-Inställningar!T$45)*'Skalor o färg'!$B$8,0)),Värdering!M14/Inställningar!T$43*'Skalor o färg'!$B$8)","v":{"$error":"#DIV/0!"}},{"$f":"IF(Inställningar!U$46,IF(Värdering!N14<-(10^Inställningar!U$45),-(LOG10(ABS(Värdering!N14))-Inställningar!U$45)/(Inställningar!U$44-Inställningar!U$45)*'Skalor o färg'!$B$8,IF(Värdering!N14>(10^Inställningar!U$45),(LOG10(Värdering!N14)-Inställningar!U$45)/(Inställningar!U$44-Inställningar!U$45)*'Skalor o färg'!$B$8,0)),Värdering!N14/Inställningar!U$43*'Skalor o färg'!$B$8)","v":{"$error":"#DIV/0!"}},{"$f":"IF(Inställningar!V$46,IF(Värdering!O14<-(10^Inställningar!V$45),-(LOG10(ABS(Värdering!O14))-Inställningar!V$45)/(Inställningar!V$44-Inställningar!V$45)*'Skalor o färg'!$B$8,IF(Värdering!O14>(10^Inställningar!V$45),(LOG10(Värdering!O14)-Inställningar!V$45)/(Inställningar!V$44-Inställningar!V$45)*'Skalor o färg'!$B$8,0)),Värdering!O14/Inställningar!V$43*'Skalor o färg'!$B$8)","v":{"$error":"#DIV/0!"}},{"$f":"IF(Inställningar!W$46,IF(Värdering!P14<-(10^Inställningar!W$45),-(LOG10(ABS(Värdering!P14))-Inställningar!W$45)/(Inställningar!W$44-Inställningar!W$45)*'Skalor o färg'!$B$8,IF(Värdering!P14>(10^Inställningar!W$45),(LOG10(Värdering!P14)-Inställningar!W$45)/(Inställningar!W$44-Inställningar!W$45)*'Skalor o färg'!$B$8,0)),Värdering!P14/Inställningar!W$43*'Skalor o färg'!$B$8)","v":{"$error":"#DIV/0!"}},{"$f":"IF(Inställningar!X$46,IF(Värdering!Q14<-(10^Inställningar!X$45),-(LOG10(ABS(Värdering!Q14))-Inställningar!X$45)/(Inställningar!X$44-Inställningar!X$45)*'Skalor o färg'!$B$8,IF(Värdering!Q14>(10^Inställningar!X$45),(LOG10(Värdering!Q14)-Inställningar!X$45)/(Inställningar!X$44-Inställningar!X$45)*'Skalor o färg'!$B$8,0)),Värdering!Q14/Inställningar!X$43*'Skalor o färg'!$B$8)","v":{"$error":"#DIV/0!"}},{"$f":"IF(Inställningar!Y$46,IF(Värdering!R14<-(10^Inställningar!Y$45),-(LOG10(ABS(Värdering!R14))-Inställningar!Y$45)/(Inställningar!Y$44-Inställningar!Y$45)*'Skalor o färg'!$B$8,IF(Värdering!R14>(10^Inställningar!Y$45),(LOG10(Värdering!R14)-Inställningar!Y$45)/(Inställningar!Y$44-Inställningar!Y$45)*'Skalor o färg'!$B$8,0)),Värdering!R14/Inställningar!Y$43*'Skalor o färg'!$B$8)","v":{"$error":"#DIV/0!"}},{"$f":"IF(Inställningar!Z$46,IF(Värdering!S14<-(10^Inställningar!Z$45),-(LOG10(ABS(Värdering!S14))-Inställningar!Z$45)/(Inställningar!Z$44-Inställningar!Z$45)*'Skalor o färg'!$B$8,IF(Värdering!S14>(10^Inställningar!Z$45),(LOG10(Värdering!S14)-Inställningar!Z$45)/(Inställningar!Z$44-Inställningar!Z$45)*'Skalor o färg'!$B$8,0)),Värdering!S14/Inställningar!Z$43*'Skalor o färg'!$B$8)","v":{"$error":"#DIV/0!"}}]
[{"$f":"Åtgärdsalternativ!A9","v":"Åtgärdsförslag 1"},"Kort sikt",null,{"$f":"IF(Inställningar!K$46,IF(Värdering!D16<-(10^Inställningar!K$45),-(LOG10(ABS(Värdering!D16))-Inställningar!K$45)/(Inställningar!K$44-Inställningar!K$45)*'Skalor o färg'!$B$8,IF(Värdering!D16>(10^Inställningar!K$45),(LOG10(Värdering!D16)-Inställningar!K$45)/(Inställningar!K$44-Inställningar!K$45)*'Skalor o färg'!$B$8,0)),Värdering!D16/Inställningar!K$43*'Skalor o färg'!$B$8)","v":{"$error":"#DIV/0!"}},{"$f":"IF(Inställningar!L$46,IF(Värdering!E16<-(10^Inställningar!L$45),-(LOG10(ABS(Värdering!E16))-Inställningar!L$45)/(Inställningar!L$44-Inställningar!L$45)*'Skalor o färg'!$B$8,IF(Värdering!E16>(10^Inställningar!L$45),(LOG10(Värdering!E16)-Inställningar!L$45)/(Inställningar!L$44-Inställningar!L$45)*'Skalor o färg'!$B$8,0)),Värdering!E16/Inställningar!L$43*'Skalor o färg'!$B$8)","v":{"$error":"#DIV/0!"}},{"$f":"IF(Inställningar!M$46,IF(Värdering!F16<-(10^Inställningar!M$45),-(LOG10(ABS(Värdering!F16))-Inställningar!M$45)/(Inställningar!M$44-Inställningar!M$45)*'Skalor o färg'!$B$8,IF(Värdering!F16>(10^Inställningar!M$45),(LOG10(Värdering!F16)-Inställningar!M$45)/(Inställningar!M$44-Inställningar!M$45)*'Skalor o färg'!$B$8,0)),Värdering!F16/Inställningar!M$43*'Skalor o färg'!$B$8)","v":{"$error":"#DIV/0!"}},{"$f":"IF(Inställningar!N$46,IF(Värdering!G16<-(10^Inställningar!N$45),-(LOG10(ABS(Värdering!G16))-Inställningar!N$45)/(Inställningar!N$44-Inställningar!N$45)*'Skalor o färg'!$B$8,IF(Värdering!G16>(10^Inställningar!N$45),(LOG10(Värdering!G16)-Inställningar!N$45)/(Inställningar!N$44-Inställningar!N$45)*'Skalor o färg'!$B$8,0)),Värdering!G16/Inställningar!N$43*'Skalor o färg'!$B$8)","v":{"$error":"#DIV/0!"}},{"$f":"IF(Inställningar!O$46,IF(Värdering!H16<-(10^Inställningar!O$45),-(LOG10(ABS(Värdering!H16))-Inställningar!O$45)/(Inställningar!O$44-Inställningar!O$45)*'Skalor o färg'!$B$8,IF(Värdering!H16>(10^Inställningar!O$45),(LOG10(Värdering!H16)-Inställningar!O$45)/(Inställningar!O$44-Inställningar!O$45)*'Skalor o färg'!$B$8,0)),Värdering!H16/Inställningar!O$43*'Skalor o färg'!$B$8)","v":{"$error":"#DIV/0!"}},{"$f":"IF(Inställningar!P$46,IF(Värdering!I16<-(10^Inställningar!P$45),-(LOG10(ABS(Värdering!I16))-Inställningar!P$45)/(Inställningar!P$44-Inställningar!P$45)*'Skalor o färg'!$B$8,IF(Värdering!I16>(10^Inställningar!P$45),(LOG10(Värdering!I16)-Inställningar!P$45)/(Inställningar!P$44-Inställningar!P$45)*'Skalor o färg'!$B$8,0)),Värdering!I16/Inställningar!P$43*'Skalor o färg'!$B$8)","v":{"$error":"#DIV/0!"}},{"$f":"IF(Inställningar!Q$46,IF(Värdering!J16<-(10^Inställningar!Q$45),-(LOG10(ABS(Värdering!J16))-Inställningar!Q$45)/(Inställningar!Q$44-Inställningar!Q$45)*'Skalor o färg'!$B$8,IF(Värdering!J16>(10^Inställningar!Q$45),(LOG10(Värdering!J16)-Inställningar!Q$45)/(Inställningar!Q$44-Inställningar!Q$45)*'Skalor o färg'!$B$8,0)),Värdering!J16/Inställningar!Q$43*'Skalor o färg'!$B$8)","v":{"$error":"#DIV/0!"}},{"$f":"IF(Inställningar!R$46,IF(Värdering!K16<-(10^Inställningar!R$45),-(LOG10(ABS(Värdering!K16))-Inställningar!R$45)/(Inställningar!R$44-Inställningar!R$45)*'Skalor o färg'!$B$8,IF(Värdering!K16>(10^Inställningar!R$45),(LOG10(Värdering!K16)-Inställningar!R$45)/(Inställningar!R$44-Inställningar!R$45)*'Skalor o färg'!$B$8,0)),Värdering!K16/Inställningar!R$43*'Skalor o färg'!$B$8)","v":{"$error":"#DIV/0!"}},{"$f":"IF(Inställningar!S$46,IF(Värdering!L16<-(10^Inställningar!S$45),-(LOG10(ABS(Värdering!L16))-Inställningar!S$45)/(Inställningar!S$44-Inställningar!S$45)*'Skalor o färg'!$B$8,IF(Värdering!L16>(10^Inställningar!S$45),(LOG10(Värdering!L16)-Inställningar!S$45)/(Inställningar!S$44-Inställningar!S$45)*'Skalor o färg'!$B$8,0)),Värdering!L16/Inställningar!S$43*'Skalor o färg'!$B$8)","v":{"$error":"#DIV/0!"}},{"$f":"IF(Inställningar!T$46,IF(Värdering!M16<-(10^Inställningar!T$45),-(LOG10(ABS(Värdering!M16))-Inställningar!T$45)/(Inställningar!T$44-Inställningar!T$45)*'Skalor o färg'!$B$8,IF(Värdering!M16>(10^Inställningar!T$45),(LOG10(Värdering!M16)-Inställningar!T$45)/(Inställningar!T$44-Inställningar!T$45)*'Skalor o färg'!$B$8,0)),Värdering!M16/Inställningar!T$43*'Skalor o färg'!$B$8)","v":{"$error":"#DIV/0!"}},{"$f":"IF(Inställningar!U$46,IF(Värdering!N16<-(10^Inställningar!U$45),-(LOG10(ABS(Värdering!N16))-Inställningar!U$45)/(Inställningar!U$44-Inställningar!U$45)*'Skalor o färg'!$B$8,IF(Värdering!N16>(10^Inställningar!U$45),(LOG10(Värdering!N16)-Inställningar!U$45)/(Inställningar!U$44-Inställningar!U$45)*'Skalor o färg'!$B$8,0)),Värdering!N16/Inställningar!U$43*'Skalor o färg'!$B$8)","v":{"$error":"#DIV/0!"}},{"$f":"IF(Inställningar!V$46,IF(Värdering!O16<-(10^Inställningar!V$45),-(LOG10(ABS(Värdering!O16))-Inställningar!V$45)/(Inställningar!V$44-Inställningar!V$45)*'Skalor o färg'!$B$8,IF(Värdering!O16>(10^Inställningar!V$45),(LOG10(Värdering!O16)-Inställningar!V$45)/(Inställningar!V$44-Inställningar!V$45)*'Skalor o färg'!$B$8,0)),Värdering!O16/Inställningar!V$43*'Skalor o färg'!$B$8)","v":{"$error":"#DIV/0!"}},{"$f":"IF(Inställningar!W$46,IF(Värdering!P16<-(10^Inställningar!W$45),-(LOG10(ABS(Värdering!P16))-Inställningar!W$45)/(Inställningar!W$44-Inställningar!W$45)*'Skalor o färg'!$B$8,IF(Värdering!P16>(10^Inställningar!W$45),(LOG10(Värdering!P16)-Inställningar!W$45)/(Inställningar!W$44-Inställningar!W$45)*'Skalor o färg'!$B$8,0)),Värdering!P16/Inställningar!W$43*'Skalor o färg'!$B$8)","v":{"$error":"#DIV/0!"}},{"$f":"IF(Inställningar!X$46,IF(Värdering!Q16<-(10^Inställningar!X$45),-(LOG10(ABS(Värdering!Q16))-Inställningar!X$45)/(Inställningar!X$44-Inställningar!X$45)*'Skalor o färg'!$B$8,IF(Värdering!Q16>(10^Inställningar!X$45),(LOG10(Värdering!Q16)-Inställningar!X$45)/(Inställningar!X$44-Inställningar!X$45)*'Skalor o färg'!$B$8,0)),Värdering!Q16/Inställningar!X$43*'Skalor o färg'!$B$8)","v":{"$error":"#DIV/0!"}},{"$f":"IF(Inställningar!Y$46,IF(Värdering!R16<-(10^Inställningar!Y$45),-(LOG10(ABS(Värdering!R16))-Inställningar!Y$45)/(Inställningar!Y$44-Inställningar!Y$45)*'Skalor o färg'!$B$8,IF(Värdering!R16>(10^Inställningar!Y$45),(LOG10(Värdering!R16)-Inställningar!Y$45)/(Inställningar!Y$44-Inställningar!Y$45)*'Skalor o färg'!$B$8,0)),Värdering!R16/Inställningar!Y$43*'Skalor o färg'!$B$8)","v":{"$error":"#DIV/0!"}},{"$f":"IF(Inställningar!Z$46,IF(Värdering!S16<-(10^Inställningar!Z$45),-(LOG10(ABS(Värdering!S16))-Inställningar!Z$45)/(Inställningar!Z$44-Inställningar!Z$45)*'Skalor o färg'!$B$8,IF(Värdering!S16>(10^Inställningar!Z$45),(LOG10(Värdering!S16)-Inställningar!Z$45)/(Inställningar!Z$44-Inställningar!Z$45)*'Skalor o färg'!$B$8,0)),Värdering!S16/Inställningar!Z$43*'Skalor o färg'!$B$8)","v":{"$error":"#DIV/0!"}}]
[null,"Lång sikt",null,{"$f":"IF(Inställningar!K$46,IF(Värdering!D18<-(10^Inställningar!K$45),-(LOG10(ABS(Värdering!D18))-Inställningar!K$45)/(Inställningar!K$44-Inställningar!K$45)*'Skalor o färg'!$B$8,IF(Värdering!D18>(10^Inställningar!K$45),(LOG10(Värdering!D18)-Inställningar!K$45)/(Inställningar!K$44-Inställningar!K$45)*'Skalor o färg'!$B$8,0)),Värdering!D18/Inställningar!K$43*'Skalor o färg'!$B$8)","v":{"$error":"#DIV/0!"}},{"$f":"IF(Inställningar!L$46,IF(Värdering!E18<-(10^Inställningar!L$45),-(LOG10(ABS(Värdering!E18))-Inställningar!L$45)/(Inställningar!L$44-Inställningar!L$45)*'Skalor o färg'!$B$8,IF(Värdering!E18>(10^Inställningar!L$45),(LOG10(Värdering!E18)-Inställningar!L$45)/(Inställningar!L$44-Inställningar!L$45)*'Skalor o färg'!$B$8,0)),Värdering!E18/Inställningar!L$43*'Skalor o färg'!$B$8)","v":{"$error":"#DIV/0!"}},{"$f":"IF(Inställningar!M$46,IF(Värdering!F18<-(10^Inställningar!M$45),-(LOG10(ABS(Värdering!F18))-Inställningar!M$45)/(Inställningar!M$44-Inställningar!M$45)*'Skalor o färg'!$B$8,IF(Värdering!F18>(10^Inställningar!M$45),(LOG10(Värdering!F18)-Inställningar!M$45)/(Inställningar!M$44-Inställningar!M$45)*'Skalor o färg'!$B$8,0)),Värdering!F18/Inställningar!M$43*'Skalor o färg'!$B$8)","v":{"$error":"#DIV/0!"}},{"$f":"IF(Inställningar!N$46,IF(Värdering!G18<-(10^Inställningar!N$45),-(LOG10(ABS(Värdering!G18))-Inställningar!N$45)/(Inställningar!N$44-Inställningar!N$45)*'Skalor o färg'!$B$8,IF(Värdering!G18>(10^Inställningar!N$45),(LOG10(Värdering!G18)-Inställningar!N$45)/(Inställningar!N$44-Inställningar!N$45)*'Skalor o färg'!$B$8,0)),Värdering!G18/Inställningar!N$43*'Skalor o färg'!$B$8)","v":{"$error":"#DIV/0!"}},{"$f":"IF(Inställningar!O$46,IF(Värdering!H18<-(10^Inställningar!O$45),-(LOG10(ABS(Värdering!H18))-Inställningar!O$45)/(Inställningar!O$44-Inställningar!O$45)*'Skalor o färg'!$B$8,IF(Värdering!H18>(10^Inställningar!O$45),(LOG10(Värdering!H18)-Inställningar!O$45)/(Inställningar!O$44-Inställningar!O$45)*'Skalor o färg'!$B$8,0)),Värdering!H18/Inställningar!O$43*'Skalor o färg'!$B$8)","v":{"$error":"#DIV/0!"}},{"$f":"IF(Inställningar!P$46,IF(Värdering!I18<-(10^Inställningar!P$45),-(LOG10(ABS(Värdering!I18))-Inställningar!P$45)/(Inställningar!P$44-Inställningar!P$45)*'Skalor o färg'!$B$8,IF(Värdering!I18>(10^Inställningar!P$45),(LOG10(Värdering!I18)-Inställningar!P$45)/(Inställningar!P$44-Inställningar!P$45)*'Skalor o färg'!$B$8,0)),Värdering!I18/Inställningar!P$43*'Skalor o färg'!$B$8)","v":{"$error":"#DIV/0!"}},{"$f":"IF(Inställningar!Q$46,IF(Värdering!J18<-(10^Inställningar!Q$45),-(LOG10(ABS(Värdering!J18))-Inställningar!Q$45)/(Inställningar!Q$44-Inställningar!Q$45)*'Skalor o färg'!$B$8,IF(Värdering!J18>(10^Inställningar!Q$45),(LOG10(Värdering!J18)-Inställningar!Q$45)/(Inställningar!Q$44-Inställningar!Q$45)*'Skalor o färg'!$B$8,0)),Värdering!J18/Inställningar!Q$43*'Skalor o färg'!$B$8)","v":{"$error":"#DIV/0!"}},{"$f":"IF(Inställningar!R$46,IF(Värdering!K18<-(10^Inställningar!R$45),-(LOG10(ABS(Värdering!K18))-Inställningar!R$45)/(Inställningar!R$44-Inställningar!R$45)*'Skalor o färg'!$B$8,IF(Värdering!K18>(10^Inställningar!R$45),(LOG10(Värdering!K18)-Inställningar!R$45)/(Inställningar!R$44-Inställningar!R$45)*'Skalor o färg'!$B$8,0)),Värdering!K18/Inställningar!R$43*'Skalor o färg'!$B$8)","v":{"$error":"#DIV/0!"}},{"$f":"IF(Inställningar!S$46,IF(Värdering!L18<-(10^Inställningar!S$45),-(LOG10(ABS(Värdering!L18))-Inställningar!S$45)/(Inställningar!S$44-Inställningar!S$45)*'Skalor o färg'!$B$8,IF(Värdering!L18>(10^Inställningar!S$45),(LOG10(Värdering!L18)-Inställningar!S$45)/(Inställningar!S$44-Inställningar!S$45)*'Skalor o färg'!$B$8,0)),Värdering!L18/Inställningar!S$43*'Skalor o färg'!$B$8)","v":{"$error":"#DIV/0!"}},{"$f":"IF(Inställningar!T$46,IF(Värdering!M18<-(10^Inställningar!T$45),-(LOG10(ABS(Värdering!M18))-Inställningar!T$45)/(Inställningar!T$44-Inställningar!T$45)*'Skalor o färg'!$B$8,IF(Värdering!M18>(10^Inställningar!T$45),(LOG10(Värdering!M18)-Inställningar!T$45)/(Inställningar!T$44-Inställningar!T$45)*'Skalor o färg'!$B$8,0)),Värdering!M18/Inställningar!T$43*'Skalor o färg'!$B$8)","v":{"$error":"#DIV/0!"}},{"$f":"IF(Inställningar!U$46,IF(Värdering!N18<-(10^Inställningar!U$45),-(LOG10(ABS(Värdering!N18))-Inställningar!U$45)/(Inställningar!U$44-Inställningar!U$45)*'Skalor o färg'!$B$8,IF(Värdering!N18>(10^Inställningar!U$45),(LOG10(Värdering!N18)-Inställningar!U$45)/(Inställningar!U$44-Inställningar!U$45)*'Skalor o färg'!$B$8,0)),Värdering!N18/Inställningar!U$43*'Skalor o färg'!$B$8)","v":{"$error":"#DIV/0!"}},{"$f":"IF(Inställningar!V$46,IF(Värdering!O18<-(10^Inställningar!V$45),-(LOG10(ABS(Värdering!O18))-Inställningar!V$45)/(Inställningar!V$44-Inställningar!V$45)*'Skalor o färg'!$B$8,IF(Värdering!O18>(10^Inställningar!V$45),(LOG10(Värdering!O18)-Inställningar!V$45)/(Inställningar!V$44-Inställningar!V$45)*'Skalor o färg'!$B$8,0)),Värdering!O18/Inställningar!V$43*'Skalor o färg'!$B$8)","v":{"$error":"#DIV/0!"}},{"$f":"IF(Inställningar!W$46,IF(Värdering!P18<-(10^Inställningar!W$45),-(LOG10(ABS(Värdering!P18))-Inställningar!W$45)/(Inställningar!W$44-Inställningar!W$45)*'Skalor o färg'!$B$8,IF(Värdering!P18>(10^Inställningar!W$45),(LOG10(Värdering!P18)-Inställningar!W$45)/(Inställningar!W$44-Inställningar!W$45)*'Skalor o färg'!$B$8,0)),Värdering!P18/Inställningar!W$43*'Skalor o färg'!$B$8)","v":{"$error":"#DIV/0!"}},{"$f":"IF(Inställningar!X$46,IF(Värdering!Q18<-(10^Inställningar!X$45),-(LOG10(ABS(Värdering!Q18))-Inställningar!X$45)/(Inställningar!X$44-Inställningar!X$45)*'Skalor o färg'!$B$8,IF(Värdering!Q18>(10^Inställningar!X$45),(LOG10(Värdering!Q18)-Inställningar!X$45)/(Inställningar!X$44-Inställningar!X$45)*'Skalor o färg'!$B$8,0)),Värdering!Q18/Inställningar!X$43*'Skalor o färg'!$B$8)","v":{"$error":"#DIV/0!"}},{"$f":"IF(Inställningar!Y$46,IF(Värdering!R18<-(10^Inställningar!Y$45),-(LOG10(ABS(Värdering!R18))-Inställningar!Y$45)/(Inställningar!Y$44-Inställningar!Y$45)*'Skalor o färg'!$B$8,IF(Värdering!R18>(10^Inställningar!Y$45),(LOG10(Värdering!R18)-Inställningar!Y$45)/(Inställningar!Y$44-Inställningar!Y$45)*'Skalor o färg'!$B$8,0)),Värdering!R18/Inställningar!Y$43*'Skalor o färg'!$B$8)","v":{"$error":"#DIV/0!"}},{"$f":"IF(Inställningar!Z$46,IF(Värdering!S18<-(10^Inställningar!Z$45),-(LOG10(ABS(Värdering!S18))-Inställningar!Z$45)/(Inställningar!Z$44-Inställningar!Z$45)*'Skalor o färg'!$B$8,IF(Värdering!S18>(10^Inställningar!Z$45),(LOG10(Värdering!S18)-Inställningar!Z$45)/(Inställningar!Z$44-Inställningar!Z$45)*'Skalor o färg'!$B$8,0)),Värdering!S18/Inställningar!Z$43*'Skalor o färg'!$B$8)","v":{"$error":"#DIV/0!"}}]
[{"$f":"Åtgärdsalternativ!A10","v":"Åtgärdsförslag 2"},"Kort sikt",null,{"$f":"IF(Inställningar!K$46,IF(Värdering!D20<-(10^Inställningar!K$45),-(LOG10(ABS(Värdering!D20))-Inställningar!K$45)/(Inställningar!K$44-Inställningar!K$45)*'Skalor o färg'!$B$8,IF(Värdering!D20>(10^Inställningar!K$45),(LOG10(Värdering!D20)-Inställningar!K$45)/(Inställningar!K$44-Inställningar!K$45)*'Skalor o färg'!$B$8,0)),Värdering!D20/Inställningar!K$43*'Skalor o färg'!$B$8)","v":{"$error":"#DIV/0!"}},{"$f":"IF(Inställningar!L$46,IF(Värdering!E20<-(10^Inställningar!L$45),-(LOG10(ABS(Värdering!E20))-Inställningar!L$45)/(Inställningar!L$44-Inställningar!L$45)*'Skalor o färg'!$B$8,IF(Värdering!E20>(10^Inställningar!L$45),(LOG10(Värdering!E20)-Inställningar!L$45)/(Inställningar!L$44-Inställningar!L$45)*'Skalor o färg'!$B$8,0)),Värdering!E20/Inställningar!L$43*'Skalor o färg'!$B$8)","v":{"$error":"#DIV/0!"}},{"$f":"IF(Inställningar!M$46,IF(Värdering!F20<-(10^Inställningar!M$45),-(LOG10(ABS(Värdering!F20))-Inställningar!M$45)/(Inställningar!M$44-Inställningar!M$45)*'Skalor o färg'!$B$8,IF(Värdering!F20>(10^Inställningar!M$45),(LOG10(Värdering!F20)-Inställningar!M$45)/(Inställningar!M$44-Inställningar!M$45)*'Skalor o färg'!$B$8,0)),Värdering!F20/Inställningar!M$43*'Skalor o färg'!$B$8)","v":{"$error":"#DIV/0!"}},{"$f":"IF(Inställningar!N$46,IF(Värdering!G20<-(10^Inställningar!N$45),-(LOG10(ABS(Värdering!G20))-Inställningar!N$45)/(Inställningar!N$44-Inställningar!N$45)*'Skalor o färg'!$B$8,IF(Värdering!G20>(10^Inställningar!N$45),(LOG10(Värdering!G20)-Inställningar!N$45)/(Inställningar!N$44-Inställningar!N$45)*'Skalor o färg'!$B$8,0)),Värdering!G20/Inställningar!N$43*'Skalor o färg'!$B$8)","v":{"$error":"#DIV/0!"}},{"$f":"IF(Inställningar!O$46,IF(Värdering!H20<-(10^Inställningar!O$45),-(LOG10(ABS(Värdering!H20))-Inställningar!O$45)/(Inställningar!O$44-Inställningar!O$45)*'Skalor o färg'!$B$8,IF(Värdering!H20>(10^Inställningar!O$45),(LOG10(Värdering!H20)-Inställningar!O$45)/(Inställningar!O$44-Inställningar!O$45)*'Skalor o färg'!$B$8,0)),Värdering!H20/Inställningar!O$43*'Skalor o färg'!$B$8)","v":{"$error":"#DIV/0!"}},{"$f":"IF(Inställningar!P$46,IF(Värdering!I20<-(10^Inställningar!P$45),-(LOG10(ABS(Värdering!I20))-Inställningar!P$45)/(Inställningar!P$44-Inställningar!P$45)*'Skalor o färg'!$B$8,IF(Värdering!I20>(10^Inställningar!P$45),(LOG10(Värdering!I20)-Inställningar!P$45)/(Inställningar!P$44-Inställningar!P$45)*'Skalor o färg'!$B$8,0)),Värdering!I20/Inställningar!P$43*'Skalor o färg'!$B$8)","v":{"$error":"#DIV/0!"}},{"$f":"IF(Inställningar!Q$46,IF(Värdering!J20<-(10^Inställningar!Q$45),-(LOG10(ABS(Värdering!J20))-Inställningar!Q$45)/(Inställningar!Q$44-Inställningar!Q$45)*'Skalor o färg'!$B$8,IF(Värdering!J20>(10^Inställningar!Q$45),(LOG10(Värdering!J20)-Inställningar!Q$45)/(Inställningar!Q$44-Inställningar!Q$45)*'Skalor o färg'!$B$8,0)),Värdering!J20/Inställningar!Q$43*'Skalor o färg'!$B$8)","v":{"$error":"#DIV/0!"}},{"$f":"IF(Inställningar!R$46,IF(Värdering!K20<-(10^Inställningar!R$45),-(LOG10(ABS(Värdering!K20))-Inställningar!R$45)/(Inställningar!R$44-Inställningar!R$45)*'Skalor o färg'!$B$8,IF(Värdering!K20>(10^Inställningar!R$45),(LOG10(Värdering!K20)-Inställningar!R$45)/(Inställningar!R$44-Inställningar!R$45)*'Skalor o färg'!$B$8,0)),Värdering!K20/Inställningar!R$43*'Skalor o färg'!$B$8)","v":{"$error":"#DIV/0!"}},{"$f":"IF(Inställningar!S$46,IF(Värdering!L20<-(10^Inställningar!S$45),-(LOG10(ABS(Värdering!L20))-Inställningar!S$45)/(Inställningar!S$44-Inställningar!S$45)*'Skalor o färg'!$B$8,IF(Värdering!L20>(10^Inställningar!S$45),(LOG10(Värdering!L20)-Inställningar!S$45)/(Inställningar!S$44-Inställningar!S$45)*'Skalor o färg'!$B$8,0)),Värdering!L20/Inställningar!S$43*'Skalor o färg'!$B$8)","v":{"$error":"#DIV/0!"}},{"$f":"IF(Inställningar!T$46,IF(Värdering!M20<-(10^Inställningar!T$45),-(LOG10(ABS(Värdering!M20))-Inställningar!T$45)/(Inställningar!T$44-Inställningar!T$45)*'Skalor o färg'!$B$8,IF(Värdering!M20>(10^Inställningar!T$45),(LOG10(Värdering!M20)-Inställningar!T$45)/(Inställningar!T$44-Inställningar!T$45)*'Skalor o färg'!$B$8,0)),Värdering!M20/Inställningar!T$43*'Skalor o färg'!$B$8)","v":{"$error":"#DIV/0!"}},{"$f":"IF(Inställningar!U$46,IF(Värdering!N20<-(10^Inställningar!U$45),-(LOG10(ABS(Värdering!N20))-Inställningar!U$45)/(Inställningar!U$44-Inställningar!U$45)*'Skalor o färg'!$B$8,IF(Värdering!N20>(10^Inställningar!U$45),(LOG10(Värdering!N20)-Inställningar!U$45)/(Inställningar!U$44-Inställningar!U$45)*'Skalor o färg'!$B$8,0)),Värdering!N20/Inställningar!U$43*'Skalor o färg'!$B$8)","v":{"$error":"#DIV/0!"}},{"$f":"IF(Inställningar!V$46,IF(Värdering!O20<-(10^Inställningar!V$45),-(LOG10(ABS(Värdering!O20))-Inställningar!V$45)/(Inställningar!V$44-Inställningar!V$45)*'Skalor o färg'!$B$8,IF(Värdering!O20>(10^Inställningar!V$45),(LOG10(Värdering!O20)-Inställningar!V$45)/(Inställningar!V$44-Inställningar!V$45)*'Skalor o färg'!$B$8,0)),Värdering!O20/Inställningar!V$43*'Skalor o färg'!$B$8)","v":{"$error":"#DIV/0!"}},{"$f":"IF(Inställningar!W$46,IF(Värdering!P20<-(10^Inställningar!W$45),-(LOG10(ABS(Värdering!P20))-Inställningar!W$45)/(Inställningar!W$44-Inställningar!W$45)*'Skalor o färg'!$B$8,IF(Värdering!P20>(10^Inställningar!W$45),(LOG10(Värdering!P20)-Inställningar!W$45)/(Inställningar!W$44-Inställningar!W$45)*'Skalor o färg'!$B$8,0)),Värdering!P20/Inställningar!W$43*'Skalor o färg'!$B$8)","v":{"$error":"#DIV/0!"}},{"$f":"IF(Inställningar!X$46,IF(Värdering!Q20<-(10^Inställningar!X$45),-(LOG10(ABS(Värdering!Q20))-Inställningar!X$45)/(Inställningar!X$44-Inställningar!X$45)*'Skalor o färg'!$B$8,IF(Värdering!Q20>(10^Inställningar!X$45),(LOG10(Värdering!Q20)-Inställningar!X$45)/(Inställningar!X$44-Inställningar!X$45)*'Skalor o färg'!$B$8,0)),Värdering!Q20/Inställningar!X$43*'Skalor o färg'!$B$8)","v":{"$error":"#DIV/0!"}},{"$f":"IF(Inställningar!Y$46,IF(Värdering!R20<-(10^Inställningar!Y$45),-(LOG10(ABS(Värdering!R20))-Inställningar!Y$45)/(Inställningar!Y$44-Inställningar!Y$45)*'Skalor o färg'!$B$8,IF(Värdering!R20>(10^Inställningar!Y$45),(LOG10(Värdering!R20)-Inställningar!Y$45)/(Inställningar!Y$44-Inställningar!Y$45)*'Skalor o färg'!$B$8,0)),Värdering!R20/Inställningar!Y$43*'Skalor o färg'!$B$8)","v":{"$error":"#DIV/0!"}},{"$f":"IF(Inställningar!Z$46,IF(Värdering!S20<-(10^Inställningar!Z$45),-(LOG10(ABS(Värdering!S20))-Inställningar!Z$45)/(Inställningar!Z$44-Inställningar!Z$45)*'Skalor o färg'!$B$8,IF(Värdering!S20>(10^Inställningar!Z$45),(LOG10(Värdering!S20)-Inställningar!Z$45)/(Inställningar!Z$44-Inställningar!Z$45)*'Skalor o färg'!$B$8,0)),Värdering!S20/Inställningar!Z$43*'Skalor o färg'!$B$8)","v":{"$error":"#DIV/0!"}}]
[null,"Lång sikt",null,{"$f":"IF(Inställningar!K$46,IF(Värdering!D22<-(10^Inställningar!K$45),-(LOG10(ABS(Värdering!D22))-Inställningar!K$45)/(Inställningar!K$44-Inställningar!K$45)*'Skalor o färg'!$B$8,IF(Värdering!D22>(10^Inställningar!K$45),(LOG10(Värdering!D22)-Inställningar!K$45)/(Inställningar!K$44-Inställningar!K$45)*'Skalor o färg'!$B$8,0)),Värdering!D22/Inställningar!K$43*'Skalor o färg'!$B$8)","v":{"$error":"#DIV/0!"}},{"$f":"IF(Inställningar!L$46,IF(Värdering!E22<-(10^Inställningar!L$45),-(LOG10(ABS(Värdering!E22))-Inställningar!L$45)/(Inställningar!L$44-Inställningar!L$45)*'Skalor o färg'!$B$8,IF(Värdering!E22>(10^Inställningar!L$45),(LOG10(Värdering!E22)-Inställningar!L$45)/(Inställningar!L$44-Inställningar!L$45)*'Skalor o färg'!$B$8,0)),Värdering!E22/Inställningar!L$43*'Skalor o färg'!$B$8)","v":{"$error":"#DIV/0!"}},{"$f":"IF(Inställningar!M$46,IF(Värdering!F22<-(10^Inställningar!M$45),-(LOG10(ABS(Värdering!F22))-Inställningar!M$45)/(Inställningar!M$44-Inställningar!M$45)*'Skalor o färg'!$B$8,IF(Värdering!F22>(10^Inställningar!M$45),(LOG10(Värdering!F22)-Inställningar!M$45)/(Inställningar!M$44-Inställningar!M$45)*'Skalor o färg'!$B$8,0)),Värdering!F22/Inställningar!M$43*'Skalor o färg'!$B$8)","v":{"$error":"#DIV/0!"}},{"$f":"IF(Inställningar!N$46,IF(Värdering!G22<-(10^Inställningar!N$45),-(LOG10(ABS(Värdering!G22))-Inställningar!N$45)/(Inställningar!N$44-Inställningar!N$45)*'Skalor o färg'!$B$8,IF(Värdering!G22>(10^Inställningar!N$45),(LOG10(Värdering!G22)-Inställningar!N$45)/(Inställningar!N$44-Inställningar!N$45)*'Skalor o färg'!$B$8,0)),Värdering!G22/Inställningar!N$43*'Skalor o färg'!$B$8)","v":{"$error":"#DIV/0!"}},{"$f":"IF(Inställningar!O$46,IF(Värdering!H22<-(10^Inställningar!O$45),-(LOG10(ABS(Värdering!H22))-Inställningar!O$45)/(Inställningar!O$44-Inställningar!O$45)*'Skalor o färg'!$B$8,IF(Värdering!H22>(10^Inställningar!O$45),(LOG10(Värdering!H22)-Inställningar!O$45)/(Inställningar!O$44-Inställningar!O$45)*'Skalor o färg'!$B$8,0)),Värdering!H22/Inställningar!O$43*'Skalor o färg'!$B$8)","v":{"$error":"#DIV/0!"}},{"$f":"IF(Inställningar!P$46,IF(Värdering!I22<-(10^Inställningar!P$45),-(LOG10(ABS(Värdering!I22))-Inställningar!P$45)/(Inställningar!P$44-Inställningar!P$45)*'Skalor o färg'!$B$8,IF(Värdering!I22>(10^Inställningar!P$45),(LOG10(Värdering!I22)-Inställningar!P$45)/(Inställningar!P$44-Inställningar!P$45)*'Skalor o färg'!$B$8,0)),Värdering!I22/Inställningar!P$43*'Skalor o färg'!$B$8)","v":{"$error":"#DIV/0!"}},{"$f":"IF(Inställningar!Q$46,IF(Värdering!J22<-(10^Inställningar!Q$45),-(LOG10(ABS(Värdering!J22))-Inställningar!Q$45)/(Inställningar!Q$44-Inställningar!Q$45)*'Skalor o färg'!$B$8,IF(Värdering!J22>(10^Inställningar!Q$45),(LOG10(Värdering!J22)-Inställningar!Q$45)/(Inställningar!Q$44-Inställningar!Q$45)*'Skalor o färg'!$B$8,0)),Värdering!J22/Inställningar!Q$43*'Skalor o färg'!$B$8)","v":{"$error":"#DIV/0!"}},{"$f":"IF(Inställningar!R$46,IF(Värdering!K22<-(10^Inställningar!R$45),-(LOG10(ABS(Värdering!K22))-Inställningar!R$45)/(Inställningar!R$44-Inställningar!R$45)*'Skalor o färg'!$B$8,IF(Värdering!K22>(10^Inställningar!R$45),(LOG10(Värdering!K22)-Inställningar!R$45)/(Inställningar!R$44-Inställningar!R$45)*'Skalor o färg'!$B$8,0)),Värdering!K22/Inställningar!R$43*'Skalor o färg'!$B$8)","v":{"$error":"#DIV/0!"}},{"$f":"IF(Inställningar!S$46,IF(Värdering!L22<-(10^Inställningar!S$45),-(LOG10(ABS(Värdering!L22))-Inställningar!S$45)/(Inställningar!S$44-Inställningar!S$45)*'Skalor o färg'!$B$8,IF(Värdering!L22>(10^Inställningar!S$45),(LOG10(Värdering!L22)-Inställningar!S$45)/(Inställningar!S$44-Inställningar!S$45)*'Skalor o färg'!$B$8,0)),Värdering!L22/Inställningar!S$43*'Skalor o färg'!$B$8)","v":{"$error":"#DIV/0!"}},{"$f":"IF(Inställningar!T$46,IF(Värdering!M22<-(10^Inställningar!T$45),-(LOG10(ABS(Värdering!M22))-Inställningar!T$45)/(Inställningar!T$44-Inställningar!T$45)*'Skalor o färg'!$B$8,IF(Värdering!M22>(10^Inställningar!T$45),(LOG10(Värdering!M22)-Inställningar!T$45)/(Inställningar!T$44-Inställningar!T$45)*'Skalor o färg'!$B$8,0)),Värdering!M22/Inställningar!T$43*'Skalor o färg'!$B$8)","v":{"$error":"#DIV/0!"}},{"$f":"IF(Inställningar!U$46,IF(Värdering!N22<-(10^Inställningar!U$45),-(LOG10(ABS(Värdering!N22))-Inställningar!U$45)/(Inställningar!U$44-Inställningar!U$45)*'Skalor o färg'!$B$8,IF(Värdering!N22>(10^Inställningar!U$45),(LOG10(Värdering!N22)-Inställningar!U$45)/(Inställningar!U$44-Inställningar!U$45)*'Skalor o färg'!$B$8,0)),Värdering!N22/Inställningar!U$43*'Skalor o färg'!$B$8)","v":{"$error":"#DIV/0!"}},{"$f":"IF(Inställningar!V$46,IF(Värdering!O22<-(10^Inställningar!V$45),-(LOG10(ABS(Värdering!O22))-Inställningar!V$45)/(Inställningar!V$44-Inställningar!V$45)*'Skalor o färg'!$B$8,IF(Värdering!O22>(10^Inställningar!V$45),(LOG10(Värdering!O22)-Inställningar!V$45)/(Inställningar!V$44-Inställningar!V$45)*'Skalor o färg'!$B$8,0)),Värdering!O22/Inställningar!V$43*'Skalor o färg'!$B$8)","v":{"$error":"#DIV/0!"}},{"$f":"IF(Inställningar!W$46,IF(Värdering!P22<-(10^Inställningar!W$45),-(LOG10(ABS(Värdering!P22))-Inställningar!W$45)/(Inställningar!W$44-Inställningar!W$45)*'Skalor o färg'!$B$8,IF(Värdering!P22>(10^Inställningar!W$45),(LOG10(Värdering!P22)-Inställningar!W$45)/(Inställningar!W$44-Inställningar!W$45)*'Skalor o färg'!$B$8,0)),Värdering!P22/Inställningar!W$43*'Skalor o färg'!$B$8)","v":{"$error":"#DIV/0!"}},{"$f":"IF(Inställningar!X$46,IF(Värdering!Q22<-(10^Inställningar!X$45),-(LOG10(ABS(Värdering!Q22))-Inställningar!X$45)/(Inställningar!X$44-Inställningar!X$45)*'Skalor o färg'!$B$8,IF(Värdering!Q22>(10^Inställningar!X$45),(LOG10(Värdering!Q22)-Inställningar!X$45)/(Inställningar!X$44-Inställningar!X$45)*'Skalor o färg'!$B$8,0)),Värdering!Q22/Inställningar!X$43*'Skalor o färg'!$B$8)","v":{"$error":"#DIV/0!"}},{"$f":"IF(Inställningar!Y$46,IF(Värdering!R22<-(10^Inställningar!Y$45),-(LOG10(ABS(Värdering!R22))-Inställningar!Y$45)/(Inställningar!Y$44-Inställningar!Y$45)*'Skalor o färg'!$B$8,IF(Värdering!R22>(10^Inställningar!Y$45),(LOG10(Värdering!R22)-Inställningar!Y$45)/(Inställningar!Y$44-Inställningar!Y$45)*'Skalor o färg'!$B$8,0)),Värdering!R22/Inställningar!Y$43*'Skalor o färg'!$B$8)","v":{"$error":"#DIV/0!"}},{"$f":"IF(Inställningar!Z$46,IF(Värdering!S22<-(10^Inställningar!Z$45),-(LOG10(ABS(Värdering!S22))-Inställningar!Z$45)/(Inställningar!Z$44-Inställningar!Z$45)*'Skalor o färg'!$B$8,IF(Värdering!S22>(10^Inställningar!Z$45),(LOG10(Värdering!S22)-Inställningar!Z$45)/(Inställningar!Z$44-Inställningar!Z$45)*'Skalor o färg'!$B$8,0)),Värdering!S22/Inställningar!Z$43*'Skalor o färg'!$B$8)","v":{"$error":"#DIV/0!"}}]
[{"$f":"Åtgärdsalternativ!A11","v":"Åtgärdsförslag 3"},"Kort sikt",null,{"$f":"IF(Inställningar!K$46,IF(Värdering!D24<-(10^Inställningar!K$45),-(LOG10(ABS(Värdering!D24))-Inställningar!K$45)/(Inställningar!K$44-Inställningar!K$45)*'Skalor o färg'!$B$8,IF(Värdering!D24>(10^Inställningar!K$45),(LOG10(Värdering!D24)-Inställningar!K$45)/(Inställningar!K$44-Inställningar!K$45)*'Skalor o färg'!$B$8,0)),Värdering!D24/Inställningar!K$43*'Skalor o färg'!$B$8)","v":{"$error":"#DIV/0!"}},{"$f":"IF(Inställningar!L$46,IF(Värdering!E24<-(10^Inställningar!L$45),-(LOG10(ABS(Värdering!E24))-Inställningar!L$45)/(Inställningar!L$44-Inställningar!L$45)*'Skalor o färg'!$B$8,IF(Värdering!E24>(10^Inställningar!L$45),(LOG10(Värdering!E24)-Inställningar!L$45)/(Inställningar!L$44-Inställningar!L$45)*'Skalor o färg'!$B$8,0)),Värdering!E24/Inställningar!L$43*'Skalor o färg'!$B$8)","v":{"$error":"#DIV/0!"}},{"$f":"IF(Inställningar!M$46,IF(Värdering!F24<-(10^Inställningar!M$45),-(LOG10(ABS(Värdering!F24))-Inställningar!M$45)/(Inställningar!M$44-Inställningar!M$45)*'Skalor o färg'!$B$8,IF(Värdering!F24>(10^Inställningar!M$45),(LOG10(Värdering!F24)-Inställningar!M$45)/(Inställningar!M$44-Inställningar!M$45)*'Skalor o färg'!$B$8,0)),Värdering!F24/Inställningar!M$43*'Skalor o färg'!$B$8)","v":{"$error":"#DIV/0!"}},{"$f":"IF(Inställningar!N$46,IF(Värdering!G24<-(10^Inställningar!N$45),-(LOG10(ABS(Värdering!G24))-Inställningar!N$45)/(Inställningar!N$44-Inställningar!N$45)*'Skalor o färg'!$B$8,IF(Värdering!G24>(10^Inställningar!N$45),(LOG10(Värdering!G24)-Inställningar!N$45)/(Inställningar!N$44-Inställningar!N$45)*'Skalor o färg'!$B$8,0)),Värdering!G24/Inställningar!N$43*'Skalor o färg'!$B$8)","v":{"$error":"#DIV/0!"}},{"$f":"IF(Inställningar!O$46,IF(Värdering!H24<-(10^Inställningar!O$45),-(LOG10(ABS(Värdering!H24))-Inställningar!O$45)/(Inställningar!O$44-Inställningar!O$45)*'Skalor o färg'!$B$8,IF(Värdering!H24>(10^Inställningar!O$45),(LOG10(Värdering!H24)-Inställningar!O$45)/(Inställningar!O$44-Inställningar!O$45)*'Skalor o färg'!$B$8,0)),Värdering!H24/Inställningar!O$43*'Skalor o färg'!$B$8)","v":{"$error":"#DIV/0!"}},{"$f":"IF(Inställningar!P$46,IF(Värdering!I24<-(10^Inställningar!P$45),-(LOG10(ABS(Värdering!I24))-Inställningar!P$45)/(Inställningar!P$44-Inställningar!P$45)*'Skalor o färg'!$B$8,IF(Värdering!I24>(10^Inställningar!P$45),(LOG10(Värdering!I24)-Inställningar!P$45)/(Inställningar!P$44-Inställningar!P$45)*'Skalor o färg'!$B$8,0)),Värdering!I24/Inställningar!P$43*'Skalor o färg'!$B$8)","v":{"$error":"#DIV/0!"}},{"$f":"IF(Inställningar!Q$46,IF(Värdering!J24<-(10^Inställningar!Q$45),-(LOG10(ABS(Värdering!J24))-Inställningar!Q$45)/(Inställningar!Q$44-Inställningar!Q$45)*'Skalor o färg'!$B$8,IF(Värdering!J24>(10^Inställningar!Q$45),(LOG10(Värdering!J24)-Inställningar!Q$45)/(Inställningar!Q$44-Inställningar!Q$45)*'Skalor o färg'!$B$8,0)),Värdering!J24/Inställningar!Q$43*'Skalor o färg'!$B$8)","v":{"$error":"#DIV/0!"}},{"$f":"IF(Inställningar!R$46,IF(Värdering!K24<-(10^Inställningar!R$45),-(LOG10(ABS(Värdering!K24))-Inställningar!R$45)/(Inställningar!R$44-Inställningar!R$45)*'Skalor o färg'!$B$8,IF(Värdering!K24>(10^Inställningar!R$45),(LOG10(Värdering!K24)-Inställningar!R$45)/(Inställningar!R$44-Inställningar!R$45)*'Skalor o färg'!$B$8,0)),Värdering!K24/Inställningar!R$43*'Skalor o färg'!$B$8)","v":{"$error":"#DIV/0!"}},{"$f":"IF(Inställningar!S$46,IF(Värdering!L24<-(10^Inställningar!S$45),-(LOG10(ABS(Värdering!L24))-Inställningar!S$45)/(Inställningar!S$44-Inställningar!S$45)*'Skalor o färg'!$B$8,IF(Värdering!L24>(10^Inställningar!S$45),(LOG10(Värdering!L24)-Inställningar!S$45)/(Inställningar!S$44-Inställningar!S$45)*'Skalor o färg'!$B$8,0)),Värdering!L24/Inställningar!S$43*'Skalor o färg'!$B$8)","v":{"$error":"#DIV/0!"}},{"$f":"IF(Inställningar!T$46,IF(Värdering!M24<-(10^Inställningar!T$45),-(LOG10(ABS(Värdering!M24))-Inställningar!T$45)/(Inställningar!T$44-Inställningar!T$45)*'Skalor o färg'!$B$8,IF(Värdering!M24>(10^Inställningar!T$45),(LOG10(Värdering!M24)-Inställningar!T$45)/(Inställningar!T$44-Inställningar!T$45)*'Skalor o färg'!$B$8,0)),Värdering!M24/Inställningar!T$43*'Skalor o färg'!$B$8)","v":{"$error":"#DIV/0!"}},{"$f":"IF(Inställningar!U$46,IF(Värdering!N24<-(10^Inställningar!U$45),-(LOG10(ABS(Värdering!N24))-Inställningar!U$45)/(Inställningar!U$44-Inställningar!U$45)*'Skalor o färg'!$B$8,IF(Värdering!N24>(10^Inställningar!U$45),(LOG10(Värdering!N24)-Inställningar!U$45)/(Inställningar!U$44-Inställningar!U$45)*'Skalor o färg'!$B$8,0)),Värdering!N24/Inställningar!U$43*'Skalor o färg'!$B$8)","v":{"$error":"#DIV/0!"}},{"$f":"IF(Inställningar!V$46,IF(Värdering!O24<-(10^Inställningar!V$45),-(LOG10(ABS(Värdering!O24))-Inställningar!V$45)/(Inställningar!V$44-Inställningar!V$45)*'Skalor o färg'!$B$8,IF(Värdering!O24>(10^Inställningar!V$45),(LOG10(Värdering!O24)-Inställningar!V$45)/(Inställningar!V$44-Inställningar!V$45)*'Skalor o färg'!$B$8,0)),Värdering!O24/Inställningar!V$43*'Skalor o färg'!$B$8)","v":{"$error":"#DIV/0!"}},{"$f":"IF(Inställningar!W$46,IF(Värdering!P24<-(10^Inställningar!W$45),-(LOG10(ABS(Värdering!P24))-Inställningar!W$45)/(Inställningar!W$44-Inställningar!W$45)*'Skalor o färg'!$B$8,IF(Värdering!P24>(10^Inställningar!W$45),(LOG10(Värdering!P24)-Inställningar!W$45)/(Inställningar!W$44-Inställningar!W$45)*'Skalor o färg'!$B$8,0)),Värdering!P24/Inställningar!W$43*'Skalor o färg'!$B$8)","v":{"$error":"#DIV/0!"}},{"$f":"IF(Inställningar!X$46,IF(Värdering!Q24<-(10^Inställningar!X$45),-(LOG10(ABS(Värdering!Q24))-Inställningar!X$45)/(Inställningar!X$44-Inställningar!X$45)*'Skalor o färg'!$B$8,IF(Värdering!Q24>(10^Inställningar!X$45),(LOG10(Värdering!Q24)-Inställningar!X$45)/(Inställningar!X$44-Inställningar!X$45)*'Skalor o färg'!$B$8,0)),Värdering!Q24/Inställningar!X$43*'Skalor o färg'!$B$8)","v":{"$error":"#DIV/0!"}},{"$f":"IF(Inställningar!Y$46,IF(Värdering!R24<-(10^Inställningar!Y$45),-(LOG10(ABS(Värdering!R24))-Inställningar!Y$45)/(Inställningar!Y$44-Inställningar!Y$45)*'Skalor o färg'!$B$8,IF(Värdering!R24>(10^Inställningar!Y$45),(LOG10(Värdering!R24)-Inställningar!Y$45)/(Inställningar!Y$44-Inställningar!Y$45)*'Skalor o färg'!$B$8,0)),Värdering!R24/Inställningar!Y$43*'Skalor o färg'!$B$8)","v":{"$error":"#DIV/0!"}},{"$f":"IF(Inställningar!Z$46,IF(Värdering!S24<-(10^Inställningar!Z$45),-(LOG10(ABS(Värdering!S24))-Inställningar!Z$45)/(Inställningar!Z$44-Inställningar!Z$45)*'Skalor o färg'!$B$8,IF(Värdering!S24>(10^Inställningar!Z$45),(LOG10(Värdering!S24)-Inställningar!Z$45)/(Inställningar!Z$44-Inställningar!Z$45)*'Skalor o färg'!$B$8,0)),Värdering!S24/Inställningar!Z$43*'Skalor o färg'!$B$8)","v":{"$error":"#DIV/0!"}}]
[null,"Lång sikt",null,{"$f":"IF(Inställningar!K$46,IF(Värdering!D26<-(10^Inställningar!K$45),-(LOG10(ABS(Värdering!D26))-Inställningar!K$45)/(Inställningar!K$44-Inställningar!K$45)*'Skalor o färg'!$B$8,IF(Värdering!D26>(10^Inställningar!K$45),(LOG10(Värdering!D26)-Inställningar!K$45)/(Inställningar!K$44-Inställningar!K$45)*'Skalor o färg'!$B$8,0)),Värdering!D26/Inställningar!K$43*'Skalor o färg'!$B$8)","v":{"$error":"#DIV/0!"}},{"$f":"IF(Inställningar!L$46,IF(Värdering!E26<-(10^Inställningar!L$45),-(LOG10(ABS(Värdering!E26))-Inställningar!L$45)/(Inställningar!L$44-Inställningar!L$45)*'Skalor o färg'!$B$8,IF(Värdering!E26>(10^Inställningar!L$45),(LOG10(Värdering!E26)-Inställningar!L$45)/(Inställningar!L$44-Inställningar!L$45)*'Skalor o färg'!$B$8,0)),Värdering!E26/Inställningar!L$43*'Skalor o färg'!$B$8)","v":{"$error":"#DIV/0!"}},{"$f":"IF(Inställningar!M$46,IF(Värdering!F26<-(10^Inställningar!M$45),-(LOG10(ABS(Värdering!F26))-Inställningar!M$45)/(Inställningar!M$44-Inställningar!M$45)*'Skalor o färg'!$B$8,IF(Värdering!F26>(10^Inställningar!M$45),(LOG10(Värdering!F26)-Inställningar!M$45)/(Inställningar!M$44-Inställningar!M$45)*'Skalor o färg'!$B$8,0)),Värdering!F26/Inställningar!M$43*'Skalor o färg'!$B$8)","v":{"$error":"#DIV/0!"}},{"$f":"IF(Inställningar!N$46,IF(Värdering!G26<-(10^Inställningar!N$45),-(LOG10(ABS(Värdering!G26))-Inställningar!N$45)/(Inställningar!N$44-Inställningar!N$45)*'Skalor o färg'!$B$8,IF(Värdering!G26>(10^Inställningar!N$45),(LOG10(Värdering!G26)-Inställningar!N$45)/(Inställningar!N$44-Inställningar!N$45)*'Skalor o färg'!$B$8,0)),Värdering!G26/Inställningar!N$43*'Skalor o färg'!$B$8)","v":{"$error":"#DIV/0!"}},{"$f":"IF(Inställningar!O$46,IF(Värdering!H26<-(10^Inställningar!O$45),-(LOG10(ABS(Värdering!H26))-Inställningar!O$45)/(Inställningar!O$44-Inställningar!O$45)*'Skalor o färg'!$B$8,IF(Värdering!H26>(10^Inställningar!O$45),(LOG10(Värdering!H26)-Inställningar!O$45)/(Inställningar!O$44-Inställningar!O$45)*'Skalor o färg'!$B$8,0)),Värdering!H26/Inställningar!O$43*'Skalor o färg'!$B$8)","v":{"$error":"#DIV/0!"}},{"$f":"IF(Inställningar!P$46,IF(Värdering!I26<-(10^Inställningar!P$45),-(LOG10(ABS(Värdering!I26))-Inställningar!P$45)/(Inställningar!P$44-Inställningar!P$45)*'Skalor o färg'!$B$8,IF(Värdering!I26>(10^Inställningar!P$45),(LOG10(Värdering!I26)-Inställningar!P$45)/(Inställningar!P$44-Inställningar!P$45)*'Skalor o färg'!$B$8,0)),Värdering!I26/Inställningar!P$43*'Skalor o färg'!$B$8)","v":{"$error":"#DIV/0!"}},{"$f":"IF(Inställningar!Q$46,IF(Värdering!J26<-(10^Inställningar!Q$45),-(LOG10(ABS(Värdering!J26))-Inställningar!Q$45)/(Inställningar!Q$44-Inställningar!Q$45)*'Skalor o färg'!$B$8,IF(Värdering!J26>(10^Inställningar!Q$45),(LOG10(Värdering!J26)-Inställningar!Q$45)/(Inställningar!Q$44-Inställningar!Q$45)*'Skalor o färg'!$B$8,0)),Värdering!J26/Inställningar!Q$43*'Skalor o färg'!$B$8)","v":{"$error":"#DIV/0!"}},{"$f":"IF(Inställningar!R$46,IF(Värdering!K26<-(10^Inställningar!R$45),-(LOG10(ABS(Värdering!K26))-Inställningar!R$45)/(Inställningar!R$44-Inställningar!R$45)*'Skalor o färg'!$B$8,IF(Värdering!K26>(10^Inställningar!R$45),(LOG10(Värdering!K26)-Inställningar!R$45)/(Inställningar!R$44-Inställningar!R$45)*'Skalor o färg'!$B$8,0)),Värdering!K26/Inställningar!R$43*'Skalor o färg'!$B$8)","v":{"$error":"#DIV/0!"}},{"$f":"IF(Inställningar!S$46,IF(Värdering!L26<-(10^Inställningar!S$45),-(LOG10(ABS(Värdering!L26))-Inställningar!S$45)/(Inställningar!S$44-Inställningar!S$45)*'Skalor o färg'!$B$8,IF(Värdering!L26>(10^Inställningar!S$45),(LOG10(Värdering!L26)-Inställningar!S$45)/(Inställningar!S$44-Inställningar!S$45)*'Skalor o färg'!$B$8,0)),Värdering!L26/Inställningar!S$43*'Skalor o färg'!$B$8)","v":{"$error":"#DIV/0!"}},{"$f":"IF(Inställningar!T$46,IF(Värdering!M26<-(10^Inställningar!T$45),-(LOG10(ABS(Värdering!M26))-Inställningar!T$45)/(Inställningar!T$44-Inställningar!T$45)*'Skalor o färg'!$B$8,IF(Värdering!M26>(10^Inställningar!T$45),(LOG10(Värdering!M26)-Inställningar!T$45)/(Inställningar!T$44-Inställningar!T$45)*'Skalor o färg'!$B$8,0)),Värdering!M26/Inställningar!T$43*'Skalor o färg'!$B$8)","v":{"$error":"#DIV/0!"}},{"$f":"IF(Inställningar!U$46,IF(Värdering!N26<-(10^Inställningar!U$45),-(LOG10(ABS(Värdering!N26))-Inställningar!U$45)/(Inställningar!U$44-Inställningar!U$45)*'Skalor o färg'!$B$8,IF(Värdering!N26>(10^Inställningar!U$45),(LOG10(Värdering!N26)-Inställningar!U$45)/(Inställningar!U$44-Inställningar!U$45)*'Skalor o färg'!$B$8,0)),Värdering!N26/Inställningar!U$43*'Skalor o färg'!$B$8)","v":{"$error":"#DIV/0!"}},{"$f":"IF(Inställningar!V$46,IF(Värdering!O26<-(10^Inställningar!V$45),-(LOG10(ABS(Värdering!O26))-Inställningar!V$45)/(Inställningar!V$44-Inställningar!V$45)*'Skalor o färg'!$B$8,IF(Värdering!O26>(10^Inställningar!V$45),(LOG10(Värdering!O26)-Inställningar!V$45)/(Inställningar!V$44-Inställningar!V$45)*'Skalor o färg'!$B$8,0)),Värdering!O26/Inställningar!V$43*'Skalor o färg'!$B$8)","v":{"$error":"#DIV/0!"}},{"$f":"IF(Inställningar!W$46,IF(Värdering!P26<-(10^Inställningar!W$45),-(LOG10(ABS(Värdering!P26))-Inställningar!W$45)/(Inställningar!W$44-Inställningar!W$45)*'Skalor o färg'!$B$8,IF(Värdering!P26>(10^Inställningar!W$45),(LOG10(Värdering!P26)-Inställningar!W$45)/(Inställningar!W$44-Inställningar!W$45)*'Skalor o färg'!$B$8,0)),Värdering!P26/Inställningar!W$43*'Skalor o färg'!$B$8)","v":{"$error":"#DIV/0!"}},{"$f":"IF(Inställningar!X$46,IF(Värdering!Q26<-(10^Inställningar!X$45),-(LOG10(ABS(Värdering!Q26))-Inställningar!X$45)/(Inställningar!X$44-Inställningar!X$45)*'Skalor o färg'!$B$8,IF(Värdering!Q26>(10^Inställningar!X$45),(LOG10(Värdering!Q26)-Inställningar!X$45)/(Inställningar!X$44-Inställningar!X$45)*'Skalor o färg'!$B$8,0)),Värdering!Q26/Inställningar!X$43*'Skalor o färg'!$B$8)","v":{"$error":"#DIV/0!"}},{"$f":"IF(Inställningar!Y$46,IF(Värdering!R26<-(10^Inställningar!Y$45),-(LOG10(ABS(Värdering!R26))-Inställningar!Y$45)/(Inställningar!Y$44-Inställningar!Y$45)*'Skalor o färg'!$B$8,IF(Värdering!R26>(10^Inställningar!Y$45),(LOG10(Värdering!R26)-Inställningar!Y$45)/(Inställningar!Y$44-Inställningar!Y$45)*'Skalor o färg'!$B$8,0)),Värdering!R26/Inställningar!Y$43*'Skalor o färg'!$B$8)","v":{"$error":"#DIV/0!"}},{"$f":"IF(Inställningar!Z$46,IF(Värdering!S26<-(10^Inställningar!Z$45),-(LOG10(ABS(Värdering!S26))-Inställningar!Z$45)/(Inställningar!Z$44-Inställningar!Z$45)*'Skalor o färg'!$B$8,IF(Värdering!S26>(10^Inställningar!Z$45),(LOG10(Värdering!S26)-Inställningar!Z$45)/(Inställningar!Z$44-Inställningar!Z$45)*'Skalor o färg'!$B$8,0)),Värdering!S26/Inställningar!Z$43*'Skalor o färg'!$B$8)","v":{"$error":"#DIV/0!"}}]
[{"$f":"Åtgärdsalternativ!A12","v":"Åtgärdsförslag 4"},"Kort sikt",null,{"$f":"IF(Inställningar!K$46,IF(Värdering!D28<-(10^Inställningar!K$45),-(LOG10(ABS(Värdering!D28))-Inställningar!K$45)/(Inställningar!K$44-Inställningar!K$45)*'Skalor o färg'!$B$8,IF(Värdering!D28>(10^Inställningar!K$45),(LOG10(Värdering!D28)-Inställningar!K$45)/(Inställningar!K$44-Inställningar!K$45)*'Skalor o färg'!$B$8,0)),Värdering!D28/Inställningar!K$43*'Skalor o färg'!$B$8)","v":{"$error":"#DIV/0!"}},{"$f":"IF(Inställningar!L$46,IF(Värdering!E28<-(10^Inställningar!L$45),-(LOG10(ABS(Värdering!E28))-Inställningar!L$45)/(Inställningar!L$44-Inställningar!L$45)*'Skalor o färg'!$B$8,IF(Värdering!E28>(10^Inställningar!L$45),(LOG10(Värdering!E28)-Inställningar!L$45)/(Inställningar!L$44-Inställningar!L$45)*'Skalor o färg'!$B$8,0)),Värdering!E28/Inställningar!L$43*'Skalor o färg'!$B$8)","v":{"$error":"#DIV/0!"}},{"$f":"IF(Inställningar!M$46,IF(Värdering!F28<-(10^Inställningar!M$45),-(LOG10(ABS(Värdering!F28))-Inställningar!M$45)/(Inställningar!M$44-Inställningar!M$45)*'Skalor o färg'!$B$8,IF(Värdering!F28>(10^Inställningar!M$45),(LOG10(Värdering!F28)-Inställningar!M$45)/(Inställningar!M$44-Inställningar!M$45)*'Skalor o färg'!$B$8,0)),Värdering!F28/Inställningar!M$43*'Skalor o färg'!$B$8)","v":{"$error":"#DIV/0!"}},{"$f":"IF(Inställningar!N$46,IF(Värdering!G28<-(10^Inställningar!N$45),-(LOG10(ABS(Värdering!G28))-Inställningar!N$45)/(Inställningar!N$44-Inställningar!N$45)*'Skalor o färg'!$B$8,IF(Värdering!G28>(10^Inställningar!N$45),(LOG10(Värdering!G28)-Inställningar!N$45)/(Inställningar!N$44-Inställningar!N$45)*'Skalor o färg'!$B$8,0)),Värdering!G28/Inställningar!N$43*'Skalor o färg'!$B$8)","v":{"$error":"#DIV/0!"}},{"$f":"IF(Inställningar!O$46,IF(Värdering!H28<-(10^Inställningar!O$45),-(LOG10(ABS(Värdering!H28))-Inställningar!O$45)/(Inställningar!O$44-Inställningar!O$45)*'Skalor o färg'!$B$8,IF(Värdering!H28>(10^Inställningar!O$45),(LOG10(Värdering!H28)-Inställningar!O$45)/(Inställningar!O$44-Inställningar!O$45)*'Skalor o färg'!$B$8,0)),Värdering!H28/Inställningar!O$43*'Skalor o färg'!$B$8)","v":{"$error":"#DIV/0!"}},{"$f":"IF(Inställningar!P$46,IF(Värdering!I28<-(10^Inställningar!P$45),-(LOG10(ABS(Värdering!I28))-Inställningar!P$45)/(Inställningar!P$44-Inställningar!P$45)*'Skalor o färg'!$B$8,IF(Värdering!I28>(10^Inställningar!P$45),(LOG10(Värdering!I28)-Inställningar!P$45)/(Inställningar!P$44-Inställningar!P$45)*'Skalor o färg'!$B$8,0)),Värdering!I28/Inställningar!P$43*'Skalor o färg'!$B$8)","v":{"$error":"#DIV/0!"}},{"$f":"IF(Inställningar!Q$46,IF(Värdering!J28<-(10^Inställningar!Q$45),-(LOG10(ABS(Värdering!J28))-Inställningar!Q$45)/(Inställningar!Q$44-Inställningar!Q$45)*'Skalor o färg'!$B$8,IF(Värdering!J28>(10^Inställningar!Q$45),(LOG10(Värdering!J28)-Inställningar!Q$45)/(Inställningar!Q$44-Inställningar!Q$45)*'Skalor o färg'!$B$8,0)),Värdering!J28/Inställningar!Q$43*'Skalor o färg'!$B$8)","v":{"$error":"#DIV/0!"}},{"$f":"IF(Inställningar!R$46,IF(Värdering!K28<-(10^Inställningar!R$45),-(LOG10(ABS(Värdering!K28))-Inställningar!R$45)/(Inställningar!R$44-Inställningar!R$45)*'Skalor o färg'!$B$8,IF(Värdering!K28>(10^Inställningar!R$45),(LOG10(Värdering!K28)-Inställningar!R$45)/(Inställningar!R$44-Inställningar!R$45)*'Skalor o färg'!$B$8,0)),Värdering!K28/Inställningar!R$43*'Skalor o färg'!$B$8)","v":{"$error":"#DIV/0!"}},{"$f":"IF(Inställningar!S$46,IF(Värdering!L28<-(10^Inställningar!S$45),-(LOG10(ABS(Värdering!L28))-Inställningar!S$45)/(Inställningar!S$44-Inställningar!S$45)*'Skalor o färg'!$B$8,IF(Värdering!L28>(10^Inställningar!S$45),(LOG10(Värdering!L28)-Inställningar!S$45)/(Inställningar!S$44-Inställningar!S$45)*'Skalor o färg'!$B$8,0)),Värdering!L28/Inställningar!S$43*'Skalor o färg'!$B$8)","v":{"$error":"#DIV/0!"}},{"$f":"IF(Inställningar!T$46,IF(Värdering!M28<-(10^Inställningar!T$45),-(LOG10(ABS(Värdering!M28))-Inställningar!T$45)/(Inställningar!T$44-Inställningar!T$45)*'Skalor o färg'!$B$8,IF(Värdering!M28>(10^Inställningar!T$45),(LOG10(Värdering!M28)-Inställningar!T$45)/(Inställningar!T$44-Inställningar!T$45)*'Skalor o färg'!$B$8,0)),Värdering!M28/Inställningar!T$43*'Skalor o färg'!$B$8)","v":{"$error":"#DIV/0!"}},{"$f":"IF(Inställningar!U$46,IF(Värdering!N28<-(10^Inställningar!U$45),-(LOG10(ABS(Värdering!N28))-Inställningar!U$45)/(Inställningar!U$44-Inställningar!U$45)*'Skalor o färg'!$B$8,IF(Värdering!N28>(10^Inställningar!U$45),(LOG10(Värdering!N28)-Inställningar!U$45)/(Inställningar!U$44-Inställningar!U$45)*'Skalor o färg'!$B$8,0)),Värdering!N28/Inställningar!U$43*'Skalor o färg'!$B$8)","v":{"$error":"#DIV/0!"}},{"$f":"IF(Inställningar!V$46,IF(Värdering!O28<-(10^Inställningar!V$45),-(LOG10(ABS(Värdering!O28))-Inställningar!V$45)/(Inställningar!V$44-Inställningar!V$45)*'Skalor o färg'!$B$8,IF(Värdering!O28>(10^Inställningar!V$45),(LOG10(Värdering!O28)-Inställningar!V$45)/(Inställningar!V$44-Inställningar!V$45)*'Skalor o färg'!$B$8,0)),Värdering!O28/Inställningar!V$43*'Skalor o färg'!$B$8)","v":{"$error":"#DIV/0!"}},{"$f":"IF(Inställningar!W$46,IF(Värdering!P28<-(10^Inställningar!W$45),-(LOG10(ABS(Värdering!P28))-Inställningar!W$45)/(Inställningar!W$44-Inställningar!W$45)*'Skalor o färg'!$B$8,IF(Värdering!P28>(10^Inställningar!W$45),(LOG10(Värdering!P28)-Inställningar!W$45)/(Inställningar!W$44-Inställningar!W$45)*'Skalor o färg'!$B$8,0)),Värdering!P28/Inställningar!W$43*'Skalor o färg'!$B$8)","v":{"$error":"#DIV/0!"}},{"$f":"IF(Inställningar!X$46,IF(Värdering!Q28<-(10^Inställningar!X$45),-(LOG10(ABS(Värdering!Q28))-Inställningar!X$45)/(Inställningar!X$44-Inställningar!X$45)*'Skalor o färg'!$B$8,IF(Värdering!Q28>(10^Inställningar!X$45),(LOG10(Värdering!Q28)-Inställningar!X$45)/(Inställningar!X$44-Inställningar!X$45)*'Skalor o färg'!$B$8,0)),Värdering!Q28/Inställningar!X$43*'Skalor o färg'!$B$8)","v":{"$error":"#DIV/0!"}},{"$f":"IF(Inställningar!Y$46,IF(Värdering!R28<-(10^Inställningar!Y$45),-(LOG10(ABS(Värdering!R28))-Inställningar!Y$45)/(Inställningar!Y$44-Inställningar!Y$45)*'Skalor o färg'!$B$8,IF(Värdering!R28>(10^Inställningar!Y$45),(LOG10(Värdering!R28)-Inställningar!Y$45)/(Inställningar!Y$44-Inställningar!Y$45)*'Skalor o färg'!$B$8,0)),Värdering!R28/Inställningar!Y$43*'Skalor o färg'!$B$8)","v":{"$error":"#DIV/0!"}},{"$f":"IF(Inställningar!Z$46,IF(Värdering!S28<-(10^Inställningar!Z$45),-(LOG10(ABS(Värdering!S28))-Inställningar!Z$45)/(Inställningar!Z$44-Inställningar!Z$45)*'Skalor o färg'!$B$8,IF(Värdering!S28>(10^Inställningar!Z$45),(LOG10(Värdering!S28)-Inställningar!Z$45)/(Inställningar!Z$44-Inställningar!Z$45)*'Skalor o färg'!$B$8,0)),Värdering!S28/Inställningar!Z$43*'Skalor o färg'!$B$8)","v":{"$error":"#DIV/0!"}}]
[null,"Lång sikt",null,{"$f":"IF(Inställningar!K$46,IF(Värdering!D30<-(10^Inställningar!K$45),-(LOG10(ABS(Värdering!D30))-Inställningar!K$45)/(Inställningar!K$44-Inställningar!K$45)*'Skalor o färg'!$B$8,IF(Värdering!D30>(10^Inställningar!K$45),(LOG10(Värdering!D30)-Inställningar!K$45)/(Inställningar!K$44-Inställningar!K$45)*'Skalor o färg'!$B$8,0)),Värdering!D30/Inställningar!K$43*'Skalor o färg'!$B$8)","v":{"$error":"#DIV/0!"}},{"$f":"IF(Inställningar!L$46,IF(Värdering!E30<-(10^Inställningar!L$45),-(LOG10(ABS(Värdering!E30))-Inställningar!L$45)/(Inställningar!L$44-Inställningar!L$45)*'Skalor o färg'!$B$8,IF(Värdering!E30>(10^Inställningar!L$45),(LOG10(Värdering!E30)-Inställningar!L$45)/(Inställningar!L$44-Inställningar!L$45)*'Skalor o färg'!$B$8,0)),Värdering!E30/Inställningar!L$43*'Skalor o färg'!$B$8)","v":{"$error":"#DIV/0!"}},{"$f":"IF(Inställningar!M$46,IF(Värdering!F30<-(10^Inställningar!M$45),-(LOG10(ABS(Värdering!F30))-Inställningar!M$45)/(Inställningar!M$44-Inställningar!M$45)*'Skalor o färg'!$B$8,IF(Värdering!F30>(10^Inställningar!M$45),(LOG10(Värdering!F30)-Inställningar!M$45)/(Inställningar!M$44-Inställningar!M$45)*'Skalor o färg'!$B$8,0)),Värdering!F30/Inställningar!M$43*'Skalor o färg'!$B$8)","v":{"$error":"#DIV/0!"}},{"$f":"IF(Inställningar!N$46,IF(Värdering!G30<-(10^Inställningar!N$45),-(LOG10(ABS(Värdering!G30))-Inställningar!N$45)/(Inställningar!N$44-Inställningar!N$45)*'Skalor o färg'!$B$8,IF(Värdering!G30>(10^Inställningar!N$45),(LOG10(Värdering!G30)-Inställningar!N$45)/(Inställningar!N$44-Inställningar!N$45)*'Skalor o färg'!$B$8,0)),Värdering!G30/Inställningar!N$43*'Skalor o färg'!$B$8)","v":{"$error":"#DIV/0!"}},{"$f":"IF(Inställningar!O$46,IF(Värdering!H30<-(10^Inställningar!O$45),-(LOG10(ABS(Värdering!H30))-Inställningar!O$45)/(Inställningar!O$44-Inställningar!O$45)*'Skalor o färg'!$B$8,IF(Värdering!H30>(10^Inställningar!O$45),(LOG10(Värdering!H30)-Inställningar!O$45)/(Inställningar!O$44-Inställningar!O$45)*'Skalor o färg'!$B$8,0)),Värdering!H30/Inställningar!O$43*'Skalor o färg'!$B$8)","v":{"$error":"#DIV/0!"}},{"$f":"IF(Inställningar!P$46,IF(Värdering!I30<-(10^Inställningar!P$45),-(LOG10(ABS(Värdering!I30))-Inställningar!P$45)/(Inställningar!P$44-Inställningar!P$45)*'Skalor o färg'!$B$8,IF(Värdering!I30>(10^Inställningar!P$45),(LOG10(Värdering!I30)-Inställningar!P$45)/(Inställningar!P$44-Inställningar!P$45)*'Skalor o färg'!$B$8,0)),Värdering!I30/Inställningar!P$43*'Skalor o färg'!$B$8)","v":{"$error":"#DIV/0!"}},{"$f":"IF(Inställningar!Q$46,IF(Värdering!J30<-(10^Inställningar!Q$45),-(LOG10(ABS(Värdering!J30))-Inställningar!Q$45)/(Inställningar!Q$44-Inställningar!Q$45)*'Skalor o färg'!$B$8,IF(Värdering!J30>(10^Inställningar!Q$45),(LOG10(Värdering!J30)-Inställningar!Q$45)/(Inställningar!Q$44-Inställningar!Q$45)*'Skalor o färg'!$B$8,0)),Värdering!J30/Inställningar!Q$43*'Skalor o färg'!$B$8)","v":{"$error":"#DIV/0!"}},{"$f":"IF(Inställningar!R$46,IF(Värdering!K30<-(10^Inställningar!R$45),-(LOG10(ABS(Värdering!K30))-Inställningar!R$45)/(Inställningar!R$44-Inställningar!R$45)*'Skalor o färg'!$B$8,IF(Värdering!K30>(10^Inställningar!R$45),(LOG10(Värdering!K30)-Inställningar!R$45)/(Inställningar!R$44-Inställningar!R$45)*'Skalor o färg'!$B$8,0)),Värdering!K30/Inställningar!R$43*'Skalor o färg'!$B$8)","v":{"$error":"#DIV/0!"}},{"$f":"IF(Inställningar!S$46,IF(Värdering!L30<-(10^Inställningar!S$45),-(LOG10(ABS(Värdering!L30))-Inställningar!S$45)/(Inställningar!S$44-Inställningar!S$45)*'Skalor o färg'!$B$8,IF(Värdering!L30>(10^Inställningar!S$45),(LOG10(Värdering!L30)-Inställningar!S$45)/(Inställningar!S$44-Inställningar!S$45)*'Skalor o färg'!$B$8,0)),Värdering!L30/Inställningar!S$43*'Skalor o färg'!$B$8)","v":{"$error":"#DIV/0!"}},{"$f":"IF(Inställningar!T$46,IF(Värdering!M30<-(10^Inställningar!T$45),-(LOG10(ABS(Värdering!M30))-Inställningar!T$45)/(Inställningar!T$44-Inställningar!T$45)*'Skalor o färg'!$B$8,IF(Värdering!M30>(10^Inställningar!T$45),(LOG10(Värdering!M30)-Inställningar!T$45)/(Inställningar!T$44-Inställningar!T$45)*'Skalor o färg'!$B$8,0)),Värdering!M30/Inställningar!T$43*'Skalor o färg'!$B$8)","v":{"$error":"#DIV/0!"}},{"$f":"IF(Inställningar!U$46,IF(Värdering!N30<-(10^Inställningar!U$45),-(LOG10(ABS(Värdering!N30))-Inställningar!U$45)/(Inställningar!U$44-Inställningar!U$45)*'Skalor o färg'!$B$8,IF(Värdering!N30>(10^Inställningar!U$45),(LOG10(Värdering!N30)-Inställningar!U$45)/(Inställningar!U$44-Inställningar!U$45)*'Skalor o färg'!$B$8,0)),Värdering!N30/Inställningar!U$43*'Skalor o färg'!$B$8)","v":{"$error":"#DIV/0!"}},{"$f":"IF(Inställningar!V$46,IF(Värdering!O30<-(10^Inställningar!V$45),-(LOG10(ABS(Värdering!O30))-Inställningar!V$45)/(Inställningar!V$44-Inställningar!V$45)*'Skalor o färg'!$B$8,IF(Värdering!O30>(10^Inställningar!V$45),(LOG10(Värdering!O30)-Inställningar!V$45)/(Inställningar!V$44-Inställningar!V$45)*'Skalor o färg'!$B$8,0)),Värdering!O30/Inställningar!V$43*'Skalor o färg'!$B$8)","v":{"$error":"#DIV/0!"}},{"$f":"IF(Inställningar!W$46,IF(Värdering!P30<-(10^Inställningar!W$45),-(LOG10(ABS(Värdering!P30))-Inställningar!W$45)/(Inställningar!W$44-Inställningar!W$45)*'Skalor o färg'!$B$8,IF(Värdering!P30>(10^Inställningar!W$45),(LOG10(Värdering!P30)-Inställningar!W$45)/(Inställningar!W$44-Inställningar!W$45)*'Skalor o färg'!$B$8,0)),Värdering!P30/Inställningar!W$43*'Skalor o färg'!$B$8)","v":{"$error":"#DIV/0!"}},{"$f":"IF(Inställningar!X$46,IF(Värdering!Q30<-(10^Inställningar!X$45),-(LOG10(ABS(Värdering!Q30))-Inställningar!X$45)/(Inställningar!X$44-Inställningar!X$45)*'Skalor o färg'!$B$8,IF(Värdering!Q30>(10^Inställningar!X$45),(LOG10(Värdering!Q30)-Inställningar!X$45)/(Inställningar!X$44-Inställningar!X$45)*'Skalor o färg'!$B$8,0)),Värdering!Q30/Inställningar!X$43*'Skalor o färg'!$B$8)","v":{"$error":"#DIV/0!"}},{"$f":"IF(Inställningar!Y$46,IF(Värdering!R30<-(10^Inställningar!Y$45),-(LOG10(ABS(Värdering!R30))-Inställningar!Y$45)/(Inställningar!Y$44-Inställningar!Y$45)*'Skalor o färg'!$B$8,IF(Värdering!R30>(10^Inställningar!Y$45),(LOG10(Värdering!R30)-Inställningar!Y$45)/(Inställningar!Y$44-Inställningar!Y$45)*'Skalor o färg'!$B$8,0)),Värdering!R30/Inställningar!Y$43*'Skalor o färg'!$B$8)","v":{"$error":"#DIV/0!"}},{"$f":"IF(Inställningar!Z$46,IF(Värdering!S30<-(10^Inställningar!Z$45),-(LOG10(ABS(Värdering!S30))-Inställningar!Z$45)/(Inställningar!Z$44-Inställningar!Z$45)*'Skalor o färg'!$B$8,IF(Värdering!S30>(10^Inställningar!Z$45),(LOG10(Värdering!S30)-Inställningar!Z$45)/(Inställningar!Z$44-Inställningar!Z$45)*'Skalor o färg'!$B$8,0)),Värdering!S30/Inställningar!Z$43*'Skalor o färg'!$B$8)","v":{"$error":"#DIV/0!"}}]
[{"$f":"Åtgärdsalternativ!A13","v":"Åtgärdsförslag 5"},"Kort sikt",null,{"$f":"IF(Inställningar!K$46,IF(Värdering!D32<-(10^Inställningar!K$45),-(LOG10(ABS(Värdering!D32))-Inställningar!K$45)/(Inställningar!K$44-Inställningar!K$45)*'Skalor o färg'!$B$8,IF(Värdering!D32>(10^Inställningar!K$45),(LOG10(Värdering!D32)-Inställningar!K$45)/(Inställningar!K$44-Inställningar!K$45)*'Skalor o färg'!$B$8,0)),Värdering!D32/Inställningar!K$43*'Skalor o färg'!$B$8)","v":{"$error":"#DIV/0!"}},{"$f":"IF(Inställningar!L$46,IF(Värdering!E32<-(10^Inställningar!L$45),-(LOG10(ABS(Värdering!E32))-Inställningar!L$45)/(Inställningar!L$44-Inställningar!L$45)*'Skalor o färg'!$B$8,IF(Värdering!E32>(10^Inställningar!L$45),(LOG10(Värdering!E32)-Inställningar!L$45)/(Inställningar!L$44-Inställningar!L$45)*'Skalor o färg'!$B$8,0)),Värdering!E32/Inställningar!L$43*'Skalor o färg'!$B$8)","v":{"$error":"#DIV/0!"}},{"$f":"IF(Inställningar!M$46,IF(Värdering!F32<-(10^Inställningar!M$45),-(LOG10(ABS(Värdering!F32))-Inställningar!M$45)/(Inställningar!M$44-Inställningar!M$45)*'Skalor o färg'!$B$8,IF(Värdering!F32>(10^Inställningar!M$45),(LOG10(Värdering!F32)-Inställningar!M$45)/(Inställningar!M$44-Inställningar!M$45)*'Skalor o färg'!$B$8,0)),Värdering!F32/Inställningar!M$43*'Skalor o färg'!$B$8)","v":{"$error":"#DIV/0!"}},{"$f":"IF(Inställningar!N$46,IF(Värdering!G32<-(10^Inställningar!N$45),-(LOG10(ABS(Värdering!G32))-Inställningar!N$45)/(Inställningar!N$44-Inställningar!N$45)*'Skalor o färg'!$B$8,IF(Värdering!G32>(10^Inställningar!N$45),(LOG10(Värdering!G32)-Inställningar!N$45)/(Inställningar!N$44-Inställningar!N$45)*'Skalor o färg'!$B$8,0)),Värdering!G32/Inställningar!N$43*'Skalor o färg'!$B$8)","v":{"$error":"#DIV/0!"}},{"$f":"IF(Inställningar!O$46,IF(Värdering!H32<-(10^Inställningar!O$45),-(LOG10(ABS(Värdering!H32))-Inställningar!O$45)/(Inställningar!O$44-Inställningar!O$45)*'Skalor o färg'!$B$8,IF(Värdering!H32>(10^Inställningar!O$45),(LOG10(Värdering!H32)-Inställningar!O$45)/(Inställningar!O$44-Inställningar!O$45)*'Skalor o färg'!$B$8,0)),Värdering!H32/Inställningar!O$43*'Skalor o färg'!$B$8)","v":{"$error":"#DIV/0!"}},{"$f":"IF(Inställningar!P$46,IF(Värdering!I32<-(10^Inställningar!P$45),-(LOG10(ABS(Värdering!I32))-Inställningar!P$45)/(Inställningar!P$44-Inställningar!P$45)*'Skalor o färg'!$B$8,IF(Värdering!I32>(10^Inställningar!P$45),(LOG10(Värdering!I32)-Inställningar!P$45)/(Inställningar!P$44-Inställningar!P$45)*'Skalor o färg'!$B$8,0)),Värdering!I32/Inställningar!P$43*'Skalor o färg'!$B$8)","v":{"$error":"#DIV/0!"}},{"$f":"IF(Inställningar!Q$46,IF(Värdering!J32<-(10^Inställningar!Q$45),-(LOG10(ABS(Värdering!J32))-Inställningar!Q$45)/(Inställningar!Q$44-Inställningar!Q$45)*'Skalor o färg'!$B$8,IF(Värdering!J32>(10^Inställningar!Q$45),(LOG10(Värdering!J32)-Inställningar!Q$45)/(Inställningar!Q$44-Inställningar!Q$45)*'Skalor o färg'!$B$8,0)),Värdering!J32/Inställningar!Q$43*'Skalor o färg'!$B$8)","v":{"$error":"#DIV/0!"}},{"$f":"IF(Inställningar!R$46,IF(Värdering!K32<-(10^Inställningar!R$45),-(LOG10(ABS(Värdering!K32))-Inställningar!R$45)/(Inställningar!R$44-Inställningar!R$45)*'Skalor o färg'!$B$8,IF(Värdering!K32>(10^Inställningar!R$45),(LOG10(Värdering!K32)-Inställningar!R$45)/(Inställningar!R$44-Inställningar!R$45)*'Skalor o färg'!$B$8,0)),Värdering!K32/Inställningar!R$43*'Skalor o färg'!$B$8)","v":{"$error":"#DIV/0!"}},{"$f":"IF(Inställningar!S$46,IF(Värdering!L32<-(10^Inställningar!S$45),-(LOG10(ABS(Värdering!L32))-Inställningar!S$45)/(Inställningar!S$44-Inställningar!S$45)*'Skalor o färg'!$B$8,IF(Värdering!L32>(10^Inställningar!S$45),(LOG10(Värdering!L32)-Inställningar!S$45)/(Inställningar!S$44-Inställningar!S$45)*'Skalor o färg'!$B$8,0)),Värdering!L32/Inställningar!S$43*'Skalor o färg'!$B$8)","v":{"$error":"#DIV/0!"}},{"$f":"IF(Inställningar!T$46,IF(Värdering!M32<-(10^Inställningar!T$45),-(LOG10(ABS(Värdering!M32))-Inställningar!T$45)/(Inställningar!T$44-Inställningar!T$45)*'Skalor o färg'!$B$8,IF(Värdering!M32>(10^Inställningar!T$45),(LOG10(Värdering!M32)-Inställningar!T$45)/(Inställningar!T$44-Inställningar!T$45)*'Skalor o färg'!$B$8,0)),Värdering!M32/Inställningar!T$43*'Skalor o färg'!$B$8)","v":{"$error":"#DIV/0!"}},{"$f":"IF(Inställningar!U$46,IF(Värdering!N32<-(10^Inställningar!U$45),-(LOG10(ABS(Värdering!N32))-Inställningar!U$45)/(Inställningar!U$44-Inställningar!U$45)*'Skalor o färg'!$B$8,IF(Värdering!N32>(10^Inställningar!U$45),(LOG10(Värdering!N32)-Inställningar!U$45)/(Inställningar!U$44-Inställningar!U$45)*'Skalor o färg'!$B$8,0)),Värdering!N32/Inställningar!U$43*'Skalor o färg'!$B$8)","v":{"$error":"#DIV/0!"}},{"$f":"IF(Inställningar!V$46,IF(Värdering!O32<-(10^Inställningar!V$45),-(LOG10(ABS(Värdering!O32))-Inställningar!V$45)/(Inställningar!V$44-Inställningar!V$45)*'Skalor o färg'!$B$8,IF(Värdering!O32>(10^Inställningar!V$45),(LOG10(Värdering!O32)-Inställningar!V$45)/(Inställningar!V$44-Inställningar!V$45)*'Skalor o färg'!$B$8,0)),Värdering!O32/Inställningar!V$43*'Skalor o färg'!$B$8)","v":{"$error":"#DIV/0!"}},{"$f":"IF(Inställningar!W$46,IF(Värdering!P32<-(10^Inställningar!W$45),-(LOG10(ABS(Värdering!P32))-Inställningar!W$45)/(Inställningar!W$44-Inställningar!W$45)*'Skalor o färg'!$B$8,IF(Värdering!P32>(10^Inställningar!W$45),(LOG10(Värdering!P32)-Inställningar!W$45)/(Inställningar!W$44-Inställningar!W$45)*'Skalor o färg'!$B$8,0)),Värdering!P32/Inställningar!W$43*'Skalor o färg'!$B$8)","v":{"$error":"#DIV/0!"}},{"$f":"IF(Inställningar!X$46,IF(Värdering!Q32<-(10^Inställningar!X$45),-(LOG10(ABS(Värdering!Q32))-Inställningar!X$45)/(Inställningar!X$44-Inställningar!X$45)*'Skalor o färg'!$B$8,IF(Värdering!Q32>(10^Inställningar!X$45),(LOG10(Värdering!Q32)-Inställningar!X$45)/(Inställningar!X$44-Inställningar!X$45)*'Skalor o färg'!$B$8,0)),Värdering!Q32/Inställningar!X$43*'Skalor o färg'!$B$8)","v":{"$error":"#DIV/0!"}},{"$f":"IF(Inställningar!Y$46,IF(Värdering!R32<-(10^Inställningar!Y$45),-(LOG10(ABS(Värdering!R32))-Inställningar!Y$45)/(Inställningar!Y$44-Inställningar!Y$45)*'Skalor o färg'!$B$8,IF(Värdering!R32>(10^Inställningar!Y$45),(LOG10(Värdering!R32)-Inställningar!Y$45)/(Inställningar!Y$44-Inställningar!Y$45)*'Skalor o färg'!$B$8,0)),Värdering!R32/Inställningar!Y$43*'Skalor o färg'!$B$8)","v":{"$error":"#DIV/0!"}},{"$f":"IF(Inställningar!Z$46,IF(Värdering!S32<-(10^Inställningar!Z$45),-(LOG10(ABS(Värdering!S32))-Inställningar!Z$45)/(Inställningar!Z$44-Inställningar!Z$45)*'Skalor o färg'!$B$8,IF(Värdering!S32>(10^Inställningar!Z$45),(LOG10(Värdering!S32)-Inställningar!Z$45)/(Inställningar!Z$44-Inställningar!Z$45)*'Skalor o färg'!$B$8,0)),Värdering!S32/Inställningar!Z$43*'Skalor o färg'!$B$8)","v":{"$error":"#DIV/0!"}}]
[null,"Lång sikt",null,{"$f":"IF(Inställningar!K$46,IF(Värdering!D34<-(10^Inställningar!K$45),-(LOG10(ABS(Värdering!D34))-Inställningar!K$45)/(Inställningar!K$44-Inställningar!K$45)*'Skalor o färg'!$B$8,IF(Värdering!D34>(10^Inställningar!K$45),(LOG10(Värdering!D34)-Inställningar!K$45)/(Inställningar!K$44-Inställningar!K$45)*'Skalor o färg'!$B$8,0)),Värdering!D34/Inställningar!K$43*'Skalor o färg'!$B$8)","v":{"$error":"#DIV/0!"}},{"$f":"IF(Inställningar!L$46,IF(Värdering!E34<-(10^Inställningar!L$45),-(LOG10(ABS(Värdering!E34))-Inställningar!L$45)/(Inställningar!L$44-Inställningar!L$45)*'Skalor o färg'!$B$8,IF(Värdering!E34>(10^Inställningar!L$45),(LOG10(Värdering!E34)-Inställningar!L$45)/(Inställningar!L$44-Inställningar!L$45)*'Skalor o färg'!$B$8,0)),Värdering!E34/Inställningar!L$43*'Skalor o färg'!$B$8)","v":{"$error":"#DIV/0!"}},{"$f":"IF(Inställningar!M$46,IF(Värdering!F34<-(10^Inställningar!M$45),-(LOG10(ABS(Värdering!F34))-Inställningar!M$45)/(Inställningar!M$44-Inställningar!M$45)*'Skalor o färg'!$B$8,IF(Värdering!F34>(10^Inställningar!M$45),(LOG10(Värdering!F34)-Inställningar!M$45)/(Inställningar!M$44-Inställningar!M$45)*'Skalor o färg'!$B$8,0)),Värdering!F34/Inställningar!M$43*'Skalor o färg'!$B$8)","v":{"$error":"#DIV/0!"}},{"$f":"IF(Inställningar!N$46,IF(Värdering!G34<-(10^Inställningar!N$45),-(LOG10(ABS(Värdering!G34))-Inställningar!N$45)/(Inställningar!N$44-Inställningar!N$45)*'Skalor o färg'!$B$8,IF(Värdering!G34>(10^Inställningar!N$45),(LOG10(Värdering!G34)-Inställningar!N$45)/(Inställningar!N$44-Inställningar!N$45)*'Skalor o färg'!$B$8,0)),Värdering!G34/Inställningar!N$43*'Skalor o färg'!$B$8)","v":{"$error":"#DIV/0!"}},{"$f":"IF(Inställningar!O$46,IF(Värdering!H34<-(10^Inställningar!O$45),-(LOG10(ABS(Värdering!H34))-Inställningar!O$45)/(Inställningar!O$44-Inställningar!O$45)*'Skalor o färg'!$B$8,IF(Värdering!H34>(10^Inställningar!O$45),(LOG10(Värdering!H34)-Inställningar!O$45)/(Inställningar!O$44-Inställningar!O$45)*'Skalor o färg'!$B$8,0)),Värdering!H34/Inställningar!O$43*'Skalor o färg'!$B$8)","v":{"$error":"#DIV/0!"}},{"$f":"IF(Inställningar!P$46,IF(Värdering!I34<-(10^Inställningar!P$45),-(LOG10(ABS(Värdering!I34))-Inställningar!P$45)/(Inställningar!P$44-Inställningar!P$45)*'Skalor o färg'!$B$8,IF(Värdering!I34>(10^Inställningar!P$45),(LOG10(Värdering!I34)-Inställningar!P$45)/(Inställningar!P$44-Inställningar!P$45)*'Skalor o färg'!$B$8,0)),Värdering!I34/Inställningar!P$43*'Skalor o färg'!$B$8)","v":{"$error":"#DIV/0!"}},{"$f":"IF(Inställningar!Q$46,IF(Värdering!J34<-(10^Inställningar!Q$45),-(LOG10(ABS(Värdering!J34))-Inställningar!Q$45)/(Inställningar!Q$44-Inställningar!Q$45)*'Skalor o färg'!$B$8,IF(Värdering!J34>(10^Inställningar!Q$45),(LOG10(Värdering!J34)-Inställningar!Q$45)/(Inställningar!Q$44-Inställningar!Q$45)*'Skalor o färg'!$B$8,0)),Värdering!J34/Inställningar!Q$43*'Skalor o färg'!$B$8)","v":{"$error":"#DIV/0!"}},{"$f":"IF(Inställningar!R$46,IF(Värdering!K34<-(10^Inställningar!R$45),-(LOG10(ABS(Värdering!K34))-Inställningar!R$45)/(Inställningar!R$44-Inställningar!R$45)*'Skalor o färg'!$B$8,IF(Värdering!K34>(10^Inställningar!R$45),(LOG10(Värdering!K34)-Inställningar!R$45)/(Inställningar!R$44-Inställningar!R$45)*'Skalor o färg'!$B$8,0)),Värdering!K34/Inställningar!R$43*'Skalor o färg'!$B$8)","v":{"$error":"#DIV/0!"}},{"$f":"IF(Inställningar!S$46,IF(Värdering!L34<-(10^Inställningar!S$45),-(LOG10(ABS(Värdering!L34))-Inställningar!S$45)/(Inställningar!S$44-Inställningar!S$45)*'Skalor o färg'!$B$8,IF(Värdering!L34>(10^Inställningar!S$45),(LOG10(Värdering!L34)-Inställningar!S$45)/(Inställningar!S$44-Inställningar!S$45)*'Skalor o färg'!$B$8,0)),Värdering!L34/Inställningar!S$43*'Skalor o färg'!$B$8)","v":{"$error":"#DIV/0!"}},{"$f":"IF(Inställningar!T$46,IF(Värdering!M34<-(10^Inställningar!T$45),-(LOG10(ABS(Värdering!M34))-Inställningar!T$45)/(Inställningar!T$44-Inställningar!T$45)*'Skalor o färg'!$B$8,IF(Värdering!M34>(10^Inställningar!T$45),(LOG10(Värdering!M34)-Inställningar!T$45)/(Inställningar!T$44-Inställningar!T$45)*'Skalor o färg'!$B$8,0)),Värdering!M34/Inställningar!T$43*'Skalor o färg'!$B$8)","v":{"$error":"#DIV/0!"}},{"$f":"IF(Inställningar!U$46,IF(Värdering!N34<-(10^Inställningar!U$45),-(LOG10(ABS(Värdering!N34))-Inställningar!U$45)/(Inställningar!U$44-Inställningar!U$45)*'Skalor o färg'!$B$8,IF(Värdering!N34>(10^Inställningar!U$45),(LOG10(Värdering!N34)-Inställningar!U$45)/(Inställningar!U$44-Inställningar!U$45)*'Skalor o färg'!$B$8,0)),Värdering!N34/Inställningar!U$43*'Skalor o färg'!$B$8)","v":{"$error":"#DIV/0!"}},{"$f":"IF(Inställningar!V$46,IF(Värdering!O34<-(10^Inställningar!V$45),-(LOG10(ABS(Värdering!O34))-Inställningar!V$45)/(Inställningar!V$44-Inställningar!V$45)*'Skalor o färg'!$B$8,IF(Värdering!O34>(10^Inställningar!V$45),(LOG10(Värdering!O34)-Inställningar!V$45)/(Inställningar!V$44-Inställningar!V$45)*'Skalor o färg'!$B$8,0)),Värdering!O34/Inställningar!V$43*'Skalor o färg'!$B$8)","v":{"$error":"#DIV/0!"}},{"$f":"IF(Inställningar!W$46,IF(Värdering!P34<-(10^Inställningar!W$45),-(LOG10(ABS(Värdering!P34))-Inställningar!W$45)/(Inställningar!W$44-Inställningar!W$45)*'Skalor o färg'!$B$8,IF(Värdering!P34>(10^Inställningar!W$45),(LOG10(Värdering!P34)-Inställningar!W$45)/(Inställningar!W$44-Inställningar!W$45)*'Skalor o färg'!$B$8,0)),Värdering!P34/Inställningar!W$43*'Skalor o färg'!$B$8)","v":{"$error":"#DIV/0!"}},{"$f":"IF(Inställningar!X$46,IF(Värdering!Q34<-(10^Inställningar!X$45),-(LOG10(ABS(Värdering!Q34))-Inställningar!X$45)/(Inställningar!X$44-Inställningar!X$45)*'Skalor o färg'!$B$8,IF(Värdering!Q34>(10^Inställningar!X$45),(LOG10(Värdering!Q34)-Inställningar!X$45)/(Inställningar!X$44-Inställningar!X$45)*'Skalor o färg'!$B$8,0)),Värdering!Q34/Inställningar!X$43*'Skalor o färg'!$B$8)","v":{"$error":"#DIV/0!"}},{"$f":"IF(Inställningar!Y$46,IF(Värdering!R34<-(10^Inställningar!Y$45),-(LOG10(ABS(Värdering!R34))-Inställningar!Y$45)/(Inställningar!Y$44-Inställningar!Y$45)*'Skalor o färg'!$B$8,IF(Värdering!R34>(10^Inställningar!Y$45),(LOG10(Värdering!R34)-Inställningar!Y$45)/(Inställningar!Y$44-Inställningar!Y$45)*'Skalor o färg'!$B$8,0)),Värdering!R34/Inställningar!Y$43*'Skalor o färg'!$B$8)","v":{"$error":"#DIV/0!"}},{"$f":"IF(Inställningar!Z$46,IF(Värdering!S34<-(10^Inställningar!Z$45),-(LOG10(ABS(Värdering!S34))-Inställningar!Z$45)/(Inställningar!Z$44-Inställningar!Z$45)*'Skalor o färg'!$B$8,IF(Värdering!S34>(10^Inställningar!Z$45),(LOG10(Värdering!S34)-Inställningar!Z$45)/(Inställningar!Z$44-Inställningar!Z$45)*'Skalor o färg'!$B$8,0)),Värdering!S34/Inställningar!Z$43*'Skalor o färg'!$B$8)","v":{"$error":"#DIV/0!"}}]

{"sheet":"Oviktade resultat","index":5,"n_rows":33,"n_cols":25,"rows_kept":33,"cut":false,"hidden":false,"merged":[[6,19,7,19],[0,3,0,17],[3,0,3,20],[0,0,0,2],[6,0,7,2],[6,20,7,20],[5,0,5,3],[30,3,30,17],[33,0,43,20],[8,0,8,2],[19,20,20,20],[17,20,18,20],[9,20,10,20],[11,20,12,20],[13,20,14,20],[15,20,16,20],[9,0,10,0],[11,0,12,0],[19,0,20,0],[13,0,14,0],[15,0,16,0],[17,0,18,0],[30,0,30,2]]}
["Objekt:",null,null,{"$f":"Åtgärdsalternativ!B1","v":"XYZ-köping"},null,null,null,null,null,null,null,null,null,null,null,null,null,null,null,null,{"$f":"Inställningar!G1","v":"SAMLA version 2.6"}]
[]
["Övergripande åtgärdsmål:"]
[{"$f":"IF(Åtgärdsalternativ!A4=\"\",\"\",Åtgärdsalternativ!A4)","v":""}]
[]
["Oviktade resultat",null,null,null,null,null,{"$f":"IF(SUM(COUNTIF(D10:S21,\"> \"&TEXT('Skalor o färg'!B8,0)),COUNTIF(D10:S21,\"< \"&TEXT(0-'Skalor o färg'!B8,0)))>0,\"VARNING! Du har angett ett eller flera tal utanför vald poängskala. Talen används ändå i beräkningarna men färgmarkeringar och grafer kan bli missvisande.\",IF(SUM(COUNTIF(D9:S9,\"> \"&TEXT('Skalor o färg'!B18,0)),COUNTIF(D9:S9,\"< 0\"))>0,\"VARNING! Du har angett ett eller flera tal utanför vald viktningsskala. Vikterna används ändå i beräkningarna men färgmarkeringar och grafer kan bli missvisande.\",\"\"))","v":""},null,null,null,null,null,null,null,null,null,null,null,null,null,"Skriv ut i A3 format. Liggande."]
["Åtgärd",null,null,{"$f":"Inställningar!K47","v":"Ekologisk"},{"$f":"Inställningar!L47","v":"Ekologisk"},{"$f":"Inställningar!M47","v":"Ekologisk"},{"$f":"Inställningar!N47","v":"Ekologisk"},{"$f":"Inställningar!O47","v":"Ekologisk"},{"$f":"Inställningar!P47","v":"Ekologisk"},{"$f":"Inställningar!Q47","v":"Social"},{"$f":"Inställningar!R47","v":"Social"},{"$f":"Inställningar!S47","v":"Social"},{"$f":"Inställningar!T47","v":"Social"},{"$f":"Inställningar!U47","v":"Social"},{"$f":"Inställningar!V47","v":"Ekonomisk"},{"$f":"Inställningar!W47","v":"Ekonomisk"},{"$f":"Inställningar!X47","v":"Ekonomisk"},{"$f":"Inställningar!Y47","v":"Ekonomisk"},{"$f":"Inställningar!Z47","v":""},"Delsumma","Summa"]
[null,null,null,{"$f":"IF(ISBLANK(Inställningar!C49),\"\",Inställningar!C49)","v":"1. Utsläpp till luft"},{"$f":"IF(ISBLANK(Inställningar!C50),\"\",Inställningar!C50)","v":"2. Jord och mark"},{"$f":"IF(ISBLANK(Inställningar!C51),\"\",Inställningar!C51)","v":"3. Grundvatten"},{"$f":"IF(ISBLANK(Inställningar!C52),\"\",Inställningar!C52)","v":"4. Ytvatten och sediment"},{"$f":"IF(ISBLANK(Inställningar!C53),\"\",Inställningar!C53)","v":"5. Ekologi"},{"$f":"IF(ISBLANK(Inställningar!C54),\"\",Inställningar!C54)","v":"6. Naturresurser och avfall"},{"$f":"IF(ISBLANK(Inställningar!C55),\"\",Inställningar!C55)","v":"7. Hälsa och säkerhet"},{"$f":"IF(ISBLANK(Inställningar!C56),\"\",Inställningar!C56)","v":"8. Etik och jämlikhet"},{"$f":"IF(ISBLANK(Inställningar!C57),\"\",Inställningar!C57)","v":"9. Närmiljö"},{"$f":"IF(ISBLANK(Inställningar!C58),\"\",Inställningar!C58)","v":"10. Lokalsamhälle"},{"$f":"IF(ISBLANK(Inställningar!C59),\"\",Inställningar!C59)","v":"11. Osäkerhet och evidens"},{"$f":"IF(ISBLANK(Inställningar!C60),\"\",Inställningar!C60)","v":"12. Direkta kostnader och nyttor"},{"$f":"IF(ISBLANK(Inställningar!C61),\"\",Inställningar!C61)","v":"13. Indirekta kostnader och nyttor"},{"$f":"IF(ISBLANK(Inställningar!C62),\"\",Inställningar!C62)","v":"14. Inducerade kostnader och nyttor"},{"$f":"IF(ISBLANK(Inställningar!C63),\"\",Inställningar!C63)","v":"15. Beständighet och flexibilitet"},{"$f":"IF(ISBLANK(Inställningar!C64),\"\",Inställningar!C64)","v":""}]
["Vikt",null,null,{"$f":"IF((D8=\"\"),\"\",Värdering!D9)","v":1},{"$f":"IF((E8=\"\"),\"\",Värdering!E9)","v":1},{"$f":"IF((F8=\"\"),\"\",Värdering!F9)","v":1},{"$f":"IF((G8=\"\"),\"\",Värdering!G9)","v":1},{"$f":"IF((H8=\"\"),\"\",Värdering!H9)","v":1},{"$f":"IF((I8=\"\"),\"\",Värdering!I9)","v":1},{"$f":"IF((J8=\"\"),\"\",Värdering!J9)","v":1},{"$f":"IF((K8=\"\"),\"\",Värdering!K9)","v":1},{"$f":"IF((L8=\"\"),\"\",Värdering!L9)","v":1},{"$f":"IF((M8=\"\"),\"\",Värdering!M9)","v":1},{"$f":"IF((N8=\"\"),\"\",Värdering!N9)","v":1},{"$f":"IF((O8=\"\"),\"\",Värdering!O9)","v":1},{"$f":"IF((P8=\"\"),\"\",Värdering!P9)","v":1},{"$f":"IF((Q8=\"\"),\"\",Värdering!Q9)","v":1},{"$f":"IF((R8=\"\"),\"\",Värdering!R9)","v":1},{"$f":"IF((S8=\"\"),\"\",Värdering!S9)","v":""}]
[{"$f":"IF(Åtgärdsalternativ!A8=\"\",\"\",Åtgärdsalternativ!A8)","v":"Nollalternativ: ingen åtgärd"},{"$f":"IF(ISBLANK(Inställningar!$C$7),\"\",Inställningar!$C$7)","v":"Kort sikt"},{"$f":"Värdering!$C$11","v":1},{"$f":"IF(ISBLANK(Värdering!D12),\"\",IF(Inställningar!K$42=1,Värdering!D12+0,IF(Inställningar!K$42=2,Kvantitativ!D9+0,\"\")))","v":""},{"$f":"IF(ISBLANK(Värdering!E12),\"\",IF(Inställningar!L$42=1,Värdering!E12+0,IF(Inställningar!L$42=2,Kvantitativ!E9+0,\"\")))","v":""},{"$f":"IF(ISBLANK(Värdering!F12),\"\",IF(Inställningar!M$42=1,Värdering!F12+0,IF(Inställningar!M$42=2,Kvantitativ!F9+0,\"\")))","v":""},{"$f":"IF(ISBLANK(Värdering!G12),\"\",IF(Inställningar!N$42=1,Värdering!G12+0,IF(Inställningar!N$42=2,Kvantitativ!G9+0,\"\")))","v":""},{"$f":"IF(ISBLANK(Värdering!H12),\"\",IF(Inställningar!O$42=1,Värdering!H12+0,IF(Inställningar!O$42=2,Kvantitativ!H9+0,\"\")))","v":""},{"$f":"IF(ISBLANK(Värdering!I12),\"\",IF(Inställningar!P$42=1,Värdering!I12+0,IF(Inställningar!P$42=2,Kvantitativ!I9+0,\"\")))","v":""},{"$f":"IF(ISBLANK(Värdering!J12),\"\",IF(Inställningar!Q$42=1,Värdering!J12+0,IF(Inställningar!Q$42=2,Kvantitativ!J9+0,\"\")))","v":""},{"$f":"IF(ISBLANK(Värdering!K12),\"\",IF(Inställningar!R$42=1,Värdering!K12+0,IF(Inställningar!R$42=2,Kvantitativ!K9+0,\"\")))","v":""},{"$f":"IF(ISBLANK(Värdering!L12),\"\",IF(Inställningar!S$42=1,Värdering!L12+0,IF(Inställningar!S$42=2,Kvantitativ!L9+0,\"\")))","v":""},{"$f":"IF(ISBLANK(Värdering!M12),\"\",IF(Inställningar!T$42=1,Värdering!M12+0,IF(Inställningar!T$42=2,Kvantitativ!M9+0,\"\")))","v":""},{"$f":"IF(ISBLANK(Värdering!N12),\"\",IF(Inställningar!U$42=1,Värdering!N12+0,IF(Inställningar!U$42=2,Kvantitativ!N9+0,\"\")))","v":""},{"$f":"IF(ISBLANK(Värdering!O12),\"\",IF(Inställningar!V$42=1,Värdering!O12+0,IF(Inställningar!V$42=2,Kvantitativ!O9+0,\"\")))","v":""},{"$f":"IF(ISBLANK(Värdering!P12),\"\",IF(Inställningar!W$42=1,Värdering!P12+0,IF(Inställningar!W$42=2,Kvantitativ!P9+0,\"\")))","v":""},{"$f":"IF(ISBLANK(Värdering!Q12),\"\",IF(Inställningar!X$42=1,Värdering!Q12+0,IF(Inställningar!X$42=2,Kvantitativ!Q9+0,\"\")))","v":""},{"$f":"IF(ISBLANK(Värdering!R12),\"\",IF(Inställningar!Y$42=1,Värdering!R12+0,IF(Inställningar!Y$42=2,Kvantitativ!R9+0,\"\")))","v":""},{"$f":"IF(ISBLANK(Värdering!S12),\"\",IF(Inställningar!Z$42=1,Värdering!S12+0,IF(Inställningar!Z$42=2,Kvantitativ!S9+0,\"\")))","v":""},{"$f":"IF(AND(ISBLANK(Värdering!D12),ISBLANK(Värdering!E12),ISBLANK(Värdering!F12),ISBLANK(Värdering!G12),ISBLANK(Värdering!H12),ISBLANK(Värdering!I12),ISBLANK(Värdering!J12),ISBLANK(Värdering!K12),ISBLANK(Värdering!L12),ISBLANK(Värdering!M12),ISBLANK(Värdering!N12),ISBLANK(Värdering!O12),ISBLANK(Värdering!P12),ISBLANK(Värdering!Q12),ISBLANK(Värdering!R12),ISBLANK(Värdering!S12)),\"\",SUM(D10:S10))","v":""},{"$f":"IF(AND(T10=\"\",T11=\"\"),\"\",SUM(T10:T11))","v":""},null,"Ämne","Mottaget","Storlek"]
[null,{"$f":"IF(ISBLANK(Inställningar!$C$8),\"\",Inställningar!$C$8)","v":"Lång sikt"},{"$f":"Värdering!$C$13","v":1},{"$f":"IF(ISBLANK(Värdering!D14),\"\",IF(Inställningar!K$42=1,Värdering!D14+0,IF(Inställningar!K$42=2,Kvantitativ!D10+0,\"\")))","v":""},{"$f":"IF(ISBLANK(Värdering!E14),\"\",IF(Inställningar!L$42=1,Värdering!E14+0,IF(Inställningar!L$42=2,Kvantitativ!E10+0,\"\")))","v":""},{"$f":"IF(ISBLANK(Värdering!F14),\"\",IF(Inställningar!M$42=1,Värdering!F14+0,IF(Inställningar!M$42=2,Kvantitativ!F10+0,\"\")))","v":""},{"$f":"IF(ISBLANK(Värdering!G14),\"\",IF(Inställningar!N$42=1,Värdering!G14+0,IF(Inställningar!N$42=2,Kvantitativ!G10+0,\"\")))","v":""},{"$f":"IF(ISBLANK(Värdering!H14),\"\",IF(Inställningar!O$42=1,Värdering!H14+0,IF(Inställningar!O$42=2,Kvantitativ!H10+0,\"\")))","v":""},{"$f":"IF(ISBLANK(Värdering!I14),\"\",IF(Inställningar!P$42=1,Värdering!I14+0,IF(Inställningar!P$42=2,Kvantitativ!I10+0,\"\")))","v":""},{"$f":"IF(ISBLANK(Värdering!J14),\"\",IF(Inställningar!Q$42=1,Värdering!J14+0,IF(Inställningar!Q$42=2,Kvantitativ!J10+0,\"\")))","v":""},{"$f":"IF(ISBLANK(Värdering!K14),\"\",IF(Inställningar!R$42=1,Värdering!K14+0,IF(Inställningar!R$42=2,Kvantitativ!K10+0,\"\")))","v":""},{"$f":"IF(ISBLANK(Värdering!L14),\"\",IF(Inställningar!S$42=1,Värdering!L14+0,IF(Inställningar!S$42=2,Kvantitativ!L10+0,\"\")))","v":""},{"$f":"IF(ISBLANK(Värdering!M14),\"\",IF(Inställningar!T$42=1,Värdering!M14+0,IF(Inställningar!T$42=2,Kvantitativ!M10+0,\"\")))","v":""},{"$f":"IF(ISBLANK(Värdering!N14),\"\",IF(Inställningar!U$42=1,Värdering!N14+0,IF(Inställningar!U$42=2,Kvantitativ!N10+0,\"\")))","v":""},{"$f":"IF(ISBLANK(Värdering!O14),\"\",IF(Inställningar!V$42=1,Värdering!O14+0,IF(Inställningar!V$42=2,Kvantitativ!O10+0,\"\")))","v":""},{"$f":"IF(ISBLANK(Värdering!P14),\"\",IF(Inställningar!W$42=1,Värdering!P14+0,IF(Inställningar!W$42=2,Kvantitativ!P10+0,\"\")))","v":""},{"$f":"IF(ISBLANK(Värdering!Q14),\"\",IF(Inställningar!X$42=1,Värdering!Q14+0,IF(Inställningar!X$42=2,Kvantitativ!Q10+0,\"\")))","v":""},{"$f":"IF(ISBLANK(Värdering!R14),\"\",IF(Inställningar!Y$42=1,Värdering!R14+0,IF(Inställningar!Y$42=2,Kvantitativ!R10+0,\"\")))","v":""},{"$f":"IF(ISBLANK(Värdering!S14),\"\",IF(Inställningar!Z$42=1,Värdering!S14+0,IF(Inställningar!Z$42=2,Kvantitativ!S10+0,\"\")))","v":""},{"$f":"IF(AND(ISBLANK(Värdering!D14),ISBLANK(Värdering!E14),ISBLANK(Värdering!F14),ISBLANK(Värdering!G14),ISBLANK(Värdering!H14),ISBLANK(Värdering!I14),ISBLANK(Värdering!J14),ISBLANK(Värdering!K14),ISBLANK(Värdering!L14),ISBLANK(Värdering!M14),ISBLANK(Värdering!N14),ISBLANK(Värdering!O14),ISBLANK(Värdering!P14),ISBLANK(Värdering!Q14),ISBLANK(Värdering!R14),ISBLANK(Värdering!S14)),\"\",SUM(D11:S11))","v":""},null,null,"SV: Programvaror","09:46:00","20 KB"]
[{"$f":"IF(Åtgärdsalternativ!A9=\"\",\"\",Åtgärdsalternativ!A9)","v":"Åtgärdsförslag 1"},{"$f":"IF(ISBLANK(Inställningar!$C$7),\"\",Inställningar!$C$7)","v":"Kort sikt"},{"$f":"Värdering!$C$11","v":1},{"$f":"IF(ISBLANK(Värdering!D16),\"\",IF(Inställningar!K$42=1,Värdering!D16+0,IF(Inställningar!K$42=2,Kvantitativ!D11+0,\"\")))","v":""},{"$f":"IF(ISBLANK(Värdering!E16),\"\",IF(Inställningar!L$42=1,Värdering!E16+0,IF(Inställningar!L$42=2,Kvantitativ!E11+0,\"\")))","v":""},{"$f":"IF(ISBLANK(Värdering!F16),\"\",IF(Inställningar!M$42=1,Värdering!F16+0,IF(Inställningar!M$42=2,Kvantitativ!F11+0,\"\")))","v":""},{"$f":"IF(ISBLANK(Värdering!G16),\"\",IF(Inställningar!N$42=1,Värdering!G16+0,IF(Inställningar!N$42=2,Kvantitativ!G11+0,\"\")))","v":""},{"$f":"IF(ISBLANK(Värdering!H16),\"\",IF(Inställningar!O$42=1,Värdering!H16+0,IF(Inställningar!O$42=2,Kvantitativ!H11+0,\"\")))","v":""},{"$f":"IF(ISBLANK(Värdering!I16),\"\",IF(Inställningar!P$42=1,Värdering!I16+0,IF(Inställningar!P$42=2,Kvantitativ!I11+0,\"\")))","v":""},{"$f":"IF(ISBLANK(Värdering!J16),\"\",IF(Inställningar!Q$42=1,Värdering!J16+0,IF(Inställningar!Q$42=2,Kvantitativ!J11+0,\"\")))","v":""},{"$f":"IF(ISBLANK(Värdering!K16),\"\",IF(Inställningar!R$42=1,Värdering!K16+0,IF(Inställningar!R$42=2,Kvantitativ!K11+0,\"\")))","v":""},{"$f":"IF(ISBLANK(Värdering!L16),\"\",IF(Inställningar!S$42=1,Värdering!L16+0,IF(Inställningar!S$42=2,Kvantitativ!L11+0,\"\")))","v":""},{"$f":"IF(ISBLANK(Värdering!M16),\"\",IF(Inställningar!T$42=1,Värdering!M16+0,IF(Inställningar!T$42=2,Kvantitativ!M11+0,\"\")))","v":""},{"$f":"IF(ISBLANK(Värdering!N16),\"\",IF(Inställningar!U$42=1,Värdering!N16+0,IF(Inställningar!U$42=2,Kvantitativ!N11+0,\"\")))","v":""},{"$f":"IF(ISBLANK(Värdering!O16),\"\",IF(Inställningar!V$42=1,Värdering!O16+0,IF(Inställningar!V$42=2,Kvantitativ!O11+0,\"\")))","v":""},{"$f":"IF(ISBLANK(Värdering!P16),\"\",IF(Inställningar!W$42=1,Värdering!P16+0,IF(Inställningar!W$42=2,Kvantitativ!P11+0,\"\")))","v":""},{"$f":"IF(ISBLANK(Värdering!Q16),\"\",IF(Inställningar!X$42=1,Värdering!Q16+0,IF(Inställningar!X$42=2,Kvantitativ!Q11+0,\"\")))","v":""},{"$f":"IF(ISBLANK(Värdering!R16),\"\",IF(Inställningar!Y$42=1,Värdering!R16+0,IF(Inställningar!Y$42=2,Kvantitativ!R11+0,\"\")))","v":""},{"$f":"IF(ISBLANK(Värdering!S16),\"\",IF(Inställningar!Z$42=1,Värdering!S16+0,IF(Inställningar!Z$42=2,Kvantitativ!S11+0,\"\")))","v":""},{"$f":"IF(AND(ISBLANK(Värdering!D16),ISBLANK(Värdering!E16),ISBLANK(Värdering!F16),ISBLANK(Värdering!G16),ISBLANK(Värdering!H16),ISBLANK(Värdering!I16),ISBLANK(Värdering!J16),ISBLANK(Värdering!K16),ISBLANK(Värdering!L16),ISBLANK(Värdering!M16),ISBLANK(Värdering!N16),ISBLANK(Värdering!O16),ISBLANK(Värdering!P16),ISBLANK(Värdering!Q16),ISBLANK(Värdering!R16),ISBLANK(Värdering!S16)),\"\",SUM(D12:S12))","v":""},{"$f":"IF(AND(T12=\"\",T13=\"\"),\"\",SUM(T12:T13))","v":""}]
[null,{"$f":"IF(ISBLANK(Inställningar!$C$8),\"\",Inställningar!$C$8)","v":"Lång sikt"},{"$f":"Värdering!$C$13","v":1},{"$f":"IF(ISBLANK(Värdering!D18),\"\",IF(Inställningar!K$42=1,Värdering!D18+0,IF(Inställningar!K$42=2,Kvantitativ!D12+0,\"\")))","v":""},{"$f":"IF(ISBLANK(Värdering!E18),\"\",IF(Inställningar!L$42=1,Värdering!E18+0,IF(Inställningar!L$42=2,Kvantitativ!E12+0,\"\")))","v":""},{"$f":"IF(ISBLANK(Värdering!F18),\"\",IF(Inställningar!M$42=1,Värdering!F18+0,IF(Inställningar!M$42=2,Kvantitativ!F12+0,\"\")))","v":""},{"$f":"IF(ISBLANK(Värdering!G18),\"\",IF(Inställningar!N$42=1,Värdering!G18+0,IF(Inställningar!N$42=2,Kvantitativ!G12+0,\"\")))","v":""},{"$f":"IF(ISBLANK(Värdering!H18),\"\",IF(Inställningar!O$42=1,Värdering!H18+0,IF(Inställningar!O$42=2,Kvantitativ!H12+0,\"\")))","v":""},{"$f":"IF(ISBLANK(Värdering!I18),\"\",IF(Inställningar!P$42=1,Värdering!I18+0,IF(Inställningar!P$42=2,Kvantitativ!I12+0,\"\")))","v":""},{"$f":"IF(ISBLANK(Värdering!J18),\"\",IF(Inställningar!Q$42=1,Värdering!J18+0,IF(Inställningar!Q$42=2,Kvantitativ!J12+0,\"\")))","v":""},{"$f":"IF(ISBLANK(Värdering!K18),\"\",IF(Inställningar!R$42=1,Värdering!K18+0,IF(Inställningar!R$42=2,Kvantitativ!K12+0,\"\")))","v":""},{"$f":"IF(ISBLANK(Värdering!L18),\"\",IF(Inställningar!S$42=1,Värdering!L18+0,IF(Inställningar!S$42=2,Kvantitativ!L12+0,\"\")))","v":""},{"$f":"IF(ISBLANK(Värdering!M18),\"\",IF(Inställningar!T$42=1,Värdering!M18+0,IF(Inställningar!T$42=2,Kvantitativ!M12+0,\"\")))","v":""},{"$f":"IF(ISBLANK(Värdering!N18),\"\",IF(Inställningar!U$42=1,Värdering!N18+0,IF(Inställningar!U$42=2,Kvantitativ!N12+0,\"\")))","v":""},{"$f":"IF(ISBLANK(Värdering!O18),\"\",IF(Inställningar!V$42=1,Värdering!O18+0,IF(Inställningar!V$42=2,Kvantitativ!O12+0,\"\")))","v":""},{"$f":"IF(ISBLANK(Värdering!P18),\"\",IF(Inställningar!W$42=1,Värdering!P18+0,IF(Inställningar!W$42=2,Kvantitativ!P12+0,\"\")))","v":""},{"$f":"IF(ISBLANK(Värdering!Q18),\"\",IF(Inställningar!X$42=1,Värdering!Q18+0,IF(Inställningar!X$42=2,Kvantitativ!Q12+0,\"\")))","v":""},{"$f":"IF(ISBLANK(Värdering!R18),\"\",IF(Inställningar!Y$42=1,Värdering!R18+0,IF(Inställningar!Y$42=2,Kvantitativ!R12+0,\"\")))","v":""},{"$f":"IF(ISBLANK(Värdering!S18),\"\",IF(Inställningar!Z$42=1,Värdering!S18+0,IF(Inställningar!Z$42=2,Kvantitativ!S12+0,\"\")))","v":""},{"$f":"IF(AND(ISBLANK(Värdering!D18),ISBLANK(Värdering!E18),ISBLANK(Värdering!F18),ISBLANK(Värdering!G18),ISBLANK(Värdering!H18),ISBLANK(Värdering!I18),ISBLANK(Värdering!J18),ISBLANK(Värdering!K18),ISBLANK(Värdering!L18),ISBLANK(Värdering!M18),ISBLANK(Värdering!N18),ISBLANK(Värdering!O18),ISBLANK(Värdering!P18),ISBLANK(Värdering!Q18),ISBLANK(Värdering!R18),ISBLANK(Värdering!S18)),\"\",SUM(D13:S13))","v":""}]
[{"$f":"IF(Åtgärdsalternativ!A10=\"\",\"\",Åtgärdsalternativ!A10)","v":"Åtgärdsförslag 2"},{"$f":"IF(ISBLANK(Inställningar!$C$7),\"\",Inställningar!$C$7)","v":"Kort sikt"},{"$f":"Värdering!$C$11","v":1},{"$f":"IF(ISBLANK(Värdering!D20),\"\",IF(Inställningar!K$42=1,Värdering!D20+0,IF(Inställningar!K$42=2,Kvantitativ!D13+0,\"\")))","v":""},{"$f":"IF(ISBLANK(Värdering!E20),\"\",IF(Inställningar!L$42=1,Värdering!E20+0,IF(Inställningar!L$42=2,Kvantitativ!E13+0,\"\")))","v":""},{"$f":"IF(ISBLANK(Värdering!F20),\"\",IF(Inställningar!M$42=1,Värdering!F20+0,IF(Inställningar!M$42=2,Kvantitativ!F13+0,\"\")))","v":""},{"$f":"IF(ISBLANK(Värdering!G20),\"\",IF(Inställningar!N$42=1,Värdering!G20+0,IF(Inställningar!N$42=2,Kvantitativ!G13+0,\"\")))","v":""},{"$f":"IF(ISBLANK(Värdering!H20),\"\",IF(Inställningar!O$42=1,Värdering!H20+0,IF(Inställningar!O$42=2,Kvantitativ!H13+0,\"\")))","v":""},{"$f":"IF(ISBLANK(Värdering!I20),\"\",IF(Inställningar!P$42=1,Värdering!I20+0,IF(Inställningar!P$42=2,Kvantitativ!I13+0,\"\")))","v":""},{"$f":"IF(ISBLANK(Värdering!J20),\"\",IF(Inställningar!Q$42=1,Värdering!J20+0,IF(Inställningar!Q$42=2,Kvantitativ!J13+0,\"\")))","v":""},{"$f":"IF(ISBLANK(Värdering!K20),\"\",IF(Inställningar!R$42=1,Värdering!K20+0,IF(Inställningar!R$42=2,Kvantitativ!K13+0,\"\")))","v":""},{"$f":"IF(ISBLANK(Värdering!L20),\"\",IF(Inställningar!S$42=1,Värdering!L20+0,IF(Inställningar!S$42=2,Kvantitativ!L13+0,\"\")))","v":""},{"$f":"IF(ISBLANK(Värdering!M20),\"\",IF(Inställningar!T$42=1,Värdering!M20+0,IF(Inställningar!T$42=2,Kvantitativ!M13+0,\"\")))","v":""},{"$f":"IF(ISBLANK(Värdering!N20),\"\",IF(Inställningar!U$42=1,Värdering!N20+0,IF(Inställningar!U$42=2,Kvantitativ!N13+0,\"\")))","v":""},{"$f":"IF(ISBLANK(Värdering!O20),\"\",IF(Inställningar!V$42=1,Värdering!O20+0,IF(Inställningar!V$42=2,Kvantitativ!O13+0,\"\")))","v":""},{"$f":"IF(ISBLANK(Värdering!P20),\"\",IF(Inställningar!W$42=1,Värdering!P20+0,IF(Inställningar!W$42=2,Kvantitativ!P13+0,\"\")))","v":""},{"$f":"IF(ISBLANK(Värdering!Q20),\"\",IF(Inställningar!X$42=1,Värdering!Q20+0,IF(Inställningar!X$42=2,Kvantitativ!Q13+0,\"\")))","v":""},{"$f":"IF(ISBLANK(Värdering!R20),\"\",IF(Inställningar!Y$42=1,Värdering!R20+0,IF(Inställningar!Y$42=2,Kvantitativ!R13+0,\"\")))","v":""},{"$f":"IF(ISBLANK(Värdering!S20),\"\",IF(Inställningar!Z$42=1,Värdering!S20+0,IF(Inställningar!Z$42=2,Kvantitativ!S13+0,\"\")))","v":""},{"$f":"IF(AND(ISBLANK(Värdering!D20),ISBLANK(Värdering!E20),ISBLANK(Värdering!F20),ISBLANK(Värdering!G20),ISBLANK(Värdering!H20),ISBLANK(Värdering!I20),ISBLANK(Värdering!J20),ISBLANK(Värdering!K20),ISBLANK(Värdering!L20),ISBLANK(Värdering!M20),ISBLANK(Värdering!N20),ISBLANK(Värdering!O20),ISBLANK(Värdering!P20),ISBLANK(Värdering!Q20),ISBLANK(Värdering!R20),ISBLANK(Värdering!S20)),\"\",SUM(D14:S14))","v":""},{"$f":"IF(AND(T14=\"\",T15=\"\"),\"\",SUM(T14:T15))","v":""}]
[null,{"$f":"IF(ISBLANK(Inställningar!$C$8),\"\",Inställningar!$C$8)","v":"Lång sikt"},{"$f":"Värdering!$C$13","v":1},{"$f":"IF(ISBLANK(Värdering!D22),\"\",IF(Inställningar!K$42=1,Värdering!D22+0,IF(Inställningar!K$42=2,Kvantitativ!D14+0,\"\")))","v":""},{"$f":"IF(ISBLANK(Värdering!E22),\"\",IF(Inställningar!L$42=1,Värdering!E22+0,IF(Inställningar!L$42=2,Kvantitativ!E14+0,\"\")))","v":""},{"$f":"IF(ISBLANK(Värdering!F22),\"\",IF(Inställningar!M$42=1,Värdering!F22+0,IF(Inställningar!M$42=2,Kvantitativ!F14+0,\"\")))","v":""},{"$f":"IF(ISBLANK(Värdering!G22),\"\",IF(Inställningar!N$42=1,Värdering!G22+0,IF(Inställningar!N$42=2,Kvantitativ!G14+0,\"\")))","v":""},{"$f":"IF(ISBLANK(Värdering!H22),\"\",IF(Inställningar!O$42=1,Värdering!H22+0,IF(Inställningar!O$42=2,Kvantitativ!H14+0,\"\")))","v":""},{"$f":"IF(ISBLANK(Värdering!I22),\"\",IF(Inställningar!P$42=1,Värdering!I22+0,IF(Inställningar!P$42=2,Kvantitativ!I14+0,\"\")))","v":""},{"$f":"IF(ISBLANK(Värdering!J22),\"\",IF(Inställningar!Q$42=1,Värdering!J22+0,IF(Inställningar!Q$42=2,Kvantitativ!J14+0,\"\")))","v":""},{"$f":"IF(ISBLANK(Värdering!K22),\"\",IF(Inställningar!R$42=1,Värdering!K22+0,IF(Inställningar!R$42=2,Kvantitativ!K14+0,\"\")))","v":""},{"$f":"IF(ISBLANK(Värdering!L22),\"\",IF(Inställningar!S$42=1,Värdering!L22+0,IF(Inställningar!S$42=2,Kvantitativ!L14+0,\"\")))","v":""},{"$f":"IF(ISBLANK(Värdering!M22),\"\",IF(Inställningar!T$42=1,Värdering!M22+0,IF(Inställningar!T$42=2,Kvantitativ!M14+0,\"\")))","v":""},{"$f":"IF(ISBLANK(Värdering!N22),\"\",IF(Inställningar!U$42=1,Värdering!N22+0,IF(Inställningar!U$42=2,Kvantitativ!N14+0,\"\")))","v":""},{"$f":"IF(ISBLANK(Värdering!O22),\"\",IF(Inställningar!V$42=1,Värdering!O22+0,IF(Inställningar!V$42=2,Kvantitativ!O14+0,\"\")))","v":""},{"$f":"IF(ISBLANK(Värdering!P22),\"\",IF(Inställningar!W$42=1,Värdering!P22+0,IF(Inställningar!W$42=2,Kvantitativ!P14+0,\"\")))","v":""},{"$f":"IF(ISBLANK(Värdering!Q22),\"\",IF(Inställningar!X$42=1,Värdering!Q22+0,IF(Inställningar!X$42=2,Kvantitativ!Q14+0,\"\")))","v":""},{"$f":"IF(ISBLANK(Värdering!R22),\"\",IF(Inställningar!Y$42=1,Värdering!R22+0,IF(Inställningar!Y$42=2,Kvantitativ!R14+0,\"\")))","v":""},{"$f":"IF(ISBLANK(Värdering!S22),\"\",IF(Inställningar!Z$42=1,Värdering!S22+0,IF(Inställningar!Z$42=2,Kvantitativ!S14+0,\"\")))","v":""},{"$f":"IF(AND(ISBLANK(Värdering!D22),ISBLANK(Värdering!E22),ISBLANK(Värdering!F22),ISBLANK(Värdering!G22),ISBLANK(Värdering!H22),ISBLANK(Värdering!I22),ISBLANK(Värdering!J22),ISBLANK(Värdering!K22),ISBLANK(Värdering!L22),ISBLANK(Värdering!M22),ISBLANK(Värdering!N22),ISBLANK(Värdering!O22),ISBLANK(Värdering!P22),ISBLANK(Värdering!Q22),ISBLANK(Värdering!R22),ISBLANK(Värdering!S22)),\"\",SUM(D15:S15))","v":""}]
[{"$f":"IF(Åtgärdsalternativ!A11=\"\",\"\",Åtgärdsalternativ!A11)","v":"Åtgärdsförslag 3"},{"$f":"IF(ISBLANK(Inställningar!$C$7),\"\",Inställningar!$C$7)","v":"Kort sikt"},{"$f":"Värdering!$C$11","v":1},{"$f":"IF(ISBLANK(Värdering!D24),\"\",IF(Inställningar!K$42=1,Värdering!D24+0,IF(Inställningar!K$42=2,Kvantitativ!D15+0,\"\")))","v":""},{"$f":"IF(ISBLANK(Värdering!E24),\"\",IF(Inställningar!L$42=1,Värdering!E24+0,IF(Inställningar!L$42=2,Kvantitativ!E15+0,\"\")))","v":""},{"$f":"IF(ISBLANK(Värdering!F24),\"\",IF(Inställningar!M$42=1,Värdering!F24+0,IF(Inställningar!M$42=2,Kvantitativ!F15+0,\"\")))","v":""},{"$f":"IF(ISBLANK(Värdering!G24),\"\",IF(Inställningar!N$42=1,Värdering!G24+0,IF(Inställningar!N$42=2,Kvantitativ!G15+0,\"\")))","v":""},{"$f":"IF(ISBLANK(Värdering!H24),\"\",IF(Inställningar!O$42=1,Värdering!H24+0,IF(Inställningar!O$42=2,Kvantitativ!H15+0,\"\")))","v":""},{"$f":"IF(ISBLANK(Värdering!I24),\"\",IF(Inställningar!P$42=1,Värdering!I24+0,IF(Inställningar!P$42=2,Kvantitativ!I15+0,\"\")))","v":""},{"$f":"IF(ISBLANK(Värdering!J24),\"\",IF(Inställningar!Q$42=1,Värdering!J24+0,IF(Inställningar!Q$42=2,Kvantitativ!J15+0,\"\")))","v":""},{"$f":"IF(ISBLANK(Värdering!K24),\"\",IF(Inställningar!R$42=1,Värdering!K24+0,IF(Inställningar!R$42=2,Kvantitativ!K15+0,\"\")))","v":""},{"$f":"IF(ISBLANK(Värdering!L24),\"\",IF(Inställningar!S$42=1,Värdering!L24+0,IF(Inställningar!S$42=2,Kvantitativ!L15+0,\"\")))","v":""},{"$f":"IF(ISBLANK(Värdering!M24),\"\",IF(Inställningar!T$42=1,Värdering!M24+0,IF(Inställningar!T$42=2,Kvantitativ!M15+0,\"\")))","v":""},{"$f":"IF(ISBLANK(Värdering!N24),\"\",IF(Inställningar!U$42=1,Värdering!N24+0,IF(Inställningar!U$42=2,Kvantitativ!N15+0,\"\")))","v":""},{"$f":"IF(ISBLANK(Värdering!O24),\"\",IF(Inställningar!V$42=1,Värdering!O24+0,IF(Inställningar!V$42=2,Kvantitativ!O15+0,\"\")))","v":""},{"$f":"IF(ISBLANK(Värdering!P24),\"\",IF(Inställningar!W$42=1,Värdering!P24+0,IF(Inställningar!W$42=2,Kvantitativ!P15+0,\"\")))","v":""},{"$f":"IF(ISBLANK(Värdering!Q24),\"\",IF(Inställningar!X$42=1,Värdering!Q24+0,IF(Inställningar!X$42=2,Kvantitativ!Q15+0,\"\")))","v":""},{"$f":"IF(ISBLANK(Värdering!R24),\"\",IF(Inställningar!Y$42=1,Värdering!R24+0,IF(Inställningar!Y$42=2,Kvantitativ!R15+0,\"\")))","v":""},{"$f":"IF(ISBLANK(Värdering!S24),\"\",IF(Inställningar!Z$42=1,Värdering!S24+0,IF(Inställningar!Z$42=2,Kvantitativ!S15+0,\"\")))","v":""},{"$f":"IF(AND(ISBLANK(Värdering!D24),ISBLANK(Värdering!E24),ISBLANK(Värdering!F24),ISBLANK(Värdering!G24),ISBLANK(Värdering!H24),ISBLANK(Värdering!I24),ISBLANK(Värdering!J24),ISBLANK(Värdering!K24),ISBLANK(Värdering!L24),ISBLANK(Värdering!M24),ISBLANK(Värdering!N24),ISBLANK(Värdering!O24),ISBLANK(Värdering!P24),ISBLANK(Värdering!Q24),ISBLANK(Värdering!R24),ISBLANK(Värdering!S24)),\"\",SUM(D16:S16))","v":""},{"$f":"IF(AND(T16=\"\",T17=\"\"),\"\",SUM(T16:T17))","v":""}]
[null,{"$f":"IF(ISBLANK(Inställningar!$C$8),\"\",Inställningar!$C$8)","v":"Lång sikt"},{"$f":"Värdering!$C$13","v":1},{"$f":"IF(ISBLANK(Värdering!D26),\"\",IF(Inställningar!K$42=1,Värdering!D26+0,IF(Inställningar!K$42=2,Kvantitativ!D16+0,\"\")))","v":""},{"$f":"IF(ISBLANK(Värdering!E26),\"\",IF(Inställningar!L$42=1,Värdering!E26+0,IF(Inställningar!L$42=2,Kvantitativ!E16+0,\"\")))","v":""},{"$f":"IF(ISBLANK(Värdering!F26),\"\",IF(Inställningar!M$42=1,Värdering!F26+0,IF(Inställningar!M$42=2,Kvantitativ!F16+0,\"\")))","v":""},{"$f":"IF(ISBLANK(Värdering!G26),\"\",IF(Inställningar!N$42=1,Värdering!G26+0,IF(Inställningar!N$42=2,Kvantitativ!G16+0,\"\")))","v":""},{"$f":"IF(ISBLANK(Värdering!H26),\"\",IF(Inställningar!O$42=1,Värdering!H26+0,IF(Inställningar!O$42=2,Kvantitativ!H16+0,\"\")))","v":""},{"$f":"IF(ISBLANK(Värdering!I26),\"\",IF(Inställningar!P$42=1,Värdering!I26+0,IF(Inställningar!P$42=2,Kvantitativ!I16+0,\"\")))","v":""},{"$f":"IF(ISBLANK(Värdering!J26),\"\",IF(Inställningar!Q$42=1,Värdering!J26+0,IF(Inställningar!Q$42=2,Kvantitativ!J16+0,\"\")))","v":""},{"$f":"IF(ISBLANK(Värdering!K26),\"\",IF(Inställningar!R$42=1,Värdering!K26+0,IF(Inställningar!R$42=2,Kvantitativ!K16+0,\"\")))","v":""},{"$f":"IF(ISBLANK(Värdering!L26),\"\",IF(Inställningar!S$42=1,Värdering!L26+0,IF(Inställningar!S$42=2,Kvantitativ!L16+0,\"\")))","v":""},{"$f":"IF(ISBLANK(Värdering!M26),\"\",IF(Inställningar!T$42=1,Värdering!M26+0,IF(Inställningar!T$42=2,Kvantitativ!M16+0,\"\")))","v":""},{"$f":"IF(ISBLANK(Värdering!N26),\"\",IF(Inställningar!U$42=1,Värdering!N26+0,IF(Inställningar!U$42=2,Kvantitativ!N16+0,\"\")))","v":""},{"$f":"IF(ISBLANK(Värdering!O26),\"\",IF(Inställningar!V$42=1,Värdering!O26+0,IF(Inställningar!V$42=2,Kvantitativ!O16+0,\"\")))","v":""},{"$f":"IF(ISBLANK(Värdering!P26),\"\",IF(Inställningar!W$42=1,Värdering!P26+0,IF(Inställningar!W$42=2,Kvantitativ!P16+0,\"\")))","v":""},{"$f":"IF(ISBLANK(Värdering!Q26),\"\",IF(Inställningar!X$42=1,Värdering!Q26+0,IF(Inställningar!X$42=2,Kvantitativ!Q16+0,\"\")))","v":""},{"$f":"IF(ISBLANK(Värdering!R26),\"\",IF(Inställningar!Y$42=1,Värdering!R26+0,IF(Inställningar!Y$42=2,Kvantitativ!R16+0,\"\")))","v":""},{"$f":"IF(ISBLANK(Värdering!S26),\"\",IF(Inställningar!Z$42=1,Värdering!S26+0,IF(Inställningar!Z$42=2,Kvantitativ!S16+0,\"\")))","v":""},{"$f":"IF(AND(ISBLANK(Värdering!D26),ISBLANK(Värdering!E26),ISBLANK(Värdering!F26),ISBLANK(Värdering!G26),ISBLANK(Värdering!H26),ISBLANK(Värdering!I26),ISBLANK(Värdering!J26),ISBLANK(Värdering!K26),ISBLANK(Värdering!L26),ISBLANK(Värdering!M26),ISBLANK(Värdering!N26),ISBLANK(Värdering!O26),ISBLANK(Värdering!P26),ISBLANK(Värdering!Q26),ISBLANK(Värdering!R26),ISBLANK(Värdering!S26)),\"\",SUM(D17:S17))","v":""}]
[{"$f":"IF(Åtgärdsalternativ!A12=\"\",\"\",Åtgärdsalternativ!A12)","v":"Åtgärdsförslag 4"},{"$f":"IF(ISBLANK(Inställningar!$C$7),\"\",Inställningar!$C$7)","v":"Kort sikt"},{"$f":"Värdering!$C$11","v":1},{"$f":"IF(ISBLANK(Värdering!D28),\"\",IF(Inställningar!K$42=1,Värdering!D28+0,IF(Inställningar!K$42=2,Kvantitativ!D17+0,\"\")))","v":""},{"$f":"IF(ISBLANK(Värdering!E28),\"\",IF(Inställningar!L$42=1,Värdering!E28+0,IF(Inställningar!L$42=2,Kvantitativ!E17+0,\"\")))","v":""},{"$f":"IF(ISBLANK(Värdering!F28),\"\",IF(Inställningar!M$42=1,Värdering!F28+0,IF(Inställningar!M$42=2,Kvantitativ!F17+0,\"\")))","v":""},{"$f":"IF(ISBLANK(Värdering!G28),\"\",IF(Inställningar!N$42=1,Värdering!G28+0,IF(Inställningar!N$42=2,Kvantitativ!G17+0,\"\")))","v":""},{"$f":"IF(ISBLANK(Värdering!H28),\"\",IF(Inställningar!O$42=1,Värdering!H28+0,IF(Inställningar!O$42=2,Kvantitativ!H17+0,\"\")))","v":""},{"$f":"IF(ISBLANK(Värdering!I28),\"\",IF(Inställningar!P$42=1,Värdering!I28+0,IF(Inställningar!P$42=2,Kvantitativ!I17+0,\"\")))","v":""},{"$f":"IF(ISBLANK(Värdering!J28),\"\",IF(Inställningar!Q$42=1,Värdering!J28+0,IF(Inställningar!Q$42=2,Kvantitativ!J17+0,\"\")))","v":""},{"$f":"IF(ISBLANK(Värdering!K28),\"\",IF(Inställningar!R$42=1,Värdering!K28+0,IF(Inställningar!R$42=2,Kvantitativ!K17+0,\"\")))","v":""},{"$f":"IF(ISBLANK(Värdering!L28),\"\",IF(Inställningar!S$42=1,Värdering!L28+0,IF(Inställningar!S$42=2,Kvantitativ!L17+0,\"\")))","v":""},{"$f":"IF(ISBLANK(Värdering!M28),\"\",IF(Inställningar!T$42=1,Värdering!M28+0,IF(Inställningar!T$42=2,Kvantitativ!M17+0,\"\")))","v":""},{"$f":"IF(ISBLANK(Värdering!N28),\"\",IF(Inställningar!U$42=1,Värdering!N28+0,IF(Inställningar!U$42=2,Kvantitativ!N17+0,\"\")))","v":""},{"$f":"IF(ISBLANK(Värdering!O28),\"\",IF(Inställningar!V$42=1,Värdering!O28+0,IF(Inställningar!V$42=2,Kvantitativ!O17+0,\"\")))","v":""},{"$f":"IF(ISBLANK(Värdering!P28),\"\",IF(Inställningar!W$42=1,Värdering!P28+0,IF(Inställningar!W$42=2,Kvantitativ!P17+0,\"\")))","v":""},{"$f":"IF(ISBLANK(Värdering!Q28),\"\",IF(Inställningar!X$42=1,Värdering!Q28+0,IF(Inställningar!X$42=2,Kvantitativ!Q17+0,\"\")))","v":""},{"$f":"IF(ISBLANK(Värdering!R28),\"\",IF(Inställningar!Y$42=1,Värdering!R28+0,IF(Inställningar!Y$42=2,Kvantitativ!R17+0,\"\")))","v":""},{"$f":"IF(ISBLANK(Värdering!S28),\"\",IF(Inställningar!Z$42=1,Värdering!S28+0,IF(Inställningar!Z$42=2,Kvantitativ!S17+0,\"\")))","v":""},{"$f":"IF(AND(ISBLANK(Värdering!D28),ISBLANK(Värdering!E28),ISBLANK(Värdering!F28),ISBLANK(Värdering!G28),ISBLANK(Värdering!H28),ISBLANK(Värdering!I28),ISBLANK(Värdering!J28),ISBLANK(Värdering!K28),ISBLANK(Värdering!L28),ISBLANK(Värdering!M28),ISBLANK(Värdering!N28),ISBLANK(Värdering!O28),ISBLANK(Värdering!P28),ISBLANK(Värdering!Q28),ISBLANK(Värdering!R28),ISBLANK(Värdering!S28)),\"\",SUM(D18:S18))","v":""},{"$f":"IF(AND(T18=\"\",T19=\"\"),\"\",SUM(T18:T19))","v":""}]
[null,{"$f":"IF(ISBLANK(Inställningar!$C$8),\"\",Inställningar!$C$8)","v":"Lång sikt"},{"$f":"Värdering!$C$13","v":1},{"$f":"IF(ISBLANK(Värdering!D30),\"\",IF(Inställningar!K$42=1,Värdering!D30+0,IF(Inställningar!K$42=2,Kvantitativ!D18+0,\"\")))","v":""},{"$f":"IF(ISBLANK(Värdering!E30),\"\",IF(Inställningar!L$42=1,Värdering!E30+0,IF(Inställningar!L$42=2,Kvantitativ!E18+0,\"\")))","v":""},{"$f":"IF(ISBLANK(Värdering!F30),\"\",IF(Inställningar!M$42=1,Värdering!F30+0,IF(Inställningar!M$42=2,Kvantitativ!F18+0,\"\")))","v":""},{"$f":"IF(ISBLANK(Värdering!G30),\"\",IF(Inställningar!N$42=1,Värdering!G30+0,IF(Inställningar!N$42=2,Kvantitativ!G18+0,\"\")))","v":""},{"$f":"IF(ISBLANK(Värdering!H30),\"\",IF(Inställningar!O$42=1,Värdering!H30+0,IF(Inställningar!O$42=2,Kvantitativ!H18+0,\"\")))","v":""},{"$f":"IF(ISBLANK(Värdering!I30),\"\",IF(Inställningar!P$42=1,Värdering!I30+0,IF(Inställningar!P$42=2,Kvantitativ!I18+0,\"\")))","v":""},{"$f":"IF(ISBLANK(Värdering!J30),\"\",IF(Inställningar!Q$42=1,Värdering!J30+0,IF(Inställningar!Q$42=2,Kvantitativ!J18+0,\"\")))","v":""},{"$f":"IF(ISBLANK(Värdering!K30),\"\",IF(Inställningar!R$42=1,Värdering!K30+0,IF(Inställningar!R$42=2,Kvantitativ!K18+0,\"\")))","v":""},{"$f":"IF(ISBLANK(Värdering!L30),\"\",IF(Inställningar!S$42=1,Värdering!L30+0,IF(Inställningar!S$42=2,Kvantitativ!L18+0,\"\")))","v":""},{"$f":"IF(ISBLANK(Värdering!M30),\"\",IF(Inställningar!T$42=1,Värdering!M30+0,IF(Inställningar!T$42=2,Kvantitativ!M18+0,\"\")))","v":""},{"$f":"IF(ISBLANK(Värdering!N30),\"\",IF(Inställningar!U$42=1,Värdering!N30+0,IF(Inställningar!U$42=2,Kvantitativ!N18+0,\"\")))","v":""},{"$f":"IF(ISBLANK(Värdering!O30),\"\",IF(Inställningar!V$42=1,Värdering!O30+0,IF(Inställningar!V$42=2,Kvantitativ!O18+0,\"\")))","v":""},{"$f":"IF(ISBLANK(Värdering!P30),\"\",IF(Inställningar!W$42=1,Värdering!P30+0,IF(Inställningar!W$42=2,Kvantitativ!P18+0,\"\")))","v":""},{"$f":"IF(ISBLANK(Värdering!Q30),\"\",IF(Inställningar!X$42=1,Värdering!Q30+0,IF(Inställningar!X$42=2,Kvantitativ!Q18+0,\"\")))","v":""},{"$f":"IF(ISBLANK(Värdering!R30),\"\",IF(Inställningar!Y$42=1,Värdering!R30+0,IF(Inställningar!Y$42=2,Kvantitativ!R18+0,\"\")))","v":""},{"$f":"IF(ISBLANK(Värdering!S30),\"\",IF(Inställningar!Z$42=1,Värdering!S30+0,IF(Inställningar!Z$42=2,Kvantitativ!S18+0,\"\")))","v":""},{"$f":"IF(AND(ISBLANK(Värdering!D30),ISBLANK(Värdering!E30),ISBLANK(Värdering!F30),ISBLANK(Värdering!G30),ISBLANK(Värdering!H30),ISBLANK(Värdering!I30),ISBLANK(Värdering!J30),ISBLANK(Värdering!K30),ISBLANK(Värdering!L30),ISBLANK(Värdering!M30),ISBLANK(Värdering!N30),ISBLANK(Värdering!O30),ISBLANK(Värdering!P30),ISBLANK(Värdering!Q30),ISBLANK(Värdering!R30),ISBLANK(Värdering!S30)),\"\",SUM(D19:S19))","v":""}]
[{"$f":"IF(Åtgärdsalternativ!A13=\"\",\"\",Åtgärdsalternativ!A13)","v":"Åtgärdsförslag 5"},{"$f":"IF(ISBLANK(Inställningar!$C$7),\"\",Inställningar!$C$7)","v":"Kort sikt"},{"$f":"Värdering!$C$11","v":1},{"$f":"IF(ISBLANK(Värdering!D32),\"\",IF(Inställningar!K$42=1,Värdering!D32+0,IF(Inställningar!K$42=2,Kvantitativ!D19+0,\"\")))","v":""},{"$f":"IF(ISBLANK(Värdering!E32),\"\",IF(Inställningar!L$42=1,Värdering!E32+0,IF(Inställningar!L$42=2,Kvantitativ!E19+0,\"\")))","v":""},{"$f":"IF(ISBLANK(Värdering!F32),\"\",IF(Inställningar!M$42=1,Värdering!F32+0,IF(Inställningar!M$42=2,Kvantitativ!F19+0,\"\")))","v":""},{"$f":"IF(ISBLANK(Värdering!G32),\"\",IF(Inställningar!N$42=1,Värdering!G32+0,IF(Inställningar!N$42=2,Kvantitativ!G19+0,\"\")))","v":""},{"$f":"IF(ISBLANK(Värdering!H32),\"\",IF(Inställningar!O$42=1,Värdering!H32+0,IF(Inställningar!O$42=2,Kvantitativ!H19+0,\"\")))","v":""},{"$f":"IF(ISBLANK(Värdering!I32),\"\",IF(Inställningar!P$42=1,Värdering!I32+0,IF(Inställningar!P$42=2,Kvantitativ!I19+0,\"\")))","v":""},{"$f":"IF(ISBLANK(Värdering!J32),\"\",IF(Inställningar!Q$42=1,Värdering!J32+0,IF(Inställningar!Q$42=2,Kvantitativ!J19+0,\"\")))","v":""},{"$f":"IF(ISBLANK(Värdering!K32),\"\",IF(Inställningar!R$42=1,Värdering!K32+0,IF(Inställningar!R$42=2,Kvantitativ!K19+0,\"\")))","v":""},{"$f":"IF(ISBLANK(Värdering!L32),\"\",IF(Inställningar!S$42=1,Värdering!L32+0,IF(Inställningar!S$42=2,Kvantitativ!L19+0,\"\")))","v":""},{"$f":"IF(ISBLANK(Värdering!M32),\"\",IF(Inställningar!T$42=1,Värdering!M32+0,IF(Inställningar!T$42=2,Kvantitativ!M19+0,\"\")))","v":""},{"$f":"IF(ISBLANK(Värdering!N32),\"\",IF(Inställningar!U$42=1,Värdering!N32+0,IF(Inställningar!U$42=2,Kvantitativ!N19+0,\"\")))","v":""},{"$f":"IF(ISBLANK(Värdering!O32),\"\",IF(Inställningar!V$42=1,Värdering!O32+0,IF(Inställningar!V$42=2,Kvantitativ!O19+0,\"\")))","v":""},{"$f":"IF(ISBLANK(Värdering!P32),\"\",IF(Inställningar!W$42=1,Värdering!P32+0,IF(Inställningar!W$42=2,Kvantitativ!P19+0,\"\")))","v":""},{"$f":"IF(ISBLANK(Värdering!Q32),\"\",IF(Inställningar!X$42=1,Värdering!Q32+0,IF(Inställningar!X$42=2,Kvantitativ!Q19+0,\"\")))","v":""},{"$f":"IF(ISBLANK(Värdering!R32),\"\",IF(Inställningar!Y$42=1,Värdering!R32+0,IF(Inställningar!Y$42=2,Kvantitativ!R19+0,\"\")))","v":""},{"$f":"IF(ISBLANK(Värdering!S32),\"\",IF(Inställningar!Z$42=1,Värdering!S32+0,IF(Inställningar!Z$42=2,Kvantitativ!S19+0,\"\")))","v":""},{"$f":"IF(AND(ISBLANK(Värdering!D32),ISBLANK(Värdering!E32),ISBLANK(Värdering!F32),ISBLANK(Värdering!G32),ISBLANK(Värdering!H32),ISBLANK(Värdering!I32),ISBLANK(Värdering!J32),ISBLANK(Värdering!K32),ISBLANK(Värdering!L32),ISBLANK(Värdering!M32),ISBLANK(Värdering!N32),ISBLANK(Värdering!O32),ISBLANK(Värdering!P32),ISBLANK(Värdering!Q32),ISBLANK(Värdering!R32),ISBLANK(Värdering!S32)),\"\",SUM(D20:S20))","v":""},{"$f":"IF(AND(T20=\"\",T21=\"\"),\"\",SUM(T20:T21))","v":""}]
[null,{"$f":"IF(ISBLANK(Inställningar!$C$8),\"\",Inställningar!$C$8)","v":"Lång sikt"},{"$f":"Värdering!$C$13","v":1},{"$f":"IF(ISBLANK(Värdering!D34),\"\",IF(Inställningar!K$42=1,Värdering!D34+0,IF(Inställningar!K$42=2,Kvantitativ!D20+0,\"\")))","v":""},{"$f":"IF(ISBLANK(Värdering!E34),\"\",IF(Inställningar!L$42=1,Värdering!E34+0,IF(Inställningar!L$42=2,Kvantitativ!E20+0,\"\")))","v":""},{"$f":"IF(ISBLANK(Värdering!F34),\"\",IF(Inställningar!M$42=1,Värdering!F34+0,IF(Inställningar!M$42=2,Kvantitativ!F20+0,\"\")))","v":""},{"$f":"IF(ISBLANK(Värdering!G34),\"\",IF(Inställningar!N$42=1,Värdering!G34+0,IF(Inställningar!N$42=2,Kvantitativ!G20+0,\"\")))","v":""},{"$f":"IF(ISBLANK(Värdering!H34),\"\",IF(Inställningar!O$42=1,Värdering!H34+0,IF(Inställningar!O$42=2,Kvantitativ!H20+0,\"\")))","v":""},{"$f":"IF(ISBLANK(Värdering!I34),\"\",IF(Inställningar!P$42=1,Värdering!I34+0,IF(Inställningar!P$42=2,Kvantitativ!I20+0,\"\")))","v":""},{"$f":"IF(ISBLANK(Värdering!J34),\"\",IF(Inställningar!Q$42=1,Värdering!J34+0,IF(Inställningar!Q$42=2,Kvantitativ!J20+0,\"\")))","v":""},{"$f":"IF(ISBLANK(Värdering!K34),\"\",IF(Inställningar!R$42=1,Värdering!K34+0,IF(Inställningar!R$42=2,Kvantitativ!K20+0,\"\")))","v":""},{"$f":"IF(ISBLANK(Värdering!L34),\"\",IF(Inställningar!S$42=1,Värdering!L34+0,IF(Inställningar!S$42=2,Kvantitativ!L20+0,\"\")))","v":""},{"$f":"IF(ISBLANK(Värdering!M34),\"\",IF(Inställningar!T$42=1,Värdering!M34+0,IF(Inställningar!T$42=2,Kvantitativ!M20+0,\"\")))","v":""},{"$f":"IF(ISBLANK(Värdering!N34),\"\",IF(Inställningar!U$42=1,Värdering!N34+0,IF(Inställningar!U$42=2,Kvantitativ!N20+0,\"\")))","v":""},{"$f":"IF(ISBLANK(Värdering!O34),\"\",IF(Inställningar!V$42=1,Värdering!O34+0,IF(Inställningar!V$42=2,Kvantitativ!O20+0,\"\")))","v":""},{"$f":"IF(ISBLANK(Värdering!P34),\"\",IF(Inställningar!W$42=1,Värdering!P34+0,IF(Inställningar!W$42=2,Kvantitativ!P20+0,\"\")))","v":""},{"$f":"IF(ISBLANK(Värdering!Q34),\"\",IF(Inställningar!X$42=1,Värdering!Q34+0,IF(Inställningar!X$42=2,Kvantitativ!Q20+0,\"\")))","v":""},{"$f":"IF(ISBLANK(Värdering!R34),\"\",IF(Inställningar!Y$42=1,Värdering!R34+0,IF(Inställningar!Y$42=2,Kvantitativ!R20+0,\"\")))","v":""},{"$f":"IF(ISBLANK(Värdering!S34),\"\",IF(Inställningar!Z$42=1,Värdering!S34+0,IF(Inställningar!Z$42=2,Kvantitativ!S20+0,\"\")))","v":""},{"$f":"IF(AND(ISBLANK(Värdering!D34),ISBLANK(Värdering!E34),ISBLANK(Värdering!F34),ISBLANK(Värdering!G34),ISBLANK(Värdering!H34),ISBLANK(Värdering!I34),ISBLANK(Värdering!J34),ISBLANK(Värdering!K34),ISBLANK(Värdering!L34),ISBLANK(Värdering!M34),ISBLANK(Värdering!N34),ISBLANK(Värdering!O34),ISBLANK(Värdering!P34),ISBLANK(Värdering!Q34),ISBLANK(Värdering!R34),ISBLANK(Värdering!S34)),\"\",SUM(D21:S21))","v":""}]
[]
[null,null,null,null,null,null,null,null,null,"Legend ",{"$f":"'Skalor o färg'!J29","v":"> 4"}]
[null,null,null,null,null,null,null,null,null,null,{"$f":"'Skalor o färg'!I29","v":"2 till 4"}]
[null,null,null,null,null,null,null,null,null,null,{"$f":"'Skalor o färg'!H29","v":"0 till 2"}]
[null,null,null,null,null,null,null,null,null,null,{"$f":"'Skalor o färg'!G29","v":"0"}]
[null,null,null,null,null,null,null,null,null,null,{"$f":"'Skalor o färg'!F29","v":"-2 till 0"}]
[null,null,null,null,null,null,null,null,null,null,{"$f":"'Skalor o färg'!E29","v":"-4 till -2"}]
[null,null,null,null,null,null,null,null,null,null,{"$f":"'Skalor o färg'!D29","v":"< -4"}]
[]
["Objekt:",null,null,{"$f":"Åtgärdsalternativ!B1","v":"XYZ-köping"},null,null,null,null,null,null,null,null,null,null,null,null,null,null,null,null,{"$f":"Inställningar!G1","v":"SAMLA version 2.6"}]
[]
["Resultat av bedömning "]

{"sheet":"Viktade resultat","index":6,"n_rows":50,"n_cols":21,"rows_kept":50,"cut":false,"hidden":false,"merged":[[34,0,41,20],[5,0,5,2],[0,0,0,2],[50,0,59,19],[9,20,10,20],[11,20,12,20],[13,20,14,20],[19,0,20,0],[9,0,10,0],[11,0,12,0],[13,0,14,0],[15,20,16,20],[17,20,18,20],[19,20,20,20],[15,0,16,0],[43,0,48,19],[31,0,31,2],[31,3,31,17],[17,0,18,0],[4,0,4,4],[3,0,3,20],[8,0,8,2],[6,0,7,2],[6,20,8,20],[6,19,8,19]]}
["Objekt:",null,null,{"$f":"Åtgärdsalternativ!B1","v":"XYZ-köping"},null,null,null,null,null,null,null,null,null,null,null,null,null,null,null,null,{"$f":"Inställningar!G1","v":"SAMLA version 2.6"}]
[]
["Övergripande åtgärdsmål:"]
[{"$f":"IF(Åtgärdsalternativ!A4=\"\",\"\",Åtgärdsalternativ!A4)","v":""}]
[]
["Viktade resultat",null,null,null,null,null,{"$f":"IF(SUM(COUNTIF('Oviktade resultat'!D10:S21,\"> \"&TEXT('Skalor o färg'!B8,0)),COUNTIF('Oviktade resultat'!D10:S21,\"< \"&TEXT(0-'Skalor o färg'!B8,0)))>0,\"VARNING! Du har angett ett eller flera tal utanför vald poängskala. Talen används ändå i beräkningarna men färgmarkeringar och grafer kan bli missvisande.\",IF(SUM(COUNTIF(D9:S9,\"> \"&TEXT('Skalor o färg'!B18,0)),COUNTIF(D9:S9,\"< 0\"))>0,\"VARNING! Du har angett ett eller flera tal utanför vald viktningsskala. Vikterna används ändå i beräkningarna men färgmarkeringar och grafer kan bli missvisande.\",\"\"))","v":""},null,null,null,null,null,null,null,null,null,null,null,null,null,"Skriv ut i A3-format, liggande."]
["Åtgärd",null,null,{"$f":"Inställningar!K47","v":"Ekologisk"},{"$f":"Inställningar!L47","v":"Ekologisk"},{"$f":"Inställningar!M47","v":"Ekologisk"},{"$f":"Inställningar!N47","v":"Ekologisk"},{"$f":"Inställningar!O47","v":"Ekologisk"},{"$f":"Inställningar!P47","v":"Ekologisk"},{"$f":"Inställningar!Q47","v":"Social"},{"$f":"Inställningar!R47","v":"Social"},{"$f":"Inställningar!S47","v":"Social"},{"$f":"Inställningar!T47","v":"Social"},{"$f":"Inställningar!U47","v":"Social"},{"$f":"Inställningar!V47","v":"Ekonomisk"},{"$f":"Inställningar!W47","v":"Ekonomisk"},{"$f":"Inställningar!X47","v":"Ekonomisk"},{"$f":"Inställningar!Y47","v":"Ekonomisk"},{"$f":"Inställningar!Z47","v":""},"Delsumma\n(ej viktat för tids-perspektiv)","Summa\n(inklusive viktning för tids-perspektiv)"]
[null,null,null,{"$f":"Värdering!D8","v":"1. Utsläpp till luft"},{"$f":"Värdering!E8","v":"2. Jord och mark"},{"$f":"Värdering!F8","v":"3. Grundvatten"},{"$f":"Värdering!G8","v":"4. Ytvatten och sediment"},{"$f":"Värdering!H8","v":"5. Ekologi"},{"$f":"Värdering!I8","v":"6. Naturresurser och avfall"},{"$f":"Värdering!J8","v":"7. Hälsa och säkerhet"},{"$f":"Värdering!K8","v":"8. Etik och jämlikhet"},{"$f":"Värdering!L8","v":"9. Närmiljö"},{"$f":"Värdering!M8","v":"10. Lokalsamhälle"},{"$f":"Värdering!N8","v":"11. Osäkerhet och evidens"},{"$f":"Värdering!O8","v":"12. Direkta kostnader och nyttor"},{"$f":"Värdering!P8","v":"13. Indirekta kostnader och nyttor"},{"$f":"Värdering!Q8","v":"14. Inducerade kostnader och nyttor"},{"$f":"Värdering!R8","v":"15. Beständighet och flexibilitet"},{"$f":"Värdering!S8","v":""}]
["Vikt",null,null,{"$f":"IF((D8=\"\"),\"\",Värdering!D9)","v":1},{"$f":"IF((E8=\"\"),\"\",Värdering!E9)","v":1},{"$f":"IF((F8=\"\"),\"\",Värdering!F9)","v":1},{"$f":"IF((G8=\"\"),\"\",Värdering!G9)","v":1},{"$f":"IF((H8=\"\"),\"\",Värdering!H9)","v":1},{"$f":"IF((I8=\"\"),\"\",Värdering!I9)","v":1},{"$f":"IF((J8=\"\"),\"\",Värdering!J9)","v":1},{"$f":"IF((K8=\"\"),\"\",Värdering!K9)","v":1},{"$f":"IF((L8=\"\"),\"\",Värdering!L9)","v":1},{"$f":"IF((M8=\"\"),\"\",Värdering!M9)","v":1},{"$f":"IF((N8=\"\"),\"\",Värdering!N9)","v":1},{"$f":"IF((O8=\"\"),\"\",Värdering!O9)","v":1},{"$f":"IF((P8=\"\"),\"\",Värdering!P9)","v":1},{"$f":"IF((Q8=\"\"),\"\",Värdering!Q9)","v":1},{"$f":"IF((R8=\"\"),\"\",Värdering!R9)","v":1},{"$f":"IF((S8=\"\"),\"\",Värdering!S9)","v":""}]
[{"$f":"IF(Åtgärdsalternativ!A8=\"\",\"\",Åtgärdsalternativ!A8)","v":"Nollalternativ: ingen åtgärd"},{"$f":"IF(ISBLANK(Inställningar!$C$7),\"\",Inställningar!$C$7)","v":"Kort sikt"},{"$f":"Värdering!$C$11","v":1},{"$f":"IF(ISERROR('Oviktade resultat'!D10*'Oviktade resultat'!D$9),\"\",'Oviktade resultat'!D10*'Oviktade resultat'!D$9)","v":""},{"$f":"IF(ISERROR('Oviktade resultat'!E10*'Oviktade resultat'!E$9),\"\",'Oviktade resultat'!E10*'Oviktade resultat'!E$9)","v":""},{"$f":"IF(ISERROR('Oviktade resultat'!F10*'Oviktade resultat'!F$9),\"\",'Oviktade resultat'!F10*'Oviktade resultat'!F$9)","v":""},{"$f":"IF(ISERROR('Oviktade resultat'!G10*'Oviktade resultat'!G$9),\"\",'Oviktade resultat'!G10*'Oviktade resultat'!G$9)","v":""},{"$f":"IF(ISERROR('Oviktade resultat'!H10*'Oviktade resultat'!H$9),\"\",'Oviktade resultat'!H10*'Oviktade resultat'!H$9)","v":""},{"$f":"IF(ISERROR('Oviktade resultat'!I10*'Oviktade resultat'!I$9),\"\",'Oviktade resultat'!I10*'Oviktade resultat'!I$9)","v":""},{"$f":"IF(ISERROR('Oviktade resultat'!J10*'Oviktade resultat'!J$9),\"\",'Oviktade resultat'!J10*'Oviktade resultat'!J$9)","v":""},{"$f":"IF(ISERROR('Oviktade resultat'!K10*'Oviktade resultat'!K$9),\"\",'Oviktade resultat'!K10*'Oviktade resultat'!K$9)","v":""},{"$f":"IF(ISERROR('Oviktade resultat'!L10*'Oviktade resultat'!L$9),\"\",'Oviktade resultat'!L10*'Oviktade resultat'!L$9)","v":""},{"$f":"IF(ISERROR('Oviktade resultat'!M10*'Oviktade resultat'!M$9),\"\",'Oviktade resultat'!M10*'Oviktade resultat'!M$9)","v":""},{"$f":"IF(ISERROR('Oviktade resultat'!N10*'Oviktade resultat'!N$9),\"\",'Oviktade resultat'!N10*'Oviktade resultat'!N$9)","v":""},{"$f":"IF(ISERROR('Oviktade resultat'!O10*'Oviktade resultat'!O$9),\"\",'Oviktade resultat'!O10*'Oviktade resultat'!O$9)","v":""},{"$f":"IF(ISERROR('Oviktade resultat'!P10*'Oviktade resultat'!P$9),\"\",'Oviktade resultat'!P10*'Oviktade resultat'!P$9)","v":""},{"$f":"IF(ISERROR('Oviktade resultat'!Q10*'Oviktade resultat'!Q$9),\"\",'Oviktade resultat'!Q10*'Oviktade resultat'!Q$9)","v":""},{"$f":"IF(ISERROR('Oviktade resultat'!R10*'Oviktade resultat'!R$9),\"\",'Oviktade resultat'!R10*'Oviktade resultat'!R$9)","v":""},{"$f":"IF(ISERROR('Oviktade resultat'!S10*'Oviktade resultat'!S$9),\"\",'Oviktade resultat'!S10*'Oviktade resultat'!S$9)","v":""},{"$f":"IF(ISNUMBER('Oviktade resultat'!T10),(SUM(D10:S10)),\"\")","v":""},{"$f":"IF((ISNUMBER('Oviktade resultat'!U10)),IF(ISNUMBER(T10),C10*T10,0)+IF(ISNUMBER(T11),C11*T11,0),\"\")","v":""}]
[null,{"$f":"IF(ISBLANK(Inställningar!$C$8),\"\",Inställningar!$C$8)","v":"Lång sikt"},{"$f":"Värdering!$C$13","v":1},{"$f":"IF(ISERROR('Oviktade resultat'!D11*'Oviktade resultat'!D$9),\"\",'Oviktade resultat'!D11*'Oviktade resultat'!D$9)","v":""},{"$f":"IF(ISERROR('Oviktade resultat'!E11*'Oviktade resultat'!E$9),\"\",'Oviktade resultat'!E11*'Oviktade resultat'!E$9)","v":""},{"$f":"IF(ISERROR('Oviktade resultat'!F11*'Oviktade resultat'!F$9),\"\",'Oviktade resultat'!F11*'Oviktade resultat'!F$9)","v":""},{"$f":"IF(ISERROR('Oviktade resultat'!G11*'Oviktade resultat'!G$9),\"\",'Oviktade resultat'!G11*'Oviktade resultat'!G$9)","v":""},{"$f":"IF(ISERROR('Oviktade resultat'!H11*'Oviktade resultat'!H$9),\"\",'Oviktade resultat'!H11*'Oviktade resultat'!H$9)","v":""},{"$f":"IF(ISERROR('Oviktade resultat'!I11*'Oviktade resultat'!I$9),\"\",'Oviktade resultat'!I11*'Oviktade resultat'!I$9)","v":""},{"$f":"IF(ISERROR('Oviktade resultat'!J11*'Oviktade resultat'!J$9),\"\",'Oviktade resultat'!J11*'Oviktade resultat'!J$9)","v":""},{"$f":"IF(ISERROR('Oviktade resultat'!K11*'Oviktade resultat'!K$9),\"\",'Oviktade resultat'!K11*'Oviktade resultat'!K$9)","v":""},{"$f":"IF(ISERROR('Oviktade resultat'!L11*'Oviktade resultat'!L$9),\"\",'Oviktade resultat'!L11*'Oviktade resultat'!L$9)","v":""},{"$f":"IF(ISERROR('Oviktade resultat'!M11*'Oviktade resultat'!M$9),\"\",'Oviktade resultat'!M11*'Oviktade resultat'!M$9)","v":""},{"$f":"IF(ISERROR('Oviktade resultat'!N11*'Oviktade resultat'!N$9),\"\",'Oviktade resultat'!N11*'Oviktade resultat'!N$9)","v":""},{"$f":"IF(ISERROR('Oviktade resultat'!O11*'Oviktade resultat'!O$9),\"\",'Oviktade resultat'!O11*'Oviktade resultat'!O$9)","v":""},{"$f":"IF(ISERROR('Oviktade resultat'!P11*'Oviktade resultat'!P$9),\"\",'Oviktade resultat'!P11*'Oviktade resultat'!P$9)","v":""},{"$f":"IF(ISERROR('Oviktade resultat'!Q11*'Oviktade resultat'!Q$9),\"\",'Oviktade resultat'!Q11*'Oviktade resultat'!Q$9)","v":""},{"$f":"IF(ISERROR('Oviktade resultat'!R11*'Oviktade resultat'!R$9),\"\",'Oviktade resultat'!R11*'Oviktade resultat'!R$9)","v":""},{"$f":"IF(ISERROR('Oviktade resultat'!S11*'Oviktade resultat'!S$9),\"\",'Oviktade resultat'!S11*'Oviktade resultat'!S$9)","v":""},{"$f":"IF(ISNUMBER('Oviktade resultat'!T11),(SUM(D11:S11)),\"\")","v":""}]
[{"$f":"IF(Åtgärdsalternativ!A9=\"\",\"\",Åtgärdsalternativ!A9)","v":"Åtgärdsförslag 1"},{"$f":"IF(ISBLANK(Inställningar!$C$7),\"\",Inställningar!$C$7)","v":"Kort sikt"},{"$f":"Värdering!$C$11","v":1},{"$f":"IF(ISERROR('Oviktade resultat'!D12*'Oviktade resultat'!D$9),\"\",'Oviktade resultat'!D12*'Oviktade resultat'!D$9)","v":""},{"$f":"IF(ISERROR('Oviktade resultat'!E12*'Oviktade resultat'!E$9),\"\",'Oviktade resultat'!E12*'Oviktade resultat'!E$9)","v":""},{"$f":"IF(ISERROR('Oviktade resultat'!F12*'Oviktade resultat'!F$9),\"\",'Oviktade resultat'!F12*'Oviktade resultat'!F$9)","v":""},{"$f":"IF(ISERROR('Oviktade resultat'!G12*'Oviktade resultat'!G$9),\"\",'Oviktade resultat'!G12*'Oviktade resultat'!G$9)","v":""},{"$f":"IF(ISERROR('Oviktade resultat'!H12*'Oviktade resultat'!H$9),\"\",'Oviktade resultat'!H12*'Oviktade resultat'!H$9)","v":""},{"$f":"IF(ISERROR('Oviktade resultat'!I12*'Oviktade resultat'!I$9),\"\",'Oviktade resultat'!I12*'Oviktade resultat'!I$9)","v":""},{"$f":"IF(ISERROR('Oviktade resultat'!J12*'Oviktade resultat'!J$9),\"\",'Oviktade resultat'!J12*'Oviktade resultat'!J$9)","v":""},{"$f":"IF(ISERROR('Oviktade resultat'!K12*'Oviktade resultat'!K$9),\"\",'Oviktade resultat'!K12*'Oviktade resultat'!K$9)","v":""},{"$f":"IF(ISERROR('Oviktade resultat'!L12*'Oviktade resultat'!L$9),\"\",'Oviktade resultat'!L12*'Oviktade resultat'!L$9)","v":""},{"$f":"IF(ISERROR('Oviktade resultat'!M12*'Oviktade resultat'!M$9),\"\",'Oviktade resultat'!M12*'Oviktade resultat'!M$9)","v":""},{"$f":"IF(ISERROR('Oviktade resultat'!N12*'Oviktade resultat'!N$9),\"\",'Oviktade resultat'!N12*'Oviktade resultat'!N$9)","v":""},{"$f":"IF(ISERROR('Oviktade resultat'!O12*'Oviktade resultat'!O$9),\"\",'Oviktade resultat'!O12*'Oviktade resultat'!O$9)","v":""},{"$f":"IF(ISERROR('Oviktade resultat'!P12*'Oviktade resultat'!P$9),\"\",'Oviktade resultat'!P12*'Oviktade resultat'!P$9)","v":""},{"$f":"IF(ISERROR('Oviktade resultat'!Q12*'Oviktade resultat'!Q$9),\"\",'Oviktade resultat'!Q12*'Oviktade resultat'!Q$9)","v":""},{"$f":"IF(ISERROR('Oviktade resultat'!R12*'Oviktade resultat'!R$9),\"\",'Oviktade resultat'!R12*'Oviktade resultat'!R$9)","v":""},{"$f":"IF(ISERROR('Oviktade resultat'!S12*'Oviktade resultat'!S$9),\"\",'Oviktade resultat'!S12*'Oviktade resultat'!S$9)","v":""},{"$f":"IF(ISNUMBER('Oviktade resultat'!T12),(SUM(D12:S12)),\"\")","v":""},{"$f":"IF((ISNUMBER('Oviktade resultat'!U12)),IF(ISNUMBER(T12),C12*T12,0)+IF(ISNUMBER(T13),C13*T13,0),\"\")","v":""}]
[null,{"$f":"IF(ISBLANK(Inställningar!$C$8),\"\",Inställningar!$C$8)","v":"Lång sikt"},{"$f":"Värdering!$C$13","v":1},{"$f":"IF(ISERROR('Oviktade resultat'!D13*'Oviktade resultat'!D$9),\"\",'Oviktade resultat'!D13*'Oviktade resultat'!D$9)","v":""},{"$f":"IF(ISERROR('Oviktade resultat'!E13*'Oviktade resultat'!E$9),\"\",'Oviktade resultat'!E13*'Oviktade resultat'!E$9)","v":""},{"$f":"IF(ISERROR('Oviktade resultat'!F13*'Oviktade resultat'!F$9),\"\",'Oviktade resultat'!F13*'Oviktade resultat'!F$9)","v":""},{"$f":"IF(ISERROR('Oviktade resultat'!G13*'Oviktade resultat'!G$9),\"\",'Oviktade resultat'!G13*'Oviktade resultat'!G$9)","v":""},{"$f":"IF(ISERROR('Oviktade resultat'!H13*'Oviktade resultat'!H$9),\"\",'Oviktade resultat'!H13*'Oviktade resultat'!H$9)","v":""},{"$f":"IF(ISERROR('Oviktade resultat'!I13*'Oviktade resultat'!I$9),\"\",'Oviktade resultat'!I13*'Oviktade resultat'!I$9)","v":""},{"$f":"IF(ISERROR('Oviktade resultat'!J13*'Oviktade resultat'!J$9),\"\",'Oviktade resultat'!J13*'Oviktade resultat'!J$9)","v":""},{"$f":"IF(ISERROR('Oviktade resultat'!K13*'Oviktade resultat'!K$9),\"\",'Oviktade resultat'!K13*'Oviktade resultat'!K$9)","v":""},{"$f":"IF(ISERROR('Oviktade resultat'!L13*'Oviktade resultat'!L$9),\"\",'Oviktade resultat'!L13*'Oviktade resultat'!L$9)","v":""},{"$f":"IF(ISERROR('Oviktade resultat'!M13*'Oviktade resultat'!M$9),\"\",'Oviktade resultat'!M13*'Oviktade resultat'!M$9)","v":""},{"$f":"IF(ISERROR('Oviktade resultat'!N13*'Oviktade resultat'!N$9),\"\",'Oviktade resultat'!N13*'Oviktade resultat'!N$9)","v":""},{"$f":"IF(ISERROR('Oviktade resultat'!O13*'Oviktade resultat'!O$9),\"\",'Oviktade resultat'!O13*'Oviktade resultat'!O$9)","v":""},{"$f":"IF(ISERROR('Oviktade resultat'!P13*'Oviktade resultat'!P$9),\"\",'Oviktade resultat'!P13*'Oviktade resultat'!P$9)","v":""},{"$f":"IF(ISERROR('Oviktade resultat'!Q13*'Oviktade resultat'!Q$9),\"\",'Oviktade resultat'!Q13*'Oviktade resultat'!Q$9)","v":""},{"$f":"IF(ISERROR('Oviktade resultat'!R13*'Oviktade resultat'!R$9),\"\",'Oviktade resultat'!R13*'Oviktade resultat'!R$9)","v":""},{"$f":"IF(ISERROR('Oviktade resultat'!S13*'Oviktade resultat'!S$9),\"\",'Oviktade resultat'!S13*'Oviktade resultat'!S$9)","v":""},{"$f":"IF(ISNUMBER('Oviktade resultat'!T13),(SUM(D13:S13)),\"\")","v":""}]
[{"$f":"IF(Åtgärdsalternativ!A10=\"\",\"\",Åtgärdsalternativ!A10)","v":"Åtgärdsförslag 2"},{"$f":"IF(ISBLANK(Inställningar!$C$7),\"\",Inställningar!$C$7)","v":"Kort sikt"},{"$f":"Värdering!$C$11","v":1},{"$f":"IF(ISERROR('Oviktade resultat'!D14*'Oviktade resultat'!D$9),\"\",'Oviktade resultat'!D14*'Oviktade resultat'!D$9)","v":""},{"$f":"IF(ISERROR('Oviktade resultat'!E14*'Oviktade resultat'!E$9),\"\",'Oviktade resultat'!E14*'Oviktade resultat'!E$9)","v":""},{"$f":"IF(ISERROR('Oviktade resultat'!F14*'Oviktade resultat'!F$9),\"\",'Oviktade resultat'!F14*'Oviktade resultat'!F$9)","v":""},{"$f":"IF(ISERROR('Oviktade resultat'!G14*'Oviktade resultat'!G$9),\"\",'Oviktade resultat'!G14*'Oviktade resultat'!G$9)","v":""},{"$f":"IF(ISERROR('Oviktade resultat'!H14*'Oviktade resultat'!H$9),\"\",'Oviktade resultat'!H14*'Oviktade resultat'!H$9)","v":""},{"$f":"IF(ISERROR('Oviktade resultat'!I14*'Oviktade resultat'!I$9),\"\",'Oviktade resultat'!I14*'Oviktade resultat'!I$9)","v":""},{"$f":"IF(ISERROR('Oviktade resultat'!J14*'Oviktade resultat'!J$9),\"\",'Oviktade resultat'!J14*'Oviktade resultat'!J$9)","v":""},{"$f":"IF(ISERROR('Oviktade resultat'!K14*'Oviktade resultat'!K$9),\"\",'Oviktade resultat'!K14*'Oviktade resultat'!K$9)","v":""},{"$f":"IF(ISERROR('Oviktade resultat'!L14*'Oviktade resultat'!L$9),\"\",'Oviktade resultat'!L14*'Oviktade resultat'!L$9)","v":""},{"$f":"IF(ISERROR('Oviktade resultat'!M14*'Oviktade resultat'!M$9),\"\",'Oviktade resultat'!M14*'Oviktade resultat'!M$9)","v":""},{"$f":"IF(ISERROR('Oviktade resultat'!N14*'Oviktade resultat'!N$9),\"\",'Oviktade resultat'!N14*'Oviktade resultat'!N$9)","v":""},{"$f":"IF(ISERROR('Oviktade resultat'!O14*'Oviktade resultat'!O$9),\"\",'Oviktade resultat'!O14*'Oviktade resultat'!O$9)","v":""},{"$f":"IF(ISERROR('Oviktade resultat'!P14*'Oviktade resultat'!P$9),\"\",'Oviktade resultat'!P14*'Oviktade resultat'!P$9)","v":""},{"$f":"IF(ISERROR('Oviktade resultat'!Q14*'Oviktade resultat'!Q$9),\"\",'Oviktade resultat'!Q14*'Oviktade resultat'!Q$9)","v":""},{"$f":"IF(ISERROR('Oviktade resultat'!R14*'Oviktade resultat'!R$9),\"\",'Oviktade resultat'!R14*'Oviktade resultat'!R$9)","v":""},{"$f":"IF(ISERROR('Oviktade resultat'!S14*'Oviktade resultat'!S$9),\"\",'Oviktade resultat'!S14*'Oviktade resultat'!S$9)","v":""},{"$f":"IF(ISNUMBER('Oviktade resultat'!T14),(SUM(D14:S14)),\"\")","v":""},{"$f":"IF((ISNUMBER('Oviktade resultat'!U14)),IF(ISNUMBER(T14),C14*T14,0)+IF(ISNUMBER(T15),C15*T15,0),\"\")","v":""}]
[null,{"$f":"IF(ISBLANK(Inställningar!$C$8),\"\",Inställningar!$C$8)","v":"Lång sikt"},{"$f":"Värdering!$C$13","v":1},{"$f":"IF(ISERROR('Oviktade resultat'!D15*'Oviktade resultat'!D$9),\"\",'Oviktade resultat'!D15*'Oviktade resultat'!D$9)","v":""},{"$f":"IF(ISERROR('Oviktade resultat'!E15*'Oviktade resultat'!E$9),\"\",'Oviktade resultat'!E15*'Oviktade resultat'!E$9)","v":""},{"$f":"IF(ISERROR('Oviktade resultat'!F15*'Oviktade resultat'!F$9),\"\",'Oviktade resultat'!F15*'Oviktade resultat'!F$9)","v":""},{"$f":"IF(ISERROR('Oviktade resultat'!G15*'Oviktade resultat'!G$9),\"\",'Oviktade resultat'!G15*'Oviktade resultat'!G$9)","v":""},{"$f":"IF(ISERROR('Oviktade resultat'!H15*'Oviktade resultat'!H$9),\"\",'Oviktade resultat'!H15*'Oviktade resultat'!H$9)","v":""},{"$f":"IF(ISERROR('Oviktade resultat'!I15*'Oviktade resultat'!I$9),\"\",'Oviktade resultat'!I15*'Oviktade resultat'!I$9)","v":""},{"$f":"IF(ISERROR('Oviktade resultat'!J15*'Oviktade resultat'!J$9),\"\",'Oviktade resultat'!J15*'Oviktade resultat'!J$9)","v":""},{"$f":"IF(ISERROR('Oviktade resultat'!K15*'Oviktade resultat'!K$9),\"\",'Oviktade resultat'!K15*'Oviktade resultat'!K$9)","v":""},{"$f":"IF(ISERROR('Oviktade resultat'!L15*'Oviktade resultat'!L$9),\"\",'Oviktade resultat'!L15*'Oviktade resultat'!L$9)","v":""},{"$f":"IF(ISERROR('Oviktade resultat'!M15*'Oviktade resultat'!M$9),\"\",'Oviktade resultat'!M15*'Oviktade resultat'!M$9)","v":""},{"$f":"IF(ISERROR('Oviktade resultat'!N15*'Oviktade resultat'!N$9),\"\",'Oviktade resultat'!N15*'Oviktade resultat'!N$9)","v":""},{"$f":"IF(ISERROR('Oviktade resultat'!O15*'Oviktade resultat'!O$9),\"\",'Oviktade resultat'!O15*'Oviktade resultat'!O$9)","v":""},{"$f":"IF(ISERROR('Oviktade resultat'!P15*'Oviktade resultat'!P$9),\"\",'Oviktade resultat'!P15*'Oviktade resultat'!P$9)","v":""},{"$f":"IF(ISERROR('Oviktade resultat'!Q15*'Oviktade resultat'!Q$9),\"\",'Oviktade resultat'!Q15*'Oviktade resultat'!Q$9)","v":""},{"$f":"IF(ISERROR('Oviktade resultat'!R15*'Oviktade resultat'!R$9),\"\",'Oviktade resultat'!R15*'Oviktade resultat'!R$9)","v":""},{"$f":"IF(ISERROR('Oviktade resultat'!S15*'Oviktade resultat'!S$9),\"\",'Oviktade resultat'!S15*'Oviktade resultat'!S$9)","v":""},{"$f":"IF(ISNUMBER('Oviktade resultat'!T15),(SUM(D15:S15)),\"\")","v":""}]
[{"$f":"IF(Åtgärdsalternativ!A11=\"\",\"\",Åtgärdsalternativ!A11)","v":"Åtgärdsförslag 3"},{"$f":"IF(ISBLANK(Inställningar!$C$7),\"\",Inställningar!$C$7)","v":"Kort sikt"},{"$f":"Värdering!$C$11","v":1},{"$f":"IF(ISERROR('Oviktade resultat'!D16*'Oviktade resultat'!D$9),\"\",'Oviktade resultat'!D16*'Oviktade resultat'!D$9)","v":""},{"$f":"IF(ISERROR('Oviktade resultat'!E16*'Oviktade resultat'!E$9),\"\",'Oviktade resultat'!E16*'Oviktade resultat'!E$9)","v":""},{"$f":"IF(ISERROR('Oviktade resultat'!F16*'Oviktade resultat'!F$9),\"\",'Oviktade resultat'!F16*'Oviktade resultat'!F$9)","v":""},{"$f":"IF(ISERROR('Oviktade resultat'!G16*'Oviktade resultat'!G$9),\"\",'Oviktade resultat'!G16*'Oviktade resultat'!G$9)","v":""},{"$f":"IF(ISERROR('Oviktade resultat'!H16*'Oviktade resultat'!H$9),\"\",'Oviktade resultat'!H16*'Oviktade resultat'!H$9)","v":""},{"$f":"IF(ISERROR('Oviktade resultat'!I16*'Oviktade resultat'!I$9),\"\",'Oviktade resultat'!I16*'Oviktade resultat'!I$9)","v":""},{"$f":"IF(ISERROR('Oviktade resultat'!J16*'Oviktade resultat'!J$9),\"\",'Oviktade resultat'!J16*'Oviktade resultat'!J$9)","v":""},{"$f":"IF(ISERROR('Oviktade resultat'!K16*'Oviktade resultat'!K$9),\"\",'Oviktade resultat'!K16*'Oviktade resultat'!K$9)","v":""},{"$f":"IF(ISERROR('Oviktade resultat'!L16*'Oviktade resultat'!L$9),\"\",'Oviktade resultat'!L16*'Oviktade resultat'!L$9)","v":""},{"$f":"IF(ISERROR('Oviktade resultat'!M16*'Oviktade resultat'!M$9),\"\",'Oviktade resultat'!M16*'Oviktade resultat'!M$9)","v":""},{"$f":"IF(ISERROR('Oviktade resultat'!N16*'Oviktade resultat'!N$9),\"\",'Oviktade resultat'!N16*'Oviktade resultat'!N$9)","v":""},{"$f":"IF(ISERROR('Oviktade resultat'!O16*'Oviktade resultat'!O$9),\"\",'Oviktade resultat'!O16*'Oviktade resultat'!O$9)","v":""},{"$f":"IF(ISERROR('Oviktade resultat'!P16*'Oviktade resultat'!P$9),\"\",'Oviktade resultat'!P16*'Oviktade resultat'!P$9)","v":""},{"$f":"IF(ISERROR('Oviktade resultat'!Q16*'Oviktade resultat'!Q$9),\"\",'Oviktade resultat'!Q16*'Oviktade resultat'!Q$9)","v":""},{"$f":"IF(ISERROR('Oviktade resultat'!R16*'Oviktade resultat'!R$9),\"\",'Oviktade resultat'!R16*'Oviktade resultat'!R$9)","v":""},{"$f":"IF(ISERROR('Oviktade resultat'!S16*'Oviktade resultat'!S$9),\"\",'Oviktade resultat'!S16*'Oviktade resultat'!S$9)","v":""},{"$f":"IF(ISNUMBER('Oviktade resultat'!T16),(SUM(D16:S16)),\"\")","v":""},{"$f":"IF((ISNUMBER('Oviktade resultat'!U16)),IF(ISNUMBER(T16),C16*T16,0)+IF(ISNUMBER(T17),C17*T17,0),\"\")","v":""}]
[null,{"$f":"IF(ISBLANK(Inställningar!$C$8),\"\",Inställningar!$C$8)","v":"Lång sikt"},{"$f":"Värdering!$C$13","v":1},{"$f":"IF(ISERROR('Oviktade resultat'!D17*'Oviktade resultat'!D$9),\"\",'Oviktade resultat'!D17*'Oviktade resultat'!D$9)","v":""},{"$f":"IF(ISERROR('Oviktade resultat'!E17*'Oviktade resultat'!E$9),\"\",'Oviktade resultat'!E17*'Oviktade resultat'!E$9)","v":""},{"$f":"IF(ISERROR('Oviktade resultat'!F17*'Oviktade resultat'!F$9),\"\",'Oviktade resultat'!F17*'Oviktade resultat'!F$9)","v":""},{"$f":"IF(ISERROR('Oviktade resultat'!G17*'Oviktade resultat'!G$9),\"\",'Oviktade resultat'!G17*'Oviktade resultat'!G$9)","v":""},{"$f":"IF(ISERROR('Oviktade resultat'!H17*'Oviktade resultat'!H$9),\"\",'Oviktade resultat'!H17*'Oviktade resultat'!H$9)","v":""},{"$f":"IF(ISERROR('Oviktade resultat'!I17*'Oviktade resultat'!I$9),\"\",'Oviktade resultat'!I17*'Oviktade resultat'!I$9)","v":""},{"$f":"IF(ISERROR('Oviktade resultat'!J17*'Oviktade resultat'!J$9),\"\",'Oviktade resultat'!J17*'Oviktade resultat'!J$9)","v":""},{"$f":"IF(ISERROR('Oviktade resultat'!K17*'Oviktade resultat'!K$9),\"\",'Oviktade resultat'!K17*'Oviktade resultat'!K$9)","v":""},{"$f":"IF(ISERROR('Oviktade resultat'!L17*'Oviktade resultat'!L$9),\"\",'Oviktade resultat'!L17*'Oviktade resultat'!L$9)","v":""},{"$f":"IF(ISERROR('Oviktade resultat'!M17*'Oviktade resultat'!M$9),\"\",'Oviktade resultat'!M17*'Oviktade resultat'!M$9)","v":""},{"$f":"IF(ISERROR('Oviktade resultat'!N17*'Oviktade resultat'!N$9),\"\",'Oviktade resultat'!N17*'Oviktade resultat'!N$9)","v":""},{"$f":"IF(ISERROR('Oviktade resultat'!O17*'Oviktade resultat'!O$9),\"\",'Oviktade resultat'!O17*'Oviktade resultat'!O$9)","v":""},{"$f":"IF(ISERROR('Oviktade resultat'!P17*'Oviktade resultat'!P$9),\"\",'Oviktade resultat'!P17*'Oviktade resultat'!P$9)","v":""},{"$f":"IF(ISERROR('Oviktade resultat'!Q17*'Oviktade resultat'!Q$9),\"\",'Oviktade resultat'!Q17*'Oviktade resultat'!Q$9)","v":""},{"$f":"IF(ISERROR('Oviktade resultat'!R17*'Oviktade resultat'!R$9),\"\",'Oviktade resultat'!R17*'Oviktade resultat'!R$9)","v":""},{"$f":"IF(ISERROR('Oviktade resultat'!S17*'Oviktade resultat'!S$9),\"\",'Oviktade resultat'!S17*'Oviktade resultat'!S$9)","v":""},{"$f":"IF(ISNUMBER('Oviktade resultat'!T17),(SUM(D17:S17)),\"\")","v":""}]
[{"$f":"IF(Åtgärdsalternativ!A12=\"\",\"\",Åtgärdsalternativ!A12)","v":"Åtgärdsförslag 4"},{"$f":"IF(ISBLANK(Inställningar!$C$7),\"\",Inställningar!$C$7)","v":"Kort sikt"},{"$f":"Värdering!$C$11","v":1},{"$f":"IF(ISERROR('Oviktade resultat'!D18*'Oviktade resultat'!D$9),\"\",'Oviktade resultat'!D18*'Oviktade resultat'!D$9)","v":""},{"$f":"IF(ISERROR('Oviktade resultat'!E18*'Oviktade resultat'!E$9),\"\",'Oviktade resultat'!E18*'Oviktade resultat'!E$9)","v":""},{"$f":"IF(ISERROR('Oviktade resultat'!F18*'Oviktade resultat'!F$9),\"\",'Oviktade resultat'!F18*'Oviktade resultat'!F$9)","v":""},{"$f":"IF(ISERROR('Oviktade resultat'!G18*'Oviktade resultat'!G$9),\"\",'Oviktade resultat'!G18*'Oviktade resultat'!G$9)","v":""},{"$f":"IF(ISERROR('Oviktade resultat'!H18*'Oviktade resultat'!H$9),\"\",'Oviktade resultat'!H18*'Oviktade resultat'!H$9)","v":""},{"$f":"IF(ISERROR('Oviktade resultat'!I18*'Oviktade resultat'!I$9),\"\",'Oviktade resultat'!I18*'Oviktade resultat'!I$9)","v":""},{"$f":"IF(ISERROR('Oviktade resultat'!J18*'Oviktade resultat'!J$9),\"\",'Oviktade resultat'!J18*'Oviktade resultat'!J$9)","v":""},{"$f":"IF(ISERROR('Oviktade resultat'!K18*'Oviktade resultat'!K$9),\"\",'Oviktade resultat'!K18*'Oviktade resultat'!K$9)","v":""},{"$f":"IF(ISERROR('Oviktade resultat'!L18*'Oviktade resultat'!L$9),\"\",'Oviktade resultat'!L18*'Oviktade resultat'!L$9)","v":""},{"$f":"IF(ISERROR('Oviktade resultat'!M18*'Oviktade resultat'!M$9),\"\",'Oviktade resultat'!M18*'Oviktade resultat'!M$9)","v":""},{"$f":"IF(ISERROR('Oviktade resultat'!N18*'Oviktade resultat'!N$9),\"\",'Oviktade resultat'!N18*'Oviktade resultat'!N$9)","v":""},{"$f":"IF(ISERROR('Oviktade resultat'!O18*'Oviktade resultat'!O$9),\"\",'Oviktade resultat'!O18*'Oviktade resultat'!O$9)","v":""},{"$f":"IF(ISERROR('Oviktade resultat'!P18*'Oviktade resultat'!P$9),\"\",'Oviktade resultat'!P18*'Oviktade resultat'!P$9)","v":""},{"$f":"IF(ISERROR('Oviktade resultat'!Q18*'Oviktade resultat'!Q$9),\"\",'Oviktade resultat'!Q18*'Oviktade resultat'!Q$9)","v":""},{"$f":"IF(ISERROR('Oviktade resultat'!R18*'Oviktade resultat'!R$9),\"\",'Oviktade resultat'!R18*'Oviktade resultat'!R$9)","v":""},{"$f":"IF(ISERROR('Oviktade resultat'!S18*'Oviktade resultat'!S$9),\"\",'Oviktade resultat'!S18*'Oviktade resultat'!S$9)","v":""},{"$f":"IF(ISNUMBER('Oviktade resultat'!T18),(SUM(D18:S18)),\"\")","v":""},{"$f":"IF((ISNUMBER('Oviktade resultat'!U18)),IF(ISNUMBER(T18),C18*T18,0)+IF(ISNUMBER(T19),C19*T19,0),\"\")","v":""}]
[null,{"$f":"IF(ISBLANK(Inställningar!$C$8),\"\",Inställningar!$C$8)","v":"Lång sikt"},{"$f":"Värdering!$C$13","v":1},{"$f":"IF(ISERROR('Oviktade resultat'!D19*'Oviktade resultat'!D$9),\"\",'Oviktade resultat'!D19*'Oviktade resultat'!D$9)","v":""},{"$f":"IF(ISERROR('Oviktade resultat'!E19*'Oviktade resultat'!E$9),\"\",'Oviktade resultat'!E19*'Oviktade resultat'!E$9)","v":""},{"$f":"IF(ISERROR('Oviktade resultat'!F19*'Oviktade resultat'!F$9),\"\",'Oviktade resultat'!F19*'Oviktade resultat'!F$9)","v":""},{"$f":"IF(ISERROR('Oviktade resultat'!G19*'Oviktade resultat'!G$9),\"\",'Oviktade resultat'!G19*'Oviktade resultat'!G$9)","v":""},{"$f":"IF(ISERROR('Oviktade resultat'!H19*'Oviktade resultat'!H$9),\"\",'Oviktade resultat'!H19*'Oviktade resultat'!H$9)","v":""},{"$f":"IF(ISERROR('Oviktade resultat'!I19*'Oviktade resultat'!I$9),\"\",'Oviktade resultat'!I19*'Oviktade resultat'!I$9)","v":""},{"$f":"IF(ISERROR('Oviktade resultat'!J19*'Oviktade resultat'!J$9),\"\",'Oviktade resultat'!J19*'Oviktade resultat'!J$9)","v":""},{"$f":"IF(ISERROR('Oviktade resultat'!K19*'Oviktade resultat'!K$9),\"\",'Oviktade resultat'!K19*'Oviktade resultat'!K$9)","v":""},{"$f":"IF(ISERROR('Oviktade resultat'!L19*'Oviktade resultat'!L$9),\"\",'Oviktade resultat'!L19*'Oviktade resultat'!L$9)","v":""},{"$f":"IF(ISERROR('Oviktade resultat'!M19*'Oviktade resultat'!M$9),\"\",'Oviktade resultat'!M19*'Oviktade resultat'!M$9)","v":""},{"$f":"IF(ISERROR('Oviktade resultat'!N19*'Oviktade resultat'!N$9),\"\",'Oviktade resultat'!N19*'Oviktade resultat'!N$9)","v":""},{"$f":"IF(ISERROR('Oviktade resultat'!O19*'Oviktade resultat'!O$9),\"\",'Oviktade resultat'!O19*'Oviktade resultat'!O$9)","v":""},{"$f":"IF(ISERROR('Oviktade resultat'!P19*'Oviktade resultat'!P$9),\"\",'Oviktade resultat'!P19*'Oviktade resultat'!P$9)","v":""},{"$f":"IF(ISERROR('Oviktade resultat'!Q19*'Oviktade resultat'!Q$9),\"\",'Oviktade resultat'!Q19*'Oviktade resultat'!Q$9)","v":""},{"$f":"IF(ISERROR('Oviktade resultat'!R19*'Oviktade resultat'!R$9),\"\",'Oviktade resultat'!R19*'Oviktade resultat'!R$9)","v":""},{"$f":"IF(ISERROR('Oviktade resultat'!S19*'Oviktade resultat'!S$9),\"\",'Oviktade resultat'!S19*'Oviktade resultat'!S$9)","v":""},{"$f":"IF(ISNUMBER('Oviktade resultat'!T19),(SUM(D19:S19)),\"\")","v":""}]
[{"$f":"IF(Åtgärdsalternativ!A13=\"\",\"\",Åtgärdsalternativ!A13)","v":"Åtgärdsförslag 5"},{"$f":"IF(ISBLANK(Inställningar!$C$7),\"\",Inställningar!$C$7)","v":"Kort sikt"},{"$f":"Värdering!$C$11","v":1},{"$f":"IF(ISERROR('Oviktade resultat'!D20*'Oviktade resultat'!D$9),\"\",'Oviktade resultat'!D20*'Oviktade resultat'!D$9)","v":""},{"$f":"IF(ISERROR('Oviktade resultat'!E20*'Oviktade resultat'!E$9),\"\",'Oviktade resultat'!E20*'Oviktade resultat'!E$9)","v":""},{"$f":"IF(ISERROR('Oviktade resultat'!F20*'Oviktade resultat'!F$9),\"\",'Oviktade resultat'!F20*'Oviktade resultat'!F$9)","v":""},{"$f":"IF(ISERROR('Oviktade resultat'!G20*'Oviktade resultat'!G$9),\"\",'Oviktade resultat'!G20*'Oviktade resultat'!G$9)","v":""},{"$f":"IF(ISERROR('Oviktade resultat'!H20*'Oviktade resultat'!H$9),\"\",'Oviktade resultat'!H20*'Oviktade resultat'!H$9)","v":""},{"$f":"IF(ISERROR('Oviktade resultat'!I20*'Oviktade resultat'!I$9),\"\",'Oviktade resultat'!I20*'Oviktade resultat'!I$9)","v":""},{"$f":"IF(ISERROR('Oviktade resultat'!J20*'Oviktade resultat'!J$9),\"\",'Oviktade resultat'!J20*'Oviktade resultat'!J$9)","v":""},{"$f":"IF(ISERROR('Oviktade resultat'!K20*'Oviktade resultat'!K$9),\"\",'Oviktade resultat'!K20*'Oviktade resultat'!K$9)","v":""},{"$f":"IF(ISERROR('Oviktade resultat'!L20*'Oviktade resultat'!L$9),\"\",'Oviktade resultat'!L20*'Oviktade resultat'!L$9)","v":""},{"$f":"IF(ISERROR('Oviktade resultat'!M20*'Oviktade resultat'!M$9),\"\",'Oviktade resultat'!M20*'Oviktade resultat'!M$9)","v":""},{"$f":"IF(ISERROR('Oviktade resultat'!N20*'Oviktade resultat'!N$9),\"\",'Oviktade resultat'!N20*'Oviktade resultat'!N$9)","v":""},{"$f":"IF(ISERROR('Oviktade resultat'!O20*'Oviktade resultat'!O$9),\"\",'Oviktade resultat'!O20*'Oviktade resultat'!O$9)","v":""},{"$f":"IF(ISERROR('Oviktade resultat'!P20*'Oviktade resultat'!P$9),\"\",'Oviktade resultat'!P20*'Oviktade resultat'!P$9)","v":""},{"$f":"IF(ISERROR('Oviktade resultat'!Q20*'Oviktade resultat'!Q$9),\"\",'Oviktade resultat'!Q20*'Oviktade resultat'!Q$9)","v":""},{"$f":"IF(ISERROR('Oviktade resultat'!R20*'Oviktade resultat'!R$9),\"\",'Oviktade resultat'!R20*'Oviktade resultat'!R$9)","v":""},{"$f":"IF(ISERROR('Oviktade resultat'!S20*'Oviktade resultat'!S$9),\"\",'Oviktade resultat'!S20*'Oviktade resultat'!S$9)","v":""},{"$f":"IF(ISNUMBER('Oviktade resultat'!T20),(SUM(D20:S20)),\"\")","v":""},{"$f":"IF((ISNUMBER('Oviktade resultat'!U20)),IF(ISNUMBER(T20),C20*T20,0)+IF(ISNUMBER(T21),C21*T21,0),\"\")","v":""}]
[null,{"$f":"IF(ISBLANK(Inställningar!$C$8),\"\",Inställningar!$C$8)","v":"Lång sikt"},{"$f":"Värdering!$C$13","v":1},{"$f":"IF(ISERROR('Oviktade resultat'!D21*'Oviktade resultat'!D$9),\"\",'Oviktade resultat'!D21*'Oviktade resultat'!D$9)","v":""},{"$f":"IF(ISERROR('Oviktade resultat'!E21*'Oviktade resultat'!E$9),\"\",'Oviktade resultat'!E21*'Oviktade resultat'!E$9)","v":""},{"$f":"IF(ISERROR('Oviktade resultat'!F21*'Oviktade resultat'!F$9),\"\",'Oviktade resultat'!F21*'Oviktade resultat'!F$9)","v":""},{"$f":"IF(ISERROR('Oviktade resultat'!G21*'Oviktade resultat'!G$9),\"\",'Oviktade resultat'!G21*'Oviktade resultat'!G$9)","v":""},{"$f":"IF(ISERROR('Oviktade resultat'!H21*'Oviktade resultat'!H$9),\"\",'Oviktade resultat'!H21*'Oviktade resultat'!H$9)","v":""},{"$f":"IF(ISERROR('Oviktade resultat'!I21*'Oviktade resultat'!I$9),\"\",'Oviktade resultat'!I21*'Oviktade resultat'!I$9)","v":""},{"$f":"IF(ISERROR('Oviktade resultat'!J21*'Oviktade resultat'!J$9),\"\",'Oviktade resultat'!J21*'Oviktade resultat'!J$9)","v":""},{"$f":"IF(ISERROR('Oviktade resultat'!K21*'Oviktade resultat'!K$9),\"\",'Oviktade resultat'!K21*'Oviktade resultat'!K$9)","v":""},{"$f":"IF(ISERROR('Oviktade resultat'!L21*'Oviktade resultat'!L$9),\"\",'Oviktade resultat'!L21*'Oviktade resultat'!L$9)","v":""},{"$f":"IF(ISERROR('Oviktade resultat'!M21*'Oviktade resultat'!M$9),\"\",'Oviktade resultat'!M21*'Oviktade resultat'!M$9)","v":""},{"$f":"IF(ISERROR('Oviktade resultat'!N21*'Oviktade resultat'!N$9),\"\",'Oviktade resultat'!N21*'Oviktade resultat'!N$9)","v":""},{"$f":"IF(ISERROR('Oviktade resultat'!O21*'Oviktade resultat'!O$9),\"\",'Oviktade resultat'!O21*'Oviktade resultat'!O$9)","v":""},{"$f":"IF(ISERROR('Oviktade resultat'!P21*'Oviktade resultat'!P$9),\"\",'Oviktade resultat'!P21*'Oviktade resultat'!P$9)","v":""},{"$f":"IF(ISERROR('Oviktade resultat'!Q21*'Oviktade resultat'!Q$9),\"\",'Oviktade resultat'!Q21*'Oviktade resultat'!Q$9)","v":""},{"$f":"IF(ISERROR('Oviktade resultat'!R21*'Oviktade resultat'!R$9),\"\",'Oviktade resultat'!R21*'Oviktade resultat'!R$9)","v":""},{"$f":"IF(ISERROR('Oviktade resultat'!S21*'Oviktade resultat'!S$9),\"\",'Oviktade resultat'!S21*'Oviktade resultat'!S$9)","v":""},{"$f":"IF(ISNUMBER('Oviktade resultat'!T21),(SUM(D21:S21)),\"\")","v":""}]
[]
[null,null,null,null,null,null,null,null,null,"Legend ",{"$f":"'Skalor o färg'!J50","v":"> 40"}]
[null,null,null,null,null,null,null,null,null,null,{"$f":"'Skalor o färg'!I50","v":"20 till 40"}]
[null,null,null,null,null,null,null,null,null,null,{"$f":"'Skalor o färg'!H50","v":"5 till 20"}]
[null,null,null,null,null,null,null,null,null,null,{"$f":"'Skalor o färg'!G50","v":"-5 till 5"}]
[null,null,null,null,null,null,null,null,null,null,{"$f":"'Skalor o färg'!F50","v":"-20 till -5"}]
[null,null,null,null,null,null,null,null,null,null,{"$f":"'Skalor o färg'!E50","v":"-40 till -20"}]
[null,null,null,null,null,null,null,null,null,null,{"$f":"'Skalor o färg'!D50","v":"< -40"}]
[]
[]
["Objekt:",null,null,{"$f":"Åtgärdsalternativ!B1","v":"XYZ-köping"},null,null,null,null,null,null,null,null,null,null,null,null,null,null,null,null,{"$f":"Inställningar!G1","v":"SAMLA version 2.6"}]
[]
["Resultat av bedömning: "]
[]
[]
[]
[]
[]
[]
[]
[]
[]
[]
[]
[]
[]
[]
[]
["Bilagor:"]

{"sheet":"Resultat vikter","index":7,"n_rows":33,"n_cols":24,"rows_kept":33,"cut":false,"hidden":false,"merged":[[34,1,34,2],[7,23,7,24],[30,1,30,2],[31,1,31,2],[32,1,32,2],[33,1,33,2]]}
[{"$f":"Åtgärdsalternativ!B1","v":"XYZ-köping"},null,null,null,null,null,null,null,null,null,null,null,null,null,null,null,null,null,null,{"$f":"Inställningar!G1","v":"SAMLA version 2.6"}]
[]
[]
[null,null,null,null,null,null,null,null,null,null,null,null,null,null,null,null,null,null,null,null,null,null,"Vikt per hållbarhetsdimension","Summa vikt"]
[null,null,null,null,null,null,null,null,null,null,null,null,null,null,null,null,null,null,null,null,null,null,{"$f":"IF(ISBLANK(Inställningar!C18),\" \",Inställningar!C18)","v":"Ekologisk"},{"$f":"'Vikt dim 1'!S6","v":6}]
[null,null,null,null,null,null,null,null,null,null,null,null,null,null,null,null,null,null,null,null,null,null,{"$f":"IF(ISBLANK(Inställningar!C19),\" \",Inställningar!C19)","v":"Social"},{"$f":"'Vikt dim 2'!S6","v":5}]
[null,null,null,null,null,null,null,null,null,null,null,null,null,null,null,null,null,null,null,null,null,null,{"$f":"IF(ISBLANK(Inställningar!C20),\" \",Inställningar!C20)","v":"Ekonomisk"},{"$f":"'Vikt dim 3'!S6","v":4}]
[]
[]
[null,null,null,null,null,null,null,null,null,null,null,null,null,null,null,null,null,null,null,null,null,null,"Vikt per tidshorisont","Vikt"]
[null,null,null,null,null,null,null,null,null,null,null,null,null,null,null,null,null,null,null,null,null,null,{"$f":"IF(ISBLANK(Inställningar!C7),\"\",Inställningar!C7)","v":"Kort sikt"},{"$f":"Värdering!C11","v":1}]
[null,null,null,null,null,null,null,null,null,null,null,null,null,null,null,null,null,null,null,null,null,null,{"$f":"IF(ISBLANK(Inställningar!C8),\"\",Inställningar!C8)","v":"Lång sikt"},{"$f":"Värdering!C13","v":1}]
[]
[]
[]
[]
[null,null,null,null,null,null,null,null,null,null,null,null,null,null,null,null,null,null,null,null,null,null,"Vikt per kriterium","Vikt"]
[null,null,null,null,null,null,null,null,null,null,null,null,null,null,null,null,null,null,null,null,null,null,{"$f":"IF(ISBLANK(Inställningar!C49),\" \",Inställningar!C49)","v":"1. Utsläpp till luft"},{"$f":"IF(Värdering!D8=\"\",\"\",'Oviktade resultat'!D9)","v":1}]
[null,null,null,null,null,null,null,null,null,null,null,null,null,null,null,null,null,null,null,null,null,null,{"$f":"IF(ISBLANK(Inställningar!C50),\" \",Inställningar!C50)","v":"2. Jord och mark"},{"$f":"IF(Värdering!E8=\"\",\"\",'Oviktade resultat'!E9)","v":1}]
[null,null,null,null,null,null,null,null,null,null,null,null,null,null,null,null,null,null,null,null,null,null,{"$f":"IF(ISBLANK(Inställningar!C51),\" \",Inställningar!C51)","v":"3. Grundvatten"},{"$f":"IF(Värdering!F8=\"\",\"\",'Oviktade resultat'!F9)","v":1}]
[null,null,null,null,null,null,null,null,null,null,null,null,null,null,null,null,null,null,null,null,null,null,{"$f":"IF(ISBLANK(Inställningar!C52),\" \",Inställningar!C52)","v":"4. Ytvatten och sediment"},{"$f":"IF(Värdering!G8=\"\",\"\",'Oviktade resultat'!G9)","v":1}]
[null,null,null,null,null,null,null,null,null,null,null,null,null,null,null,null,null,null,null,null,null,null,{"$f":"IF(ISBLANK(Inställningar!C53),\" \",Inställningar!C53)","v":"5. Ekologi"},{"$f":"IF(Värdering!H8=\"\",\"\",'Oviktade resultat'!H9)","v":1}]
[null,null,null,null,null,null,null,null,null,null,null,null,null,null,null,null,null,null,null,null,null,null,{"$f":"IF(ISBLANK(Inställningar!C54),\" \",Inställningar!C54)","v":"6. Naturresurser och avfall"},{"$f":"IF(Värdering!I8=\"\",\"\",'Oviktade resultat'!I9)","v":1}]
[null,null,null,null,null,null,null,null,null,null,null,null,null,null,null,null,null,null,null,null,null,null,{"$f":"IF(ISBLANK(Inställningar!C55),\" \",Inställningar!C55)","v":"7. Hälsa och säkerhet"},{"$f":"IF(Värdering!J8=\"\",\"\",'Oviktade resultat'!J9)","v":1}]
[null,null,null,null,null,null,null,null,null,null,null,null,null,null,null,null,null,null,null,null,null,null,{"$f":"IF(ISBLANK(Inställningar!C56),\" \",Inställningar!C56)","v":"8. Etik och jämlikhet"},{"$f":"IF(Värdering!K8=\"\",\"\",'Oviktade resultat'!K9)","v":1}]
[null,null,null,null,null,null,null,null,null,null,null,null,null,null,null,null,null,null,null,null,null,null,{"$f":"IF(ISBLANK(Inställningar!C57),\" \",Inställningar!C57)","v":"9. Närmiljö"},{"$f":"IF(Värdering!L8=\"\",\"\",'Oviktade resultat'!L9)","v":1}]
[null,null,null,null,null,null,null,null,null,null,null,null,null,null,null,null,null,null,null,null,null,null,{"$f":"IF(ISBLANK(Inställningar!C58),\" \",Inställningar!C58)","v":"10. Lokalsamhälle"},{"$f":"IF(Värdering!M8=\"\",\"\",'Oviktade resultat'!M9)","v":1}]
[null,null,null,null,null,null,null,null,null,null,null,null,null,null,null,null,null,null,null,null,null,null,{"$f":"IF(ISBLANK(Inställningar!C59),\" \",Inställningar!C59)","v":"11. Osäkerhet och evidens"},{"$f":"IF(Värdering!N8=\"\",\"\",'Oviktade resultat'!N9)","v":1}]
[null,null,null,null,null,null,null,null,null,null,null,null,null,null,null,null,null,null,null,null,null,null,{"$f":"IF(ISBLANK(Inställningar!C60),\" \",Inställningar!C60)","v":"12. Direkta kostnader och nyttor"},{"$f":"IF(Värdering!O8=\"\",\"\",'Oviktade resultat'!O9)","v":1}]
[null,null,null,null,null,null,null,null,null,null,null,null,null,null,null,null,null,null,null,null,null,null,{"$f":"IF(ISBLANK(Inställningar!C61),\" \",Inställningar!C61)","v":"13. Indirekta kostnader och nyttor"},{"$f":"IF(Värdering!P8=\"\",\"\",'Oviktade resultat'!P9)","v":1}]
[null,null,null,null,null,null,null,null,null,null,null,null,null,null,null,null,null,null,null,null,null,null,{"$f":"IF(ISBLANK(Inställningar!C62),\" \",Inställningar!C62)","v":"14. Inducerade kostnader och nyttor"},{"$f":"IF(Värdering!Q8=\"\",\"\",'Oviktade resultat'!Q9)","v":1}]
[null,null,null,null,null,null,null,null,null,null,null,null,null,null,null,null,null,null,null,null,null,null,{"$f":"IF(ISBLANK(Inställningar!C63),\" \",Inställningar!C63)","v":"15. Beständighet och flexibilitet"},{"$f":"IF(Värdering!R8=\"\",\"\",'Oviktade resultat'!R9)","v":1}]
[null,null,null,null,null,null,null,null,null,null,null,null,null,null,null,null,null,null,null,null,null,null,{"$f":"IF(ISBLANK(Inställningar!C64),\" \",Inställningar!C64)","v":" "},{"$f":"IF(Värdering!S8=\"\",\"\",'Oviktade resultat'!S9)","v":""}]

{"sheet":"Resultat totalt","index":8,"n_rows":13,"n_cols":16,"rows_kept":13,"cut":false,"hidden":false,"merged":[]}
[{"$f":"Åtgärdsalternativ!B1","v":"XYZ-köping"},null,null,null,null,null,null,null,null,null,{"$f":"Inställningar!$G$1","v":"SAMLA version 2.6"}]
[]
[]
[]
[]
[]
[null,null,null,null,null,null,null,null,null,null,null,null,null,"Alternativ","Kort sikt","Lång sikt"]
[null,null,null,null,null,null,null,null,null,null,null,null,null,{"$f":"IF(Åtgärdsalternativ!A8=\"\",\"\",Åtgärdsalternativ!A8)","v":"Nollalternativ: ingen åtgärd"},{"$f":"IF('Resultat detalj'!AB8=\"\",\"\",'Resultat detalj'!AB8*Värdering!$C$11)","v":""},{"$f":"IF('Resultat detalj'!AB19=\"\",\"\",'Resultat detalj'!AB19*Värdering!$C$13)","v":""}]
[null,null,null,null,null,null,null,null,null,null,null,null,null,{"$f":"IF(Åtgärdsalternativ!A9=\"\",\"\",Åtgärdsalternativ!A9)","v":"Åtgärdsförslag 1"},{"$f":"IF('Resultat detalj'!AB9=\"\",\"\",'Resultat detalj'!AB9*Värdering!$C$15)","v":""},{"$f":"IF('Resultat detalj'!AB20=\"\",\"\",'Resultat detalj'!AB20*Värdering!$C$17)","v":""}]
[null,null,null,null,null,null,null,null,null,null,null,null,null,{"$f":"IF(Åtgärdsalternativ!A10=\"\",\"\",Åtgärdsalternativ!A10)","v":"Åtgärdsförslag 2"},{"$f":"IF('Resultat detalj'!AB10=\"\",\"\",'Resultat detalj'!AB10*Värdering!$C$19)","v":""},{"$f":"IF('Resultat detalj'!AB21=\"\",\"\",'Resultat detalj'!AB21*Värdering!$C$21)","v":""}]
[null,null,null,null,null,null,null,null,null,null,null,null,null,{"$f":"IF(Åtgärdsalternativ!A11=\"\",\"\",Åtgärdsalternativ!A11)","v":"Åtgärdsförslag 3"},{"$f":"IF('Resultat detalj'!AB11=\"\",\"\",'Resultat detalj'!AB11*Värdering!$C$23)","v":""},{"$f":"IF('Resultat detalj'!AB22=\"\",\"\",'Resultat detalj'!AB22*Värdering!$C$25)","v":""}]
[null,null,null,null,null,null,null,null,null,null,null,null,null,{"$f":"IF(Åtgärdsalternativ!A12=\"\",\"\",Åtgärdsalternativ!A12)","v":"Åtgärdsförslag 4"},{"$f":"IF('Resultat detalj'!AB12=\"\",\"\",'Resultat detalj'!AB12*Värdering!$C$27)","v":""},{"$f":"IF('Resultat detalj'!AB23=\"\",\"\",'Resultat detalj'!AB23*Värdering!$C$29)","v":""}]
[null,null,null,null,null,null,null,null,null,null,null,null,null,{"$f":"IF(Åtgärdsalternativ!A13=\"\",\"\",Åtgärdsalternativ!A13)","v":"Åtgärdsförslag 5"},{"$f":"IF('Resultat detalj'!AB13=\"\",\"\",'Resultat detalj'!AB13*Värdering!$C$31)","v":""},{"$f":"IF('Resultat detalj'!AB24=\"\",\"\",'Resultat detalj'!AB24*Värdering!$C$33)","v":""}]

{"sheet":"Resultat detalj","index":9,"n_rows":35,"n_cols":28,"rows_kept":35,"cut":false,"hidden":false,"merged":[[0,26,2,27],[5,23,5,27],[0,1,2,3],[0,19,2,20],[0,23,2,25],[37,2,37,3],[38,2,38,3],[35,24,35,25],[36,24,36,25],[37,24,37,25],[38,24,38,25],[15,24,15,25],[25,24,25,25],[34,2,34,3],[35,2,35,3],[36,2,36,3],[27,23,27,27],[16,23,16,27]]}
[null,{"$f":"Åtgärdsalternativ!B1","v":"XYZ-köping"},null,null,null,null,null,null,null,null,null,null,null,null,null,null,null,null,null,{"$f":"Inställningar!G1","v":"SAMLA version 2.6"},null,null,null,{"$f":"Åtgärdsalternativ!B1","v":"XYZ-köping"},null,null,{"$f":"Inställningar!G1","v":"SAMLA version 2.6"}]
[]
[null,null,null,null,null,null,null,{"$f":"Inställningar!C18","v":"Ekologisk"},null,null,null,{"$f":"Inställningar!C19","v":"Social"},null,null,null,{"$f":"Inställningar!C20","v":"Ekonomisk"}]
[]
[]
[null,null,null,null,null,null,null,null,null,null,null,null,null,null,null,null,null,null,null,null,null,null,null,{"$f":"\"Summa \" &Inställningar!C7","v":"Summa Kort sikt"}]
[null,null,null,null,null,null,null,null,null,null,null,null,null,null,null,null,null,null,null,null,null,null,null,"Alternativ",{"$f":"Inställningar!$C$18","v":"Ekologisk"},{"$f":"Inställningar!$C$19","v":"Social"},{"$f":"Inställningar!$C$20","v":"Ekonomisk"},"Summa"]
[null,null,null,null,null,null,null,null,null,null,null,null,null,null,null,null,null,null,null,null,null,null,null,{"$f":"IF(Åtgärdsalternativ!A8=\"\",\"\",Åtgärdsalternativ!A8)","v":"Nollalternativ: ingen åtgärd"},{"$f":"'Sum. dim 1'!S6","v":""},{"$f":"'Sum. dim 2'!S6","v":""},{"$f":"'Sum. dim 3'!S6","v":""},{"$f":"'Viktade resultat'!T10","v":""}]
[null,null,null,null,null,null,null,null,null,null,null,null,null,null,null,null,null,null,null,null,null,null,null,{"$f":"IF(Åtgärdsalternativ!A9=\"\",\"\",Åtgärdsalternativ!A9)","v":"Åtgärdsförslag 1"},{"$f":"'Sum. dim 1'!S8","v":""},{"$f":"'Sum. dim 2'!S8","v":""},{"$f":"'Sum. dim 3'!S8","v":""},{"$f":"'Viktade resultat'!T12","v":""}]
[null,null,null,null,null,null,null,null,null,null,null,null,null,null,null,null,null,null,null,null,null,null,null,{"$f":"IF(Åtgärdsalternativ!A10=\"\",\"\",Åtgärdsalternativ!A10)","v":"Åtgärdsförslag 2"},{"$f":"'Sum. dim 1'!S10","v":""},{"$f":"'Sum. dim 2'!S10","v":""},{"$f":"'Sum. dim 3'!S10","v":""},{"$f":"'Viktade resultat'!T14","v":""}]
[null,null,null,null,null,null,null,null,null,null,null,null,null,null,null,null,null,null,null,null,null,null,null,{"$f":"IF(Åtgärdsalternativ!A11=\"\",\"\",Åtgärdsalternativ!A11)","v":"Åtgärdsförslag 3"},{"$f":"'Sum. dim 1'!S12","v":""},{"$f":"'Sum. dim 2'!S12","v":""},{"$f":"'Sum. dim 3'!S12","v":""},{"$f":"'Viktade resultat'!T16","v":""}]
[null,null,null,null,null,null,null,null,null,null,null,null,null,null,null,null,null,null,null,null,null,null,null,{"$f":"IF(Åtgärdsalternativ!A12=\"\",\"\",Åtgärdsalternativ!A12)","v":"Åtgärdsförslag 4"},{"$f":"'Sum. dim 1'!S14","v":""},{"$f":"'Sum. dim 2'!S14","v":""},{"$f":"'Sum. dim 3'!S14","v":""},{"$f":"'Viktade resultat'!T18","v":""}]
[null,null,null,null,null,null,null,null,null,null,null,null,null,null,null,null,null,null,null,null,null,null,null,{"$f":"IF(Åtgärdsalternativ!A13=\"\",\"\",Åtgärdsalternativ!A13)","v":"Åtgärdsförslag 5"},{"$f":"'Sum. dim 1'!S16","v":""},{"$f":"'Sum. dim 2'!S16","v":""},{"$f":"'Sum. dim 3'!S16","v":""},{"$f":"'Viktade resultat'!T20","v":""}]
[]
[]
[]
[null,null,null,null,null,null,null,null,null,null,null,null,null,null,null,null,null,null,null,null,null,null,null,{"$f":"\"Summa \" &Inställningar!C8","v":"Summa Lång sikt"}]
[null,null,null,null,null,null,null,null,null,null,null,null,null,null,null,null,null,null,null,null,null,null,null,"Alternativ",{"$f":"Inställningar!$C$18","v":"Ekologisk"},{"$f":"Inställningar!$C$19","v":"Social"},{"$f":"Inställningar!$C$20","v":"Ekonomisk"},"Summa"]
[null,null,null,null,null,null,null,null,null,null,null,null,null,null,null,null,null,null,null,null,null,null,null,{"$f":"IF(Åtgärdsalternativ!A8=\"\",\"\",Åtgärdsalternativ!A8)","v":"Nollalternativ: ingen åtgärd"},{"$f":"'Sum. dim 1'!S7","v":""},{"$f":"'Sum. dim 2'!S7","v":""},{"$f":"'Sum. dim 3'!S7","v":""},{"$f":"'Viktade resultat'!T11","v":""}]
[null,null,null,null,null,null,null,null,null,null,null,null,null,null,null,null,null,null,null,null,null,null,null,{"$f":"IF(Åtgärdsalternativ!A9=\"\",\"\",Åtgärdsalternativ!A9)","v":"Åtgärdsförslag 1"},{"$f":"'Sum. dim 1'!S9","v":""},{"$f":"'Sum. dim 2'!S9","v":""},{"$f":"'Sum. dim 3'!S9","v":""},{"$f":"'Viktade resultat'!T13","v":""}]
[null,null,null,null,null,null,null,null,null,null,null,null,null,null,null,null,null,null,null,null,null,null,null,{"$f":"IF(Åtgärdsalternativ!A10=\"\",\"\",Åtgärdsalternativ!A10)","v":"Åtgärdsförslag 2"},{"$f":"'Sum. dim 1'!S11","v":""},{"$f":"'Sum. dim 2'!S11","v":""},{"$f":"'Sum. dim 3'!S11","v":""},{"$f":"'Viktade resultat'!T15","v":""}]
[null,null,null,null,null,null,null,null,null,null,null,null,null,null,null,null,null,null,null,null,null,null,null,{"$f":"IF(Åtgärdsalternativ!A11=\"\",\"\",Åtgärdsalternativ!A11)","v":"Åtgärdsförslag 3"},{"$f":"'Sum. dim 1'!S13","v":""},{"$f":"'Sum. dim 2'!S13","v":""},{"$f":"'Sum. dim 3'!S13","v":""},{"$f":"'Viktade resultat'!T17","v":""}]
[null,null,null,null,null,null,null,null,null,null,null,null,null,null,null,null,null,null,null,null,null,null,null,{"$f":"IF(Åtgärdsalternativ!A12=\"\",\"\",Åtgärdsalternativ!A12)","v":"Åtgärdsförslag 4"},{"$f":"'Sum. dim 1'!S15","v":""},{"$f":"'Sum. dim 2'!S15","v":""},{"$f":"'Sum. dim 3'!S15","v":""},{"$f":"'Viktade resultat'!T19","v":""}]
[null,null,null,null,null,null,null,null,null,null,null,null,null,null,null,null,null,null,null,null,null,null,null,{"$f":"IF(Åtgärdsalternativ!A13=\"\",\"\",Åtgärdsalternativ!A13)","v":"Åtgärdsförslag 5"},{"$f":"'Sum. dim 1'!S17","v":""},{"$f":"'Sum. dim 2'!S17","v":""},{"$f":"'Sum. dim 3'!S17","v":""},{"$f":"'Viktade resultat'!T21","v":""}]
[]
[]
[]
[null,null,null,null,null,null,null,null,null,null,null,null,null,null,null,null,null,null,null,null,null,null,null,"Summa totalt"]
[null,null,null,null,null,null,null,null,null,null,null,null,null,null,null,null,null,null,null,null,null,null,null,"Alternativ",{"$f":"Inställningar!$C$18","v":"Ekologisk"},{"$f":"Inställningar!$C$19","v":"Social"},{"$f":"Inställningar!$C$20","v":"Ekonomisk"},"Summa"]
[null,null,null,null,null,null,null,null,null,null,null,null,null,null,null,null,null,null,null,null,null,null,null,{"$f":"IF(Åtgärdsalternativ!A8=\"\",\"\",Åtgärdsalternativ!A8)","v":"Nollalternativ: ingen åtgärd"},{"$f":"'Sum. dim 1'!U6","v":""},{"$f":"'Sum. dim 2'!U6","v":""},{"$f":"'Sum. dim 3'!U6","v":""},{"$f":"'Viktade resultat'!U10","v":""}]
[null,null,null,null,null,null,null,null,null,null,null,null,null,null,null,null,null,null,null,null,null,null,null,{"$f":"IF(Åtgärdsalternativ!A9=\"\",\"\",Åtgärdsalternativ!A9)","v":"Åtgärdsförslag 1"},{"$f":"'Sum. dim 1'!U8","v":""},{"$f":"'Sum. dim 2'!U8","v":""},{"$f":"'Sum. dim 3'!U8","v":""},{"$f":"'Viktade resultat'!U12","v":""}]
[null,null,null,null,null,null,null,null,null,null,null,null,null,null,null,null,null,null,null,null,null,null,null,{"$f":"IF(Åtgärdsalternativ!A10=\"\",\"\",Åtgärdsalternativ!A10)","v":"Åtgärdsförslag 2"},{"$f":"'Sum. dim 1'!U10","v":""},{"$f":"'Sum. dim 2'!U10","v":""},{"$f":"'Sum. dim 3'!U10","v":""},{"$f":"'Viktade resultat'!U14","v":""}]
[null,null,null,null,null,null,null,null,null,null,null,null,null,null,null,null,null,null,null,null,null,null,null,{"$f":"IF(Åtgärdsalternativ!A11=\"\",\"\",Åtgärdsalternativ!A11)","v":"Åtgärdsförslag 3"},{"$f":"'Sum. dim 1'!U12","v":""},{"$f":"'Sum. dim 2'!U12","v":""},{"$f":"'Sum. dim 3'!U12","v":""},{"$f":"'Viktade resultat'!U16","v":""}]
[null,null,null,null,null,null,null,null,null,null,null,null,null,null,null,null,null,null,null,null,null,null,null,{"$f":"IF(Åtgärdsalternativ!A12=\"\",\"\",Åtgärdsalternativ!A12)","v":"Åtgärdsförslag 4"},{"$f":"'Sum. dim 1'!U14","v":""},{"$f":"'Sum. dim 2'!U14","v":""},{"$f":"'Sum. dim 3'!U14","v":""},{"$f":"'Viktade resultat'!U18","v":""}]
[null,null,null,null,null,null,null,null,null,null,null,null,null,null,null,null,null,null,null,null,null,null,null,{"$f":"IF(Åtgärdsalternativ!A13=\"\",\"\",Åtgärdsalternativ!A13)","v":"Åtgärdsförslag 5"},{"$f":"'Sum. dim 1'!U16","v":""},{"$f":"'Sum. dim 2'!U16","v":""},{"$f":"'Sum. dim 3'!U16","v":""},{"$f":"'Viktade resultat'!U20","v":""}]

{"sheet":"Kriterier","index":10,"n_rows":195,"n_cols":9,"rows_kept":195,"cut":false,"hidden":true,"merged":[]}
["Kriterier"]
[]
[]
[]
[]
[]
[]
[]
[]
[]
["Fördefinierade kriterieuppsättningar:",{"$f":"A23","v":"SGI Vägledning 7, riskvärdering (2022)"},"Typ av kriterium:","Poäng"]
[null,{"$f":"A39","v":"SuRF-UK indicators/criteria (2020)"},null,"Kvantitativt"]
[null,{"$f":"A55","v":"SCORE (Chalmers)"}]
[null,{"$f":"A71","v":"Äldre, traditionell kriterieuppsättning"}]
[null,{"$f":"A87","v":"Klorerade kolväten (NV 5663; Sweco)"}]
[null,{"$f":"A103","v":"MKA (NV 5891; Chalmers)"}]
[null,{"$f":"A119","v":"GRAF (NV 5892; FB Engineering)"}]
[null,{"$f":"A135","v":"Sveriges miljökvalitetsmål"}]
[null,{"$f":"A151","v":"FN:s globala hållbarhetsmål (Agenda 2030)"}]
[null,{"$f":"A167","v":"Global Reporting Initiative (GRI)"}]
[null,{"$f":"A183","v":"SMOCS Sustainability Criteria"}]
["Kriterieuppsättning","Hållbarhetsdimension","Kriterium","Dim.nr.","Typ","Enhet","Min-värde","Max-värde","Log-skala"]
["SGI Vägledning 7, riskvärdering (2022)","Ekologisk","1. Utsläpp till luft",1,1,null,null,null,false]
[null,"Social","2. Jord och mark",1,1,null,null,null,false]
[null,"Ekonomisk","3. Grundvatten",1,1,null,null,null,false]
[null,null,"4. Ytvatten och sediment",1,1,null,null,null,false]
[null,null,"5. Ekologi",1,1,null,null,null,false]
[null,null,"6. Naturresurser och avfall",1,1,null,null,null,false]
[null,null,"7. Hälsa och säkerhet",2,1,null,null,null,false]
[null,null,"8. Etik och jämlikhet",2,1,null,null,null,false]
[null,null,"9. Närmiljö",2,1,null,null,null,false]
[null,null,"10. Lokalsamhälle",2,1,null,null,null,false]
[null,null,"11. Osäkerhet och evidens",2,1,null,null,null,false]
[null,null,"12. Direkta kostnader och nyttor",3,1,null,null,null,false]
[null,null,"13. Indirekta kostnader och nyttor",3,1,null,null,null,false]
[null,null,"14. Inducerade kostnader och nyttor",3,1,null,null,null,false]
[null,null,"15. Beständighet och flexibilitet",3,1,null,null,null,false]
[]
["SuRF-UK indicators/criteria (2020)","Environmental","1. Emissions to air",1,1,null,null,null,false]
[null,"Social","2. Soil and ground conditions",1,1,null,null,null,false]
[null,"Economic","3. Groundwater and surface water",1,1,null,null,null,false]
[null,null,"4. Ecology",1,1,null,null,null,false]
[null,null,"5. Natural resources and waste",1,1,null,null,null,false]
[null,null,"6. Human health and safety",2,1,null,null,null,false]
[null,null,"7. Ethics and equity",2,1,null,null,null,false]
[null,null,"8. Neighbourhoods and locality",2,1,null,null,null,false]
[null,null,"9. Communities and community involvement",2,1,null,null,null,false]
[null,null,"10. Uncertainty and evidence",2,1,null,null,null,false]
[null,null,"11. Direct economic costs and benefits",3,1,null,null,null,false]
[null,null,"12. Indirect economic costs and benefits",3,1,null,null,null,false]
[null,null,"13. Employment and employment capital",3,1,null,null,null,false]
[null,null,"14. Induced economic costs and benefits",3,1,null,null,null,false]
[null,null,"15. Project lifespan and flexibility",3,1,null,null,null,false]
[]
["SCORE (Chalmers)","Environmental","1. Soil",1,1,null,null,null,false]
[null,"Social","2. Flora and fauna",1,1,null,null,null,false]
[null,"Economic","3. Groundwater",1,1,null,null,null,false]
[null,null,"4. Surface water",1,1,null,null,null,false]
[null,null,"5. Sediment",1,1,null,null,null,false]
[null,null,"6. Air",1,1,null,null,null,false]
[null,null,"7. Non-renewable natural resources",1,1,null,null,null,false]
[null,null,"8. Non-recyclable waste",1,1,null,null,null,false]
[null,null,"9. Local environment quality and amenity",2,1,null,null,null,false]
[null,null,"10. Cultural heritage",2,1,null,null,null,false]
[null,null,"11. Health and safety",2,1,null,null,null,false]
[null,null,"12. Equity",2,1,null,null,null,false]
[null,null,"13. Local participation",2,1,null,null,null,false]
[null,null,"14. Local acceptance",2,1,null,null,null,false]
[null,null,"15. Net present value (from CBA)",3,1,null,null,null,false]
[]
["Äldre, traditionell kriterieuppsättning","Ospecificerad","1. Måluppfyllelse",1,1,null,null,null,false]
[null,null,"2. Kostnad",1,1,null,null,null,false]
[null,null,"3. Risker",1,1,null,null,null,false]
[null,null,"4. Omgivningspåverkan",1,1,null,null,null,false]
[null,null,"5. Prövning",1,1,null,null,null,false]
[null,null,"6. Kulturvärden",1,1,null,null,null,false]
[null,null,"7. Landskap",1,1,null,null,null,false]
[null,null,"8. Övriga intressen",1,1,null,null,null,false]
[]
[]
[]
[]
[]
[]
[]
[]
["Klorerade kolväten (NV 5663; Sweco)","Ospecificerad","1. Skydd av människors hälsa och miljön",1,1,null,null,null,false]
[null,null,"2. Uppfyllande av myndighetskrav",1,1,null,null,null,false]
[null,null,"3. Långtidseffekt och beständighet",1,1,null,null,null,false]
[null,null,"4. Redukt. av toxic., mobil., vol. och mängd",1,1,null,null,null,false]
[null,null,"5. Korttidseffekt",1,1,null,null,null,false]
[null,null,"6. Genomförbarhet",1,1,null,null,null,false]
[null,null,"7a. Kapitalkostnader",1,1,null,null,null,false]
[null,null,"7b. Årliga D & U-kostnader",1,1,null,null,null,false]
[null,null,"7c. Bedömd efterbehandlingstid",1,1,null,null,null,false]
[null,null,"7d. Total nuvärdeskostnad",1,1,null,null,null,false]
[null,null,"8. Myndighetsacceptans",1,1,null,null,null,false]
[null,null,"9. Samhällsacceptans",1,1,null,null,null,false]
[]
[]
[]
[]
["MKA (NV 5891; Chalmers)","Ekologisk","1. Mark",1,1,null,null,null,false]
[null,"Socio-kulturell","2. Grundvatten",1,1,null,null,null,false]
[null,"Ekonomisk","3. Ytvatten",1,1,null,null,null,false]
[null,null,"4. Luft",1,1,null,null,null,false]
[null,null,"5. Sediment",1,1,null,null,null,false]
[null,null,"6. Förbrukning av naturresurser",1,1,null,null,null,false]
[null,null,"7. Rättvisa och acceptans",2,1,null,null,null,false]
[null,null,"8. Hälsa med avseende på områdets föroreningar",2,1,null,null,null,false]
[null,null,"9. Hälsa med avseende på åtgärdens utförande",2,1,null,null,null,false]
[null,null,"10. Kulturmiljö",2,1,null,null,null,false]
[null,null,"11. Rekreation",2,1,null,null,null,false]
[null,null,"12. Omgivningens markanvändning",2,1,null,null,null,false]
[null,null,"13. Områdets markanvändning",2,1,null,null,null,false]
[null,null,"14. Samhällsekonomisk lönsamhet (från KNA)",3,1,null,null,null,false]
[]
[]
["GRAF (NV 5892; FB Engineering)","Miljö/ekologi","1. Föroreningars farlighet",1,1,null,null,null,false]
[null,"Sociokultur","2. Exponeringsgrad",1,1,null,null,null,false]
[null,"Ekonomi","3. Spridningsförutsättningar",1,1,null,null,null,false]
[null,null,"4. Oro",2,1,null,null,null,false]
[null,null,"5. Beteendeförändringar",2,1,null,null,null,false]
[null,null,"6. Delaktighet",2,1,null,null,null,false]
[null,null,"7. Pågående/nuvarande värde",3,1,null,null,null,false]
[null,null,"8. Potentiellt/förväntat värde",3,1,null,null,null,false]
[null,null,"9. Skyddsvärde",3,1,null,null,null,false]
[]
[]
[]
[]
[]
[]
[]
["Sveriges miljökvalitetsmål","Miljökvalitet","1. Begränsad klimatpåverkan",1,1,null,null,null,false]
[null,null,"2. Frisk luft",1,1,null,null,null,false]
[null,null,"3. Bara naturlig försurning",1,1,null,null,null,false]
[null,null,"4. Giftfri miljö",1,1,null,null,null,false]
[null,null,"5. Skyddande ozonskikt",1,1,null,null,null,false]
[null,null,"6. Säker strålmiljö",1,1,null,null,null,false]
[null,null,"7. Ingen övergödning",1,1,null,null,null,false]
[null,null,"8. Levande sjöar och vattendrag",1,1,null,null,null,false]
[null,null,"9. Grundvatten av god kvalitet",1,1,null,null,null,false]
[null,null,"10. Hav i balans samt levande kust och skärgård",1,1,null,null,null,false]
[null,null,"11. Myllrande våtmarker",1,1,null,null,null,false]
[null,null,"12. Levande skogar",1,1,null,null,null,false]
[null,null,"13. Ett rikt odlingslandskap",1,1,null,null,null,false]
[null,null,"14. Storslagen fjällmiljö",1,1,null,null,null,false]
[null,null,"15. God bebyggd miljö",1,1,null,null,null,false]
[null,null,"16. Ett rikt växt- och djurliv",1,1,null,null,null,false]
["FN:s globala hållbarhetsmål (Agenda 2030)","Ospecificerad","1. Ingen fattigdom",1,1,null,null,null,false]
[null,null,"2. Ingen hunger",1,1,null,null,null,false]
[null,null,"3. Hälsa och välbefinnande",1,1,null,null,null,false]
[null,null,"4. God utbildning för alla",1,1,null,null,null,false]
[null,null,"5. Jämställdhet",1,1,null,null,null,false]
[null,null,"6. Rent vatten och sanitet för alla",1,1,null,null,null,false]
[null,null,"7. Hållbar energi för alla",1,1,null,null,null,false]
[null,null,"8. Anständiga arbetsvillkor och ekonomisk tillväxt",1,1,null,null,null,false]
[null,null,"9. Hållbar industri, innovationer och infrastruktur",1,1,null,null,null,false]
[null,null,"10. Minskad ojämlikhet",1,1,null,null,null,false]
[null,null,"11. Hållbara städer och samhällen",1,1,null,null,null,false]
[null,null,"12. Hållbar konsumtion och produktion",1,1,null,null,null,false]
[null,null,"13. Bekämpa klimatförändringarna",1,1,null,null,null,false]
[null,null,"14. Hav och marina resurser",1,1,null,null,null,false]
[null,null,"15. Ekosystem och biologisk mångfald",1,1,null,null,null,false]
[null,null,"16-17. Fredliga samhällen & Globalt partnerskap",1,1,null,null,null,false]
["Global Reporting Initiative (GRI)","Environmental","1. Materials",1,1,null,null,null,false]
[null,"Social","2. Energy",1,1,null,null,null,false]
[null,"Economic","3. Water",1,1,null,null,null,false]
[null,null,"4. Biodiversity",1,1,null,null,null,false]
[null,null,"5. Emissions, effluent and waste",1,1,null,null,null,false]
[null,null,"6. Products and services",1,1,null,null,null,false]
[null,null,"7. Compliance",1,1,null,null,null,false]
[null,null,"8. Transport",1,1,null,null,null,false]
[null,null,"9. Overall",1,1,null,null,null,false]
[null,null,"10. Labour practices",2,1,null,null,null,false]
[null,null,"11. Human rights",2,1,null,null,null,false]
[null,null,"12. Society",2,1,null,null,null,false]
[null,null,"13. Product responsibility",2,1,null,null,null,false]
[null,null,"14. Economic performance",3,1,null,null,null,false]
[null,null,"15. Market presence",3,1,null,null,null,false]
[null,null,"16. Indirect ekonomic impacts",3,1,null,null,null,false]
["SMOCS Sustainability Criteria","Environmental","1. Contamination, local effects",1,1,null,null,null,false]
[null,"Social","2. Consumption of resources",1,1,null,null,null,false]
[null,"Economic","3. Impacts on biodiversity",1,1,null,null,null,false]
[null,null,"4. Emissions, regional/national effects",1,1,null,null,null,false]
[null,null,"5. Human health",2,1,null,null,null,false]
[null,null,"6. Public acceptance",2,1,null,null,null,false]
[null,null,"7. Landscape features",2,1,null,null,null,false]
[null,null,"8. Landuse conflicts",2,1,null,null,null,false]
[null,null,"9. Areas of special interests",2,1,null,null,null,false]
[null,null,"10. Investment costs",3,1,null,null,null,false]
[null,null,"11. Life-cycle costs",3,1,null,null,null,false]
[null,null,"12. Local/regional economy",3,1,null,null,null,false]
[null,null,"13. National economy",3,1,null,null,null,false]

{"sheet":"Skalor o färg","index":11,"n_rows":50,"n_cols":11,"rows_kept":50,"cut":false,"hidden":true,"merged":[]}
["Poängskala, viktningsskala och färgsättning"]
[]
[]
["Poängskala:","-2 till +2"]
[null,"-5 till +5"]
[null,"-10 till +10"]
[]
["Vald maxpoäng:",{"$f":"OFFSET($B$10,Inställningar!$K$12,0,1,1)","v":5}]
[]
["Poängspann","Max-poäng"]
[4,2]
[10,5]
[20,10]
[]
["Viktningsskala:","0 till 3"]
[null,"0 till 10"]
[]
["Vald maxvikt:",{"$f":"IF(Inställningar!K14=1,3,10)","v":10}]
[]
[]
["Färgsättning matris 3"]
[]
["P-min / P-max","Nummer","min","röd -3","röd -2","röd -1","gul","grön +1","grön +2","grön +3","max"]
["-2 / 2 :",1,-2,-1.99,-0.99,0,0,0,0.99,1.99,2]
["-5 / 5 :",2,-5,-4,-2,-1,0,1,2,4,5]
["-10 / 10 :",3,-10,-8,-4,-2,0,2,4,8,10]
["Aktuell färgskala:",null,{"$f":"VLOOKUP(Inställningar!$K$12,$B$24:$K$26,2,FALSE)","v":-5},{"$f":"VLOOKUP(Inställningar!$K$12,$B$24:$K$26,3,FALSE)","v":-4},{"$f":"VLOOKUP(Inställningar!$K$12,$B$24:$K$26,4,FALSE)","v":-2},{"$f":"VLOOKUP(Inställningar!$K$12,$B$24:$K$26,5,FALSE)","v":-1},{"$f":"VLOOKUP(Inställningar!$K$12,$B$24:$K$26,6,FALSE)","v":0},{"$f":"VLOOKUP(Inställningar!$K$12,$B$24:$K$26,7,FALSE)","v":1},{"$f":"VLOOKUP(Inställningar!$K$12,$B$24:$K$26,8,FALSE)","v":2},{"$f":"VLOOKUP(Inställningar!$K$12,$B$24:$K$26,9,FALSE)","v":4},{"$f":"VLOOKUP(Inställningar!$K$12,$B$24:$K$26,10,FALSE)","v":5}]
[]
["Färglegend:",null,null,{"$f":"CONCATENATE(IF(D27=-1.99,\"≤ \",\"< \"),TEXT(D27,0))","v":"< -4"},{"$f":"CONCATENATE(TEXT(D27,0),\" till \",TEXT(E27,0))","v":"-4 till -2"},{"$f":"CONCATENATE(TEXT(E27,0),\" till \",TEXT(G27,0))","v":"-2 till 0"},{"$f":"TEXT(G27,0)","v":"0"},{"$f":"CONCATENATE(TEXT(G27,0),\" till \",TEXT(I27,0))","v":"0 till 2"},{"$f":"CONCATENATE(TEXT(I27,0),\" till \",TEXT(J27,0))","v":"2 till 4"},{"$f":"CONCATENATE(IF(J27=1.99,\"≥ \",\"> \"),TEXT(J27,0))","v":"> 4"}]
[]
[]
[]
[]
["Färgsättning matris 4"]
[]
["P-skala / V-skala",{"$f":"'Skalor o färg'!B15","v":"0 till 3"},{"$f":"'Skalor o färg'!B16","v":"0 till 10"}]
[{"$f":"'Skalor o färg'!B4","v":"-2 till +2"},1,2]
[{"$f":"'Skalor o färg'!B5","v":"-5 till +5"},3,4]
[{"$f":"'Skalor o färg'!B6","v":"-10 till +10"},5,6]
[]
["P-min / V-max","Nummer","min","röd -3","röd -2","röd -1","gul","grön +1","grön +2","grön +3","max"]
["-2 / 3 :",1,-6,-5,-3,-1,0,1,3,5,6]
["-2 / 10 :",2,-20,-15,-10,-5,0,5,10,15,20]
["-5 / 3 :",3,-15,-12,-9,-3,0,3,9,12,15]
["-5 / 10 :",4,-50,-40,-20,-5,0,5,20,40,50]
["-10 / 3 :",5,-30,-25,-15,-5,0,5,15,25,30]
["-10 / 10 :",6,-100,-80,-50,-20,0,20,50,80,100]
["Aktuell färgskala:",null,{"$f":"VLOOKUP(OFFSET('Skalor o färg'!$A$36,Inställningar!$K$12,Inställningar!$K$14,1,1),$B$42:$K$47,2,FALSE)","v":-50},{"$f":"VLOOKUP(OFFSET('Skalor o färg'!$A$36,Inställningar!$K$12,Inställningar!$K$14,1,1),$B$42:$K$47,3,FALSE)","v":-40},{"$f":"VLOOKUP(OFFSET('Skalor o färg'!$A$36,Inställningar!$K$12,Inställningar!$K$14,1,1),$B$42:$K$47,4,FALSE)","v":-20},{"$f":"VLOOKUP(OFFSET('Skalor o färg'!$A$36,Inställningar!$K$12,Inställningar!$K$14,1,1),$B$42:$K$47,5,FALSE)","v":-5},{"$f":"VLOOKUP(OFFSET('Skalor o färg'!$A$36,Inställningar!$K$12,Inställningar!$K$14,1,1),$B$42:$K$47,6,FALSE)","v":0},{"$f":"VLOOKUP(OFFSET('Skalor o färg'!$A$36,Inställningar!$K$12,Inställningar!$K$14,1,1),$B$42:$K$47,7,FALSE)","v":5},{"$f":"VLOOKUP(OFFSET('Skalor o färg'!$A$36,Inställningar!$K$12,Inställningar!$K$14,1,1),$B$42:$K$47,8,FALSE)","v":20},{"$f":"VLOOKUP(OFFSET('Skalor o färg'!$A$36,Inställningar!$K$12,Inställningar!$K$14,1,1),$B$42:$K$47,9,FALSE)","v":40},{"$f":"VLOOKUP(OFFSET('Skalor o färg'!$A$36,Inställningar!$K$12,Inställningar!$K$14,1,1),$B$42:$K$47,10,FALSE)","v":50}]
[]
["Färglegend:",null,null,{"$f":"CONCATENATE(\"< \",TEXT(D48,0))","v":"< -40"},{"$f":"CONCATENATE(TEXT(D48,0),\" till \",TEXT(E48,0))","v":"-40 till -20"},{"$f":"CONCATENATE(TEXT(E48,0),\" till \",TEXT(F48,0))","v":"-20 till -5"},{"$f":"CONCATENATE(TEXT(F48,0),\" till \",TEXT(H48,0))","v":"-5 till 5"},{"$f":"CONCATENATE(TEXT(H48,0),\" till \",TEXT(I48,0))","v":"5 till 20"},{"$f":"CONCATENATE(TEXT(I48,0),\" till \",TEXT(J48,0))","v":"20 till 40"},{"$f":"CONCATENATE(\"> \",TEXT(J48,0))","v":"> 40"}]

{"sheet":"Sum. dim 1","index":12,"n_rows":17,"n_cols":21,"rows_kept":17,"cut":false,"hidden":true,"merged":[[7,0,8,0],[7,20,8,20],[0,0,0,3],[2,0,2,1],[2,18,4,18],[2,20,3,20],[3,0,3,1],[4,0,4,1],[5,0,6,0],[5,20,6,20],[2,19,4,19],[15,0,16,0],[15,20,16,20],[9,0,10,0],[9,20,10,20],[11,0,12,0],[11,20,12,20],[13,0,14,0],[13,20,14,20]]}
["Matris 4a - summering dimension:"]
[{"$f":"Inställningar!C18","v":"Ekologisk"}]
["Åtgärd",null,{"$f":"Inställningar!K47","v":"Ekologisk"},{"$f":"Inställningar!L47","v":"Ekologisk"},{"$f":"Inställningar!M47","v":"Ekologisk"},{"$f":"Inställningar!N47","v":"Ekologisk"},{"$f":"Inställningar!O47","v":"Ekologisk"},{"$f":"Inställningar!P47","v":"Ekologisk"},{"$f":"Inställningar!Q47","v":"Social"},{"$f":"Inställningar!R47","v":"Social"},{"$f":"Inställningar!S47","v":"Social"},{"$f":"Inställningar!T47","v":"Social"},{"$f":"Inställningar!U47","v":"Social"},{"$f":"Inställningar!V47","v":"Ekonomisk"},{"$f":"Inställningar!W47","v":"Ekonomisk"},{"$f":"Inställningar!X47","v":"Ekonomisk"},{"$f":"Inställningar!Y47","v":"Ekonomisk"},{"$f":"Inställningar!Z47","v":""},"Delsumma (inklusive viktning kriterier)","Viktad delsumma (inklusive viktning tids-perspektiv)","Summa"]
[null,null,{"$f":"Värdering!D8","v":"1. Utsläpp till luft"},{"$f":"Värdering!E8","v":"2. Jord och mark"},{"$f":"Värdering!F8","v":"3. Grundvatten"},{"$f":"Värdering!G8","v":"4. Ytvatten och sediment"},{"$f":"Värdering!H8","v":"5. Ekologi"},{"$f":"Värdering!I8","v":"6. Naturresurser och avfall"},{"$f":"Värdering!J8","v":"7. Hälsa och säkerhet"},{"$f":"Värdering!K8","v":"8. Etik och jämlikhet"},{"$f":"Värdering!L8","v":"9. Närmiljö"},{"$f":"Värdering!M8","v":"10. Lokalsamhälle"},{"$f":"Värdering!N8","v":"11. Osäkerhet och evidens"},{"$f":"Värdering!O8","v":"12. Direkta kostnader och nyttor"},{"$f":"Värdering!P8","v":"13. Indirekta kostnader och nyttor"},{"$f":"Värdering!Q8","v":"14. Inducerade kostnader och nyttor"},{"$f":"Värdering!R8","v":"15. Beständighet och flexibilitet"},{"$f":"Värdering!S8","v":""}]
["Vikt",null,{"$f":"'Oviktade resultat'!D9","v":1},{"$f":"'Oviktade resultat'!E9","v":1},{"$f":"'Oviktade resultat'!F9","v":1},{"$f":"'Oviktade resultat'!G9","v":1},{"$f":"'Oviktade resultat'!H9","v":1},{"$f":"'Oviktade resultat'!I9","v":1},{"$f":"'Oviktade resultat'!J9","v":1},{"$f":"'Oviktade resultat'!K9","v":1},{"$f":"'Oviktade resultat'!L9","v":1},{"$f":"'Oviktade resultat'!M9","v":1},{"$f":"'Oviktade resultat'!N9","v":1},{"$f":"'Oviktade resultat'!O9","v":1},{"$f":"'Oviktade resultat'!P9","v":1},{"$f":"'Oviktade resultat'!Q9","v":1},{"$f":"'Oviktade resultat'!R9","v":1},{"$f":"'Oviktade resultat'!S9","v":""}]
[{"$f":"Åtgärdsalternativ!A8","v":"Nollalternativ: ingen åtgärd"},"Kort sikt",{"$f":"IF(C$3=$A$2,'Viktade resultat'!D10,0)","v":""},{"$f":"IF(D$3=$A$2,'Viktade resultat'!E10,0)","v":""},{"$f":"IF(E$3=$A$2,'Viktade resultat'!F10,0)","v":""},{"$f":"IF(F$3=$A$2,'Viktade resultat'!G10,0)","v":""},{"$f":"IF(G$3=$A$2,'Viktade resultat'!H10,0)","v":""},{"$f":"IF(H$3=$A$2,'Viktade resultat'!I10,0)","v":""},{"$f":"IF(I$3=$A$2,'Viktade resultat'!J10,0)","v":0},{"$f":"IF(J$3=$A$2,'Viktade resultat'!K10,0)","v":0},{"$f":"IF(K$3=$A$2,'Viktade resultat'!L10,0)","v":0},{"$f":"IF(L$3=$A$2,'Viktade resultat'!M10,0)","v":0},{"$f":"IF(M$3=$A$2,'Viktade resultat'!N10,0)","v":0},{"$f":"IF(N$3=$A$2,'Viktade resultat'!O10,0)","v":0},{"$f":"IF(O$3=$A$2,'Viktade resultat'!P10,0)","v":0},{"$f":"IF(P$3=$A$2,'Viktade resultat'!Q10,0)","v":0},{"$f":"IF(Q$3=$A$2,'Viktade resultat'!R10,0)","v":0},{"$f":"IF(R$3=$A$2,'Viktade resultat'!S10,0)","v":0},{"$f":"IF(ISNUMBER('Oviktade resultat'!T10),(SUM(C6:R6)),\"\")","v":""},{"$f":"IF(ISNUMBER('Oviktade resultat'!T10),S6*'Resultat vikter'!$X$11,\"\")","v":""},{"$f":"IF((ISNUMBER('Oviktade resultat'!U10)),(SUM(T6:T7)),\"\")","v":""}]
[null,"Lång sikt",{"$f":"IF(C$3=$A$2,'Viktade resultat'!D11,0)","v":""},{"$f":"IF(D$3=$A$2,'Viktade resultat'!E11,0)","v":""},{"$f":"IF(E$3=$A$2,'Viktade resultat'!F11,0)","v":""},{"$f":"IF(F$3=$A$2,'Viktade resultat'!G11,0)","v":""},{"$f":"IF(G$3=$A$2,'Viktade resultat'!H11,0)","v":""},{"$f":"IF(H$3=$A$2,'Viktade resultat'!I11,0)","v":""},{"$f":"IF(I$3=$A$2,'Viktade resultat'!J11,0)","v":0},{"$f":"IF(J$3=$A$2,'Viktade resultat'!K11,0)","v":0},{"$f":"IF(K$3=$A$2,'Viktade resultat'!L11,0)","v":0},{"$f":"IF(L$3=$A$2,'Viktade resultat'!M11,0)","v":0},{"$f":"IF(M$3=$A$2,'Viktade resultat'!N11,0)","v":0},{"$f":"IF(N$3=$A$2,'Viktade resultat'!O11,0)","v":0},{"$f":"IF(O$3=$A$2,'Viktade resultat'!P11,0)","v":0},{"$f":"IF(P$3=$A$2,'Viktade resultat'!Q11,0)","v":0},{"$f":"IF(Q$3=$A$2,'Viktade resultat'!R11,0)","v":0},{"$f":"IF(R$3=$A$2,'Viktade resultat'!S11,0)","v":0},{"$f":"IF(ISNUMBER('Oviktade resultat'!T11),(SUM(C7:R7)),\"\")","v":""},{"$f":"IF(ISNUMBER('Oviktade resultat'!T11),S7*'Resultat vikter'!$X$12,\"\")","v":""}]
[{"$f":"Åtgärdsalternativ!A9","v":"Åtgärdsförslag 1"},"Kort sikt",{"$f":"IF(C$3=$A$2,'Viktade resultat'!D12,0)","v":""},{"$f":"IF(D$3=$A$2,'Viktade resultat'!E12,0)","v":""},{"$f":"IF(E$3=$A$2,'Viktade resultat'!F12,0)","v":""},{"$f":"IF(F$3=$A$2,'Viktade resultat'!G12,0)","v":""},{"$f":"IF(G$3=$A$2,'Viktade resultat'!H12,0)","v":""},{"$f":"IF(H$3=$A$2,'Viktade resultat'!I12,0)","v":""},{"$f":"IF(I$3=$A$2,'Viktade resultat'!J12,0)","v":0},{"$f":"IF(J$3=$A$2,'Viktade resultat'!K12,0)","v":0},{"$f":"IF(K$3=$A$2,'Viktade resultat'!L12,0)","v":0},{"$f":"IF(L$3=$A$2,'Viktade resultat'!M12,0)","v":0},{"$f":"IF(M$3=$A$2,'Viktade resultat'!N12,0)","v":0},{"$f":"IF(N$3=$A$2,'Viktade resultat'!O12,0)","v":0},{"$f":"IF(O$3=$A$2,'Viktade resultat'!P12,0)","v":0},{"$f":"IF(P$3=$A$2,'Viktade resultat'!Q12,0)","v":0},{"$f":"IF(Q$3=$A$2,'Viktade resultat'!R12,0)","v":0},{"$f":"IF(R$3=$A$2,'Viktade resultat'!S12,0)","v":0},{"$f":"IF(ISNUMBER('Oviktade resultat'!T12),(SUM(C8:R8)),\"\")","v":""},{"$f":"IF(ISNUMBER('Oviktade resultat'!T12),S8*'Resultat vikter'!$X$11,\"\")","v":""},{"$f":"IF((ISNUMBER('Oviktade resultat'!U12)),(SUM(T8:T9)),\"\")","v":""}]
[null,"Lång sikt",{"$f":"IF(C$3=$A$2,'Viktade resultat'!D13,0)","v":""},{"$f":"IF(D$3=$A$2,'Viktade resultat'!E13,0)","v":""},{"$f":"IF(E$3=$A$2,'Viktade resultat'!F13,0)","v":""},{"$f":"IF(F$3=$A$2,'Viktade resultat'!G13,0)","v":""},{"$f":"IF(G$3=$A$2,'Viktade resultat'!H13,0)","v":""},{"$f":"IF(H$3=$A$2,'Viktade resultat'!I13,0)","v":""},{"$f":"IF(I$3=$A$2,'Viktade resultat'!J13,0)","v":0},{"$f":"IF(J$3=$A$2,'Viktade resultat'!K13,0)","v":0},{"$f":"IF(K$3=$A$2,'Viktade resultat'!L13,0)","v":0},{"$f":"IF(L$3=$A$2,'Viktade resultat'!M13,0)","v":0},{"$f":"IF(M$3=$A$2,'Viktade resultat'!N13,0)","v":0},{"$f":"IF(N$3=$A$2,'Viktade resultat'!O13,0)","v":0},{"$f":"IF(O$3=$A$2,'Viktade resultat'!P13,0)","v":0},{"$f":"IF(P$3=$A$2,'Viktade resultat'!Q13,0)","v":0},{"$f":"IF(Q$3=$A$2,'Viktade resultat'!R13,0)","v":0},{"$f":"IF(R$3=$A$2,'Viktade resultat'!S13,0)","v":0},{"$f":"IF(ISNUMBER('Oviktade resultat'!T13),(SUM(C9:R9)),\"\")","v":""},{"$f":"IF(ISNUMBER('Oviktade resultat'!T13),S9*'Resultat vikter'!$X$12,\"\")","v":""}]
[{"$f":"Åtgärdsalternativ!A10","v":"Åtgärdsförslag 2"},"Kort sikt",{"$f":"IF(C$3=$A$2,'Viktade resultat'!D14,0)","v":""},{"$f":"IF(D$3=$A$2,'Viktade resultat'!E14,0)","v":""},{"$f":"IF(E$3=$A$2,'Viktade resultat'!F14,0)","v":""},{"$f":"IF(F$3=$A$2,'Viktade resultat'!G14,0)","v":""},{"$f":"IF(G$3=$A$2,'Viktade resultat'!H14,0)","v":""},{"$f":"IF(H$3=$A$2,'Viktade resultat'!I14,0)","v":""},{"$f":"IF(I$3=$A$2,'Viktade resultat'!J14,0)","v":0},{"$f":"IF(J$3=$A$2,'Viktade resultat'!K14,0)","v":0},{"$f":"IF(K$3=$A$2,'Viktade resultat'!L14,0)","v":0},{"$f":"IF(L$3=$A$2,'Viktade resultat'!M14,0)","v":0},{"$f":"IF(M$3=$A$2,'Viktade resultat'!N14,0)","v":0},{"$f":"IF(N$3=$A$2,'Viktade resultat'!O14,0)","v":0},{"$f":"IF(O$3=$A$2,'Viktade resultat'!P14,0)","v":0},{"$f":"IF(P$3=$A$2,'Viktade resultat'!Q14,0)","v":0},{"$f":"IF(Q$3=$A$2,'Viktade resultat'!R14,0)","v":0},{"$f":"IF(R$3=$A$2,'Viktade resultat'!S14,0)","v":0},{"$f":"IF(ISNUMBER('Oviktade resultat'!T14),(SUM(C10:R10)),\"\")","v":""},{"$f":"IF(ISNUMBER('Oviktade resultat'!T14),S10*'Resultat vikter'!$X$11,\"\")","v":""},{"$f":"IF((ISNUMBER('Oviktade resultat'!U14)),(SUM(T10:T11)),\"\")","v":""}]
[null,"Lång sikt",{"$f":"IF(C$3=$A$2,'Viktade resultat'!D15,0)","v":""},{"$f":"IF(D$3=$A$2,'Viktade resultat'!E15,0)","v":""},{"$f":"IF(E$3=$A$2,'Viktade resultat'!F15,0)","v":""},{"$f":"IF(F$3=$A$2,'Viktade resultat'!G15,0)","v":""},{"$f":"IF(G$3=$A$2,'Viktade resultat'!H15,0)","v":""},{"$f":"IF(H$3=$A$2,'Viktade resultat'!I15,0)","v":""},{"$f":"IF(I$3=$A$2,'Viktade resultat'!J15,0)","v":0},{"$f":"IF(J$3=$A$2,'Viktade resultat'!K15,0)","v":0},{"$f":"IF(K$3=$A$2,'Viktade resultat'!L15,0)","v":0},{"$f":"IF(L$3=$A$2,'Viktade resultat'!M15,0)","v":0},{"$f":"IF(M$3=$A$2,'Viktade resultat'!N15,0)","v":0},{"$f":"IF(N$3=$A$2,'Viktade resultat'!O15,0)","v":0},{"$f":"IF(O$3=$A$2,'Viktade resultat'!P15,0)","v":0},{"$f":"IF(P$3=$A$2,'Viktade resultat'!Q15,0)","v":0},{"$f":"IF(Q$3=$A$2,'Viktade resultat'!R15,0)","v":0},{"$f":"IF(R$3=$A$2,'Viktade resultat'!S15,0)","v":0},{"$f":"IF(ISNUMBER('Oviktade resultat'!T15),(SUM(C11:R11)),\"\")","v":""},{"$f":"IF(ISNUMBER('Oviktade resultat'!T15),S11*'Resultat vikter'!$X$12,\"\")","v":""}]
[{"$f":"Åtgärdsalternativ!A11","v":"Åtgärdsförslag 3"},"Kort sikt",{"$f":"IF(C$3=$A$2,'Viktade resultat'!D16,0)","v":""},{"$f":"IF(D$3=$A$2,'Viktade resultat'!E16,0)","v":""},{"$f":"IF(E$3=$A$2,'Viktade resultat'!F16,0)","v":""},{"$f":"IF(F$3=$A$2,'Viktade resultat'!G16,0)","v":""},{"$f":"IF(G$3=$A$2,'Viktade resultat'!H16,0)","v":""},{"$f":"IF(H$3=$A$2,'Viktade resultat'!I16,0)","v":""},{"$f":"IF(I$3=$A$2,'Viktade resultat'!J16,0)","v":0},{"$f":"IF(J$3=$A$2,'Viktade resultat'!K16,0)","v":0},{"$f":"IF(K$3=$A$2,'Viktade resultat'!L16,0)","v":0},{"$f":"IF(L$3=$A$2,'Viktade resultat'!M16,0)","v":0},{"$f":"IF(M$3=$A$2,'Viktade resultat'!N16,0)","v":0},{"$f":"IF(N$3=$A$2,'Viktade resultat'!O16,0)","v":0},{"$f":"IF(O$3=$A$2,'Viktade resultat'!P16,0)","v":0},{"$f":"IF(P$3=$A$2,'Viktade resultat'!Q16,0)","v":0},{"$f":"IF(Q$3=$A$2,'Viktade resultat'!R16,0)","v":0},{"$f":"IF(R$3=$A$2,'Viktade resultat'!S16,0)","v":0},{"$f":"IF(ISNUMBER('Oviktade resultat'!T16),(SUM(C12:R12)),\"\")","v":""},{"$f":"IF(ISNUMBER('Oviktade resultat'!T16),S12*'Resultat vikter'!$X$11,\"\")","v":""},{"$f":"IF((ISNUMBER('Oviktade resultat'!U16)),(SUM(T12:T13)),\"\")","v":""}]
[null,"Lång sikt",{"$f":"IF(C$3=$A$2,'Viktade resultat'!D17,0)","v":""},{"$f":"IF(D$3=$A$2,'Viktade resultat'!E17,0)","v":""},{"$f":"IF(E$3=$A$2,'Viktade resultat'!F17,0)","v":""},{"$f":"IF(F$3=$A$2,'Viktade resultat'!G17,0)","v":""},{"$f":"IF(G$3=$A$2,'Viktade resultat'!H17,0)","v":""},{"$f":"IF(H$3=$A$2,'Viktade resultat'!I17,0)","v":""},{"$f":"IF(I$3=$A$2,'Viktade resultat'!J17,0)","v":0},{"$f":"IF(J$3=$A$2,'Viktade resultat'!K17,0)","v":0},{"$f":"IF(K$3=$A$2,'Viktade resultat'!L17,0)","v":0},{"$f":"IF(L$3=$A$2,'Viktade resultat'!M17,0)","v":0},{"$f":"IF(M$3=$A$2,'Viktade resultat'!N17,0)","v":0},{"$f":"IF(N$3=$A$2,'Viktade resultat'!O17,0)","v":0},{"$f":"IF(O$3=$A$2,'Viktade resultat'!P17,0)","v":0},{"$f":"IF(P$3=$A$2,'Viktade resultat'!Q17,0)","v":0},{"$f":"IF(Q$3=$A$2,'Viktade resultat'!R17,0)","v":0},{"$f":"IF(R$3=$A$2,'Viktade resultat'!S17,0)","v":0},{"$f":"IF(ISNUMBER('Oviktade resultat'!T17),(SUM(C13:R13)),\"\")","v":""},{"$f":"IF(ISNUMBER('Oviktade resultat'!T17),S13*'Resultat vikter'!$X$12,\"\")","v":""}]
[{"$f":"Åtgärdsalternativ!A12","v":"Åtgärdsförslag 4"},"Kort sikt",{"$f":"IF(C$3=$A$2,'Viktade resultat'!D18,0)","v":""},{"$f":"IF(D$3=$A$2,'Viktade resultat'!E18,0)","v":""},{"$f":"IF(E$3=$A$2,'Viktade resultat'!F18,0)","v":""},{"$f":"IF(F$3=$A$2,'Viktade resultat'!G18,0)","v":""},{"$f":"IF(G$3=$A$2,'Viktade resultat'!H18,0)","v":""},{"$f":"IF(H$3=$A$2,'Viktade resultat'!I18,0)","v":""},{"$f":"IF(I$3=$A$2,'Viktade resultat'!J18,0)","v":0},{"$f":"IF(J$3=$A$2,'Viktade resultat'!K18,0)","v":0},{"$f":"IF(K$3=$A$2,'Viktade resultat'!L18,0)","v":0},{"$f":"IF(L$3=$A$2,'Viktade resultat'!M18,0)","v":0},{"$f":"IF(M$3=$A$2,'Viktade resultat'!N18,0)","v":0},{"$f":"IF(N$3=$A$2,'Viktade resultat'!O18,0)","v":0},{"$f":"IF(O$3=$A$2,'Viktade resultat'!P18,0)","v":0},{"$f":"IF(P$3=$A$2,'Viktade resultat'!Q18,0)","v":0},{"$f":"IF(Q$3=$A$2,'Viktade resultat'!R18,0)","v":0},{"$f":"IF(R$3=$A$2,'Viktade resultat'!S18,0)","v":0},{"$f":"IF(ISNUMBER('Oviktade resultat'!T18),(SUM(C14:R14)),\"\")","v":""},{"$f":"IF(ISNUMBER('Oviktade resultat'!T18),S14*'Resultat vikter'!$X$11,\"\")","v":""},{"$f":"IF((ISNUMBER('Oviktade resultat'!U18)),(SUM(T14:T15)),\"\")","v":""}]
[null,"Lång sikt",{"$f":"IF(C$3=$A$2,'Viktade resultat'!D19,0)","v":""},{"$f":"IF(D$3=$A$2,'Viktade resultat'!E19,0)","v":""},{"$f":"IF(E$3=$A$2,'Viktade resultat'!F19,0)","v":""},{"$f":"IF(F$3=$A$2,'Viktade resultat'!G19,0)","v":""},{"$f":"IF(G$3=$A$2,'Viktade resultat'!H19,0)","v":""},{"$f":"IF(H$3=$A$2,'Viktade resultat'!I19,0)","v":""},{"$f":"IF(I$3=$A$2,'Viktade resultat'!J19,0)","v":0},{"$f":"IF(J$3=$A$2,'Viktade resultat'!K19,0)","v":0},{"$f":"IF(K$3=$A$2,'Viktade resultat'!L19,0)","v":0},{"$f":"IF(L$3=$A$2,'Viktade resultat'!M19,0)","v":0},{"$f":"IF(M$3=$A$2,'Viktade resultat'!N19,0)","v":0},{"$f":"IF(N$3=$A$2,'Viktade resultat'!O19,0)","v":0},{"$f":"IF(O$3=$A$2,'Viktade resultat'!P19,0)","v":0},{"$f":"IF(P$3=$A$2,'Viktade resultat'!Q19,0)","v":0},{"$f":"IF(Q$3=$A$2,'Viktade resultat'!R19,0)","v":0},{"$f":"IF(R$3=$A$2,'Viktade resultat'!S19,0)","v":0},{"$f":"IF(ISNUMBER('Oviktade resultat'!T19),(SUM(C15:R15)),\"\")","v":""},{"$f":"IF(ISNUMBER('Oviktade resultat'!T19),S15*'Resultat vikter'!$X$12,\"\")","v":""}]
[{"$f":"Åtgärdsalternativ!A13","v":"Åtgärdsförslag 5"},"Kort sikt",{"$f":"IF(C$3=$A$2,'Viktade resultat'!D20,0)","v":""},{"$f":"IF(D$3=$A$2,'Viktade resultat'!E20,0)","v":""},{"$f":"IF(E$3=$A$2,'Viktade resultat'!F20,0)","v":""},{"$f":"IF(F$3=$A$2,'Viktade resultat'!G20,0)","v":""},{"$f":"IF(G$3=$A$2,'Viktade resultat'!H20,0)","v":""},{"$f":"IF(H$3=$A$2,'Viktade resultat'!I20,0)","v":""},{"$f":"IF(I$3=$A$2,'Viktade resultat'!J20,0)","v":0},{"$f":"IF(J$3=$A$2,'Viktade resultat'!K20,0)","v":0},{"$f":"IF(K$3=$A$2,'Viktade resultat'!L20,0)","v":0},{"$f":"IF(L$3=$A$2,'Viktade resultat'!M20,0)","v":0},{"$f":"IF(M$3=$A$2,'Viktade resultat'!N20,0)","v":0},{"$f":"IF(N$3=$A$2,'Viktade resultat'!O20,0)","v":0},{"$f":"IF(O$3=$A$2,'Viktade resultat'!P20,0)","v":0},{"$f":"IF(P$3=$A$2,'Viktade resultat'!Q20,0)","v":0},{"$f":"IF(Q$3=$A$2,'Viktade resultat'!R20,0)","v":0},{"$f":"IF(R$3=$A$2,'Viktade resultat'!S20,0)","v":0},{"$f":"IF(ISNUMBER('Oviktade resultat'!T20),(SUM(C16:R16)),\"\")","v":""},{"$f":"IF(ISNUMBER('Oviktade resultat'!T20),S16*'Resultat vikter'!$X$11,\"\")","v":""},{"$f":"IF((ISNUMBER('Oviktade resultat'!U20)),(SUM(T16:T17)),\"\")","v":""}]
[null,"Lång sikt",{"$f":"IF(C$3=$A$2,'Viktade resultat'!D21,0)","v":""},{"$f":"IF(D$3=$A$2,'Viktade resultat'!E21,0)","v":""},{"$f":"IF(E$3=$A$2,'Viktade resultat'!F21,0)","v":""},{"$f":"IF(F$3=$A$2,'Viktade resultat'!G21,0)","v":""},{"$f":"IF(G$3=$A$2,'Viktade resultat'!H21,0)","v":""},{"$f":"IF(H$3=$A$2,'Viktade resultat'!I21,0)","v":""},{"$f":"IF(I$3=$A$2,'Viktade resultat'!J21,0)","v":0},{"$f":"IF(J$3=$A$2,'Viktade resultat'!K21,0)","v":0},{"$f":"IF(K$3=$A$2,'Viktade resultat'!L21,0)","v":0},{"$f":"IF(L$3=$A$2,'Viktade resultat'!M21,0)","v":0},{"$f":"IF(M$3=$A$2,'Viktade resultat'!N21,0)","v":0},{"$f":"IF(N$3=$A$2,'Viktade resultat'!O21,0)","v":0},{"$f":"IF(O$3=$A$2,'Viktade resultat'!P21,0)","v":0},{"$f":"IF(P$3=$A$2,'Viktade resultat'!Q21,0)","v":0},{"$f":"IF(Q$3=$A$2,'Viktade resultat'!R21,0)","v":0},{"$f":"IF(R$3=$A$2,'Viktade resultat'!S21,0)","v":0},{"$f":"IF(ISNUMBER('Oviktade resultat'!T21),(SUM(C17:R17)),\"\")","v":""},{"$f":"IF(ISNUMBER('Oviktade resultat'!T21),S17*'Resultat vikter'!$X$12,\"\")","v":""}]

{"sheet":"Vikt dim 1","index":13,"n_rows":25,"n_cols":19,"rows_kept":25,"cut":false,"hidden":true,"merged":[[2,18,4,18],[5,0,5,1],[3,0,3,1],[4,0,4,1],[0,0,0,3],[2,0,2,1]]}
["Matris 4a - summering dimension:"]
[{"$f":"Inställningar!C18","v":"Ekologisk"}]
["Åtgärd",null,{"$f":"Inställningar!K47","v":"Ekologisk"},{"$f":"Inställningar!L47","v":"Ekologisk"},{"$f":"Inställningar!M47","v":"Ekologisk"},{"$f":"Inställningar!N47","v":"Ekologisk"},{"$f":"Inställningar!O47","v":"Ekologisk"},{"$f":"Inställningar!P47","v":"Ekologisk"},{"$f":"Inställningar!Q47","v":"Social"},{"$f":"Inställningar!R47","v":"Social"},{"$f":"Inställningar!S47","v":"Social"},{"$f":"Inställningar!T47","v":"Social"},{"$f":"Inställningar!U47","v":"Social"},{"$f":"Inställningar!V47","v":"Ekonomisk"},{"$f":"Inställningar!W47","v":"Ekonomisk"},{"$f":"Inställningar!X47","v":"Ekonomisk"},{"$f":"Inställningar!Y47","v":"Ekonomisk"},{"$f":"Inställningar!Z47","v":""},"Delsumma"]
[null,null,{"$f":"Värdering!D8","v":"1. Utsläpp till luft"},{"$f":"Värdering!E8","v":"2. Jord och mark"},{"$f":"Värdering!F8","v":"3. Grundvatten"},{"$f":"Värdering!G8","v":"4. Ytvatten och sediment"},{"$f":"Värdering!H8","v":"5. Ekologi"},{"$f":"Värdering!I8","v":"6. Naturresurser och avfall"},{"$f":"Värdering!J8","v":"7. Hälsa och säkerhet"},{"$f":"Värdering!K8","v":"8. Etik och jämlikhet"},{"$f":"Värdering!L8","v":"9. Närmiljö"},{"$f":"Värdering!M8","v":"10. Lokalsamhälle"},{"$f":"Värdering!N8","v":"11. Osäkerhet och evidens"},{"$f":"Värdering!O8","v":"12. Direkta kostnader och nyttor"},{"$f":"Värdering!P8","v":"13. Indirekta kostnader och nyttor"},{"$f":"Värdering!Q8","v":"14. Inducerade kostnader och nyttor"},{"$f":"Värdering!R8","v":"15. Beständighet och flexibilitet"},{"$f":"Värdering!S8","v":""}]
["Vikt",null,{"$f":"'Oviktade resultat'!D9","v":1},{"$f":"'Oviktade resultat'!E9","v":1},{"$f":"'Oviktade resultat'!F9","v":1},{"$f":"'Oviktade resultat'!G9","v":1},{"$f":"'Oviktade resultat'!H9","v":1},{"$f":"'Oviktade resultat'!I9","v":1},{"$f":"'Oviktade resultat'!J9","v":1},{"$f":"'Oviktade resultat'!K9","v":1},{"$f":"'Oviktade resultat'!L9","v":1},{"$f":"'Oviktade resultat'!M9","v":1},{"$f":"'Oviktade resultat'!N9","v":1},{"$f":"'Oviktade resultat'!O9","v":1},{"$f":"'Oviktade resultat'!P9","v":1},{"$f":"'Oviktade resultat'!Q9","v":1},{"$f":"'Oviktade resultat'!R9","v":1},{"$f":"'Oviktade resultat'!S9","v":""}]
["Vikt dimension 1",null,{"$f":"IF(C$3=$A$2,'Viktade resultat'!D9,0)","v":1},{"$f":"IF(D$3=$A$2,'Viktade resultat'!E9,0)","v":1},{"$f":"IF(E$3=$A$2,'Viktade resultat'!F9,0)","v":1},{"$f":"IF(F$3=$A$2,'Viktade resultat'!G9,0)","v":1},{"$f":"IF(G$3=$A$2,'Viktade resultat'!H9,0)","v":1},{"$f":"IF(H$3=$A$2,'Viktade resultat'!I9,0)","v":1},{"$f":"IF(I$3=$A$2,'Viktade resultat'!J9,0)","v":0},{"$f":"IF(J$3=$A$2,'Viktade resultat'!K9,0)","v":0},{"$f":"IF(K$3=$A$2,'Viktade resultat'!L9,0)","v":0},{"$f":"IF(L$3=$A$2,'Viktade resultat'!M9,0)","v":0},{"$f":"IF(M$3=$A$2,'Viktade resultat'!N9,0)","v":0},{"$f":"IF(N$3=$A$2,'Viktade resultat'!O9,0)","v":0},{"$f":"IF(O$3=$A$2,'Viktade resultat'!P9,0)","v":0},{"$f":"IF(P$3=$A$2,'Viktade resultat'!Q9,0)","v":0},{"$f":"IF(Q$3=$A$2,'Viktade resultat'!R9,0)","v":0},{"$f":"IF(R$3=$A$2,'Viktade resultat'!S9,0)","v":0},{"$f":"SUM(C6:R6)","v":6}]
[]
[]
[]
[null,null,{"$f":"C$6","v":1}]
[null,null,{"$f":"D$6","v":1}]
[null,null,{"$f":"E$6","v":1}]
[null,null,{"$f":"F$6","v":1}]
[null,null,{"$f":"G$6","v":1}]
[null,null,{"$f":"H$6","v":1}]
[null,null,{"$f":"I$6","v":0}]
[null,null,{"$f":"J$6","v":0}]
[null,null,{"$f":"K$6","v":0}]
[null,null,{"$f":"L$6","v":0}]
[null,null,{"$f":"M$6","v":0}]
[null,null,{"$f":"N$6","v":0}]
[null,null,{"$f":"O$6","v":0}]
[null,null,{"$f":"P$6","v":0}]
[null,null,{"$f":"Q$6","v":0}]
[null,null,{"$f":"R$6","v":0}]

{"sheet":"Sum. dim 2","index":14,"n_rows":17,"n_cols":21,"rows_kept":17,"cut":false,"hidden":true,"merged":[[7,0,8,0],[7,20,8,20],[0,0,0,3],[2,0,2,1],[2,18,4,18],[2,20,3,20],[3,0,3,1],[4,0,4,1],[5,0,6,0],[5,20,6,20],[2,19,4,19],[15,0,16,0],[15,20,16,20],[9,0,10,0],[9,20,10,20],[11,0,12,0],[11,20,12,20],[13,0,14,0],[13,20,14,20]]}
["Matris 4a - summering dimension:"]
[{"$f":"Inställningar!C19","v":"Social"}]
["Åtgärd",null,{"$f":"Inställningar!K47","v":"Ekologisk"},{"$f":"Inställningar!L47","v":"Ekologisk"},{"$f":"Inställningar!M47","v":"Ekologisk"},{"$f":"Inställningar!N47","v":"Ekologisk"},{"$f":"Inställningar!O47","v":"Ekologisk"},{"$f":"Inställningar!P47","v":"Ekologisk"},{"$f":"Inställningar!Q47","v":"Social"},{"$f":"Inställningar!R47","v":"Social"},{"$f":"Inställningar!S47","v":"Social"},{"$f":"Inställningar!T47","v":"Social"},{"$f":"Inställningar!U47","v":"Social"},{"$f":"Inställningar!V47","v":"Ekonomisk"},{"$f":"Inställningar!W47","v":"Ekonomisk"},{"$f":"Inställningar!X47","v":"Ekonomisk"},{"$f":"Inställningar!Y47","v":"Ekonomisk"},{"$f":"Inställningar!Z47","v":""},"Delsumma (inklusive viktning kriterier)","Viktad delsumma (inklusive viktning tids-perspektiv)","Summa"]
[null,null,{"$f":"Värdering!D8","v":"1. Utsläpp till luft"},{"$f":"Värdering!E8","v":"2. Jord och mark"},{"$f":"Värdering!F8","v":"3. Grundvatten"},{"$f":"Värdering!G8","v":"4. Ytvatten och sediment"},{"$f":"Värdering!H8","v":"5. Ekologi"},{"$f":"Värdering!I8","v":"6. Naturresurser och avfall"},{"$f":"Värdering!J8","v":"7. Hälsa och säkerhet"},{"$f":"Värdering!K8","v":"8. Etik och jämlikhet"},{"$f":"Värdering!L8","v":"9. Närmiljö"},{"$f":"Värdering!M8","v":"10. Lokalsamhälle"},{"$f":"Värdering!N8","v":"11. Osäkerhet och evidens"},{"$f":"Värdering!O8","v":"12. Direkta kostnader och nyttor"},{"$f":"Värdering!P8","v":"13. Indirekta kostnader och nyttor"},{"$f":"Värdering!Q8","v":"14. Inducerade kostnader och nyttor"},{"$f":"Värdering!R8","v":"15. Beständighet och flexibilitet"},{"$f":"Värdering!S8","v":""}]
["Vikt",null,{"$f":"'Oviktade resultat'!D9","v":1},{"$f":"'Oviktade resultat'!E9","v":1},{"$f":"'Oviktade resultat'!F9","v":1},{"$f":"'Oviktade resultat'!G9","v":1},{"$f":"'Oviktade resultat'!H9","v":1},{"$f":"'Oviktade resultat'!I9","v":1},{"$f":"'Oviktade resultat'!J9","v":1},{"$f":"'Oviktade resultat'!K9","v":1},{"$f":"'Oviktade resultat'!L9","v":1},{"$f":"'Oviktade resultat'!M9","v":1},{"$f":"'Oviktade resultat'!N9","v":1},{"$f":"'Oviktade resultat'!O9","v":1},{"$f":"'Oviktade resultat'!P9","v":1},{"$f":"'Oviktade resultat'!Q9","v":1},{"$f":"'Oviktade resultat'!R9","v":1},{"$f":"'Oviktade resultat'!S9","v":""}]
[{"$f":"Åtgärdsalternativ!A8","v":"Nollalternativ: ingen åtgärd"},"Kort sikt",{"$f":"IF(C$3=$A$2,'Viktade resultat'!D10,0)","v":0},{"$f":"IF(D$3=$A$2,'Viktade resultat'!E10,0)","v":0},{"$f":"IF(E$3=$A$2,'Viktade resultat'!F10,0)","v":0},{"$f":"IF(F$3=$A$2,'Viktade resultat'!G10,0)","v":0},{"$f":"IF(G$3=$A$2,'Viktade resultat'!H10,0)","v":0},{"$f":"IF(H$3=$A$2,'Viktade resultat'!I10,0)","v":0},{"$f":"IF(I$3=$A$2,'Viktade resultat'!J10,0)","v":""},{"$f":"IF(J$3=$A$2,'Viktade resultat'!K10,0)","v":""},{"$f":"IF(K$3=$A$2,'Viktade resultat'!L10,0)","v":""},{"$f":"IF(L$3=$A$2,'Viktade resultat'!M10,0)","v":""},{"$f":"IF(M$3=$A$2,'Viktade resultat'!N10,0)","v":""},{"$f":"IF(N$3=$A$2,'Viktade resultat'!O10,0)","v":0},{"$f":"IF(O$3=$A$2,'Viktade resultat'!P10,0)","v":0},{"$f":"IF(P$3=$A$2,'Viktade resultat'!Q10,0)","v":0},{"$f":"IF(Q$3=$A$2,'Viktade resultat'!R10,0)","v":0},{"$f":"IF(R$3=$A$2,'Viktade resultat'!S10,0)","v":0},{"$f":"IF(ISNUMBER('Oviktade resultat'!T10),(SUM(C6:R6)),\"\")","v":""},{"$f":"IF(ISNUMBER('Oviktade resultat'!T10),S6*'Resultat vikter'!$X$11,\"\")","v":""},{"$f":"IF((ISNUMBER('Oviktade resultat'!U10)),(SUM(T6:T7)),\"\")","v":""}]
[null,"Lång sikt",{"$f":"IF(C$3=$A$2,'Viktade resultat'!D11,0)","v":0},{"$f":"IF(D$3=$A$2,'Viktade resultat'!E11,0)","v":0},{"$f":"IF(E$3=$A$2,'Viktade resultat'!F11,0)","v":0},{"$f":"IF(F$3=$A$2,'Viktade resultat'!G11,0)","v":0},{"$f":"IF(G$3=$A$2,'Viktade resultat'!H11,0)","v":0},{"$f":"IF(H$3=$A$2,'Viktade resultat'!I11,0)","v":0},{"$f":"IF(I$3=$A$2,'Viktade resultat'!J11,0)","v":""},{"$f":"IF(J$3=$A$2,'Viktade resultat'!K11,0)","v":""},{"$f":"IF(K$3=$A$2,'Viktade resultat'!L11,0)","v":""},{"$f":"IF(L$3=$A$2,'Viktade resultat'!M11,0)","v":""},{"$f":"IF(M$3=$A$2,'Viktade resultat'!N11,0)","v":""},{"$f":"IF(N$3=$A$2,'Viktade resultat'!O11,0)","v":0},{"$f":"IF(O$3=$A$2,'Viktade resultat'!P11,0)","v":0},{"$f":"IF(P$3=$A$2,'Viktade resultat'!Q11,0)","v":0},{"$f":"IF(Q$3=$A$2,'Viktade resultat'!R11,0)","v":0},{"$f":"IF(R$3=$A$2,'Viktade resultat'!S11,0)","v":0},{"$f":"IF(ISNUMBER('Oviktade resultat'!T11),(SUM(C7:R7)),\"\")","v":""},{"$f":"IF(ISNUMBER('Oviktade resultat'!T11),S7*'Resultat vikter'!$X$12,\"\")","v":""}]
[{"$f":"Åtgärdsalternativ!A9","v":"Åtgärdsförslag 1"},"Kort sikt",{"$f":"IF(C$3=$A$2,'Viktade resultat'!D12,0)","v":0},{"$f":"IF(D$3=$A$2,'Viktade resultat'!E12,0)","v":0},{"$f":"IF(E$3=$A$2,'Viktade resultat'!F12,0)","v":0},{"$f":"IF(F$3=$A$2,'Viktade resultat'!G12,0)","v":0},{"$f":"IF(G$3=$A$2,'Viktade resultat'!H12,0)","v":0},{"$f":"IF(H$3=$A$2,'Viktade resultat'!I12,0)","v":0},{"$f":"IF(I$3=$A$2,'Viktade resultat'!J12,0)","v":""},{"$f":"IF(J$3=$A$2,'Viktade resultat'!K12,0)","v":""},{"$f":"IF(K$3=$A$2,'Viktade resultat'!L12,0)","v":""},{"$f":"IF(L$3=$A$2,'Viktade resultat'!M12,0)","v":""},{"$f":"IF(M$3=$A$2,'Viktade resultat'!N12,0)","v":""},{"$f":"IF(N$3=$A$2,'Viktade resultat'!O12,0)","v":0},{"$f":"IF(O$3=$A$2,'Viktade resultat'!P12,0)","v":0},{"$f":"IF(P$3=$A$2,'Viktade resultat'!Q12,0)","v":0},{"$f":"IF(Q$3=$A$2,'Viktade resultat'!R12,0)","v":0},{"$f":"IF(R$3=$A$2,'Viktade resultat'!S12,0)","v":0},{"$f":"IF(ISNUMBER('Oviktade resultat'!T12),(SUM(C8:R8)),\"\")","v":""},{"$f":"IF(ISNUMBER('Oviktade resultat'!T12),S8*'Resultat vikter'!$X$11,\"\")","v":""},{"$f":"IF((ISNUMBER('Oviktade resultat'!U12)),(SUM(T8:T9)),\"\")","v":""}]
[null,"Lång sikt",{"$f":"IF(C$3=$A$2,'Viktade resultat'!D13,0)","v":0},{"$f":"IF(D$3=$A$2,'Viktade resultat'!E13,0)","v":0},{"$f":"IF(E$3=$A$2,'Viktade resultat'!F13,0)","v":0},{"$f":"IF(F$3=$A$2,'Viktade resultat'!G13,0)","v":0},{"$f":"IF(G$3=$A$2,'Viktade resultat'!H13,0)","v":0},{"$f":"IF(H$3=$A$2,'Viktade resultat'!I13,0)","v":0},{"$f":"IF(I$3=$A$2,'Viktade resultat'!J13,0)","v":""},{"$f":"IF(J$3=$A$2,'Viktade resultat'!K13,0)","v":""},{"$f":"IF(K$3=$A$2,'Viktade resultat'!L13,0)","v":""},{"$f":"IF(L$3=$A$2,'Viktade resultat'!M13,0)","v":""},{"$f":"IF(M$3=$A$2,'Viktade resultat'!N13,0)","v":""},{"$f":"IF(N$3=$A$2,'Viktade resultat'!O13,0)","v":0},{"$f":"IF(O$3=$A$2,'Viktade resultat'!P13,0)","v":0},{"$f":"IF(P$3=$A$2,'Viktade resultat'!Q13,0)","v":0},{"$f":"IF(Q$3=$A$2,'Viktade resultat'!R13,0)","v":0},{"$f":"IF(R$3=$A$2,'Viktade resultat'!S13,0)","v":0},{"$f":"IF(ISNUMBER('Oviktade resultat'!T13),(SUM(C9:R9)),\"\")","v":""},{"$f":"IF(ISNUMBER('Oviktade resultat'!T13),S9*'Resultat vikter'!$X$12,\"\")","v":""}]
[{"$f":"Åtgärdsalternativ!A10","v":"Åtgärdsförslag 2"},"Kort sikt",{"$f":"IF(C$3=$A$2,'Viktade resultat'!D14,0)","v":0},{"$f":"IF(D$3=$A$2,'Viktade resultat'!E14,0)","v":0},{"$f":"IF(E$3=$A$2,'Viktade resultat'!F14,0)","v":0},{"$f":"IF(F$3=$A$2,'Viktade resultat'!G14,0)","v":0},{"$f":"IF(G$3=$A$2,'Viktade resultat'!H14,0)","v":0},{"$f":"IF(H$3=$A$2,'Viktade resultat'!I14,0)","v":0},{"$f":"IF(I$3=$A$2,'Viktade resultat'!J14,0)","v":""},{"$f":"IF(J$3=$A$2,'Viktade resultat'!K14,0)","v":""},{"$f":"IF(K$3=$A$2,'Viktade resultat'!L14,0)","v":""},{"$f":"IF(L$3=$A$2,'Viktade resultat'!M14,0)","v":""},{"$f":"IF(M$3=$A$2,'Viktade resultat'!N14,0)","v":""},{"$f":"IF(N$3=$A$2,'Viktade resultat'!O14,0)","v":0},{"$f":"IF(O$3=$A$2,'Viktade resultat'!P14,0)","v":0},{"$f":"IF(P$3=$A$2,'Viktade resultat'!Q14,0)","v":0},{"$f":"IF(Q$3=$A$2,'Viktade resultat'!R14,0)","v":0},{"$f":"IF(R$3=$A$2,'Viktade resultat'!S14,0)","v":0},{"$f":"IF(ISNUMBER('Oviktade resultat'!T14),(SUM(C10:R10)),\"\")","v":""},{"$f":"IF(ISNUMBER('Oviktade resultat'!T14),S10*'Resultat vikter'!$X$11,\"\")","v":""},{"$f":"IF((ISNUMBER('Oviktade resultat'!U14)),(SUM(T10:T11)),\"\")","v":""}]
[null,"Lång sikt",{"$f":"IF(C$3=$A$2,'Viktade resultat'!D15,0)","v":0},{"$f":"IF(D$3=$A$2,'Viktade resultat'!E15,0)","v":0},{"$f":"IF(E$3=$A$2,'Viktade resultat'!F15,0)","v":0},{"$f":"IF(F$3=$A$2,'Viktade resultat'!G15,0)","v":0},{"$f":"IF(G$3=$A$2,'Viktade resultat'!H15,0)","v":0},{"$f":"IF(H$3=$A$2,'Viktade resultat'!I15,0)","v":0},{"$f":"IF(I$3=$A$2,'Viktade resultat'!J15,0)","v":""},{"$f":"IF(J$3=$A$2,'Viktade resultat'!K15,0)","v":""},{"$f":"IF(K$3=$A$2,'Viktade resultat'!L15,0)","v":""},{"$f":"IF(L$3=$A$2,'Viktade resultat'!M15,0)","v":""},{"$f":"IF(M$3=$A$2,'Viktade resultat'!N15,0)","v":""},{"$f":"IF(N$3=$A$2,'Viktade resultat'!O15,0)","v":0},{"$f":"IF(O$3=$A$2,'Viktade resultat'!P15,0)","v":0},{"$f":"IF(P$3=$A$2,'Viktade resultat'!Q15,0)","v":0},{"$f":"IF(Q$3=$A$2,'Viktade resultat'!R15,0)","v":0},{"$f":"IF(R$3=$A$2,'Viktade resultat'!S15,0)","v":0},{"$f":"IF(ISNUMBER('Oviktade resultat'!T15),(SUM(C11:R11)),\"\")","v":""},{"$f":"IF(ISNUMBER('Oviktade resultat'!T15),S11*'Resultat vikter'!$X$12,\"\")","v":""}]
[{"$f":"Åtgärdsalternativ!A11","v":"Åtgärdsförslag 3"},"Kort sikt",{"$f":"IF(C$3=$A$2,'Viktade resultat'!D16,0)","v":0},{"$f":"IF(D$3=$A$2,'Viktade resultat'!E16,0)","v":0},{"$f":"IF(E$3=$A$2,'Viktade resultat'!F16,0)","v":0},{"$f":"IF(F$3=$A$2,'Viktade resultat'!G16,0)","v":0},{"$f":"IF(G$3=$A$2,'Viktade resultat'!H16,0)","v":0},{"$f":"IF(H$3=$A$2,'Viktade resultat'!I16,0)","v":0},{"$f":"IF(I$3=$A$2,'Viktade resultat'!J16,0)","v":""},{"$f":"IF(J$3=$A$2,'Viktade resultat'!K16,0)","v":""},{"$f":"IF(K$3=$A$2,'Viktade resultat'!L16,0)","v":""},{"$f":"IF(L$3=$A$2,'Viktade resultat'!M16,0)","v":""},{"$f":"IF(M$3=$A$2,'Viktade resultat'!N16,0)","v":""},{"$f":"IF(N$3=$A$2,'Viktade resultat'!O16,0)","v":0},{"$f":"IF(O$3=$A$2,'Viktade resultat'!P16,0)","v":0},{"$f":"IF(P$3=$A$2,'Viktade resultat'!Q16,0)","v":0},{"$f":"IF(Q$3=$A$2,'Viktade resultat'!R16,0)","v":0},{"$f":"IF(R$3=$A$2,'Viktade resultat'!S16,0)","v":0},{"$f":"IF(ISNUMBER('Oviktade resultat'!T16),(SUM(C12:R12)),\"\")","v":""},{"$f":"IF(ISNUMBER('Oviktade resultat'!T16),S12*'Resultat vikter'!$X$11,\"\")","v":""},{"$f":"IF((ISNUMBER('Oviktade resultat'!U16)),(SUM(T12:T13)),\"\")","v":""}]
[null,"Lång sikt",{"$f":"IF(C$3=$A$2,'Viktade resultat'!D17,0)","v":0},{"$f":"IF(D$3=$A$2,'Viktade resultat'!E17,0)","v":0},{"$f":"IF(E$3=$A$2,'Viktade resultat'!F17,0)","v":0},{"$f":"IF(F$3=$A$2,'Viktade resultat'!G17,0)","v":0},{"$f":"IF(G$3=$A$2,'Viktade resultat'!H17,0)","v":0},{"$f":"IF(H$3=$A$2,'Viktade resultat'!I17,0)","v":0},{"$f":"IF(I$3=$A$2,'Viktade resultat'!J17,0)","v":""},{"$f":"IF(J$3=$A$2,'Viktade resultat'!K17,0)","v":""},{"$f":"IF(K$3=$A$2,'Viktade resultat'!L17,0)","v":""},{"$f":"IF(L$3=$A$2,'Viktade resultat'!M17,0)","v":""},{"$f":"IF(M$3=$A$2,'Viktade resultat'!N17,0)","v":""},{"$f":"IF(N$3=$A$2,'Viktade resultat'!O17,0)","v":0},{"$f":"IF(O$3=$A$2,'Viktade resultat'!P17,0)","v":0},{"$f":"IF(P$3=$A$2,'Viktade resultat'!Q17,0)","v":0},{"$f":"IF(Q$3=$A$2,'Viktade resultat'!R17,0)","v":0},{"$f":"IF(R$3=$A$2,'Viktade resultat'!S17,0)","v":0},{"$f":"IF(ISNUMBER('Oviktade resultat'!T17),(SUM(C13:R13)),\"\")","v":""},{"$f":"IF(ISNUMBER('Oviktade resultat'!T17),S13*'Resultat vikter'!$X$12,\"\")","v":""}]
[{"$f":"Åtgärdsalternativ!A12","v":"Åtgärdsförslag 4"},"Kort sikt",{"$f":"IF(C$3=$A$2,'Viktade resultat'!D18,0)","v":0},{"$f":"IF(D$3=$A$2,'Viktade resultat'!E18,0)","v":0},{"$f":"IF(E$3=$A$2,'Viktade resultat'!F18,0)","v":0},{"$f":"IF(F$3=$A$2,'Viktade resultat'!G18,0)","v":0},{"$f":"IF(G$3=$A$2,'Viktade resultat'!H18,0)","v":0},{"$f":"IF(H$3=$A$2,'Viktade resultat'!I18,0)","v":0},{"$f":"IF(I$3=$A$2,'Viktade resultat'!J18,0)","v":""},{"$f":"IF(J$3=$A$2,'Viktade resultat'!K18,0)","v":""},{"$f":"IF(K$3=$A$2,'Viktade resultat'!L18,0)","v":""},{"$f":"IF(L$3=$A$2,'Viktade resultat'!M18,0)","v":""},{"$f":"IF(M$3=$A$2,'Viktade resultat'!N18,0)","v":""},{"$f":"IF(N$3=$A$2,'Viktade resultat'!O18,0)","v":0},{"$f":"IF(O$3=$A$2,'Viktade resultat'!P18,0)","v":0},{"$f":"IF(P$3=$A$2,'Viktade resultat'!Q18,0)","v":0},{"$f":"IF(Q$3=$A$2,'Viktade resultat'!R18,0)","v":0},{"$f":"IF(R$3=$A$2,'Viktade resultat'!S18,0)","v":0},{"$f":"IF(ISNUMBER('Oviktade resultat'!T18),(SUM(C14:R14)),\"\")","v":""},{"$f":"IF(ISNUMBER('Oviktade resultat'!T18),S14*'Resultat vikter'!$X$11,\"\")","v":""},{"$f":"IF((ISNUMBER('Oviktade resultat'!U18)),(SUM(T14:T15)),\"\")","v":""}]
[null,"Lång sikt",{"$f":"IF(C$3=$A$2,'Viktade resultat'!D19,0)","v":0},{"$f":"IF(D$3=$A$2,'Viktade resultat'!E19,0)","v":0},{"$f":"IF(E$3=$A$2,'Viktade resultat'!F19,0)","v":0},{"$f":"IF(F$3=$A$2,'Viktade resultat'!G19,0)","v":0},{"$f":"IF(G$3=$A$2,'Viktade resultat'!H19,0)","v":0},{"$f":"IF(H$3=$A$2,'Viktade resultat'!I19,0)","v":0},{"$f":"IF(I$3=$A$2,'Viktade resultat'!J19,0)","v":""},{"$f":"IF(J$3=$A$2,'Viktade resultat'!K19,0)","v":""},{"$f":"IF(K$3=$A$2,'Viktade resultat'!L19,0)","v":""},{"$f":"IF(L$3=$A$2,'Viktade resultat'!M19,0)","v":""},{"$f":"IF(M$3=$A$2,'Viktade resultat'!N19,0)","v":""},{"$f":"IF(N$3=$A$2,'Viktade resultat'!O19,0)","v":0},{"$f":"IF(O$3=$A$2,'Viktade resultat'!P19,0)","v":0},{"$f":"IF(P$3=$A$2,'Viktade resultat'!Q19,0)","v":0},{"$f":"IF(Q$3=$A$2,'Viktade resultat'!R19,0)","v":0},{"$f":"IF(R$3=$A$2,'Viktade resultat'!S19,0)","v":0},{"$f":"IF(ISNUMBER('Oviktade resultat'!T19),(SUM(C15:R15)),\"\")","v":""},{"$f":"IF(ISNUMBER('Oviktade resultat'!T19),S15*'Resultat vikter'!$X$12,\"\")","v":""}]
[{"$f":"Åtgärdsalternativ!A13","v":"Åtgärdsförslag 5"},"Kort sikt",{"$f":"IF(C$3=$A$2,'Viktade resultat'!D20,0)","v":0},{"$f":"IF(D$3=$A$2,'Viktade resultat'!E20,0)","v":0},{"$f":"IF(E$3=$A$2,'Viktade resultat'!F20,0)","v":0},{"$f":"IF(F$3=$A$2,'Viktade resultat'!G20,0)","v":0},{"$f":"IF(G$3=$A$2,'Viktade resultat'!H20,0)","v":0},{"$f":"IF(H$3=$A$2,'Viktade resultat'!I20,0)","v":0},{"$f":"IF(I$3=$A$2,'Viktade resultat'!J20,0)","v":""},{"$f":"IF(J$3=$A$2,'Viktade resultat'!K20,0)","v":""},{"$f":"IF(K$3=$A$2,'Viktade resultat'!L20,0)","v":""},{"$f":"IF(L$3=$A$2,'Viktade resultat'!M20,0)","v":""},{"$f":"IF(M$3=$A$2,'Viktade resultat'!N20,0)","v":""},{"$f":"IF(N$3=$A$2,'Viktade resultat'!O20,0)","v":0},{"$f":"IF(O$3=$A$2,'Viktade resultat'!P20,0)","v":0},{"$f":"IF(P$3=$A$2,'Viktade resultat'!Q20,0)","v":0},{"$f":"IF(Q$3=$A$2,'Viktade resultat'!R20,0)","v":0},{"$f":"IF(R$3=$A$2,'Viktade resultat'!S20,0)","v":0},{"$f":"IF(ISNUMBER('Oviktade resultat'!T20),(SUM(C16:R16)),\"\")","v":""},{"$f":"IF(ISNUMBER('Oviktade resultat'!T20),S16*'Resultat vikter'!$X$11,\"\")","v":""},{"$f":"IF((ISNUMBER('Oviktade resultat'!U20)),(SUM(T16:T17)),\"\")","v":""}]
[null,"Lång sikt",{"$f":"IF(C$3=$A$2,'Viktade resultat'!D21,0)","v":0},{"$f":"IF(D$3=$A$2,'Viktade resultat'!E21,0)","v":0},{"$f":"IF(E$3=$A$2,'Viktade resultat'!F21,0)","v":0},{"$f":"IF(F$3=$A$2,'Viktade resultat'!G21,0)","v":0},{"$f":"IF(G$3=$A$2,'Viktade resultat'!H21,0)","v":0},{"$f":"IF(H$3=$A$2,'Viktade resultat'!I21,0)","v":0},{"$f":"IF(I$3=$A$2,'Viktade resultat'!J21,0)","v":""},{"$f":"IF(J$3=$A$2,'Viktade resultat'!K21,0)","v":""},{"$f":"IF(K$3=$A$2,'Viktade resultat'!L21,0)","v":""},{"$f":"IF(L$3=$A$2,'Viktade resultat'!M21,0)","v":""},{"$f":"IF(M$3=$A$2,'Viktade resultat'!N21,0)","v":""},{"$f":"IF(N$3=$A$2,'Viktade resultat'!O21,0)","v":0},{"$f":"IF(O$3=$A$2,'Viktade resultat'!P21,0)","v":0},{"$f":"IF(P$3=$A$2,'Viktade resultat'!Q21,0)","v":0},{"$f":"IF(Q$3=$A$2,'Viktade resultat'!R21,0)","v":0},{"$f":"IF(R$3=$A$2,'Viktade resultat'!S21,0)","v":0},{"$f":"IF(ISNUMBER('Oviktade resultat'!T21),(SUM(C17:R17)),\"\")","v":""},{"$f":"IF(ISNUMBER('Oviktade resultat'!T21),S17*'Resultat vikter'!$X$12,\"\")","v":""}]

{"sheet":"Vikt dim 2","index":15,"n_rows":25,"n_cols":19,"rows_kept":25,"cut":false,"hidden":true,"merged":[[2,18,4,18],[5,0,5,1],[3,0,3,1],[4,0,4,1],[0,0,0,3],[2,0,2,1]]}
["Matris 4a - summering dimension:"]
[{"$f":"Inställningar!C19","v":"Social"}]
["Åtgärd",null,{"$f":"Inställningar!K47","v":"Ekologisk"},{"$f":"Inställningar!L47","v":"Ekologisk"},{"$f":"Inställningar!M47","v":"Ekologisk"},{"$f":"Inställningar!N47","v":"Ekologisk"},{"$f":"Inställningar!O47","v":"Ekologisk"},{"$f":"Inställningar!P47","v":"Ekologisk"},{"$f":"Inställningar!Q47","v":"Social"},{"$f":"Inställningar!R47","v":"Social"},{"$f":"Inställningar!S47","v":"Social"},{"$f":"Inställningar!T47","v":"Social"},{"$f":"Inställningar!U47","v":"Social"},{"$f":"Inställningar!V47","v":"Ekonomisk"},{"$f":"Inställningar!W47","v":"Ekonomisk"},{"$f":"Inställningar!X47","v":"Ekonomisk"},{"$f":"Inställningar!Y47","v":"Ekonomisk"},{"$f":"Inställningar!Z47","v":""},"Delsumma"]
[null,null,{"$f":"Värdering!D8","v":"1. Utsläpp till luft"},{"$f":"Värdering!E8","v":"2. Jord och mark"},{"$f":"Värdering!F8","v":"3. Grundvatten"},{"$f":"Värdering!G8","v":"4. Ytvatten och sediment"},{"$f":"Värdering!H8","v":"5. Ekologi"},{"$f":"Värdering!I8","v":"6. Naturresurser och avfall"},{"$f":"Värdering!J8","v":"7. Hälsa och säkerhet"},{"$f":"Värdering!K8","v":"8. Etik och jämlikhet"},{"$f":"Värdering!L8","v":"9. Närmiljö"},{"$f":"Värdering!M8","v":"10. Lokalsamhälle"},{"$f":"Värdering!N8","v":"11. Osäkerhet och evidens"},{"$f":"Värdering!O8","v":"12. Direkta kostnader och nyttor"},{"$f":"Värdering!P8","v":"13. Indirekta kostnader och nyttor"},{"$f":"Värdering!Q8","v":"14. Inducerade kostnader och nyttor"},{"$f":"Värdering!R8","v":"15. Beständighet och flexibilitet"},{"$f":"Värdering!S8","v":""}]
["Vikt",null,{"$f":"'Oviktade resultat'!D9","v":1},{"$f":"'Oviktade resultat'!E9","v":1},{"$f":"'Oviktade resultat'!F9","v":1},{"$f":"'Oviktade resultat'!G9","v":1},{"$f":"'Oviktade resultat'!H9","v":1},{"$f":"'Oviktade resultat'!I9","v":1},{"$f":"'Oviktade resultat'!J9","v":1},{"$f":"'Oviktade resultat'!K9","v":1},{"$f":"'Oviktade resultat'!L9","v":1},{"$f":"'Oviktade resultat'!M9","v":1},{"$f":"'Oviktade resultat'!N9","v":1},{"$f":"'Oviktade resultat'!O9","v":1},{"$f":"'Oviktade resultat'!P9","v":1},{"$f":"'Oviktade resultat'!Q9","v":1},{"$f":"'Oviktade resultat'!R9","v":1},{"$f":"'Oviktade resultat'!S9","v":""}]
["Vikt dimension 2",null,{"$f":"IF(C$3=$A$2,'Viktade resultat'!D9,0)","v":0},{"$f":"IF(D$3=$A$2,'Viktade resultat'!E9,0)","v":0},{"$f":"IF(E$3=$A$2,'Viktade resultat'!F9,0)","v":0},{"$f":"IF(F$3=$A$2,'Viktade resultat'!G9,0)","v":0},{"$f":"IF(G$3=$A$2,'Viktade resultat'!H9,0)","v":0},{"$f":"IF(H$3=$A$2,'Viktade resultat'!I9,0)","v":0},{"$f":"IF(I$3=$A$2,'Viktade resultat'!J9,0)","v":1},{"$f":"IF(J$3=$A$2,'Viktade resultat'!K9,0)","v":1},{"$f":"IF(K$3=$A$2,'Viktade resultat'!L9,0)","v":1},{"$f":"IF(L$3=$A$2,'Viktade resultat'!M9,0)","v":1},{"$f":"IF(M$3=$A$2,'Viktade resultat'!N9,0)","v":1},{"$f":"IF(N$3=$A$2,'Viktade resultat'!O9,0)","v":0},{"$f":"IF(O$3=$A$2,'Viktade resultat'!P9,0)","v":0},{"$f":"IF(P$3=$A$2,'Viktade resultat'!Q9,0)","v":0},{"$f":"IF(Q$3=$A$2,'Viktade resultat'!R9,0)","v":0},{"$f":"IF(R$3=$A$2,'Viktade resultat'!S9,0)","v":0},{"$f":"SUM(C6:R6)","v":5}]
[]
[]
[]
[null,null,{"$f":"C$6","v":0}]
[null,null,{"$f":"D$6","v":0}]
[null,null,{"$f":"E$6","v":0}]
[null,null,{"$f":"F$6","v":0}]
[null,null,{"$f":"G$6","v":0}]
[null,null,{"$f":"H$6","v":0}]
[null,null,{"$f":"I$6","v":1}]
[null,null,{"$f":"J$6","v":1}]
[null,null,{"$f":"K$6","v":1}]
[null,null,{"$f":"L$6","v":1}]
[null,null,{"$f":"M$6","v":1}]
[null,null,{"$f":"N$6","v":0}]
[null,null,{"$f":"O$6","v":0}]
[null,null,{"$f":"P$6","v":0}]
[null,null,{"$f":"Q$6","v":0}]
[null,null,{"$f":"R$6","v":0}]

{"sheet":"Sum. dim 3","index":16,"n_rows":17,"n_cols":21,"rows_kept":17,"cut":false,"hidden":true,"merged":[[7,0,8,0],[7,20,8,20],[0,0,0,3],[2,0,2,1],[2,18,4,18],[2,20,3,20],[3,0,3,1],[4,0,4,1],[5,0,6,0],[5,20,6,20],[2,19,4,19],[15,0,16,0],[15,20,16,20],[9,0,10,0],[9,20,10,20],[11,0,12,0],[11,20,12,20],[13,0,14,0],[13,20,14,20]]}
["Matris 4a - summering dimension:"]
[{"$f":"Inställningar!C20","v":"Ekonomisk"}]
["Åtgärd",null,{"$f":"Inställningar!K47","v":"Ekologisk"},{"$f":"Inställningar!L47","v":"Ekologisk"},{"$f":"Inställningar!M47","v":"Ekologisk"},{"$f":"Inställningar!N47","v":"Ekologisk"},{"$f":"Inställningar!O47","v":"Ekologisk"},{"$f":"Inställningar!P47","v":"Ekologisk"},{"$f":"Inställningar!Q47","v":"Social"},{"$f":"Inställningar!R47","v":"Social"},{"$f":"Inställningar!S47","v":"Social"},{"$f":"Inställningar!T47","v":"Social"},{"$f":"Inställningar!U47","v":"Social"},{"$f":"Inställningar!V47","v":"Ekonomisk"},{"$f":"Inställningar!W47","v":"Ekonomisk"},{"$f":"Inställningar!X47","v":"Ekonomisk"},{"$f":"Inställningar!Y47","v":"Ekonomisk"},{"$f":"Inställningar!Z47","v":""},"Delsumma (inklusive viktning kriterier)","Viktad delsumma (inklusive viktning tids-perspektiv)","Summa"]
[null,null,{"$f":"Värdering!D8","v":"1. Utsläpp till luft"},{"$f":"Värdering!E8","v":"2. Jord och mark"},{"$f":"Värdering!F8","v":"3. Grundvatten"},{"$f":"Värdering!G8","v":"4. Ytvatten och sediment"},{"$f":"Värdering!H8","v":"5. Ekologi"},{"$f":"Värdering!I8","v":"6. Naturresurser och avfall"},{"$f":"Värdering!J8","v":"7. Hälsa och säkerhet"},{"$f":"Värdering!K8","v":"8. Etik och jämlikhet"},{"$f":"Värdering!L8","v":"9. Närmiljö"},{"$f":"Värdering!M8","v":"10. Lokalsamhälle"},{"$f":"Värdering!N8","v":"11. Osäkerhet och evidens"},{"$f":"Värdering!O8","v":"12. Direkta kostnader och nyttor"},{"$f":"Värdering!P8","v":"13. Indirekta kostnader och nyttor"},{"$f":"Värdering!Q8","v":"14. Inducerade kostnader och nyttor"},{"$f":"Värdering!R8","v":"15. Beständighet och flexibilitet"},{"$f":"Värdering!S8","v":""}]
["Vikt",null,{"$f":"'Oviktade resultat'!D9","v":1},{"$f":"'Oviktade resultat'!E9","v":1},{"$f":"'Oviktade resultat'!F9","v":1},{"$f":"'Oviktade resultat'!G9","v":1},{"$f":"'Oviktade resultat'!H9","v":1},{"$f":"'Oviktade resultat'!I9","v":1},{"$f":"'Oviktade resultat'!J9","v":1},{"$f":"'Oviktade resultat'!K9","v":1},{"$f":"'Oviktade resultat'!L9","v":1},{"$f":"'Oviktade resultat'!M9","v":1},{"$f":"'Oviktade resultat'!N9","v":1},{"$f":"'Oviktade resultat'!O9","v":1},{"$f":"'Oviktade resultat'!P9","v":1},{"$f":"'Oviktade resultat'!Q9","v":1},{"$f":"'Oviktade resultat'!R9","v":1},{"$f":"'Oviktade resultat'!S9","v":""}]
[{"$f":"Åtgärdsalternativ!A8","v":"Nollalternativ: ingen åtgärd"},"Kort sikt",{"$f":"IF(C$3=$A$2,'Viktade resultat'!D10,0)","v":0},{"$f":"IF(D$3=$A$2,'Viktade resultat'!E10,0)","v":0},{"$f":"IF(E$3=$A$2,'Viktade resultat'!F10,0)","v":0},{"$f":"IF(F$3=$A$2,'Viktade resultat'!G10,0)","v":0},{"$f":"IF(G$3=$A$2,'Viktade resultat'!H10,0)","v":0},{"$f":"IF(H$3=$A$2,'Viktade resultat'!I10,0)","v":0},{"$f":"IF(I$3=$A$2,'Viktade resultat'!J10,0)","v":0},{"$f":"IF(J$3=$A$2,'Viktade resultat'!K10,0)","v":0},{"$f":"IF(K$3=$A$2,'Viktade resultat'!L10,0)","v":0},{"$f":"IF(L$3=$A$2,'Viktade resultat'!M10,0)","v":0},{"$f":"IF(M$3=$A$2,'Viktade resultat'!N10,0)","v":0},{"$f":"IF(N$3=$A$2,'Viktade resultat'!O10,0)","v":""},{"$f":"IF(O$3=$A$2,'Viktade resultat'!P10,0)","v":""},{"$f":"IF(P$3=$A$2,'Viktade resultat'!Q10,0)","v":""},{"$f":"IF(Q$3=$A$2,'Viktade resultat'!R10,0)","v":""},{"$f":"IF(R$3=$A$2,'Viktade resultat'!S10,0)","v":0},{"$f":"IF(ISNUMBER('Oviktade resultat'!T10),(SUM(C6:R6)),\"\")","v":""},{"$f":"IF(ISNUMBER('Oviktade resultat'!T10),S6*'Resultat vikter'!$X$11,\"\")","v":""},{"$f":"IF((ISNUMBER('Oviktade resultat'!U10)),(SUM(T6:T7)),\"\")","v":""}]
[null,"Lång sikt",{"$f":"IF(C$3=$A$2,'Viktade resultat'!D11,0)","v":0},{"$f":"IF(D$3=$A$2,'Viktade resultat'!E11,0)","v":0},{"$f":"IF(E$3=$A$2,'Viktade resultat'!F11,0)","v":0},{"$f":"IF(F$3=$A$2,'Viktade resultat'!G11,0)","v":0},{"$f":"IF(G$3=$A$2,'Viktade resultat'!H11,0)","v":0},{"$f":"IF(H$3=$A$2,'Viktade resultat'!I11,0)","v":0},{"$f":"IF(I$3=$A$2,'Viktade resultat'!J11,0)","v":0},{"$f":"IF(J$3=$A$2,'Viktade resultat'!K11,0)","v":0},{"$f":"IF(K$3=$A$2,'Viktade resultat'!L11,0)","v":0},{"$f":"IF(L$3=$A$2,'Viktade resultat'!M11,0)","v":0},{"$f":"IF(M$3=$A$2,'Viktade resultat'!N11,0)","v":0},{"$f":"IF(N$3=$A$2,'Viktade resultat'!O11,0)","v":""},{"$f":"IF(O$3=$A$2,'Viktade resultat'!P11,0)","v":""},{"$f":"IF(P$3=$A$2,'Viktade resultat'!Q11,0)","v":""},{"$f":"IF(Q$3=$A$2,'Viktade resultat'!R11,0)","v":""},{"$f":"IF(R$3=$A$2,'Viktade resultat'!S11,0)","v":0},{"$f":"IF(ISNUMBER('Oviktade resultat'!T11),(SUM(C7:R7)),\"\")","v":""},{"$f":"IF(ISNUMBER('Oviktade resultat'!T11),S7*'Resultat vikter'!$X$12,\"\")","v":""}]
[{"$f":"Åtgärdsalternativ!A9","v":"Åtgärdsförslag 1"},"Kort sikt",{"$f":"IF(C$3=$A$2,'Viktade resultat'!D12,0)","v":0},{"$f":"IF(D$3=$A$2,'Viktade resultat'!E12,0)","v":0},{"$f":"IF(E$3=$A$2,'Viktade resultat'!F12,0)","v":0},{"$f":"IF(F$3=$A$2,'Viktade resultat'!G12,0)","v":0},{"$f":"IF(G$3=$A$2,'Viktade resultat'!H12,0)","v":0},{"$f":"IF(H$3=$A$2,'Viktade resultat'!I12,0)","v":0},{"$f":"IF(I$3=$A$2,'Viktade resultat'!J12,0)","v":0},{"$f":"IF(J$3=$A$2,'Viktade resultat'!K12,0)","v":0},{"$f":"IF(K$3=$A$2,'Viktade resultat'!L12,0)","v":0},{"$f":"IF(L$3=$A$2,'Viktade resultat'!M12,0)","v":0},{"$f":"IF(M$3=$A$2,'Viktade resultat'!N12,0)","v":0},{"$f":"IF(N$3=$A$2,'Viktade resultat'!O12,0)","v":""},{"$f":"IF(O$3=$A$2,'Viktade resultat'!P12,0)","v":""},{"$f":"IF(P$3=$A$2,'Viktade resultat'!Q12,0)","v":""},{"$f":"IF(Q$3=$A$2,'Viktade resultat'!R12,0)","v":""},{"$f":"IF(R$3=$A$2,'Viktade resultat'!S12,0)","v":0},{"$f":"IF(ISNUMBER('Oviktade resultat'!T12),(SUM(C8:R8)),\"\")","v":""},{"$f":"IF(ISNUMBER('Oviktade resultat'!T12),S8*'Resultat vikter'!$X$11,\"\")","v":""},{"$f":"IF((ISNUMBER('Oviktade resultat'!U12)),(SUM(T8:T9)),\"\")","v":""}]
[null,"Lång sikt",{"$f":"IF(C$3=$A$2,'Viktade resultat'!D13,0)","v":0},{"$f":"IF(D$3=$A$2,'Viktade resultat'!E13,0)","v":0},{"$f":"IF(E$3=$A$2,'Viktade resultat'!F13,0)","v":0},{"$f":"IF(F$3=$A$2,'Viktade resultat'!G13,0)","v":0},{"$f":"IF(G$3=$A$2,'Viktade resultat'!H13,0)","v":0},{"$f":"IF(H$3=$A$2,'Viktade resultat'!I13,0)","v":0},{"$f":"IF(I$3=$A$2,'Viktade resultat'!J13,0)","v":0},{"$f":"IF(J$3=$A$2,'Viktade resultat'!K13,0)","v":0},{"$f":"IF(K$3=$A$2,'Viktade resultat'!L13,0)","v":0},{"$f":"IF(L$3=$A$2,'Viktade resultat'!M13,0)","v":0},{"$f":"IF(M$3=$A$2,'Viktade resultat'!N13,0)","v":0},{"$f":"IF(N$3=$A$2,'Viktade resultat'!O13,0)","v":""},{"$f":"IF(O$3=$A$2,'Viktade resultat'!P13,0)","v":""},{"$f":"IF(P$3=$A$2,'Viktade resultat'!Q13,0)","v":""},{"$f":"IF(Q$3=$A$2,'Viktade resultat'!R13,0)","v":""},{"$f":"IF(R$3=$A$2,'Viktade resultat'!S13,0)","v":0},{"$f":"IF(ISNUMBER('Oviktade resultat'!T13),(SUM(C9:R9)),\"\")","v":""},{"$f":"IF(ISNUMBER('Oviktade resultat'!T13),S9*'Resultat vikter'!$X$12,\"\")","v":""}]
[{"$f":"Åtgärdsalternativ!A10","v":"Åtgärdsförslag 2"},"Kort sikt",{"$f":"IF(C$3=$A$2,'Viktade resultat'!D14,0)","v":0},{"$f":"IF(D$3=$A$2,'Viktade resultat'!E14,0)","v":0},{"$f":"IF(E$3=$A$2,'Viktade resultat'!F14,0)","v":0},{"$f":"IF(F$3=$A$2,'Viktade resultat'!G14,0)","v":0},{"$f":"IF(G$3=$A$2,'Viktade resultat'!H14,0)","v":0},{"$f":"IF(H$3=$A$2,'Viktade resultat'!I14,0)","v":0},{"$f":"IF(I$3=$A$2,'Viktade resultat'!J14,0)","v":0},{"$f":"IF(J$3=$A$2,'Viktade resultat'!K14,0)","v":0},{"$f":"IF(K$3=$A$2,'Viktade resultat'!L14,0)","v":0},{"$f":"IF(L$3=$A$2,'Viktade resultat'!M14,0)","v":0},{"$f":"IF(M$3=$A$2,'Viktade resultat'!N14,0)","v":0},{"$f":"IF(N$3=$A$2,'Viktade resultat'!O14,0)","v":""},{"$f":"IF(O$3=$A$2,'Viktade resultat'!P14,0)","v":""},{"$f":"IF(P$3=$A$2,'Viktade resultat'!Q14,0)","v":""},{"$f":"IF(Q$3=$A$2,'Viktade resultat'!R14,0)","v":""},{"$f":"IF(R$3=$A$2,'Viktade resultat'!S14,0)","v":0},{"$f":"IF(ISNUMBER('Oviktade resultat'!T14),(SUM(C10:R10)),\"\")","v":""},{"$f":"IF(ISNUMBER('Oviktade resultat'!T14),S10*'Resultat vikter'!$X$11,\"\")","v":""},{"$f":"IF((ISNUMBER('Oviktade resultat'!U14)),(SUM(T10:T11)),\"\")","v":""}]
[null,"Lång sikt",{"$f":"IF(C$3=$A$2,'Viktade resultat'!D15,0)","v":0},{"$f":"IF(D$3=$A$2,'Viktade resultat'!E15,0)","v":0},{"$f":"IF(E$3=$A$2,'Viktade resultat'!F15,0)","v":0},{"$f":"IF(F$3=$A$2,'Viktade resultat'!G15,0)","v":0},{"$f":"IF(G$3=$A$2,'Viktade resultat'!H15,0)","v":0},{"$f":"IF(H$3=$A$2,'Viktade resultat'!I15,0)","v":0},{"$f":"IF(I$3=$A$2,'Viktade resultat'!J15,0)","v":0},{"$f":"IF(J$3=$A$2,'Viktade resultat'!K15,0)","v":0},{"$f":"IF(K$3=$A$2,'Viktade resultat'!L15,0)","v":0},{"$f":"IF(L$3=$A$2,'Viktade resultat'!M15,0)","v":0},{"$f":"IF(M$3=$A$2,'Viktade resultat'!N15,0)","v":0},{"$f":"IF(N$3=$A$2,'Viktade resultat'!O15,0)","v":""},{"$f":"IF(O$3=$A$2,'Viktade resultat'!P15,0)","v":""},{"$f":"IF(P$3=$A$2,'Viktade resultat'!Q15,0)","v":""},{"$f":"IF(Q$3=$A$2,'Viktade resultat'!R15,0)","v":""},{"$f":"IF(R$3=$A$2,'Viktade resultat'!S15,0)","v":0},{"$f":"IF(ISNUMBER('Oviktade resultat'!T15),(SUM(C11:R11)),\"\")","v":""},{"$f":"IF(ISNUMBER('Oviktade resultat'!T15),S11*'Resultat vikter'!$X$12,\"\")","v":""}]
[{"$f":"Åtgärdsalternativ!A11","v":"Åtgärdsförslag 3"},"Kort sikt",{"$f":"IF(C$3=$A$2,'Viktade resultat'!D16,0)","v":0},{"$f":"IF(D$3=$A$2,'Viktade resultat'!E16,0)","v":0},{"$f":"IF(E$3=$A$2,'Viktade resultat'!F16,0)","v":0},{"$f":"IF(F$3=$A$2,'Viktade resultat'!G16,0)","v":0},{"$f":"IF(G$3=$A$2,'Viktade resultat'!H16,0)","v":0},{"$f":"IF(H$3=$A$2,'Viktade resultat'!I16,0)","v":0},{"$f":"IF(I$3=$A$2,'Viktade resultat'!J16,0)","v":0},{"$f":"IF(J$3=$A$2,'Viktade resultat'!K16,0)","v":0},{"$f":"IF(K$3=$A$2,'Viktade resultat'!L16,0)","v":0},{"$f":"IF(L$3=$A$2,'Viktade resultat'!M16,0)","v":0},{"$f":"IF(M$3=$A$2,'Viktade resultat'!N16,0)","v":0},{"$f":"IF(N$3=$A$2,'Viktade resultat'!O16,0)","v":""},{"$f":"IF(O$3=$A$2,'Viktade resultat'!P16,0)","v":""},{"$f":"IF(P$3=$A$2,'Viktade resultat'!Q16,0)","v":""},{"$f":"IF(Q$3=$A$2,'Viktade resultat'!R16,0)","v":""},{"$f":"IF(R$3=$A$2,'Viktade resultat'!S16,0)","v":0},{"$f":"IF(ISNUMBER('Oviktade resultat'!T16),(SUM(C12:R12)),\"\")","v":""},{"$f":"IF(ISNUMBER('Oviktade resultat'!T16),S12*'Resultat vikter'!$X$11,\"\")","v":""},{"$f":"IF((ISNUMBER('Oviktade resultat'!U16)),(SUM(T12:T13)),\"\")","v":""}]
[null,"Lång sikt",{"$f":"IF(C$3=$A$2,'Viktade resultat'!D17,0)","v":0},{"$f":"IF(D$3=$A$2,'Viktade resultat'!E17,0)","v":0},{"$f":"IF(E$3=$A$2,'Viktade resultat'!F17,0)","v":0},{"$f":"IF(F$3=$A$2,'Viktade resultat'!G17,0)","v":0},{"$f":"IF(G$3=$A$2,'Viktade resultat'!H17,0)","v":0},{"$f":"IF(H$3=$A$2,'Viktade resultat'!I17,0)","v":0},{"$f":"IF(I$3=$A$2,'Viktade resultat'!J17,0)","v":0},{"$f":"IF(J$3=$A$2,'Viktade resultat'!K17,0)","v":0},{"$f":"IF(K$3=$A$2,'Viktade resultat'!L17,0)","v":0},{"$f":"IF(L$3=$A$2,'Viktade resultat'!M17,0)","v":0},{"$f":"IF(M$3=$A$2,'Viktade resultat'!N17,0)","v":0},{"$f":"IF(N$3=$A$2,'Viktade resultat'!O17,0)","v":""},{"$f":"IF(O$3=$A$2,'Viktade resultat'!P17,0)","v":""},{"$f":"IF(P$3=$A$2,'Viktade resultat'!Q17,0)","v":""},{"$f":"IF(Q$3=$A$2,'Viktade resultat'!R17,0)","v":""},{"$f":"IF(R$3=$A$2,'Viktade resultat'!S17,0)","v":0},{"$f":"IF(ISNUMBER('Oviktade resultat'!T17),(SUM(C13:R13)),\"\")","v":""},{"$f":"IF(ISNUMBER('Oviktade resultat'!T17),S13*'Resultat vikter'!$X$12,\"\")","v":""}]
[{"$f":"Åtgärdsalternativ!A12","v":"Åtgärdsförslag 4"},"Kort sikt",{"$f":"IF(C$3=$A$2,'Viktade resultat'!D18,0)","v":0},{"$f":"IF(D$3=$A$2,'Viktade resultat'!E18,0)","v":0},{"$f":"IF(E$3=$A$2,'Viktade resultat'!F18,0)","v":0},{"$f":"IF(F$3=$A$2,'Viktade resultat'!G18,0)","v":0},{"$f":"IF(G$3=$A$2,'Viktade resultat'!H18,0)","v":0},{"$f":"IF(H$3=$A$2,'Viktade resultat'!I18,0)","v":0},{"$f":"IF(I$3=$A$2,'Viktade resultat'!J18,0)","v":0},{"$f":"IF(J$3=$A$2,'Viktade resultat'!K18,0)","v":0},{"$f":"IF(K$3=$A$2,'Viktade resultat'!L18,0)","v":0},{"$f":"IF(L$3=$A$2,'Viktade resultat'!M18,0)","v":0},{"$f":"IF(M$3=$A$2,'Viktade resultat'!N18,0)","v":0},{"$f":"IF(N$3=$A$2,'Viktade resultat'!O18,0)","v":""},{"$f":"IF(O$3=$A$2,'Viktade resultat'!P18,0)","v":""},{"$f":"IF(P$3=$A$2,'Viktade resultat'!Q18,0)","v":""},{"$f":"IF(Q$3=$A$2,'Viktade resultat'!R18,0)","v":""},{"$f":"IF(R$3=$A$2,'Viktade resultat'!S18,0)","v":0},{"$f":"IF(ISNUMBER('Oviktade resultat'!T18),(SUM(C14:R14)),\"\")","v":""},{"$f":"IF(ISNUMBER('Oviktade resultat'!T18),S14*'Resultat vikter'!$X$11,\"\")","v":""},{"$f":"IF((ISNUMBER('Oviktade resultat'!U18)),(SUM(T14:T15)),\"\")","v":""}]
[null,"Lång sikt",{"$f":"IF(C$3=$A$2,'Viktade resultat'!D19,0)","v":0},{"$f":"IF(D$3=$A$2,'Viktade resultat'!E19,0)","v":0},{"$f":"IF(E$3=$A$2,'Viktade resultat'!F19,0)","v":0},{"$f":"IF(F$3=$A$2,'Viktade resultat'!G19,0)","v":0},{"$f":"IF(G$3=$A$2,'Viktade resultat'!H19,0)","v":0},{"$f":"IF(H$3=$A$2,'Viktade resultat'!I19,0)","v":0},{"$f":"IF(I$3=$A$2,'Viktade resultat'!J19,0)","v":0},{"$f":"IF(J$3=$A$2,'Viktade resultat'!K19,0)","v":0},{"$f":"IF(K$3=$A$2,'Viktade resultat'!L19,0)","v":0},{"$f":"IF(L$3=$A$2,'Viktade resultat'!M19,0)","v":0},{"$f":"IF(M$3=$A$2,'Viktade resultat'!N19,0)","v":0},{"$f":"IF(N$3=$A$2,'Viktade resultat'!O19,0)","v":""},{"$f":"IF(O$3=$A$2,'Viktade resultat'!P19,0)","v":""},{"$f":"IF(P$3=$A$2,'Viktade resultat'!Q19,0)","v":""},{"$f":"IF(Q$3=$A$2,'Viktade resultat'!R19,0)","v":""},{"$f":"IF(R$3=$A$2,'Viktade resultat'!S19,0)","v":0},{"$f":"IF(ISNUMBER('Oviktade resultat'!T19),(SUM(C15:R15)),\"\")","v":""},{"$f":"IF(ISNUMBER('Oviktade resultat'!T19),S15*'Resultat vikter'!$X$12,\"\")","v":""}]
[{"$f":"Åtgärdsalternativ!A13","v":"Åtgärdsförslag 5"},"Kort sikt",{"$f":"IF(C$3=$A$2,'Viktade resultat'!D20,0)","v":0},{"$f":"IF(D$3=$A$2,'Viktade resultat'!E20,0)","v":0},{"$f":"IF(E$3=$A$2,'Viktade resultat'!F20,0)","v":0},{"$f":"IF(F$3=$A$2,'Viktade resultat'!G20,0)","v":0},{"$f":"IF(G$3=$A$2,'Viktade resultat'!H20,0)","v":0},{"$f":"IF(H$3=$A$2,'Viktade resultat'!I20,0)","v":0},{"$f":"IF(I$3=$A$2,'Viktade resultat'!J20,0)","v":0},{"$f":"IF(J$3=$A$2,'Viktade resultat'!K20,0)","v":0},{"$f":"IF(K$3=$A$2,'Viktade resultat'!L20,0)","v":0},{"$f":"IF(L$3=$A$2,'Viktade resultat'!M20,0)","v":0},{"$f":"IF(M$3=$A$2,'Viktade resultat'!N20,0)","v":0},{"$f":"IF(N$3=$A$2,'Viktade resultat'!O20,0)","v":""},{"$f":"IF(O$3=$A$2,'Viktade resultat'!P20,0)","v":""},{"$f":"IF(P$3=$A$2,'Viktade resultat'!Q20,0)","v":""},{"$f":"IF(Q$3=$A$2,'Viktade resultat'!R20,0)","v":""},{"$f":"IF(R$3=$A$2,'Viktade resultat'!S20,0)","v":0},{"$f":"IF(ISNUMBER('Oviktade resultat'!T20),(SUM(C16:R16)),\"\")","v":""},{"$f":"IF(ISNUMBER('Oviktade resultat'!T20),S16*'Resultat vikter'!$X$11,\"\")","v":""},{"$f":"IF((ISNUMBER('Oviktade resultat'!U20)),(SUM(T16:T17)),\"\")","v":""}]
[null,"Lång sikt",{"$f":"IF(C$3=$A$2,'Viktade resultat'!D21,0)","v":0},{"$f":"IF(D$3=$A$2,'Viktade resultat'!E21,0)","v":0},{"$f":"IF(E$3=$A$2,'Viktade resultat'!F21,0)","v":0},{"$f":"IF(F$3=$A$2,'Viktade resultat'!G21,0)","v":0},{"$f":"IF(G$3=$A$2,'Viktade resultat'!H21,0)","v":0},{"$f":"IF(H$3=$A$2,'Viktade resultat'!I21,0)","v":0},{"$f":"IF(I$3=$A$2,'Viktade resultat'!J21,0)","v":0},{"$f":"IF(J$3=$A$2,'Viktade resultat'!K21,0)","v":0},{"$f":"IF(K$3=$A$2,'Viktade resultat'!L21,0)","v":0},{"$f":"IF(L$3=$A$2,'Viktade resultat'!M21,0)","v":0},{"$f":"IF(M$3=$A$2,'Viktade resultat'!N21,0)","v":0},{"$f":"IF(N$3=$A$2,'Viktade resultat'!O21,0)","v":""},{"$f":"IF(O$3=$A$2,'Viktade resultat'!P21,0)","v":""},{"$f":"IF(P$3=$A$2,'Viktade resultat'!Q21,0)","v":""},{"$f":"IF(Q$3=$A$2,'Viktade resultat'!R21,0)","v":""},{"$f":"IF(R$3=$A$2,'Viktade resultat'!S21,0)","v":0},{"$f":"IF(ISNUMBER('Oviktade resultat'!T21),(SUM(C17:R17)),\"\")","v":""},{"$f":"IF(ISNUMBER('Oviktade resultat'!T21),S17*'Resultat vikter'!$X$12,\"\")","v":""}]

{"sheet":"Vikt dim 3","index":17,"n_rows":25,"n_cols":19,"rows_kept":25,"cut":false,"hidden":true,"merged":[[2,18,4,18],[5,0,5,1],[3,0,3,1],[4,0,4,1],[0,0,0,3],[2,0,2,1]]}
["Matris 4a - summering dimension:"]
[{"$f":"Inställningar!C20","v":"Ekonomisk"}]
["Åtgärd",null,{"$f":"Inställningar!K47","v":"Ekologisk"},{"$f":"Inställningar!L47","v":"Ekologisk"},{"$f":"Inställningar!M47","v":"Ekologisk"},{"$f":"Inställningar!N47","v":"Ekologisk"},{"$f":"Inställningar!O47","v":"Ekologisk"},{"$f":"Inställningar!P47","v":"Ekologisk"},{"$f":"Inställningar!Q47","v":"Social"},{"$f":"Inställningar!R47","v":"Social"},{"$f":"Inställningar!S47","v":"Social"},{"$f":"Inställningar!T47","v":"Social"},{"$f":"Inställningar!U47","v":"Social"},{"$f":"Inställningar!V47","v":"Ekonomisk"},{"$f":"Inställningar!W47","v":"Ekonomisk"},{"$f":"Inställningar!X47","v":"Ekonomisk"},{"$f":"Inställningar!Y47","v":"Ekonomisk"},{"$f":"Inställningar!Z47","v":""},"Delsumma"]
[null,null,{"$f":"Värdering!D8","v":"1. Utsläpp till luft"},{"$f":"Värdering!E8","v":"2. Jord och mark"},{"$f":"Värdering!F8","v":"3. Grundvatten"},{"$f":"Värdering!G8","v":"4. Ytvatten och sediment"},{"$f":"Värdering!H8","v":"5. Ekologi"},{"$f":"Värdering!I8","v":"6. Naturresurser och avfall"},{"$f":"Värdering!J8","v":"7. Hälsa och säkerhet"},{"$f":"Värdering!K8","v":"8. Etik och jämlikhet"},{"$f":"Värdering!L8","v":"9. Närmiljö"},{"$f":"Värdering!M8","v":"10. Lokalsamhälle"},{"$f":"Värdering!N8","v":"11. Osäkerhet och evidens"},{"$f":"Värdering!O8","v":"12. Direkta kostnader och nyttor"},{"$f":"Värdering!P8","v":"13. Indirekta kostnader och nyttor"},{"$f":"Värdering!Q8","v":"14. Inducerade kostnader och nyttor"},{"$f":"Värdering!R8","v":"15. Beständighet och flexibilitet"},{"$f":"Värdering!S8","v":""}]
["Vikt",null,{"$f":"'Oviktade resultat'!D9","v":1},{"$f":"'Oviktade resultat'!E9","v":1},{"$f":"'Oviktade resultat'!F9","v":1},{"$f":"'Oviktade resultat'!G9","v":1},{"$f":"'Oviktade resultat'!H9","v":1},{"$f":"'Oviktade resultat'!I9","v":1},{"$f":"'Oviktade resultat'!J9","v":1},{"$f":"'Oviktade resultat'!K9","v":1},{"$f":"'Oviktade resultat'!L9","v":1},{"$f":"'Oviktade resultat'!M9","v":1},{"$f":"'Oviktade resultat'!N9","v":1},{"$f":"'Oviktade resultat'!O9","v":1},{"$f":"'Oviktade resultat'!P9","v":1},{"$f":"'Oviktade resultat'!Q9","v":1},{"$f":"'Oviktade resultat'!R9","v":1},{"$f":"'Oviktade resultat'!S9","v":""}]
["Vikt dimension 3",null,{"$f":"IF(C$3=$A$2,'Viktade resultat'!D9,0)","v":0},{"$f":"IF(D$3=$A$2,'Viktade resultat'!E9,0)","v":0},{"$f":"IF(E$3=$A$2,'Viktade resultat'!F9,0)","v":0},{"$f":"IF(F$3=$A$2,'Viktade resultat'!G9,0)","v":0},{"$f":"IF(G$3=$A$2,'Viktade resultat'!H9,0)","v":0},{"$f":"IF(H$3=$A$2,'Viktade resultat'!I9,0)","v":0},{"$f":"IF(I$3=$A$2,'Viktade resultat'!J9,0)","v":0},{"$f":"IF(J$3=$A$2,'Viktade resultat'!K9,0)","v":0},{"$f":"IF(K$3=$A$2,'Viktade resultat'!L9,0)","v":0},{"$f":"IF(L$3=$A$2,'Viktade resultat'!M9,0)","v":0},{"$f":"IF(M$3=$A$2,'Viktade resultat'!N9,0)","v":0},{"$f":"IF(N$3=$A$2,'Viktade resultat'!O9,0)","v":1},{"$f":"IF(O$3=$A$2,'Viktade resultat'!P9,0)","v":1},{"$f":"IF(P$3=$A$2,'Viktade resultat'!Q9,0)","v":1},{"$f":"IF(Q$3=$A$2,'Viktade resultat'!R9,0)","v":1},{"$f":"IF(R$3=$A$2,'Viktade resultat'!S9,0)","v":0},{"$f":"SUM(C6:R6)","v":4}]
[]
[]
[]
[null,null,{"$f":"C$6","v":0}]
[null,null,{"$f":"D$6","v":0}]
[null,null,{"$f":"E$6","v":0}]
[null,null,{"$f":"F$6","v":0}]
[null,null,{"$f":"G$6","v":0}]
[null,null,{"$f":"H$6","v":0}]
[null,null,{"$f":"I$6","v":0}]
[null,null,{"$f":"J$6","v":0}]
[null,null,{"$f":"K$6","v":0}]
[null,null,{"$f":"L$6","v":0}]
[null,null,{"$f":"M$6","v":0}]
[null,null,{"$f":"N$6","v":1}]
[null,null,{"$f":"O$6","v":1}]
[null,null,{"$f":"P$6","v":1}]
[null,null,{"$f":"Q$6","v":1}]
[null,null,{"$f":"R$6","v":0}]